Workbook

Sheet Coversheet
A1: SCP Calculator (Version 5.1)
B2: This tool has been developed to support consultants developing Stormwater Control Plans for RIDOT Consent Decree Compliance. The tool has been developed for knowledgeable professionals with little additional controls. Altering cells outside of those indicated as input may render the calculation results invalid.
A4: General Notes: | B4: Templates are set up assuming one workbook will be used per subwatershed. | E4: SCP Subwatershed: | F4: Lawton Valley Reservoir
B5: Users have the option to only show relevant tabs by selecting from the pull down menu below. | E5: WBID: | F5: RI0007035L-06
B6: Cells of this color designate an input is required. Cells denoted with * indicate input must be one of a controlled list (see pull down) | E6: Version Date: | F6: 2018-11-27
B7: Cells of this color contain formulas and should not be altered. | E7: Last Saved: | F7: =MODDATE() -> 12/17/18 4:22 PM
A9: Sheet Summary | B9: Sheet | C9: Description | D9: Show Tab* | E9: Additional Resources
A10: Version Notes | B10: Version Notes | C10: Information on updates between SCP calculator versions. | D10: No
A11: Input Tabs | B11: RIDOT_Catchment | C11: User input from GIS layer RIDOT_Catchment. | D11: -- | E11: SCP database and metadata
B12: Non-RIDOT_Catchment | C12: User input from GIS layer Non-RIDOT_Catchment. | D12: -- | E12: SCP database and metadata
B13: Existing STU | C13: User input for existing STUs. | D13: -- | E13: Vueworks
B14: Potential_STU | C14: User input from GIS layer Potential_STU. | D14: -- | E14: SCP database and metadata
A15: Reduction Targets | B15: Reduction Targets | C15: Calculates RIDOT IC or pollutant reduction targets using the TMDL and/or IC Method. | D15: -- | E15: Water Quality Methodology Report
A16: STU Volume Calculations | B16: STU Storage Volume | C16: Provides supporting documentation for STU Storage Volume assumptions and calculations. | D16: -- | E16: STU Definitions
A17: Structural Treatment Credits | B17: Structural Water Quality Calcs | C17: Runs water quality calculations for STU treatment credits. | D17: -- | E17: Water Quality Methodology Report
B18: Porous Pavement (underdrained) | C18: Calculates treatment credit for porous pavement (with underdain). | D18: No | E18: Water Quality Methodology Report
B19: Floodplain Reconnection | C19: Calculates treatment credit for floodplain reconnection. | D19: No | E19: Water Quality Methodology Report
B20: Urban Tree Canopy | C20: Calculates treatment credit for urban tree canopy. | D20: No | E20: Water Quality Methodology Report
B21: Agriculture Buffers | C21: Calculates treatment credit for agriculture buffers. | D21: No | E21: Water Quality Methodology Report
B22: Pervious Land Enhancement | C22: Calculates treatment credit for pervious land enhancement. | D22: No | E22: Water Quality Methodology Report
B23: Proprietary Technologies | C23: Calculates treatment credit for proprietary technologies. | D23: No | E23: Water Quality Methodology Report
A24: Non-structural Treatment Credits | B24: Street Sweeping and CB Cleaning | C24: Calculates non-structural treatment credit for enhanced street sweeping and/or catch basin cleaning. | D24: No | E24: Water Quality Methodology Report
B25: Leaf Litter Removal | C25: Calculates non-structural treatment credit for leaf litter removal. | D25: No | E25: Water Quality Methodology Report
B26: Animal Waste Reduction | C26: Calculates non-structural treatment credit for animal waste reduction (dog, bird etc.) or manure removal. | D26: No | E26: Water Quality Methodology Report
B27: Dredging | C27: Calculates non-structural treatment credit for dredging projects. | D27: No | E27: Water Quality Methodology Report
B28: Illicit Discharge Elimination | C28: Calculates non-structural treatment credit for illicit discharge elimination. | D28: No | E28: Water Quality Methodology Report
B29: Streambank Restoration | C29: Calculates non-structural treatment credit for streambank restoration. | D29: No | E29: Water Quality Methodology Report
A30: SCP Report Templates | B30: Table 1-A | C30: Subwatershed Summary | D30: Yes | E30: SCP Report Template
B31: Table 2-A | C31: Stormwater Controls Summary | D31: Yes | E31: SCP Report Template
B32: Table 4-A-1 | C32: TMDL Method: Pollutant Reduction Target Summary | D32: Yes | E32: SCP Report Template
B33: Table 4-A-2 | C33: Impervious Cover Method: IC Reduction Target Summary | D33: Yes | E33: SCP Report Template
A34: Summary Tables | B34: STU_Cost | C34: Estimate of Probable Cost and Retrofit Priority | D34: Yes | E34: SCP Report Template
B35: STU_WaterQuality | C35: Summarizes inputs for STU_WaterQuality related table in SCP database | D35: Yes | E35: SCP database and metadata
B36: SCP_Watersheds | C36: Summarizes inputs related to water quality tracking for SCP_Watersheds layer in SCP database | D36: Yes | E36: SCP database and metadata
A37: Reference Tabs | B37: STU Definitions | C37: STU definitions, treatment categories, and storage volume definitions. | D37: No | E37: Water Quality Methodology Report
B38: STU Cost Estimates | C38: STU design/construction and maintenance costs. | D38: No | E38: EPA Memo: Methodology for Developing Cost Estiates for Opti-Tool
B39: STU Treatment Values | C39: STU pollutant treatment values used in water quality calculations to calculate treatment credit for structural controls. | D39: No | E39: Water Quality Methodology Report
B40: Pollutant Loading Rates | C40: Pollutant loading rates by land use category. | D40: No | E40: Water Quality Methodology Report
B41: Pollutant Removal Curves | C41: STU pollutant removal curves by treatment depth and pollutant. | D41: No | E41: Water Quality Methodology Report
B42: IC Removal Curves | C42: STU IC factors by treatment depth. | D42: No | E42: Water Quality Methodology Report
B43: Soil Types | C43: HSG group, soil texture class, and infiltration rates. | D43: No

Sheet Version Notes (hidden)
A1: This tab summarizes key updates and additions between SCP calculator versions.
A2: SCP Calculator Version | B2: Release Date | C2: Updates and Additions
A3: 1 | B3: 2017-07-13
A4: 2 | B4: 2017-12-14 | C4: crediting for TIP STUs
C5: STU Type Domain updated for consistency with SCP database
A6: 3 | B6: 2018-03-29 | C6: use of both TSS and TP (versus just TP) to calculate effective IC reduction
A7: 4 | B7: 2018-04-19 | C7: addition of input tabs for GIS layer exports, calculator pulls input for calculations from these tabs
C8: addition of Pollutant loading rate tab with addition of NonRIDOT catchment area loading rates by land use
C9: addition of NonRIDOT catchments included in calculating STU load reduction
C10: placeholder tabs created for additional structural STUs including porous pavement (underdrained), floodplain reconnection, urban tree canopy, agriculture buffers, pervious land enhancement, and proprietary technologies for consistency with latest WQ Methodology report
C11: placeholder tabs created for additional nonstructural STUs including street sweeping and catch basin cleaning (updated), leaf litter removal, animal waste reduction, dredging, illict discharge elimination, streambank restoration for consistency with latest WQ Methodology report
C12: addition of template tabs for STU_WaterQuality related table and SCP_Watersheds attributes
C13: addition of IC removal curves tab (for reference only)
C14: STU Type Domain updated for consistency with SCP database
C15: correction of TIP pollutant removal credits so final effective IC credit = 50%
C16: addition of pollutant and IC curves/credit for STU type: sand filter
C17: addition of pollutant and IC credit for STU type: hydrodynamic separator
C18: addition of TP, TSS, and Pervious Cover Factors in STU Treatment Values tab for reference, also inclusion of runoff reduction percent reductions
A19: 4.1 | B19: 2018-06-19 | C19: 10% treatment assumption calculated for Limited ROW STUs
C20: STU Treatment category Created Wetland renamed Wet Pond to match latest WQ methodology report
C21: STU treatment category for Created Wetlands changed from Wet Pond to Gravel Wetland
C22: Nitrogen loading rate separated into separate loading values for RIDOT and NonRIDOT pervious areas
C23: updating of terminology to be consistent with latest WQ Methodology report (Flow Factor, Runoff Factor etc.)
C24: correction of RIDOT reduction targets to only apply to pollutant loads from RIDOT IC areas
C25: updating of STU definitions tab to include information for all STUs in SCP database domain
C26: Cost per lb phosphorus added to STU_Cost table for reference
C27: minor formatting updates
A28: 4.2 | B28: 2018-08-01 | C28: addition of version notes
C29: addition of STU Volume calculation tab
C30: addition of table templates for 2018 SCP Report Template for Tables 1-A, 2-A, 4-A-1, and 4-A-2
C31: unnecessary external links broken
A32: 5 | B32: 2018-09-19 | C32: treatment assigned to STU type Limited ROW (bioretention curve, 0.25" treatment depth for 10% of catchment area)
C33: calculations added for TMDL Method: nitrogen
C34: updated IC flow factor values (calculated using 8 water quality storm depths)
C35: formula for Non-RIDOT catchment N, TSS, Zn loading corrected
C36: formula for structural water quality calcs tab rows 35 and higher corrected
A37: 5.1 | B37: 2018-11-27 | C37: updated table templates and reduction target terms for consistency with WQ Accounting and Methodology Report
C38: added cost estimates for STU type sand filter
C39: rounded subwatershed areas in Tables 4-1-A and 4-2-A
C40: updated RIDOT treatment credit (columns K, P, U, Z, AB) to correctly sum Limited ROW STUs in STU_WaterQuality tab
C41: added additional rows for input tabs, updated formulas to sum for more than 25 STUs and 48 catchments
C42: updated SCP_Watersheds tab to include STUs with only nonRIDOT catchments
C43: corrected Table 1-A for IC method for evaluation method/target reduction columns B and C
C44: updated Table 2-A columns G, H, and I to autopopulate. Irrelevant columns may be removed from table.
C45: updated EPA curve for TSS deep infiltration in sandy soils
C46: updated EPA curve for sand filters for TP and TN
C47: updated maintenance costs for infiltration basin/swales, wet ponds/swales, and WVTS
C48: addition of SCP tracking info on coversheet

Sheet RIDOT_Catchment
A1: Segment Name: | B1: Lawton Valley Reservoir (RI0007035L-06), Group 1A
A2: Date: | B2: 2018-12-31
N3: Catchment Pollutant Load, lb/yr
A4: Catchment ID | B4: WBID | C4: Discharge ID | D4: STU ID (if applicable) | E4: Treatment Status* | F4: Impervious Area (sq ft) | G4: IDDE Exemption Status* | H4: TIP Project ID | I4: TIP Year | J4: Notes | K4: Shape_Length (ft) | L4: Total Area (sq ft) | N4: P | O4: TSS | P4: N | Q4: Zn
A5: NF-LVR-001 | B5: RI0007035L-06 | C5: OF-446 | E5: Not Feasible | F5: 38044 | G5: Not exempt | K5: 3723.105608 | L5: 59870.44098 | N5: =IF($A5="","",ROUND(($F5/43560*'Pollutant Loading Rates'!$C$9)+(($L5-$F5)/43560*'Pollutant Loading Rates'!$C$15),2)) -> 1.22 | O5: =IF($A5="","",ROUND(($F5/43560*'Pollutant Loading Rates'!$D$9)+(($L5-$F5)/43560*'Pollutant Loading Rates'!$D$15),0)) -> 550 | P5: =IF($A5="","",ROUND(($F5/43560*'Pollutant Loading Rates'!$E$9)+(($L5-$F5)/43560*'Pollutant Loading Rates'!$E$15),2)) -> 7.78 | Q5: =IF($A5="","",ROUND(($F5/43560*'Pollutant Loading Rates'!$F$9)+(($L5-$F5)/43560*'Pollutant Loading Rates'!$F$15),2)) -> 1.08
A6: NF-LVR-003 | B6: RI0007035L-06 | C6: OF-447 | E6: Not Feasible | F6: 49768 | G6: Not exempt | K6: 3117.491637 | L6: 63853.07645 | N6: =IF($A6="","",ROUND(($F6/43560*'Pollutant Loading Rates'!$C$9)+(($L6-$F6)/43560*'Pollutant Loading Rates'!$C$15),2)) -> 1.56 | O6: =IF($A6="","",ROUND(($F6/43560*'Pollutant Loading Rates'!$D$9)+(($L6-$F6)/43560*'Pollutant Loading Rates'!$D$15),0)) -> 710 | P6: =IF($A6="","",ROUND(($F6/43560*'Pollutant Loading Rates'!$E$9)+(($L6-$F6)/43560*'Pollutant Loading Rates'!$E$15),2)) -> 9.88 | Q6: =IF($A6="","",ROUND(($F6/43560*'Pollutant Loading Rates'!$F$9)+(($L6-$F6)/43560*'Pollutant Loading Rates'!$F$15),2)) -> 1.41
A7: NF-LVR-007 | B7: RI0007035L-06 | C7: CB-393343 | E7: Not Feasible | F7: 53956 | G7: Not exempt | K7: 5708.448552 | L7: 84214.33603 | N7: =IF($A7="","",ROUND(($F7/43560*'Pollutant Loading Rates'!$C$9)+(($L7-$F7)/43560*'Pollutant Loading Rates'!$C$15),2)) -> 1.73 | O7: =IF($A7="","",ROUND(($F7/43560*'Pollutant Loading Rates'!$D$9)+(($L7-$F7)/43560*'Pollutant Loading Rates'!$D$15),0)) -> 780 | P7: =IF($A7="","",ROUND(($F7/43560*'Pollutant Loading Rates'!$E$9)+(($L7-$F7)/43560*'Pollutant Loading Rates'!$E$15),2)) -> 11.02 | Q7: =IF($A7="","",ROUND(($F7/43560*'Pollutant Loading Rates'!$F$9)+(($L7-$F7)/43560*'Pollutant Loading Rates'!$F$15),2)) -> 1.54
A8: PT-LVR-002 | B8: RI0007035L-06 | C8: OF-446 | D8: SCP-LVR-001 | E8: Potential | F8: 10096 | G8: Not exempt | K8: 1099.911382 | L8: 13809.45382 | N8: =IF($A8="","",ROUND(($F8/43560*'Pollutant Loading Rates'!$C$9)+(($L8-$F8)/43560*'Pollutant Loading Rates'!$C$15),2)) -> 0.32 | O8: =IF($A8="","",ROUND(($F8/43560*'Pollutant Loading Rates'!$D$9)+(($L8-$F8)/43560*'Pollutant Loading Rates'!$D$15),0)) -> 145 | P8: =IF($A8="","",ROUND(($F8/43560*'Pollutant Loading Rates'!$E$9)+(($L8-$F8)/43560*'Pollutant Loading Rates'!$E$15),2)) -> 2.02 | Q8: =IF($A8="","",ROUND(($F8/43560*'Pollutant Loading Rates'!$F$9)+(($L8-$F8)/43560*'Pollutant Loading Rates'!$F$15),2)) -> 0.29
A9: PT-LVR-004 | B9: RI0007035L-06 | C9: OF-447 | D9: SCP-LVR-002 | E9: Potential | F9: 3620 | G9: Not exempt | K9: 434.888112 | L9: 3957.144243 | N9: =IF($A9="","",ROUND(($F9/43560*'Pollutant Loading Rates'!$C$9)+(($L9-$F9)/43560*'Pollutant Loading Rates'!$C$15),2)) -> 0.11 | O9: =IF($A9="","",ROUND(($F9/43560*'Pollutant Loading Rates'!$D$9)+(($L9-$F9)/43560*'Pollutant Loading Rates'!$D$15),0)) -> 51 | P9: =IF($A9="","",ROUND(($F9/43560*'Pollutant Loading Rates'!$E$9)+(($L9-$F9)/43560*'Pollutant Loading Rates'!$E$15),2)) -> 0.7 | Q9: =IF($A9="","",ROUND(($F9/43560*'Pollutant Loading Rates'!$F$9)+(($L9-$F9)/43560*'Pollutant Loading Rates'!$F$15),2)) -> 0.1
A10: PT-LVR-005 | B10: RI0007035L-06 | C10: OF-447 | D10: SCP-LVR-003 | E10: Potential | F10: 6540 | G10: Not exempt | K10: 682.22221 | L10: 8448.333301 | N10: =IF($A10="","",ROUND(($F10/43560*'Pollutant Loading Rates'!$C$9)+(($L10-$F10)/43560*'Pollutant Loading Rates'!$C$15),2)) -> 0.21 | O10: =IF($A10="","",ROUND(($F10/43560*'Pollutant Loading Rates'!$D$9)+(($L10-$F10)/43560*'Pollutant Loading Rates'!$D$15),0)) -> 93 | P10: =IF($A10="","",ROUND(($F10/43560*'Pollutant Loading Rates'!$E$9)+(($L10-$F10)/43560*'Pollutant Loading Rates'!$E$15),2)) -> 1.3 | Q10: =IF($A10="","",ROUND(($F10/43560*'Pollutant Loading Rates'!$F$9)+(($L10-$F10)/43560*'Pollutant Loading Rates'!$F$15),2)) -> 0.19
A11: PT-LVR-006 | B11: RI0007035L-06 | C11: OF-447 | D11: SCP-LVR-004 | E11: Potential | F11: 2428 | G11: Not exempt | K11: 477.325761 | L11: 5057.695117 | N11: =IF($A11="","",ROUND(($F11/43560*'Pollutant Loading Rates'!$C$9)+(($L11-$F11)/43560*'Pollutant Loading Rates'!$C$15),2)) -> 0.08 | O11: =IF($A11="","",ROUND(($F11/43560*'Pollutant Loading Rates'!$D$9)+(($L11-$F11)/43560*'Pollutant Loading Rates'!$D$15),0)) -> 36 | P11: =IF($A11="","",ROUND(($F11/43560*'Pollutant Loading Rates'!$E$9)+(($L11-$F11)/43560*'Pollutant Loading Rates'!$E$15),2)) -> 0.52 | Q11: =IF($A11="","",ROUND(($F11/43560*'Pollutant Loading Rates'!$F$9)+(($L11-$F11)/43560*'Pollutant Loading Rates'!$F$15),2)) -> 0.07
A12: PT-LVR-008 | B12: RI0007035L-06 | C12: CB-393343 | D12: SCP-LVR-005 | E12: Potential | F12: 11992 | G12: Not exempt | K12: 1608.624147 | L12: 19241.3824 | N12: =IF($A12="","",ROUND(($F12/43560*'Pollutant Loading Rates'!$C$9)+(($L12-$F12)/43560*'Pollutant Loading Rates'!$C$15),2)) -> 0.39 | O12: =IF($A12="","",ROUND(($F12/43560*'Pollutant Loading Rates'!$D$9)+(($L12-$F12)/43560*'Pollutant Loading Rates'!$D$15),0)) -> 174 | P12: =IF($A12="","",ROUND(($F12/43560*'Pollutant Loading Rates'!$E$9)+(($L12-$F12)/43560*'Pollutant Loading Rates'!$E$15),2)) -> 2.46 | Q12: =IF($A12="","",ROUND(($F12/43560*'Pollutant Loading Rates'!$F$9)+(($L12-$F12)/43560*'Pollutant Loading Rates'!$F$15),2)) -> 0.34
A13: PT-LVR-009 | B13: RI0007035L-06 | C13: CB-393343 | D13: SCP-LVR-006 | E13: Potential | F13: 2964 | G13: Not exempt | K13: 484.830184 | L13: 6946.199157 | N13: =IF($A13="","",ROUND(($F13/43560*'Pollutant Loading Rates'!$C$9)+(($L13-$F13)/43560*'Pollutant Loading Rates'!$C$15),2)) -> 0.1 | O13: =IF($A13="","",ROUND(($F13/43560*'Pollutant Loading Rates'!$D$9)+(($L13-$F13)/43560*'Pollutant Loading Rates'!$D$15),0)) -> 44 | P13: =IF($A13="","",ROUND(($F13/43560*'Pollutant Loading Rates'!$E$9)+(($L13-$F13)/43560*'Pollutant Loading Rates'!$E$15),2)) -> 0.65 | Q13: =IF($A13="","",ROUND(($F13/43560*'Pollutant Loading Rates'!$F$9)+(($L13-$F13)/43560*'Pollutant Loading Rates'!$F$15),2)) -> 0.09
N14: =IF($A14="","",ROUND(($F14/43560*'Pollutant Loading Rates'!$C$9)+(($L14-$F14)/43560*'Pollutant Loading Rates'!$C$15),2)) ->  | O14: =IF($A14="","",ROUND(($F14/43560*'Pollutant Loading Rates'!$D$9)+(($L14-$F14)/43560*'Pollutant Loading Rates'!$D$15),0)) ->  | P14: =IF($A14="","",ROUND(($F14/43560*'Pollutant Loading Rates'!$E$9)+(($L14-$F14)/43560*'Pollutant Loading Rates'!$E$15),2)) ->  | Q14: =IF($A14="","",ROUND(($F14/43560*'Pollutant Loading Rates'!$F$9)+(($L14-$F14)/43560*'Pollutant Loading Rates'!$F$15),2)) -> 
N15: =IF($A15="","",ROUND(($F15/43560*'Pollutant Loading Rates'!$C$9)+(($L15-$F15)/43560*'Pollutant Loading Rates'!$C$15),2)) ->  | O15: =IF($A15="","",ROUND(($F15/43560*'Pollutant Loading Rates'!$D$9)+(($L15-$F15)/43560*'Pollutant Loading Rates'!$D$15),0)) ->  | P15: =IF($A15="","",ROUND(($F15/43560*'Pollutant Loading Rates'!$E$9)+(($L15-$F15)/43560*'Pollutant Loading Rates'!$E$15),2)) ->  | Q15: =IF($A15="","",ROUND(($F15/43560*'Pollutant Loading Rates'!$F$9)+(($L15-$F15)/43560*'Pollutant Loading Rates'!$F$15),2)) -> 
N16: =IF($A16="","",ROUND(($F16/43560*'Pollutant Loading Rates'!$C$9)+(($L16-$F16)/43560*'Pollutant Loading Rates'!$C$15),2)) ->  | O16: =IF($A16="","",ROUND(($F16/43560*'Pollutant Loading Rates'!$D$9)+(($L16-$F16)/43560*'Pollutant Loading Rates'!$D$15),0)) ->  | P16: =IF($A16="","",ROUND(($F16/43560*'Pollutant Loading Rates'!$E$9)+(($L16-$F16)/43560*'Pollutant Loading Rates'!$E$15),2)) ->  | Q16: =IF($A16="","",ROUND(($F16/43560*'Pollutant Loading Rates'!$F$9)+(($L16-$F16)/43560*'Pollutant Loading Rates'!$F$15),2)) -> 
N17: =IF($A17="","",ROUND(($F17/43560*'Pollutant Loading Rates'!$C$9)+(($L17-$F17)/43560*'Pollutant Loading Rates'!$C$15),2)) ->  | O17: =IF($A17="","",ROUND(($F17/43560*'Pollutant Loading Rates'!$D$9)+(($L17-$F17)/43560*'Pollutant Loading Rates'!$D$15),0)) ->  | P17: =IF($A17="","",ROUND(($F17/43560*'Pollutant Loading Rates'!$E$9)+(($L17-$F17)/43560*'Pollutant Loading Rates'!$E$15),2)) ->  | Q17: =IF($A17="","",ROUND(($F17/43560*'Pollutant Loading Rates'!$F$9)+(($L17-$F17)/43560*'Pollutant Loading Rates'!$F$15),2)) -> 
N18: =IF($A18="","",ROUND(($F18/43560*'Pollutant Loading Rates'!$C$9)+(($L18-$F18)/43560*'Pollutant Loading Rates'!$C$15),2)) ->  | O18: =IF($A18="","",ROUND(($F18/43560*'Pollutant Loading Rates'!$D$9)+(($L18-$F18)/43560*'Pollutant Loading Rates'!$D$15),0)) ->  | P18: =IF($A18="","",ROUND(($F18/43560*'Pollutant Loading Rates'!$E$9)+(($L18-$F18)/43560*'Pollutant Loading Rates'!$E$15),2)) ->  | Q18: =IF($A18="","",ROUND(($F18/43560*'Pollutant Loading Rates'!$F$9)+(($L18-$F18)/43560*'Pollutant Loading Rates'!$F$15),2)) -> 
N19: =IF($A19="","",ROUND(($F19/43560*'Pollutant Loading Rates'!$C$9)+(($L19-$F19)/43560*'Pollutant Loading Rates'!$C$15),2)) ->  | O19: =IF($A19="","",ROUND(($F19/43560*'Pollutant Loading Rates'!$D$9)+(($L19-$F19)/43560*'Pollutant Loading Rates'!$D$15),0)) ->  | P19: =IF($A19="","",ROUND(($F19/43560*'Pollutant Loading Rates'!$E$9)+(($L19-$F19)/43560*'Pollutant Loading Rates'!$E$15),2)) ->  | Q19: =IF($A19="","",ROUND(($F19/43560*'Pollutant Loading Rates'!$F$9)+(($L19-$F19)/43560*'Pollutant Loading Rates'!$F$15),2)) -> 
N20: =IF($A20="","",ROUND(($F20/43560*'Pollutant Loading Rates'!$C$9)+(($L20-$F20)/43560*'Pollutant Loading Rates'!$C$15),2)) ->  | O20: =IF($A20="","",ROUND(($F20/43560*'Pollutant Loading Rates'!$D$9)+(($L20-$F20)/43560*'Pollutant Loading Rates'!$D$15),0)) ->  | P20: =IF($A20="","",ROUND(($F20/43560*'Pollutant Loading Rates'!$E$9)+(($L20-$F20)/43560*'Pollutant Loading Rates'!$E$15),2)) ->  | Q20: =IF($A20="","",ROUND(($F20/43560*'Pollutant Loading Rates'!$F$9)+(($L20-$F20)/43560*'Pollutant Loading Rates'!$F$15),2)) -> 
N21: =IF($A21="","",ROUND(($F21/43560*'Pollutant Loading Rates'!$C$9)+(($L21-$F21)/43560*'Pollutant Loading Rates'!$C$15),2)) ->  | O21: =IF($A21="","",ROUND(($F21/43560*'Pollutant Loading Rates'!$D$9)+(($L21-$F21)/43560*'Pollutant Loading Rates'!$D$15),0)) ->  | P21: =IF($A21="","",ROUND(($F21/43560*'Pollutant Loading Rates'!$E$9)+(($L21-$F21)/43560*'Pollutant Loading Rates'!$E$15),2)) ->  | Q21: =IF($A21="","",ROUND(($F21/43560*'Pollutant Loading Rates'!$F$9)+(($L21-$F21)/43560*'Pollutant Loading Rates'!$F$15),2)) -> 
N22: =IF($A22="","",ROUND(($F22/43560*'Pollutant Loading Rates'!$C$9)+(($L22-$F22)/43560*'Pollutant Loading Rates'!$C$15),2)) ->  | O22: =IF($A22="","",ROUND(($F22/43560*'Pollutant Loading Rates'!$D$9)+(($L22-$F22)/43560*'Pollutant Loading Rates'!$D$15),0)) ->  | P22: =IF($A22="","",ROUND(($F22/43560*'Pollutant Loading Rates'!$E$9)+(($L22-$F22)/43560*'Pollutant Loading Rates'!$E$15),2)) ->  | Q22: =IF($A22="","",ROUND(($F22/43560*'Pollutant Loading Rates'!$F$9)+(($L22-$F22)/43560*'Pollutant Loading Rates'!$F$15),2)) -> 
N23: =IF($A23="","",ROUND(($F23/43560*'Pollutant Loading Rates'!$C$9)+(($L23-$F23)/43560*'Pollutant Loading Rates'!$C$15),2)) ->  | O23: =IF($A23="","",ROUND(($F23/43560*'Pollutant Loading Rates'!$D$9)+(($L23-$F23)/43560*'Pollutant Loading Rates'!$D$15),0)) ->  | P23: =IF($A23="","",ROUND(($F23/43560*'Pollutant Loading Rates'!$E$9)+(($L23-$F23)/43560*'Pollutant Loading Rates'!$E$15),2)) ->  | Q23: =IF($A23="","",ROUND(($F23/43560*'Pollutant Loading Rates'!$F$9)+(($L23-$F23)/43560*'Pollutant Loading Rates'!$F$15),2)) -> 
N24: =IF($A24="","",ROUND(($F24/43560*'Pollutant Loading Rates'!$C$9)+(($L24-$F24)/43560*'Pollutant Loading Rates'!$C$15),2)) ->  | O24: =IF($A24="","",ROUND(($F24/43560*'Pollutant Loading Rates'!$D$9)+(($L24-$F24)/43560*'Pollutant Loading Rates'!$D$15),0)) ->  | P24: =IF($A24="","",ROUND(($F24/43560*'Pollutant Loading Rates'!$E$9)+(($L24-$F24)/43560*'Pollutant Loading Rates'!$E$15),2)) ->  | Q24: =IF($A24="","",ROUND(($F24/43560*'Pollutant Loading Rates'!$F$9)+(($L24-$F24)/43560*'Pollutant Loading Rates'!$F$15),2)) -> 
N25: =IF($A25="","",ROUND(($F25/43560*'Pollutant Loading Rates'!$C$9)+(($L25-$F25)/43560*'Pollutant Loading Rates'!$C$15),2)) ->  | O25: =IF($A25="","",ROUND(($F25/43560*'Pollutant Loading Rates'!$D$9)+(($L25-$F25)/43560*'Pollutant Loading Rates'!$D$15),0)) ->  | P25: =IF($A25="","",ROUND(($F25/43560*'Pollutant Loading Rates'!$E$9)+(($L25-$F25)/43560*'Pollutant Loading Rates'!$E$15),2)) ->  | Q25: =IF($A25="","",ROUND(($F25/43560*'Pollutant Loading Rates'!$F$9)+(($L25-$F25)/43560*'Pollutant Loading Rates'!$F$15),2)) -> 
N26: =IF($A26="","",ROUND(($F26/43560*'Pollutant Loading Rates'!$C$9)+(($L26-$F26)/43560*'Pollutant Loading Rates'!$C$15),2)) ->  | O26: =IF($A26="","",ROUND(($F26/43560*'Pollutant Loading Rates'!$D$9)+(($L26-$F26)/43560*'Pollutant Loading Rates'!$D$15),0)) ->  | P26: =IF($A26="","",ROUND(($F26/43560*'Pollutant Loading Rates'!$E$9)+(($L26-$F26)/43560*'Pollutant Loading Rates'!$E$15),2)) ->  | Q26: =IF($A26="","",ROUND(($F26/43560*'Pollutant Loading Rates'!$F$9)+(($L26-$F26)/43560*'Pollutant Loading Rates'!$F$15),2)) -> 
N27: =IF($A27="","",ROUND(($F27/43560*'Pollutant Loading Rates'!$C$9)+(($L27-$F27)/43560*'Pollutant Loading Rates'!$C$15),2)) ->  | O27: =IF($A27="","",ROUND(($F27/43560*'Pollutant Loading Rates'!$D$9)+(($L27-$F27)/43560*'Pollutant Loading Rates'!$D$15),0)) ->  | P27: =IF($A27="","",ROUND(($F27/43560*'Pollutant Loading Rates'!$E$9)+(($L27-$F27)/43560*'Pollutant Loading Rates'!$E$15),2)) ->  | Q27: =IF($A27="","",ROUND(($F27/43560*'Pollutant Loading Rates'!$F$9)+(($L27-$F27)/43560*'Pollutant Loading Rates'!$F$15),2)) -> 
N28: =IF($A28="","",ROUND(($F28/43560*'Pollutant Loading Rates'!$C$9)+(($L28-$F28)/43560*'Pollutant Loading Rates'!$C$15),2)) ->  | O28: =IF($A28="","",ROUND(($F28/43560*'Pollutant Loading Rates'!$D$9)+(($L28-$F28)/43560*'Pollutant Loading Rates'!$D$15),0)) ->  | P28: =IF($A28="","",ROUND(($F28/43560*'Pollutant Loading Rates'!$E$9)+(($L28-$F28)/43560*'Pollutant Loading Rates'!$E$15),2)) ->  | Q28: =IF($A28="","",ROUND(($F28/43560*'Pollutant Loading Rates'!$F$9)+(($L28-$F28)/43560*'Pollutant Loading Rates'!$F$15),2)) -> 
N29: =IF($A29="","",ROUND(($F29/43560*'Pollutant Loading Rates'!$C$9)+(($L29-$F29)/43560*'Pollutant Loading Rates'!$C$15),2)) ->  | O29: =IF($A29="","",ROUND(($F29/43560*'Pollutant Loading Rates'!$D$9)+(($L29-$F29)/43560*'Pollutant Loading Rates'!$D$15),0)) ->  | P29: =IF($A29="","",ROUND(($F29/43560*'Pollutant Loading Rates'!$E$9)+(($L29-$F29)/43560*'Pollutant Loading Rates'!$E$15),2)) ->  | Q29: =IF($A29="","",ROUND(($F29/43560*'Pollutant Loading Rates'!$F$9)+(($L29-$F29)/43560*'Pollutant Loading Rates'!$F$15),2)) -> 
N30: =IF($A30="","",ROUND(($F30/43560*'Pollutant Loading Rates'!$C$9)+(($L30-$F30)/43560*'Pollutant Loading Rates'!$C$15),2)) ->  | O30: =IF($A30="","",ROUND(($F30/43560*'Pollutant Loading Rates'!$D$9)+(($L30-$F30)/43560*'Pollutant Loading Rates'!$D$15),0)) ->  | P30: =IF($A30="","",ROUND(($F30/43560*'Pollutant Loading Rates'!$E$9)+(($L30-$F30)/43560*'Pollutant Loading Rates'!$E$15),2)) ->  | Q30: =IF($A30="","",ROUND(($F30/43560*'Pollutant Loading Rates'!$F$9)+(($L30-$F30)/43560*'Pollutant Loading Rates'!$F$15),2)) -> 
N31: =IF($A31="","",ROUND(($F31/43560*'Pollutant Loading Rates'!$C$9)+(($L31-$F31)/43560*'Pollutant Loading Rates'!$C$15),2)) ->  | O31: =IF($A31="","",ROUND(($F31/43560*'Pollutant Loading Rates'!$D$9)+(($L31-$F31)/43560*'Pollutant Loading Rates'!$D$15),0)) ->  | P31: =IF($A31="","",ROUND(($F31/43560*'Pollutant Loading Rates'!$E$9)+(($L31-$F31)/43560*'Pollutant Loading Rates'!$E$15),2)) ->  | Q31: =IF($A31="","",ROUND(($F31/43560*'Pollutant Loading Rates'!$F$9)+(($L31-$F31)/43560*'Pollutant Loading Rates'!$F$15),2)) -> 
N32: =IF($A32="","",ROUND(($F32/43560*'Pollutant Loading Rates'!$C$9)+(($L32-$F32)/43560*'Pollutant Loading Rates'!$C$15),2)) ->  | O32: =IF($A32="","",ROUND(($F32/43560*'Pollutant Loading Rates'!$D$9)+(($L32-$F32)/43560*'Pollutant Loading Rates'!$D$15),0)) ->  | P32: =IF($A32="","",ROUND(($F32/43560*'Pollutant Loading Rates'!$E$9)+(($L32-$F32)/43560*'Pollutant Loading Rates'!$E$15),2)) ->  | Q32: =IF($A32="","",ROUND(($F32/43560*'Pollutant Loading Rates'!$F$9)+(($L32-$F32)/43560*'Pollutant Loading Rates'!$F$15),2)) -> 
N33: =IF($A33="","",ROUND(($F33/43560*'Pollutant Loading Rates'!$C$9)+(($L33-$F33)/43560*'Pollutant Loading Rates'!$C$15),2)) ->  | O33: =IF($A33="","",ROUND(($F33/43560*'Pollutant Loading Rates'!$D$9)+(($L33-$F33)/43560*'Pollutant Loading Rates'!$D$15),0)) ->  | P33: =IF($A33="","",ROUND(($F33/43560*'Pollutant Loading Rates'!$E$9)+(($L33-$F33)/43560*'Pollutant Loading Rates'!$E$15),2)) ->  | Q33: =IF($A33="","",ROUND(($F33/43560*'Pollutant Loading Rates'!$F$9)+(($L33-$F33)/43560*'Pollutant Loading Rates'!$F$15),2)) -> 
N34: =IF($A34="","",ROUND(($F34/43560*'Pollutant Loading Rates'!$C$9)+(($L34-$F34)/43560*'Pollutant Loading Rates'!$C$15),2)) ->  | O34: =IF($A34="","",ROUND(($F34/43560*'Pollutant Loading Rates'!$D$9)+(($L34-$F34)/43560*'Pollutant Loading Rates'!$D$15),0)) ->  | P34: =IF($A34="","",ROUND(($F34/43560*'Pollutant Loading Rates'!$E$9)+(($L34-$F34)/43560*'Pollutant Loading Rates'!$E$15),2)) ->  | Q34: =IF($A34="","",ROUND(($F34/43560*'Pollutant Loading Rates'!$F$9)+(($L34-$F34)/43560*'Pollutant Loading Rates'!$F$15),2)) -> 
N35: =IF($A35="","",ROUND(($F35/43560*'Pollutant Loading Rates'!$C$9)+(($L35-$F35)/43560*'Pollutant Loading Rates'!$C$15),2)) ->  | O35: =IF($A35="","",ROUND(($F35/43560*'Pollutant Loading Rates'!$D$9)+(($L35-$F35)/43560*'Pollutant Loading Rates'!$D$15),0)) ->  | P35: =IF($A35="","",ROUND(($F35/43560*'Pollutant Loading Rates'!$E$9)+(($L35-$F35)/43560*'Pollutant Loading Rates'!$E$15),2)) ->  | Q35: =IF($A35="","",ROUND(($F35/43560*'Pollutant Loading Rates'!$F$9)+(($L35-$F35)/43560*'Pollutant Loading Rates'!$F$15),2)) -> 
N36: =IF($A36="","",ROUND(($F36/43560*'Pollutant Loading Rates'!$C$9)+(($L36-$F36)/43560*'Pollutant Loading Rates'!$C$15),2)) ->  | O36: =IF($A36="","",ROUND(($F36/43560*'Pollutant Loading Rates'!$D$9)+(($L36-$F36)/43560*'Pollutant Loading Rates'!$D$15),0)) ->  | P36: =IF($A36="","",ROUND(($F36/43560*'Pollutant Loading Rates'!$E$9)+(($L36-$F36)/43560*'Pollutant Loading Rates'!$E$15),2)) ->  | Q36: =IF($A36="","",ROUND(($F36/43560*'Pollutant Loading Rates'!$F$9)+(($L36-$F36)/43560*'Pollutant Loading Rates'!$F$15),2)) -> 
N37: =IF($A37="","",ROUND(($F37/43560*'Pollutant Loading Rates'!$C$9)+(($L37-$F37)/43560*'Pollutant Loading Rates'!$C$15),2)) ->  | O37: =IF($A37="","",ROUND(($F37/43560*'Pollutant Loading Rates'!$D$9)+(($L37-$F37)/43560*'Pollutant Loading Rates'!$D$15),0)) ->  | P37: =IF($A37="","",ROUND(($F37/43560*'Pollutant Loading Rates'!$E$9)+(($L37-$F37)/43560*'Pollutant Loading Rates'!$E$15),2)) ->  | Q37: =IF($A37="","",ROUND(($F37/43560*'Pollutant Loading Rates'!$F$9)+(($L37-$F37)/43560*'Pollutant Loading Rates'!$F$15),2)) -> 
N38: =IF($A38="","",ROUND(($F38/43560*'Pollutant Loading Rates'!$C$9)+(($L38-$F38)/43560*'Pollutant Loading Rates'!$C$15),2)) ->  | O38: =IF($A38="","",ROUND(($F38/43560*'Pollutant Loading Rates'!$D$9)+(($L38-$F38)/43560*'Pollutant Loading Rates'!$D$15),0)) ->  | P38: =IF($A38="","",ROUND(($F38/43560*'Pollutant Loading Rates'!$E$9)+(($L38-$F38)/43560*'Pollutant Loading Rates'!$E$15),2)) ->  | Q38: =IF($A38="","",ROUND(($F38/43560*'Pollutant Loading Rates'!$F$9)+(($L38-$F38)/43560*'Pollutant Loading Rates'!$F$15),2)) -> 
N39: =IF($A39="","",ROUND(($F39/43560*'Pollutant Loading Rates'!$C$9)+(($L39-$F39)/43560*'Pollutant Loading Rates'!$C$15),2)) ->  | O39: =IF($A39="","",ROUND(($F39/43560*'Pollutant Loading Rates'!$D$9)+(($L39-$F39)/43560*'Pollutant Loading Rates'!$D$15),0)) ->  | P39: =IF($A39="","",ROUND(($F39/43560*'Pollutant Loading Rates'!$E$9)+(($L39-$F39)/43560*'Pollutant Loading Rates'!$E$15),2)) ->  | Q39: =IF($A39="","",ROUND(($F39/43560*'Pollutant Loading Rates'!$F$9)+(($L39-$F39)/43560*'Pollutant Loading Rates'!$F$15),2)) -> 
N40: =IF($A40="","",ROUND(($F40/43560*'Pollutant Loading Rates'!$C$9)+(($L40-$F40)/43560*'Pollutant Loading Rates'!$C$15),2)) ->  | O40: =IF($A40="","",ROUND(($F40/43560*'Pollutant Loading Rates'!$D$9)+(($L40-$F40)/43560*'Pollutant Loading Rates'!$D$15),0)) ->  | P40: =IF($A40="","",ROUND(($F40/43560*'Pollutant Loading Rates'!$E$9)+(($L40-$F40)/43560*'Pollutant Loading Rates'!$E$15),2)) ->  | Q40: =IF($A40="","",ROUND(($F40/43560*'Pollutant Loading Rates'!$F$9)+(($L40-$F40)/43560*'Pollutant Loading Rates'!$F$15),2)) -> 
N41: =IF($A41="","",ROUND(($F41/43560*'Pollutant Loading Rates'!$C$9)+(($L41-$F41)/43560*'Pollutant Loading Rates'!$C$15),2)) ->  | O41: =IF($A41="","",ROUND(($F41/43560*'Pollutant Loading Rates'!$D$9)+(($L41-$F41)/43560*'Pollutant Loading Rates'!$D$15),0)) ->  | P41: =IF($A41="","",ROUND(($F41/43560*'Pollutant Loading Rates'!$E$9)+(($L41-$F41)/43560*'Pollutant Loading Rates'!$E$15),2)) ->  | Q41: =IF($A41="","",ROUND(($F41/43560*'Pollutant Loading Rates'!$F$9)+(($L41-$F41)/43560*'Pollutant Loading Rates'!$F$15),2)) -> 
N42: =IF($A42="","",ROUND(($F42/43560*'Pollutant Loading Rates'!$C$9)+(($L42-$F42)/43560*'Pollutant Loading Rates'!$C$15),2)) ->  | O42: =IF($A42="","",ROUND(($F42/43560*'Pollutant Loading Rates'!$D$9)+(($L42-$F42)/43560*'Pollutant Loading Rates'!$D$15),0)) ->  | P42: =IF($A42="","",ROUND(($F42/43560*'Pollutant Loading Rates'!$E$9)+(($L42-$F42)/43560*'Pollutant Loading Rates'!$E$15),2)) ->  | Q42: =IF($A42="","",ROUND(($F42/43560*'Pollutant Loading Rates'!$F$9)+(($L42-$F42)/43560*'Pollutant Loading Rates'!$F$15),2)) -> 
N43: =IF($A43="","",ROUND(($F43/43560*'Pollutant Loading Rates'!$C$9)+(($L43-$F43)/43560*'Pollutant Loading Rates'!$C$15),2)) ->  | O43: =IF($A43="","",ROUND(($F43/43560*'Pollutant Loading Rates'!$D$9)+(($L43-$F43)/43560*'Pollutant Loading Rates'!$D$15),0)) ->  | P43: =IF($A43="","",ROUND(($F43/43560*'Pollutant Loading Rates'!$E$9)+(($L43-$F43)/43560*'Pollutant Loading Rates'!$E$15),2)) ->  | Q43: =IF($A43="","",ROUND(($F43/43560*'Pollutant Loading Rates'!$F$9)+(($L43-$F43)/43560*'Pollutant Loading Rates'!$F$15),2)) -> 
N44: =IF($A44="","",ROUND(($F44/43560*'Pollutant Loading Rates'!$C$9)+(($L44-$F44)/43560*'Pollutant Loading Rates'!$C$15),2)) ->  | O44: =IF($A44="","",ROUND(($F44/43560*'Pollutant Loading Rates'!$D$9)+(($L44-$F44)/43560*'Pollutant Loading Rates'!$D$15),0)) ->  | P44: =IF($A44="","",ROUND(($F44/43560*'Pollutant Loading Rates'!$E$9)+(($L44-$F44)/43560*'Pollutant Loading Rates'!$E$15),2)) ->  | Q44: =IF($A44="","",ROUND(($F44/43560*'Pollutant Loading Rates'!$F$9)+(($L44-$F44)/43560*'Pollutant Loading Rates'!$F$15),2)) -> 
N45: =IF($A45="","",ROUND(($F45/43560*'Pollutant Loading Rates'!$C$9)+(($L45-$F45)/43560*'Pollutant Loading Rates'!$C$15),2)) ->  | O45: =IF($A45="","",ROUND(($F45/43560*'Pollutant Loading Rates'!$D$9)+(($L45-$F45)/43560*'Pollutant Loading Rates'!$D$15),0)) ->  | P45: =IF($A45="","",ROUND(($F45/43560*'Pollutant Loading Rates'!$E$9)+(($L45-$F45)/43560*'Pollutant Loading Rates'!$E$15),2)) ->  | Q45: =IF($A45="","",ROUND(($F45/43560*'Pollutant Loading Rates'!$F$9)+(($L45-$F45)/43560*'Pollutant Loading Rates'!$F$15),2)) -> 
N46: =IF($A46="","",ROUND(($F46/43560*'Pollutant Loading Rates'!$C$9)+(($L46-$F46)/43560*'Pollutant Loading Rates'!$C$15),2)) ->  | O46: =IF($A46="","",ROUND(($F46/43560*'Pollutant Loading Rates'!$D$9)+(($L46-$F46)/43560*'Pollutant Loading Rates'!$D$15),0)) ->  | P46: =IF($A46="","",ROUND(($F46/43560*'Pollutant Loading Rates'!$E$9)+(($L46-$F46)/43560*'Pollutant Loading Rates'!$E$15),2)) ->  | Q46: =IF($A46="","",ROUND(($F46/43560*'Pollutant Loading Rates'!$F$9)+(($L46-$F46)/43560*'Pollutant Loading Rates'!$F$15),2)) -> 
N47: =IF($A47="","",ROUND(($F47/43560*'Pollutant Loading Rates'!$C$9)+(($L47-$F47)/43560*'Pollutant Loading Rates'!$C$15),2)) ->  | O47: =IF($A47="","",ROUND(($F47/43560*'Pollutant Loading Rates'!$D$9)+(($L47-$F47)/43560*'Pollutant Loading Rates'!$D$15),0)) ->  | P47: =IF($A47="","",ROUND(($F47/43560*'Pollutant Loading Rates'!$E$9)+(($L47-$F47)/43560*'Pollutant Loading Rates'!$E$15),2)) ->  | Q47: =IF($A47="","",ROUND(($F47/43560*'Pollutant Loading Rates'!$F$9)+(($L47-$F47)/43560*'Pollutant Loading Rates'!$F$15),2)) -> 
N48: =IF($A48="","",ROUND(($F48/43560*'Pollutant Loading Rates'!$C$9)+(($L48-$F48)/43560*'Pollutant Loading Rates'!$C$15),2)) ->  | O48: =IF($A48="","",ROUND(($F48/43560*'Pollutant Loading Rates'!$D$9)+(($L48-$F48)/43560*'Pollutant Loading Rates'!$D$15),0)) ->  | P48: =IF($A48="","",ROUND(($F48/43560*'Pollutant Loading Rates'!$E$9)+(($L48-$F48)/43560*'Pollutant Loading Rates'!$E$15),2)) ->  | Q48: =IF($A48="","",ROUND(($F48/43560*'Pollutant Loading Rates'!$F$9)+(($L48-$F48)/43560*'Pollutant Loading Rates'!$F$15),2)) -> 
N49: =IF($A49="","",ROUND(($F49/43560*'Pollutant Loading Rates'!$C$9)+(($L49-$F49)/43560*'Pollutant Loading Rates'!$C$15),2)) ->  | O49: =IF($A49="","",ROUND(($F49/43560*'Pollutant Loading Rates'!$D$9)+(($L49-$F49)/43560*'Pollutant Loading Rates'!$D$15),0)) ->  | P49: =IF($A49="","",ROUND(($F49/43560*'Pollutant Loading Rates'!$E$9)+(($L49-$F49)/43560*'Pollutant Loading Rates'!$E$15),2)) ->  | Q49: =IF($A49="","",ROUND(($F49/43560*'Pollutant Loading Rates'!$F$9)+(($L49-$F49)/43560*'Pollutant Loading Rates'!$F$15),2)) -> 
N50: =IF($A50="","",ROUND(($F50/43560*'Pollutant Loading Rates'!$C$9)+(($L50-$F50)/43560*'Pollutant Loading Rates'!$C$15),2)) ->  | O50: =IF($A50="","",ROUND(($F50/43560*'Pollutant Loading Rates'!$D$9)+(($L50-$F50)/43560*'Pollutant Loading Rates'!$D$15),0)) ->  | P50: =IF($A50="","",ROUND(($F50/43560*'Pollutant Loading Rates'!$E$9)+(($L50-$F50)/43560*'Pollutant Loading Rates'!$E$15),2)) ->  | Q50: =IF($A50="","",ROUND(($F50/43560*'Pollutant Loading Rates'!$F$9)+(($L50-$F50)/43560*'Pollutant Loading Rates'!$F$15),2)) -> 
N51: =IF($A51="","",ROUND(($F51/43560*'Pollutant Loading Rates'!$C$9)+(($L51-$F51)/43560*'Pollutant Loading Rates'!$C$15),2)) ->  | O51: =IF($A51="","",ROUND(($F51/43560*'Pollutant Loading Rates'!$D$9)+(($L51-$F51)/43560*'Pollutant Loading Rates'!$D$15),0)) ->  | P51: =IF($A51="","",ROUND(($F51/43560*'Pollutant Loading Rates'!$E$9)+(($L51-$F51)/43560*'Pollutant Loading Rates'!$E$15),2)) ->  | Q51: =IF($A51="","",ROUND(($F51/43560*'Pollutant Loading Rates'!$F$9)+(($L51-$F51)/43560*'Pollutant Loading Rates'!$F$15),2)) -> 
N52: =IF($A52="","",ROUND(($F52/43560*'Pollutant Loading Rates'!$C$9)+(($L52-$F52)/43560*'Pollutant Loading Rates'!$C$15),2)) ->  | O52: =IF($A52="","",ROUND(($F52/43560*'Pollutant Loading Rates'!$D$9)+(($L52-$F52)/43560*'Pollutant Loading Rates'!$D$15),0)) ->  | P52: =IF($A52="","",ROUND(($F52/43560*'Pollutant Loading Rates'!$E$9)+(($L52-$F52)/43560*'Pollutant Loading Rates'!$E$15),2)) ->  | Q52: =IF($A52="","",ROUND(($F52/43560*'Pollutant Loading Rates'!$F$9)+(($L52-$F52)/43560*'Pollutant Loading Rates'!$F$15),2)) -> 
N53: =IF($A53="","",ROUND(($F53/43560*'Pollutant Loading Rates'!$C$9)+(($L53-$F53)/43560*'Pollutant Loading Rates'!$C$15),2)) ->  | O53: =IF($A53="","",ROUND(($F53/43560*'Pollutant Loading Rates'!$D$9)+(($L53-$F53)/43560*'Pollutant Loading Rates'!$D$15),0)) ->  | P53: =IF($A53="","",ROUND(($F53/43560*'Pollutant Loading Rates'!$E$9)+(($L53-$F53)/43560*'Pollutant Loading Rates'!$E$15),2)) ->  | Q53: =IF($A53="","",ROUND(($F53/43560*'Pollutant Loading Rates'!$F$9)+(($L53-$F53)/43560*'Pollutant Loading Rates'!$F$15),2)) -> 
N54: =IF($A54="","",ROUND(($F54/43560*'Pollutant Loading Rates'!$C$9)+(($L54-$F54)/43560*'Pollutant Loading Rates'!$C$15),2)) ->  | O54: =IF($A54="","",ROUND(($F54/43560*'Pollutant Loading Rates'!$D$9)+(($L54-$F54)/43560*'Pollutant Loading Rates'!$D$15),0)) ->  | P54: =IF($A54="","",ROUND(($F54/43560*'Pollutant Loading Rates'!$E$9)+(($L54-$F54)/43560*'Pollutant Loading Rates'!$E$15),2)) ->  | Q54: =IF($A54="","",ROUND(($F54/43560*'Pollutant Loading Rates'!$F$9)+(($L54-$F54)/43560*'Pollutant Loading Rates'!$F$15),2)) -> 
N55: =IF($A55="","",ROUND(($F55/43560*'Pollutant Loading Rates'!$C$9)+(($L55-$F55)/43560*'Pollutant Loading Rates'!$C$15),2)) ->  | O55: =IF($A55="","",ROUND(($F55/43560*'Pollutant Loading Rates'!$D$9)+(($L55-$F55)/43560*'Pollutant Loading Rates'!$D$15),0)) ->  | P55: =IF($A55="","",ROUND(($F55/43560*'Pollutant Loading Rates'!$E$9)+(($L55-$F55)/43560*'Pollutant Loading Rates'!$E$15),2)) ->  | Q55: =IF($A55="","",ROUND(($F55/43560*'Pollutant Loading Rates'!$F$9)+(($L55-$F55)/43560*'Pollutant Loading Rates'!$F$15),2)) -> 
N56: =IF($A56="","",ROUND(($F56/43560*'Pollutant Loading Rates'!$C$9)+(($L56-$F56)/43560*'Pollutant Loading Rates'!$C$15),2)) ->  | O56: =IF($A56="","",ROUND(($F56/43560*'Pollutant Loading Rates'!$D$9)+(($L56-$F56)/43560*'Pollutant Loading Rates'!$D$15),0)) ->  | P56: =IF($A56="","",ROUND(($F56/43560*'Pollutant Loading Rates'!$E$9)+(($L56-$F56)/43560*'Pollutant Loading Rates'!$E$15),2)) ->  | Q56: =IF($A56="","",ROUND(($F56/43560*'Pollutant Loading Rates'!$F$9)+(($L56-$F56)/43560*'Pollutant Loading Rates'!$F$15),2)) -> 
N57: =IF($A57="","",ROUND(($F57/43560*'Pollutant Loading Rates'!$C$9)+(($L57-$F57)/43560*'Pollutant Loading Rates'!$C$15),2)) ->  | O57: =IF($A57="","",ROUND(($F57/43560*'Pollutant Loading Rates'!$D$9)+(($L57-$F57)/43560*'Pollutant Loading Rates'!$D$15),0)) ->  | P57: =IF($A57="","",ROUND(($F57/43560*'Pollutant Loading Rates'!$E$9)+(($L57-$F57)/43560*'Pollutant Loading Rates'!$E$15),2)) ->  | Q57: =IF($A57="","",ROUND(($F57/43560*'Pollutant Loading Rates'!$F$9)+(($L57-$F57)/43560*'Pollutant Loading Rates'!$F$15),2)) -> 
N58: =IF($A58="","",ROUND(($F58/43560*'Pollutant Loading Rates'!$C$9)+(($L58-$F58)/43560*'Pollutant Loading Rates'!$C$15),2)) ->  | O58: =IF($A58="","",ROUND(($F58/43560*'Pollutant Loading Rates'!$D$9)+(($L58-$F58)/43560*'Pollutant Loading Rates'!$D$15),0)) ->  | P58: =IF($A58="","",ROUND(($F58/43560*'Pollutant Loading Rates'!$E$9)+(($L58-$F58)/43560*'Pollutant Loading Rates'!$E$15),2)) ->  | Q58: =IF($A58="","",ROUND(($F58/43560*'Pollutant Loading Rates'!$F$9)+(($L58-$F58)/43560*'Pollutant Loading Rates'!$F$15),2)) -> 
N59: =IF($A59="","",ROUND(($F59/43560*'Pollutant Loading Rates'!$C$9)+(($L59-$F59)/43560*'Pollutant Loading Rates'!$C$15),2)) ->  | O59: =IF($A59="","",ROUND(($F59/43560*'Pollutant Loading Rates'!$D$9)+(($L59-$F59)/43560*'Pollutant Loading Rates'!$D$15),0)) ->  | P59: =IF($A59="","",ROUND(($F59/43560*'Pollutant Loading Rates'!$E$9)+(($L59-$F59)/43560*'Pollutant Loading Rates'!$E$15),2)) ->  | Q59: =IF($A59="","",ROUND(($F59/43560*'Pollutant Loading Rates'!$F$9)+(($L59-$F59)/43560*'Pollutant Loading Rates'!$F$15),2)) -> 
N60: =IF($A60="","",ROUND(($F60/43560*'Pollutant Loading Rates'!$C$9)+(($L60-$F60)/43560*'Pollutant Loading Rates'!$C$15),2)) ->  | O60: =IF($A60="","",ROUND(($F60/43560*'Pollutant Loading Rates'!$D$9)+(($L60-$F60)/43560*'Pollutant Loading Rates'!$D$15),0)) ->  | P60: =IF($A60="","",ROUND(($F60/43560*'Pollutant Loading Rates'!$E$9)+(($L60-$F60)/43560*'Pollutant Loading Rates'!$E$15),2)) ->  | Q60: =IF($A60="","",ROUND(($F60/43560*'Pollutant Loading Rates'!$F$9)+(($L60-$F60)/43560*'Pollutant Loading Rates'!$F$15),2)) -> 
N61: =IF($A61="","",ROUND(($F61/43560*'Pollutant Loading Rates'!$C$9)+(($L61-$F61)/43560*'Pollutant Loading Rates'!$C$15),2)) ->  | O61: =IF($A61="","",ROUND(($F61/43560*'Pollutant Loading Rates'!$D$9)+(($L61-$F61)/43560*'Pollutant Loading Rates'!$D$15),0)) ->  | P61: =IF($A61="","",ROUND(($F61/43560*'Pollutant Loading Rates'!$E$9)+(($L61-$F61)/43560*'Pollutant Loading Rates'!$E$15),2)) ->  | Q61: =IF($A61="","",ROUND(($F61/43560*'Pollutant Loading Rates'!$F$9)+(($L61-$F61)/43560*'Pollutant Loading Rates'!$F$15),2)) -> 
N62: =IF($A62="","",ROUND(($F62/43560*'Pollutant Loading Rates'!$C$9)+(($L62-$F62)/43560*'Pollutant Loading Rates'!$C$15),2)) ->  | O62: =IF($A62="","",ROUND(($F62/43560*'Pollutant Loading Rates'!$D$9)+(($L62-$F62)/43560*'Pollutant Loading Rates'!$D$15),0)) ->  | P62: =IF($A62="","",ROUND(($F62/43560*'Pollutant Loading Rates'!$E$9)+(($L62-$F62)/43560*'Pollutant Loading Rates'!$E$15),2)) ->  | Q62: =IF($A62="","",ROUND(($F62/43560*'Pollutant Loading Rates'!$F$9)+(($L62-$F62)/43560*'Pollutant Loading Rates'!$F$15),2)) -> 
N63: =IF($A63="","",ROUND(($F63/43560*'Pollutant Loading Rates'!$C$9)+(($L63-$F63)/43560*'Pollutant Loading Rates'!$C$15),2)) ->  | O63: =IF($A63="","",ROUND(($F63/43560*'Pollutant Loading Rates'!$D$9)+(($L63-$F63)/43560*'Pollutant Loading Rates'!$D$15),0)) ->  | P63: =IF($A63="","",ROUND(($F63/43560*'Pollutant Loading Rates'!$E$9)+(($L63-$F63)/43560*'Pollutant Loading Rates'!$E$15),2)) ->  | Q63: =IF($A63="","",ROUND(($F63/43560*'Pollutant Loading Rates'!$F$9)+(($L63-$F63)/43560*'Pollutant Loading Rates'!$F$15),2)) -> 
N64: =IF($A64="","",ROUND(($F64/43560*'Pollutant Loading Rates'!$C$9)+(($L64-$F64)/43560*'Pollutant Loading Rates'!$C$15),2)) ->  | O64: =IF($A64="","",ROUND(($F64/43560*'Pollutant Loading Rates'!$D$9)+(($L64-$F64)/43560*'Pollutant Loading Rates'!$D$15),0)) ->  | P64: =IF($A64="","",ROUND(($F64/43560*'Pollutant Loading Rates'!$E$9)+(($L64-$F64)/43560*'Pollutant Loading Rates'!$E$15),2)) ->  | Q64: =IF($A64="","",ROUND(($F64/43560*'Pollutant Loading Rates'!$F$9)+(($L64-$F64)/43560*'Pollutant Loading Rates'!$F$15),2)) -> 
N65: =IF($A65="","",ROUND(($F65/43560*'Pollutant Loading Rates'!$C$9)+(($L65-$F65)/43560*'Pollutant Loading Rates'!$C$15),2)) ->  | O65: =IF($A65="","",ROUND(($F65/43560*'Pollutant Loading Rates'!$D$9)+(($L65-$F65)/43560*'Pollutant Loading Rates'!$D$15),0)) ->  | P65: =IF($A65="","",ROUND(($F65/43560*'Pollutant Loading Rates'!$E$9)+(($L65-$F65)/43560*'Pollutant Loading Rates'!$E$15),2)) ->  | Q65: =IF($A65="","",ROUND(($F65/43560*'Pollutant Loading Rates'!$F$9)+(($L65-$F65)/43560*'Pollutant Loading Rates'!$F$15),2)) -> 
N66: =IF($A66="","",ROUND(($F66/43560*'Pollutant Loading Rates'!$C$9)+(($L66-$F66)/43560*'Pollutant Loading Rates'!$C$15),2)) ->  | O66: =IF($A66="","",ROUND(($F66/43560*'Pollutant Loading Rates'!$D$9)+(($L66-$F66)/43560*'Pollutant Loading Rates'!$D$15),0)) ->  | P66: =IF($A66="","",ROUND(($F66/43560*'Pollutant Loading Rates'!$E$9)+(($L66-$F66)/43560*'Pollutant Loading Rates'!$E$15),2)) ->  | Q66: =IF($A66="","",ROUND(($F66/43560*'Pollutant Loading Rates'!$F$9)+(($L66-$F66)/43560*'Pollutant Loading Rates'!$F$15),2)) -> 
N67: =IF($A67="","",ROUND(($F67/43560*'Pollutant Loading Rates'!$C$9)+(($L67-$F67)/43560*'Pollutant Loading Rates'!$C$15),2)) ->  | O67: =IF($A67="","",ROUND(($F67/43560*'Pollutant Loading Rates'!$D$9)+(($L67-$F67)/43560*'Pollutant Loading Rates'!$D$15),0)) ->  | P67: =IF($A67="","",ROUND(($F67/43560*'Pollutant Loading Rates'!$E$9)+(($L67-$F67)/43560*'Pollutant Loading Rates'!$E$15),2)) ->  | Q67: =IF($A67="","",ROUND(($F67/43560*'Pollutant Loading Rates'!$F$9)+(($L67-$F67)/43560*'Pollutant Loading Rates'!$F$15),2)) -> 
N68: =IF($A68="","",ROUND(($F68/43560*'Pollutant Loading Rates'!$C$9)+(($L68-$F68)/43560*'Pollutant Loading Rates'!$C$15),2)) ->  | O68: =IF($A68="","",ROUND(($F68/43560*'Pollutant Loading Rates'!$D$9)+(($L68-$F68)/43560*'Pollutant Loading Rates'!$D$15),0)) ->  | P68: =IF($A68="","",ROUND(($F68/43560*'Pollutant Loading Rates'!$E$9)+(($L68-$F68)/43560*'Pollutant Loading Rates'!$E$15),2)) ->  | Q68: =IF($A68="","",ROUND(($F68/43560*'Pollutant Loading Rates'!$F$9)+(($L68-$F68)/43560*'Pollutant Loading Rates'!$F$15),2)) -> 
N69: =IF($A69="","",ROUND(($F69/43560*'Pollutant Loading Rates'!$C$9)+(($L69-$F69)/43560*'Pollutant Loading Rates'!$C$15),2)) ->  | O69: =IF($A69="","",ROUND(($F69/43560*'Pollutant Loading Rates'!$D$9)+(($L69-$F69)/43560*'Pollutant Loading Rates'!$D$15),0)) ->  | P69: =IF($A69="","",ROUND(($F69/43560*'Pollutant Loading Rates'!$E$9)+(($L69-$F69)/43560*'Pollutant Loading Rates'!$E$15),2)) ->  | Q69: =IF($A69="","",ROUND(($F69/43560*'Pollutant Loading Rates'!$F$9)+(($L69-$F69)/43560*'Pollutant Loading Rates'!$F$15),2)) -> 
N70: =IF($A70="","",ROUND(($F70/43560*'Pollutant Loading Rates'!$C$9)+(($L70-$F70)/43560*'Pollutant Loading Rates'!$C$15),2)) ->  | O70: =IF($A70="","",ROUND(($F70/43560*'Pollutant Loading Rates'!$D$9)+(($L70-$F70)/43560*'Pollutant Loading Rates'!$D$15),0)) ->  | P70: =IF($A70="","",ROUND(($F70/43560*'Pollutant Loading Rates'!$E$9)+(($L70-$F70)/43560*'Pollutant Loading Rates'!$E$15),2)) ->  | Q70: =IF($A70="","",ROUND(($F70/43560*'Pollutant Loading Rates'!$F$9)+(($L70-$F70)/43560*'Pollutant Loading Rates'!$F$15),2)) -> 
N71: =IF($A71="","",ROUND(($F71/43560*'Pollutant Loading Rates'!$C$9)+(($L71-$F71)/43560*'Pollutant Loading Rates'!$C$15),2)) ->  | O71: =IF($A71="","",ROUND(($F71/43560*'Pollutant Loading Rates'!$D$9)+(($L71-$F71)/43560*'Pollutant Loading Rates'!$D$15),0)) ->  | P71: =IF($A71="","",ROUND(($F71/43560*'Pollutant Loading Rates'!$E$9)+(($L71-$F71)/43560*'Pollutant Loading Rates'!$E$15),2)) ->  | Q71: =IF($A71="","",ROUND(($F71/43560*'Pollutant Loading Rates'!$F$9)+(($L71-$F71)/43560*'Pollutant Loading Rates'!$F$15),2)) -> 
N72: =IF($A72="","",ROUND(($F72/43560*'Pollutant Loading Rates'!$C$9)+(($L72-$F72)/43560*'Pollutant Loading Rates'!$C$15),2)) ->  | O72: =IF($A72="","",ROUND(($F72/43560*'Pollutant Loading Rates'!$D$9)+(($L72-$F72)/43560*'Pollutant Loading Rates'!$D$15),0)) ->  | P72: =IF($A72="","",ROUND(($F72/43560*'Pollutant Loading Rates'!$E$9)+(($L72-$F72)/43560*'Pollutant Loading Rates'!$E$15),2)) ->  | Q72: =IF($A72="","",ROUND(($F72/43560*'Pollutant Loading Rates'!$F$9)+(($L72-$F72)/43560*'Pollutant Loading Rates'!$F$15),2)) -> 
N73: =IF($A73="","",ROUND(($F73/43560*'Pollutant Loading Rates'!$C$9)+(($L73-$F73)/43560*'Pollutant Loading Rates'!$C$15),2)) ->  | O73: =IF($A73="","",ROUND(($F73/43560*'Pollutant Loading Rates'!$D$9)+(($L73-$F73)/43560*'Pollutant Loading Rates'!$D$15),0)) ->  | P73: =IF($A73="","",ROUND(($F73/43560*'Pollutant Loading Rates'!$E$9)+(($L73-$F73)/43560*'Pollutant Loading Rates'!$E$15),2)) ->  | Q73: =IF($A73="","",ROUND(($F73/43560*'Pollutant Loading Rates'!$F$9)+(($L73-$F73)/43560*'Pollutant Loading Rates'!$F$15),2)) -> 
N74: =IF($A74="","",ROUND(($F74/43560*'Pollutant Loading Rates'!$C$9)+(($L74-$F74)/43560*'Pollutant Loading Rates'!$C$15),2)) ->  | O74: =IF($A74="","",ROUND(($F74/43560*'Pollutant Loading Rates'!$D$9)+(($L74-$F74)/43560*'Pollutant Loading Rates'!$D$15),0)) ->  | P74: =IF($A74="","",ROUND(($F74/43560*'Pollutant Loading Rates'!$E$9)+(($L74-$F74)/43560*'Pollutant Loading Rates'!$E$15),2)) ->  | Q74: =IF($A74="","",ROUND(($F74/43560*'Pollutant Loading Rates'!$F$9)+(($L74-$F74)/43560*'Pollutant Loading Rates'!$F$15),2)) -> 
N75: =IF($A75="","",ROUND(($F75/43560*'Pollutant Loading Rates'!$C$9)+(($L75-$F75)/43560*'Pollutant Loading Rates'!$C$15),2)) ->  | O75: =IF($A75="","",ROUND(($F75/43560*'Pollutant Loading Rates'!$D$9)+(($L75-$F75)/43560*'Pollutant Loading Rates'!$D$15),0)) ->  | P75: =IF($A75="","",ROUND(($F75/43560*'Pollutant Loading Rates'!$E$9)+(($L75-$F75)/43560*'Pollutant Loading Rates'!$E$15),2)) ->  | Q75: =IF($A75="","",ROUND(($F75/43560*'Pollutant Loading Rates'!$F$9)+(($L75-$F75)/43560*'Pollutant Loading Rates'!$F$15),2)) -> 
N76: =IF($A76="","",ROUND(($F76/43560*'Pollutant Loading Rates'!$C$9)+(($L76-$F76)/43560*'Pollutant Loading Rates'!$C$15),2)) ->  | O76: =IF($A76="","",ROUND(($F76/43560*'Pollutant Loading Rates'!$D$9)+(($L76-$F76)/43560*'Pollutant Loading Rates'!$D$15),0)) ->  | P76: =IF($A76="","",ROUND(($F76/43560*'Pollutant Loading Rates'!$E$9)+(($L76-$F76)/43560*'Pollutant Loading Rates'!$E$15),2)) ->  | Q76: =IF($A76="","",ROUND(($F76/43560*'Pollutant Loading Rates'!$F$9)+(($L76-$F76)/43560*'Pollutant Loading Rates'!$F$15),2)) -> 
N77: =IF($A77="","",ROUND(($F77/43560*'Pollutant Loading Rates'!$C$9)+(($L77-$F77)/43560*'Pollutant Loading Rates'!$C$15),2)) ->  | O77: =IF($A77="","",ROUND(($F77/43560*'Pollutant Loading Rates'!$D$9)+(($L77-$F77)/43560*'Pollutant Loading Rates'!$D$15),0)) ->  | P77: =IF($A77="","",ROUND(($F77/43560*'Pollutant Loading Rates'!$E$9)+(($L77-$F77)/43560*'Pollutant Loading Rates'!$E$15),2)) ->  | Q77: =IF($A77="","",ROUND(($F77/43560*'Pollutant Loading Rates'!$F$9)+(($L77-$F77)/43560*'Pollutant Loading Rates'!$F$15),2)) -> 
N78: =IF($A78="","",ROUND(($F78/43560*'Pollutant Loading Rates'!$C$9)+(($L78-$F78)/43560*'Pollutant Loading Rates'!$C$15),2)) ->  | O78: =IF($A78="","",ROUND(($F78/43560*'Pollutant Loading Rates'!$D$9)+(($L78-$F78)/43560*'Pollutant Loading Rates'!$D$15),0)) ->  | P78: =IF($A78="","",ROUND(($F78/43560*'Pollutant Loading Rates'!$E$9)+(($L78-$F78)/43560*'Pollutant Loading Rates'!$E$15),2)) ->  | Q78: =IF($A78="","",ROUND(($F78/43560*'Pollutant Loading Rates'!$F$9)+(($L78-$F78)/43560*'Pollutant Loading Rates'!$F$15),2)) -> 
N79: =IF($A79="","",ROUND(($F79/43560*'Pollutant Loading Rates'!$C$9)+(($L79-$F79)/43560*'Pollutant Loading Rates'!$C$15),2)) ->  | O79: =IF($A79="","",ROUND(($F79/43560*'Pollutant Loading Rates'!$D$9)+(($L79-$F79)/43560*'Pollutant Loading Rates'!$D$15),0)) ->  | P79: =IF($A79="","",ROUND(($F79/43560*'Pollutant Loading Rates'!$E$9)+(($L79-$F79)/43560*'Pollutant Loading Rates'!$E$15),2)) ->  | Q79: =IF($A79="","",ROUND(($F79/43560*'Pollutant Loading Rates'!$F$9)+(($L79-$F79)/43560*'Pollutant Loading Rates'!$F$15),2)) -> 

Sheet Non-RIDOT_Catchment
A1: Segment Name: | B1: Lawton Valley Reservoir (RI0007035L-06), Group 1A
A2: Date: | B2: 2018-12-31
N3: Catchment Pollutant Load, lb/yr
A4: Catchment ID | B4: WBID | C4: Discharge ID | D4: STU ID | E4: Treatment Status* | F4: Impervious Area (sq ft) | G4: Ownership* | H4: Ownership Notes | I4: Land Use* | J4: Notes | K4: Shape_Length (ft) | L4: Total Area (sq ft) | N4: P | O4: TSS | P4: N | Q4: Zn
A5: PT-LVR-004 | B5: RI0007035L-06 | C5: OF-447 | D5: SCP-LVR-002 | E5: Potential | F5: 5648 | G5: Private | I5: Residential | K5: 378.916655 | L5: 7717.975543 | N5: =IF($A5="","",(VLOOKUP($I5,'Pollutant Loading Rates'!$A$5:$F$12,3,0)*$F5/43560)+IF($I5="Forest",'Pollutant Loading Rates'!C$13*($L5-$F5)/43560,IF($I5="Agriculture",'Pollutant Loading Rates'!C$14*($L5-$F5)/43560,($L5-$F5)/43560*'Pollutant Loading Rates'!C$16))) -> 0.305531868 | O5: =IF($A5="","",(VLOOKUP($I5,'Pollutant Loading Rates'!$A$5:$F$12,4,0)*$F5/43560)+IF($I5="Forest",'Pollutant Loading Rates'!D$13*($L5-$F5)/43560,IF($I5="Agriculture",'Pollutant Loading Rates'!D$14*($L5-$F5)/43560,($L5-$F5)/43560*'Pollutant Loading Rates'!D$16))) -> 58.17129067 | P5: =IF($A5="","",(VLOOKUP($I5,'Pollutant Loading Rates'!$A$5:$F$12,5,0)*$F5/43560)+IF($I5="Forest",'Pollutant Loading Rates'!E$13*($L5-$F5)/43560,IF($I5="Agriculture",'Pollutant Loading Rates'!E$14*($L5-$F5)/43560,($L5-$F5)/43560*'Pollutant Loading Rates'!E$16))) -> 1.878263033 | Q5: =IF($A5="","",(VLOOKUP($I5,'Pollutant Loading Rates'!$A$5:$F$12,6,0)*$F5/43560)+IF($I5="Forest",'Pollutant Loading Rates'!F$13*($L5-$F5)/43560,IF($I5="Agriculture",'Pollutant Loading Rates'!F$14*($L5-$F5)/43560,($L5-$F5)/43560*'Pollutant Loading Rates'!F$16))) -> 0.09222143608
A6: PT-LVR-005 | B6: RI0007035L-06 | C6: OF-447 | D6: SCP-LVR-003 | E6: Potential | F6: 912 | G6: Municipality | I6: Residential | K6: 171.028182 | L6: 1390.349139 | N6: =IF($A6="","",(VLOOKUP($I6,'Pollutant Loading Rates'!$A$5:$F$12,3,0)*$F6/43560)+IF($I6="Forest",'Pollutant Loading Rates'!C$13*($L6-$F6)/43560,IF($I6="Agriculture",'Pollutant Loading Rates'!C$14*($L6-$F6)/43560,($L6-$F6)/43560*'Pollutant Loading Rates'!C$16))) -> 0.04971792919 | O6: =IF($A6="","",(VLOOKUP($I6,'Pollutant Loading Rates'!$A$5:$F$12,4,0)*$F6/43560)+IF($I6="Forest",'Pollutant Loading Rates'!D$13*($L6-$F6)/43560,IF($I6="Agriculture",'Pollutant Loading Rates'!D$14*($L6-$F6)/43560,($L6-$F6)/43560*'Pollutant Loading Rates'!D$16))) -> 9.49025882 | P6: =IF($A6="","",(VLOOKUP($I6,'Pollutant Loading Rates'!$A$5:$F$12,5,0)*$F6/43560)+IF($I6="Forest",'Pollutant Loading Rates'!E$13*($L6-$F6)/43560,IF($I6="Agriculture",'Pollutant Loading Rates'!E$14*($L6-$F6)/43560,($L6-$F6)/43560*'Pollutant Loading Rates'!E$16))) -> 0.307116482 | Q6: =IF($A6="","",(VLOOKUP($I6,'Pollutant Loading Rates'!$A$5:$F$12,6,0)*$F6/43560)+IF($I6="Forest",'Pollutant Loading Rates'!F$13*($L6-$F6)/43560,IF($I6="Agriculture",'Pollutant Loading Rates'!F$14*($L6-$F6)/43560,($L6-$F6)/43560*'Pollutant Loading Rates'!F$16))) -> 0.01496488678
N7: =IF($A7="","",(VLOOKUP($I7,'Pollutant Loading Rates'!$A$5:$F$12,3,0)*$F7/43560)+IF($I7="Forest",'Pollutant Loading Rates'!C$13*($L7-$F7)/43560,IF($I7="Agriculture",'Pollutant Loading Rates'!C$14*($L7-$F7)/43560,($L7-$F7)/43560*'Pollutant Loading Rates'!C$16))) ->  | O7: =IF($A7="","",(VLOOKUP($I7,'Pollutant Loading Rates'!$A$5:$F$12,4,0)*$F7/43560)+IF($I7="Forest",'Pollutant Loading Rates'!D$13*($L7-$F7)/43560,IF($I7="Agriculture",'Pollutant Loading Rates'!D$14*($L7-$F7)/43560,($L7-$F7)/43560*'Pollutant Loading Rates'!D$16))) ->  | P7: =IF($A7="","",(VLOOKUP($I7,'Pollutant Loading Rates'!$A$5:$F$12,5,0)*$F7/43560)+IF($I7="Forest",'Pollutant Loading Rates'!E$13*($L7-$F7)/43560,IF($I7="Agriculture",'Pollutant Loading Rates'!E$14*($L7-$F7)/43560,($L7-$F7)/43560*'Pollutant Loading Rates'!E$16))) ->  | Q7: =IF($A7="","",(VLOOKUP($I7,'Pollutant Loading Rates'!$A$5:$F$12,6,0)*$F7/43560)+IF($I7="Forest",'Pollutant Loading Rates'!F$13*($L7-$F7)/43560,IF($I7="Agriculture",'Pollutant Loading Rates'!F$14*($L7-$F7)/43560,($L7-$F7)/43560*'Pollutant Loading Rates'!F$16))) -> 
N8: =IF($A8="","",(VLOOKUP($I8,'Pollutant Loading Rates'!$A$5:$F$12,3,0)*$F8/43560)+IF($I8="Forest",'Pollutant Loading Rates'!C$13*($L8-$F8)/43560,IF($I8="Agriculture",'Pollutant Loading Rates'!C$14*($L8-$F8)/43560,($L8-$F8)/43560*'Pollutant Loading Rates'!C$16))) ->  | O8: =IF($A8="","",(VLOOKUP($I8,'Pollutant Loading Rates'!$A$5:$F$12,4,0)*$F8/43560)+IF($I8="Forest",'Pollutant Loading Rates'!D$13*($L8-$F8)/43560,IF($I8="Agriculture",'Pollutant Loading Rates'!D$14*($L8-$F8)/43560,($L8-$F8)/43560*'Pollutant Loading Rates'!D$16))) ->  | P8: =IF($A8="","",(VLOOKUP($I8,'Pollutant Loading Rates'!$A$5:$F$12,5,0)*$F8/43560)+IF($I8="Forest",'Pollutant Loading Rates'!E$13*($L8-$F8)/43560,IF($I8="Agriculture",'Pollutant Loading Rates'!E$14*($L8-$F8)/43560,($L8-$F8)/43560*'Pollutant Loading Rates'!E$16))) ->  | Q8: =IF($A8="","",(VLOOKUP($I8,'Pollutant Loading Rates'!$A$5:$F$12,6,0)*$F8/43560)+IF($I8="Forest",'Pollutant Loading Rates'!F$13*($L8-$F8)/43560,IF($I8="Agriculture",'Pollutant Loading Rates'!F$14*($L8-$F8)/43560,($L8-$F8)/43560*'Pollutant Loading Rates'!F$16))) -> 
N9: =IF($A9="","",(VLOOKUP($I9,'Pollutant Loading Rates'!$A$5:$F$12,3,0)*$F9/43560)+IF($I9="Forest",'Pollutant Loading Rates'!C$13*($L9-$F9)/43560,IF($I9="Agriculture",'Pollutant Loading Rates'!C$14*($L9-$F9)/43560,($L9-$F9)/43560*'Pollutant Loading Rates'!C$16))) ->  | O9: =IF($A9="","",(VLOOKUP($I9,'Pollutant Loading Rates'!$A$5:$F$12,4,0)*$F9/43560)+IF($I9="Forest",'Pollutant Loading Rates'!D$13*($L9-$F9)/43560,IF($I9="Agriculture",'Pollutant Loading Rates'!D$14*($L9-$F9)/43560,($L9-$F9)/43560*'Pollutant Loading Rates'!D$16))) ->  | P9: =IF($A9="","",(VLOOKUP($I9,'Pollutant Loading Rates'!$A$5:$F$12,5,0)*$F9/43560)+IF($I9="Forest",'Pollutant Loading Rates'!E$13*($L9-$F9)/43560,IF($I9="Agriculture",'Pollutant Loading Rates'!E$14*($L9-$F9)/43560,($L9-$F9)/43560*'Pollutant Loading Rates'!E$16))) ->  | Q9: =IF($A9="","",(VLOOKUP($I9,'Pollutant Loading Rates'!$A$5:$F$12,6,0)*$F9/43560)+IF($I9="Forest",'Pollutant Loading Rates'!F$13*($L9-$F9)/43560,IF($I9="Agriculture",'Pollutant Loading Rates'!F$14*($L9-$F9)/43560,($L9-$F9)/43560*'Pollutant Loading Rates'!F$16))) -> 
N10: =IF($A10="","",(VLOOKUP($I10,'Pollutant Loading Rates'!$A$5:$F$12,3,0)*$F10/43560)+IF($I10="Forest",'Pollutant Loading Rates'!C$13*($L10-$F10)/43560,IF($I10="Agriculture",'Pollutant Loading Rates'!C$14*($L10-$F10)/43560,($L10-$F10)/43560*'Pollutant Loading Rates'!C$16))) ->  | O10: =IF($A10="","",(VLOOKUP($I10,'Pollutant Loading Rates'!$A$5:$F$12,4,0)*$F10/43560)+IF($I10="Forest",'Pollutant Loading Rates'!D$13*($L10-$F10)/43560,IF($I10="Agriculture",'Pollutant Loading Rates'!D$14*($L10-$F10)/43560,($L10-$F10)/43560*'Pollutant Loading Rates'!D$16))) ->  | P10: =IF($A10="","",(VLOOKUP($I10,'Pollutant Loading Rates'!$A$5:$F$12,5,0)*$F10/43560)+IF($I10="Forest",'Pollutant Loading Rates'!E$13*($L10-$F10)/43560,IF($I10="Agriculture",'Pollutant Loading Rates'!E$14*($L10-$F10)/43560,($L10-$F10)/43560*'Pollutant Loading Rates'!E$16))) ->  | Q10: =IF($A10="","",(VLOOKUP($I10,'Pollutant Loading Rates'!$A$5:$F$12,6,0)*$F10/43560)+IF($I10="Forest",'Pollutant Loading Rates'!F$13*($L10-$F10)/43560,IF($I10="Agriculture",'Pollutant Loading Rates'!F$14*($L10-$F10)/43560,($L10-$F10)/43560*'Pollutant Loading Rates'!F$16))) -> 
N11: =IF($A11="","",(VLOOKUP($I11,'Pollutant Loading Rates'!$A$5:$F$12,3,0)*$F11/43560)+IF($I11="Forest",'Pollutant Loading Rates'!C$13*($L11-$F11)/43560,IF($I11="Agriculture",'Pollutant Loading Rates'!C$14*($L11-$F11)/43560,($L11-$F11)/43560*'Pollutant Loading Rates'!C$16))) ->  | O11: =IF($A11="","",(VLOOKUP($I11,'Pollutant Loading Rates'!$A$5:$F$12,4,0)*$F11/43560)+IF($I11="Forest",'Pollutant Loading Rates'!D$13*($L11-$F11)/43560,IF($I11="Agriculture",'Pollutant Loading Rates'!D$14*($L11-$F11)/43560,($L11-$F11)/43560*'Pollutant Loading Rates'!D$16))) ->  | P11: =IF($A11="","",(VLOOKUP($I11,'Pollutant Loading Rates'!$A$5:$F$12,5,0)*$F11/43560)+IF($I11="Forest",'Pollutant Loading Rates'!E$13*($L11-$F11)/43560,IF($I11="Agriculture",'Pollutant Loading Rates'!E$14*($L11-$F11)/43560,($L11-$F11)/43560*'Pollutant Loading Rates'!E$16))) ->  | Q11: =IF($A11="","",(VLOOKUP($I11,'Pollutant Loading Rates'!$A$5:$F$12,6,0)*$F11/43560)+IF($I11="Forest",'Pollutant Loading Rates'!F$13*($L11-$F11)/43560,IF($I11="Agriculture",'Pollutant Loading Rates'!F$14*($L11-$F11)/43560,($L11-$F11)/43560*'Pollutant Loading Rates'!F$16))) -> 
N12: =IF($A12="","",(VLOOKUP($I12,'Pollutant Loading Rates'!$A$5:$F$12,3,0)*$F12/43560)+IF($I12="Forest",'Pollutant Loading Rates'!C$13*($L12-$F12)/43560,IF($I12="Agriculture",'Pollutant Loading Rates'!C$14*($L12-$F12)/43560,($L12-$F12)/43560*'Pollutant Loading Rates'!C$16))) ->  | O12: =IF($A12="","",(VLOOKUP($I12,'Pollutant Loading Rates'!$A$5:$F$12,4,0)*$F12/43560)+IF($I12="Forest",'Pollutant Loading Rates'!D$13*($L12-$F12)/43560,IF($I12="Agriculture",'Pollutant Loading Rates'!D$14*($L12-$F12)/43560,($L12-$F12)/43560*'Pollutant Loading Rates'!D$16))) ->  | P12: =IF($A12="","",(VLOOKUP($I12,'Pollutant Loading Rates'!$A$5:$F$12,5,0)*$F12/43560)+IF($I12="Forest",'Pollutant Loading Rates'!E$13*($L12-$F12)/43560,IF($I12="Agriculture",'Pollutant Loading Rates'!E$14*($L12-$F12)/43560,($L12-$F12)/43560*'Pollutant Loading Rates'!E$16))) ->  | Q12: =IF($A12="","",(VLOOKUP($I12,'Pollutant Loading Rates'!$A$5:$F$12,6,0)*$F12/43560)+IF($I12="Forest",'Pollutant Loading Rates'!F$13*($L12-$F12)/43560,IF($I12="Agriculture",'Pollutant Loading Rates'!F$14*($L12-$F12)/43560,($L12-$F12)/43560*'Pollutant Loading Rates'!F$16))) -> 
N13: =IF($A13="","",(VLOOKUP($I13,'Pollutant Loading Rates'!$A$5:$F$12,3,0)*$F13/43560)+IF($I13="Forest",'Pollutant Loading Rates'!C$13*($L13-$F13)/43560,IF($I13="Agriculture",'Pollutant Loading Rates'!C$14*($L13-$F13)/43560,($L13-$F13)/43560*'Pollutant Loading Rates'!C$16))) ->  | O13: =IF($A13="","",(VLOOKUP($I13,'Pollutant Loading Rates'!$A$5:$F$12,4,0)*$F13/43560)+IF($I13="Forest",'Pollutant Loading Rates'!D$13*($L13-$F13)/43560,IF($I13="Agriculture",'Pollutant Loading Rates'!D$14*($L13-$F13)/43560,($L13-$F13)/43560*'Pollutant Loading Rates'!D$16))) ->  | P13: =IF($A13="","",(VLOOKUP($I13,'Pollutant Loading Rates'!$A$5:$F$12,5,0)*$F13/43560)+IF($I13="Forest",'Pollutant Loading Rates'!E$13*($L13-$F13)/43560,IF($I13="Agriculture",'Pollutant Loading Rates'!E$14*($L13-$F13)/43560,($L13-$F13)/43560*'Pollutant Loading Rates'!E$16))) ->  | Q13: =IF($A13="","",(VLOOKUP($I13,'Pollutant Loading Rates'!$A$5:$F$12,6,0)*$F13/43560)+IF($I13="Forest",'Pollutant Loading Rates'!F$13*($L13-$F13)/43560,IF($I13="Agriculture",'Pollutant Loading Rates'!F$14*($L13-$F13)/43560,($L13-$F13)/43560*'Pollutant Loading Rates'!F$16))) -> 
N14: =IF($A14="","",(VLOOKUP($I14,'Pollutant Loading Rates'!$A$5:$F$12,3,0)*$F14/43560)+IF($I14="Forest",'Pollutant Loading Rates'!C$13*($L14-$F14)/43560,IF($I14="Agriculture",'Pollutant Loading Rates'!C$14*($L14-$F14)/43560,($L14-$F14)/43560*'Pollutant Loading Rates'!C$16))) ->  | O14: =IF($A14="","",(VLOOKUP($I14,'Pollutant Loading Rates'!$A$5:$F$12,4,0)*$F14/43560)+IF($I14="Forest",'Pollutant Loading Rates'!D$13*($L14-$F14)/43560,IF($I14="Agriculture",'Pollutant Loading Rates'!D$14*($L14-$F14)/43560,($L14-$F14)/43560*'Pollutant Loading Rates'!D$16))) ->  | P14: =IF($A14="","",(VLOOKUP($I14,'Pollutant Loading Rates'!$A$5:$F$12,5,0)*$F14/43560)+IF($I14="Forest",'Pollutant Loading Rates'!E$13*($L14-$F14)/43560,IF($I14="Agriculture",'Pollutant Loading Rates'!E$14*($L14-$F14)/43560,($L14-$F14)/43560*'Pollutant Loading Rates'!E$16))) ->  | Q14: =IF($A14="","",(VLOOKUP($I14,'Pollutant Loading Rates'!$A$5:$F$12,6,0)*$F14/43560)+IF($I14="Forest",'Pollutant Loading Rates'!F$13*($L14-$F14)/43560,IF($I14="Agriculture",'Pollutant Loading Rates'!F$14*($L14-$F14)/43560,($L14-$F14)/43560*'Pollutant Loading Rates'!F$16))) -> 
N15: =IF($A15="","",(VLOOKUP($I15,'Pollutant Loading Rates'!$A$5:$F$12,3,0)*$F15/43560)+IF($I15="Forest",'Pollutant Loading Rates'!C$13*($L15-$F15)/43560,IF($I15="Agriculture",'Pollutant Loading Rates'!C$14*($L15-$F15)/43560,($L15-$F15)/43560*'Pollutant Loading Rates'!C$16))) ->  | O15: =IF($A15="","",(VLOOKUP($I15,'Pollutant Loading Rates'!$A$5:$F$12,4,0)*$F15/43560)+IF($I15="Forest",'Pollutant Loading Rates'!D$13*($L15-$F15)/43560,IF($I15="Agriculture",'Pollutant Loading Rates'!D$14*($L15-$F15)/43560,($L15-$F15)/43560*'Pollutant Loading Rates'!D$16))) ->  | P15: =IF($A15="","",(VLOOKUP($I15,'Pollutant Loading Rates'!$A$5:$F$12,5,0)*$F15/43560)+IF($I15="Forest",'Pollutant Loading Rates'!E$13*($L15-$F15)/43560,IF($I15="Agriculture",'Pollutant Loading Rates'!E$14*($L15-$F15)/43560,($L15-$F15)/43560*'Pollutant Loading Rates'!E$16))) ->  | Q15: =IF($A15="","",(VLOOKUP($I15,'Pollutant Loading Rates'!$A$5:$F$12,6,0)*$F15/43560)+IF($I15="Forest",'Pollutant Loading Rates'!F$13*($L15-$F15)/43560,IF($I15="Agriculture",'Pollutant Loading Rates'!F$14*($L15-$F15)/43560,($L15-$F15)/43560*'Pollutant Loading Rates'!F$16))) -> 
N16: =IF($A16="","",(VLOOKUP($I16,'Pollutant Loading Rates'!$A$5:$F$12,3,0)*$F16/43560)+IF($I16="Forest",'Pollutant Loading Rates'!C$13*($L16-$F16)/43560,IF($I16="Agriculture",'Pollutant Loading Rates'!C$14*($L16-$F16)/43560,($L16-$F16)/43560*'Pollutant Loading Rates'!C$16))) ->  | O16: =IF($A16="","",(VLOOKUP($I16,'Pollutant Loading Rates'!$A$5:$F$12,4,0)*$F16/43560)+IF($I16="Forest",'Pollutant Loading Rates'!D$13*($L16-$F16)/43560,IF($I16="Agriculture",'Pollutant Loading Rates'!D$14*($L16-$F16)/43560,($L16-$F16)/43560*'Pollutant Loading Rates'!D$16))) ->  | P16: =IF($A16="","",(VLOOKUP($I16,'Pollutant Loading Rates'!$A$5:$F$12,5,0)*$F16/43560)+IF($I16="Forest",'Pollutant Loading Rates'!E$13*($L16-$F16)/43560,IF($I16="Agriculture",'Pollutant Loading Rates'!E$14*($L16-$F16)/43560,($L16-$F16)/43560*'Pollutant Loading Rates'!E$16))) ->  | Q16: =IF($A16="","",(VLOOKUP($I16,'Pollutant Loading Rates'!$A$5:$F$12,6,0)*$F16/43560)+IF($I16="Forest",'Pollutant Loading Rates'!F$13*($L16-$F16)/43560,IF($I16="Agriculture",'Pollutant Loading Rates'!F$14*($L16-$F16)/43560,($L16-$F16)/43560*'Pollutant Loading Rates'!F$16))) -> 
N17: =IF($A17="","",(VLOOKUP($I17,'Pollutant Loading Rates'!$A$5:$F$12,3,0)*$F17/43560)+IF($I17="Forest",'Pollutant Loading Rates'!C$13*($L17-$F17)/43560,IF($I17="Agriculture",'Pollutant Loading Rates'!C$14*($L17-$F17)/43560,($L17-$F17)/43560*'Pollutant Loading Rates'!C$16))) ->  | O17: =IF($A17="","",(VLOOKUP($I17,'Pollutant Loading Rates'!$A$5:$F$12,4,0)*$F17/43560)+IF($I17="Forest",'Pollutant Loading Rates'!D$13*($L17-$F17)/43560,IF($I17="Agriculture",'Pollutant Loading Rates'!D$14*($L17-$F17)/43560,($L17-$F17)/43560*'Pollutant Loading Rates'!D$16))) ->  | P17: =IF($A17="","",(VLOOKUP($I17,'Pollutant Loading Rates'!$A$5:$F$12,5,0)*$F17/43560)+IF($I17="Forest",'Pollutant Loading Rates'!E$13*($L17-$F17)/43560,IF($I17="Agriculture",'Pollutant Loading Rates'!E$14*($L17-$F17)/43560,($L17-$F17)/43560*'Pollutant Loading Rates'!E$16))) ->  | Q17: =IF($A17="","",(VLOOKUP($I17,'Pollutant Loading Rates'!$A$5:$F$12,6,0)*$F17/43560)+IF($I17="Forest",'Pollutant Loading Rates'!F$13*($L17-$F17)/43560,IF($I17="Agriculture",'Pollutant Loading Rates'!F$14*($L17-$F17)/43560,($L17-$F17)/43560*'Pollutant Loading Rates'!F$16))) -> 
N18: =IF($A18="","",(VLOOKUP($I18,'Pollutant Loading Rates'!$A$5:$F$12,3,0)*$F18/43560)+IF($I18="Forest",'Pollutant Loading Rates'!C$13*($L18-$F18)/43560,IF($I18="Agriculture",'Pollutant Loading Rates'!C$14*($L18-$F18)/43560,($L18-$F18)/43560*'Pollutant Loading Rates'!C$16))) ->  | O18: =IF($A18="","",(VLOOKUP($I18,'Pollutant Loading Rates'!$A$5:$F$12,4,0)*$F18/43560)+IF($I18="Forest",'Pollutant Loading Rates'!D$13*($L18-$F18)/43560,IF($I18="Agriculture",'Pollutant Loading Rates'!D$14*($L18-$F18)/43560,($L18-$F18)/43560*'Pollutant Loading Rates'!D$16))) ->  | P18: =IF($A18="","",(VLOOKUP($I18,'Pollutant Loading Rates'!$A$5:$F$12,5,0)*$F18/43560)+IF($I18="Forest",'Pollutant Loading Rates'!E$13*($L18-$F18)/43560,IF($I18="Agriculture",'Pollutant Loading Rates'!E$14*($L18-$F18)/43560,($L18-$F18)/43560*'Pollutant Loading Rates'!E$16))) ->  | Q18: =IF($A18="","",(VLOOKUP($I18,'Pollutant Loading Rates'!$A$5:$F$12,6,0)*$F18/43560)+IF($I18="Forest",'Pollutant Loading Rates'!F$13*($L18-$F18)/43560,IF($I18="Agriculture",'Pollutant Loading Rates'!F$14*($L18-$F18)/43560,($L18-$F18)/43560*'Pollutant Loading Rates'!F$16))) -> 
N19: =IF($A19="","",(VLOOKUP($I19,'Pollutant Loading Rates'!$A$5:$F$12,3,0)*$F19/43560)+IF($I19="Forest",'Pollutant Loading Rates'!C$13*($L19-$F19)/43560,IF($I19="Agriculture",'Pollutant Loading Rates'!C$14*($L19-$F19)/43560,($L19-$F19)/43560*'Pollutant Loading Rates'!C$16))) ->  | O19: =IF($A19="","",(VLOOKUP($I19,'Pollutant Loading Rates'!$A$5:$F$12,4,0)*$F19/43560)+IF($I19="Forest",'Pollutant Loading Rates'!D$13*($L19-$F19)/43560,IF($I19="Agriculture",'Pollutant Loading Rates'!D$14*($L19-$F19)/43560,($L19-$F19)/43560*'Pollutant Loading Rates'!D$16))) ->  | P19: =IF($A19="","",(VLOOKUP($I19,'Pollutant Loading Rates'!$A$5:$F$12,5,0)*$F19/43560)+IF($I19="Forest",'Pollutant Loading Rates'!E$13*($L19-$F19)/43560,IF($I19="Agriculture",'Pollutant Loading Rates'!E$14*($L19-$F19)/43560,($L19-$F19)/43560*'Pollutant Loading Rates'!E$16))) ->  | Q19: =IF($A19="","",(VLOOKUP($I19,'Pollutant Loading Rates'!$A$5:$F$12,6,0)*$F19/43560)+IF($I19="Forest",'Pollutant Loading Rates'!F$13*($L19-$F19)/43560,IF($I19="Agriculture",'Pollutant Loading Rates'!F$14*($L19-$F19)/43560,($L19-$F19)/43560*'Pollutant Loading Rates'!F$16))) -> 
N20: =IF($A20="","",(VLOOKUP($I20,'Pollutant Loading Rates'!$A$5:$F$12,3,0)*$F20/43560)+IF($I20="Forest",'Pollutant Loading Rates'!C$13*($L20-$F20)/43560,IF($I20="Agriculture",'Pollutant Loading Rates'!C$14*($L20-$F20)/43560,($L20-$F20)/43560*'Pollutant Loading Rates'!C$16))) ->  | O20: =IF($A20="","",(VLOOKUP($I20,'Pollutant Loading Rates'!$A$5:$F$12,4,0)*$F20/43560)+IF($I20="Forest",'Pollutant Loading Rates'!D$13*($L20-$F20)/43560,IF($I20="Agriculture",'Pollutant Loading Rates'!D$14*($L20-$F20)/43560,($L20-$F20)/43560*'Pollutant Loading Rates'!D$16))) ->  | P20: =IF($A20="","",(VLOOKUP($I20,'Pollutant Loading Rates'!$A$5:$F$12,5,0)*$F20/43560)+IF($I20="Forest",'Pollutant Loading Rates'!E$13*($L20-$F20)/43560,IF($I20="Agriculture",'Pollutant Loading Rates'!E$14*($L20-$F20)/43560,($L20-$F20)/43560*'Pollutant Loading Rates'!E$16))) ->  | Q20: =IF($A20="","",(VLOOKUP($I20,'Pollutant Loading Rates'!$A$5:$F$12,6,0)*$F20/43560)+IF($I20="Forest",'Pollutant Loading Rates'!F$13*($L20-$F20)/43560,IF($I20="Agriculture",'Pollutant Loading Rates'!F$14*($L20-$F20)/43560,($L20-$F20)/43560*'Pollutant Loading Rates'!F$16))) -> 
N21: =IF($A21="","",(VLOOKUP($I21,'Pollutant Loading Rates'!$A$5:$F$12,3,0)*$F21/43560)+IF($I21="Forest",'Pollutant Loading Rates'!C$13*($L21-$F21)/43560,IF($I21="Agriculture",'Pollutant Loading Rates'!C$14*($L21-$F21)/43560,($L21-$F21)/43560*'Pollutant Loading Rates'!C$16))) ->  | O21: =IF($A21="","",(VLOOKUP($I21,'Pollutant Loading Rates'!$A$5:$F$12,4,0)*$F21/43560)+IF($I21="Forest",'Pollutant Loading Rates'!D$13*($L21-$F21)/43560,IF($I21="Agriculture",'Pollutant Loading Rates'!D$14*($L21-$F21)/43560,($L21-$F21)/43560*'Pollutant Loading Rates'!D$16))) ->  | P21: =IF($A21="","",(VLOOKUP($I21,'Pollutant Loading Rates'!$A$5:$F$12,5,0)*$F21/43560)+IF($I21="Forest",'Pollutant Loading Rates'!E$13*($L21-$F21)/43560,IF($I21="Agriculture",'Pollutant Loading Rates'!E$14*($L21-$F21)/43560,($L21-$F21)/43560*'Pollutant Loading Rates'!E$16))) ->  | Q21: =IF($A21="","",(VLOOKUP($I21,'Pollutant Loading Rates'!$A$5:$F$12,6,0)*$F21/43560)+IF($I21="Forest",'Pollutant Loading Rates'!F$13*($L21-$F21)/43560,IF($I21="Agriculture",'Pollutant Loading Rates'!F$14*($L21-$F21)/43560,($L21-$F21)/43560*'Pollutant Loading Rates'!F$16))) -> 
N22: =IF($A22="","",(VLOOKUP($I22,'Pollutant Loading Rates'!$A$5:$F$12,3,0)*$F22/43560)+IF($I22="Forest",'Pollutant Loading Rates'!C$13*($L22-$F22)/43560,IF($I22="Agriculture",'Pollutant Loading Rates'!C$14*($L22-$F22)/43560,($L22-$F22)/43560*'Pollutant Loading Rates'!C$16))) ->  | O22: =IF($A22="","",(VLOOKUP($I22,'Pollutant Loading Rates'!$A$5:$F$12,4,0)*$F22/43560)+IF($I22="Forest",'Pollutant Loading Rates'!D$13*($L22-$F22)/43560,IF($I22="Agriculture",'Pollutant Loading Rates'!D$14*($L22-$F22)/43560,($L22-$F22)/43560*'Pollutant Loading Rates'!D$16))) ->  | P22: =IF($A22="","",(VLOOKUP($I22,'Pollutant Loading Rates'!$A$5:$F$12,5,0)*$F22/43560)+IF($I22="Forest",'Pollutant Loading Rates'!E$13*($L22-$F22)/43560,IF($I22="Agriculture",'Pollutant Loading Rates'!E$14*($L22-$F22)/43560,($L22-$F22)/43560*'Pollutant Loading Rates'!E$16))) ->  | Q22: =IF($A22="","",(VLOOKUP($I22,'Pollutant Loading Rates'!$A$5:$F$12,6,0)*$F22/43560)+IF($I22="Forest",'Pollutant Loading Rates'!F$13*($L22-$F22)/43560,IF($I22="Agriculture",'Pollutant Loading Rates'!F$14*($L22-$F22)/43560,($L22-$F22)/43560*'Pollutant Loading Rates'!F$16))) -> 
N23: =IF($A23="","",(VLOOKUP($I23,'Pollutant Loading Rates'!$A$5:$F$12,3,0)*$F23/43560)+IF($I23="Forest",'Pollutant Loading Rates'!C$13*($L23-$F23)/43560,IF($I23="Agriculture",'Pollutant Loading Rates'!C$14*($L23-$F23)/43560,($L23-$F23)/43560*'Pollutant Loading Rates'!C$16))) ->  | O23: =IF($A23="","",(VLOOKUP($I23,'Pollutant Loading Rates'!$A$5:$F$12,4,0)*$F23/43560)+IF($I23="Forest",'Pollutant Loading Rates'!D$13*($L23-$F23)/43560,IF($I23="Agriculture",'Pollutant Loading Rates'!D$14*($L23-$F23)/43560,($L23-$F23)/43560*'Pollutant Loading Rates'!D$16))) ->  | P23: =IF($A23="","",(VLOOKUP($I23,'Pollutant Loading Rates'!$A$5:$F$12,5,0)*$F23/43560)+IF($I23="Forest",'Pollutant Loading Rates'!E$13*($L23-$F23)/43560,IF($I23="Agriculture",'Pollutant Loading Rates'!E$14*($L23-$F23)/43560,($L23-$F23)/43560*'Pollutant Loading Rates'!E$16))) ->  | Q23: =IF($A23="","",(VLOOKUP($I23,'Pollutant Loading Rates'!$A$5:$F$12,6,0)*$F23/43560)+IF($I23="Forest",'Pollutant Loading Rates'!F$13*($L23-$F23)/43560,IF($I23="Agriculture",'Pollutant Loading Rates'!F$14*($L23-$F23)/43560,($L23-$F23)/43560*'Pollutant Loading Rates'!F$16))) -> 
N24: =IF($A24="","",(VLOOKUP($I24,'Pollutant Loading Rates'!$A$5:$F$12,3,0)*$F24/43560)+IF($I24="Forest",'Pollutant Loading Rates'!C$13*($L24-$F24)/43560,IF($I24="Agriculture",'Pollutant Loading Rates'!C$14*($L24-$F24)/43560,($L24-$F24)/43560*'Pollutant Loading Rates'!C$16))) ->  | O24: =IF($A24="","",(VLOOKUP($I24,'Pollutant Loading Rates'!$A$5:$F$12,4,0)*$F24/43560)+IF($I24="Forest",'Pollutant Loading Rates'!D$13*($L24-$F24)/43560,IF($I24="Agriculture",'Pollutant Loading Rates'!D$14*($L24-$F24)/43560,($L24-$F24)/43560*'Pollutant Loading Rates'!D$16))) ->  | P24: =IF($A24="","",(VLOOKUP($I24,'Pollutant Loading Rates'!$A$5:$F$12,5,0)*$F24/43560)+IF($I24="Forest",'Pollutant Loading Rates'!E$13*($L24-$F24)/43560,IF($I24="Agriculture",'Pollutant Loading Rates'!E$14*($L24-$F24)/43560,($L24-$F24)/43560*'Pollutant Loading Rates'!E$16))) ->  | Q24: =IF($A24="","",(VLOOKUP($I24,'Pollutant Loading Rates'!$A$5:$F$12,6,0)*$F24/43560)+IF($I24="Forest",'Pollutant Loading Rates'!F$13*($L24-$F24)/43560,IF($I24="Agriculture",'Pollutant Loading Rates'!F$14*($L24-$F24)/43560,($L24-$F24)/43560*'Pollutant Loading Rates'!F$16))) -> 
N25: =IF($A25="","",(VLOOKUP($I25,'Pollutant Loading Rates'!$A$5:$F$12,3,0)*$F25/43560)+IF($I25="Forest",'Pollutant Loading Rates'!C$13*($L25-$F25)/43560,IF($I25="Agriculture",'Pollutant Loading Rates'!C$14*($L25-$F25)/43560,($L25-$F25)/43560*'Pollutant Loading Rates'!C$16))) ->  | O25: =IF($A25="","",(VLOOKUP($I25,'Pollutant Loading Rates'!$A$5:$F$12,4,0)*$F25/43560)+IF($I25="Forest",'Pollutant Loading Rates'!D$13*($L25-$F25)/43560,IF($I25="Agriculture",'Pollutant Loading Rates'!D$14*($L25-$F25)/43560,($L25-$F25)/43560*'Pollutant Loading Rates'!D$16))) ->  | P25: =IF($A25="","",(VLOOKUP($I25,'Pollutant Loading Rates'!$A$5:$F$12,5,0)*$F25/43560)+IF($I25="Forest",'Pollutant Loading Rates'!E$13*($L25-$F25)/43560,IF($I25="Agriculture",'Pollutant Loading Rates'!E$14*($L25-$F25)/43560,($L25-$F25)/43560*'Pollutant Loading Rates'!E$16))) ->  | Q25: =IF($A25="","",(VLOOKUP($I25,'Pollutant Loading Rates'!$A$5:$F$12,6,0)*$F25/43560)+IF($I25="Forest",'Pollutant Loading Rates'!F$13*($L25-$F25)/43560,IF($I25="Agriculture",'Pollutant Loading Rates'!F$14*($L25-$F25)/43560,($L25-$F25)/43560*'Pollutant Loading Rates'!F$16))) -> 
N26: =IF($A26="","",(VLOOKUP($I26,'Pollutant Loading Rates'!$A$5:$F$12,3,0)*$F26/43560)+IF($I26="Forest",'Pollutant Loading Rates'!C$13*($L26-$F26)/43560,IF($I26="Agriculture",'Pollutant Loading Rates'!C$14*($L26-$F26)/43560,($L26-$F26)/43560*'Pollutant Loading Rates'!C$16))) ->  | O26: =IF($A26="","",(VLOOKUP($I26,'Pollutant Loading Rates'!$A$5:$F$12,4,0)*$F26/43560)+IF($I26="Forest",'Pollutant Loading Rates'!D$13*($L26-$F26)/43560,IF($I26="Agriculture",'Pollutant Loading Rates'!D$14*($L26-$F26)/43560,($L26-$F26)/43560*'Pollutant Loading Rates'!D$16))) ->  | P26: =IF($A26="","",(VLOOKUP($I26,'Pollutant Loading Rates'!$A$5:$F$12,5,0)*$F26/43560)+IF($I26="Forest",'Pollutant Loading Rates'!E$13*($L26-$F26)/43560,IF($I26="Agriculture",'Pollutant Loading Rates'!E$14*($L26-$F26)/43560,($L26-$F26)/43560*'Pollutant Loading Rates'!E$16))) ->  | Q26: =IF($A26="","",(VLOOKUP($I26,'Pollutant Loading Rates'!$A$5:$F$12,6,0)*$F26/43560)+IF($I26="Forest",'Pollutant Loading Rates'!F$13*($L26-$F26)/43560,IF($I26="Agriculture",'Pollutant Loading Rates'!F$14*($L26-$F26)/43560,($L26-$F26)/43560*'Pollutant Loading Rates'!F$16))) -> 
N27: =IF($A27="","",(VLOOKUP($I27,'Pollutant Loading Rates'!$A$5:$F$12,3,0)*$F27/43560)+IF($I27="Forest",'Pollutant Loading Rates'!C$13*($L27-$F27)/43560,IF($I27="Agriculture",'Pollutant Loading Rates'!C$14*($L27-$F27)/43560,($L27-$F27)/43560*'Pollutant Loading Rates'!C$16))) ->  | O27: =IF($A27="","",(VLOOKUP($I27,'Pollutant Loading Rates'!$A$5:$F$12,4,0)*$F27/43560)+IF($I27="Forest",'Pollutant Loading Rates'!D$13*($L27-$F27)/43560,IF($I27="Agriculture",'Pollutant Loading Rates'!D$14*($L27-$F27)/43560,($L27-$F27)/43560*'Pollutant Loading Rates'!D$16))) ->  | P27: =IF($A27="","",(VLOOKUP($I27,'Pollutant Loading Rates'!$A$5:$F$12,5,0)*$F27/43560)+IF($I27="Forest",'Pollutant Loading Rates'!E$13*($L27-$F27)/43560,IF($I27="Agriculture",'Pollutant Loading Rates'!E$14*($L27-$F27)/43560,($L27-$F27)/43560*'Pollutant Loading Rates'!E$16))) ->  | Q27: =IF($A27="","",(VLOOKUP($I27,'Pollutant Loading Rates'!$A$5:$F$12,6,0)*$F27/43560)+IF($I27="Forest",'Pollutant Loading Rates'!F$13*($L27-$F27)/43560,IF($I27="Agriculture",'Pollutant Loading Rates'!F$14*($L27-$F27)/43560,($L27-$F27)/43560*'Pollutant Loading Rates'!F$16))) -> 
N28: =IF($A28="","",(VLOOKUP($I28,'Pollutant Loading Rates'!$A$5:$F$12,3,0)*$F28/43560)+IF($I28="Forest",'Pollutant Loading Rates'!C$13*($L28-$F28)/43560,IF($I28="Agriculture",'Pollutant Loading Rates'!C$14*($L28-$F28)/43560,($L28-$F28)/43560*'Pollutant Loading Rates'!C$16))) ->  | O28: =IF($A28="","",(VLOOKUP($I28,'Pollutant Loading Rates'!$A$5:$F$12,4,0)*$F28/43560)+IF($I28="Forest",'Pollutant Loading Rates'!D$13*($L28-$F28)/43560,IF($I28="Agriculture",'Pollutant Loading Rates'!D$14*($L28-$F28)/43560,($L28-$F28)/43560*'Pollutant Loading Rates'!D$16))) ->  | P28: =IF($A28="","",(VLOOKUP($I28,'Pollutant Loading Rates'!$A$5:$F$12,5,0)*$F28/43560)+IF($I28="Forest",'Pollutant Loading Rates'!E$13*($L28-$F28)/43560,IF($I28="Agriculture",'Pollutant Loading Rates'!E$14*($L28-$F28)/43560,($L28-$F28)/43560*'Pollutant Loading Rates'!E$16))) ->  | Q28: =IF($A28="","",(VLOOKUP($I28,'Pollutant Loading Rates'!$A$5:$F$12,6,0)*$F28/43560)+IF($I28="Forest",'Pollutant Loading Rates'!F$13*($L28-$F28)/43560,IF($I28="Agriculture",'Pollutant Loading Rates'!F$14*($L28-$F28)/43560,($L28-$F28)/43560*'Pollutant Loading Rates'!F$16))) -> 
N29: =IF($A29="","",(VLOOKUP($I29,'Pollutant Loading Rates'!$A$5:$F$12,3,0)*$F29/43560)+IF($I29="Forest",'Pollutant Loading Rates'!C$13*($L29-$F29)/43560,IF($I29="Agriculture",'Pollutant Loading Rates'!C$14*($L29-$F29)/43560,($L29-$F29)/43560*'Pollutant Loading Rates'!C$16))) ->  | O29: =IF($A29="","",(VLOOKUP($I29,'Pollutant Loading Rates'!$A$5:$F$12,4,0)*$F29/43560)+IF($I29="Forest",'Pollutant Loading Rates'!D$13*($L29-$F29)/43560,IF($I29="Agriculture",'Pollutant Loading Rates'!D$14*($L29-$F29)/43560,($L29-$F29)/43560*'Pollutant Loading Rates'!D$16))) ->  | P29: =IF($A29="","",(VLOOKUP($I29,'Pollutant Loading Rates'!$A$5:$F$12,5,0)*$F29/43560)+IF($I29="Forest",'Pollutant Loading Rates'!E$13*($L29-$F29)/43560,IF($I29="Agriculture",'Pollutant Loading Rates'!E$14*($L29-$F29)/43560,($L29-$F29)/43560*'Pollutant Loading Rates'!E$16))) ->  | Q29: =IF($A29="","",(VLOOKUP($I29,'Pollutant Loading Rates'!$A$5:$F$12,6,0)*$F29/43560)+IF($I29="Forest",'Pollutant Loading Rates'!F$13*($L29-$F29)/43560,IF($I29="Agriculture",'Pollutant Loading Rates'!F$14*($L29-$F29)/43560,($L29-$F29)/43560*'Pollutant Loading Rates'!F$16))) -> 
N30: =IF($A30="","",(VLOOKUP($I30,'Pollutant Loading Rates'!$A$5:$F$12,3,0)*$F30/43560)+IF($I30="Forest",'Pollutant Loading Rates'!C$13*($L30-$F30)/43560,IF($I30="Agriculture",'Pollutant Loading Rates'!C$14*($L30-$F30)/43560,($L30-$F30)/43560*'Pollutant Loading Rates'!C$16))) ->  | O30: =IF($A30="","",(VLOOKUP($I30,'Pollutant Loading Rates'!$A$5:$F$12,4,0)*$F30/43560)+IF($I30="Forest",'Pollutant Loading Rates'!D$13*($L30-$F30)/43560,IF($I30="Agriculture",'Pollutant Loading Rates'!D$14*($L30-$F30)/43560,($L30-$F30)/43560*'Pollutant Loading Rates'!D$16))) ->  | P30: =IF($A30="","",(VLOOKUP($I30,'Pollutant Loading Rates'!$A$5:$F$12,5,0)*$F30/43560)+IF($I30="Forest",'Pollutant Loading Rates'!E$13*($L30-$F30)/43560,IF($I30="Agriculture",'Pollutant Loading Rates'!E$14*($L30-$F30)/43560,($L30-$F30)/43560*'Pollutant Loading Rates'!E$16))) ->  | Q30: =IF($A30="","",(VLOOKUP($I30,'Pollutant Loading Rates'!$A$5:$F$12,6,0)*$F30/43560)+IF($I30="Forest",'Pollutant Loading Rates'!F$13*($L30-$F30)/43560,IF($I30="Agriculture",'Pollutant Loading Rates'!F$14*($L30-$F30)/43560,($L30-$F30)/43560*'Pollutant Loading Rates'!F$16))) -> 
N31: =IF($A31="","",(VLOOKUP($I31,'Pollutant Loading Rates'!$A$5:$F$12,3,0)*$F31/43560)+IF($I31="Forest",'Pollutant Loading Rates'!C$13*($L31-$F31)/43560,IF($I31="Agriculture",'Pollutant Loading Rates'!C$14*($L31-$F31)/43560,($L31-$F31)/43560*'Pollutant Loading Rates'!C$16))) ->  | O31: =IF($A31="","",(VLOOKUP($I31,'Pollutant Loading Rates'!$A$5:$F$12,4,0)*$F31/43560)+IF($I31="Forest",'Pollutant Loading Rates'!D$13*($L31-$F31)/43560,IF($I31="Agriculture",'Pollutant Loading Rates'!D$14*($L31-$F31)/43560,($L31-$F31)/43560*'Pollutant Loading Rates'!D$16))) ->  | P31: =IF($A31="","",(VLOOKUP($I31,'Pollutant Loading Rates'!$A$5:$F$12,5,0)*$F31/43560)+IF($I31="Forest",'Pollutant Loading Rates'!E$13*($L31-$F31)/43560,IF($I31="Agriculture",'Pollutant Loading Rates'!E$14*($L31-$F31)/43560,($L31-$F31)/43560*'Pollutant Loading Rates'!E$16))) ->  | Q31: =IF($A31="","",(VLOOKUP($I31,'Pollutant Loading Rates'!$A$5:$F$12,6,0)*$F31/43560)+IF($I31="Forest",'Pollutant Loading Rates'!F$13*($L31-$F31)/43560,IF($I31="Agriculture",'Pollutant Loading Rates'!F$14*($L31-$F31)/43560,($L31-$F31)/43560*'Pollutant Loading Rates'!F$16))) -> 
N32: =IF($A32="","",(VLOOKUP($I32,'Pollutant Loading Rates'!$A$5:$F$12,3,0)*$F32/43560)+IF($I32="Forest",'Pollutant Loading Rates'!C$13*($L32-$F32)/43560,IF($I32="Agriculture",'Pollutant Loading Rates'!C$14*($L32-$F32)/43560,($L32-$F32)/43560*'Pollutant Loading Rates'!C$16))) ->  | O32: =IF($A32="","",(VLOOKUP($I32,'Pollutant Loading Rates'!$A$5:$F$12,4,0)*$F32/43560)+IF($I32="Forest",'Pollutant Loading Rates'!D$13*($L32-$F32)/43560,IF($I32="Agriculture",'Pollutant Loading Rates'!D$14*($L32-$F32)/43560,($L32-$F32)/43560*'Pollutant Loading Rates'!D$16))) ->  | P32: =IF($A32="","",(VLOOKUP($I32,'Pollutant Loading Rates'!$A$5:$F$12,5,0)*$F32/43560)+IF($I32="Forest",'Pollutant Loading Rates'!E$13*($L32-$F32)/43560,IF($I32="Agriculture",'Pollutant Loading Rates'!E$14*($L32-$F32)/43560,($L32-$F32)/43560*'Pollutant Loading Rates'!E$16))) ->  | Q32: =IF($A32="","",(VLOOKUP($I32,'Pollutant Loading Rates'!$A$5:$F$12,6,0)*$F32/43560)+IF($I32="Forest",'Pollutant Loading Rates'!F$13*($L32-$F32)/43560,IF($I32="Agriculture",'Pollutant Loading Rates'!F$14*($L32-$F32)/43560,($L32-$F32)/43560*'Pollutant Loading Rates'!F$16))) -> 
N33: =IF($A33="","",(VLOOKUP($I33,'Pollutant Loading Rates'!$A$5:$F$12,3,0)*$F33/43560)+IF($I33="Forest",'Pollutant Loading Rates'!C$13*($L33-$F33)/43560,IF($I33="Agriculture",'Pollutant Loading Rates'!C$14*($L33-$F33)/43560,($L33-$F33)/43560*'Pollutant Loading Rates'!C$16))) ->  | O33: =IF($A33="","",(VLOOKUP($I33,'Pollutant Loading Rates'!$A$5:$F$12,4,0)*$F33/43560)+IF($I33="Forest",'Pollutant Loading Rates'!D$13*($L33-$F33)/43560,IF($I33="Agriculture",'Pollutant Loading Rates'!D$14*($L33-$F33)/43560,($L33-$F33)/43560*'Pollutant Loading Rates'!D$16))) ->  | P33: =IF($A33="","",(VLOOKUP($I33,'Pollutant Loading Rates'!$A$5:$F$12,5,0)*$F33/43560)+IF($I33="Forest",'Pollutant Loading Rates'!E$13*($L33-$F33)/43560,IF($I33="Agriculture",'Pollutant Loading Rates'!E$14*($L33-$F33)/43560,($L33-$F33)/43560*'Pollutant Loading Rates'!E$16))) ->  | Q33: =IF($A33="","",(VLOOKUP($I33,'Pollutant Loading Rates'!$A$5:$F$12,6,0)*$F33/43560)+IF($I33="Forest",'Pollutant Loading Rates'!F$13*($L33-$F33)/43560,IF($I33="Agriculture",'Pollutant Loading Rates'!F$14*($L33-$F33)/43560,($L33-$F33)/43560*'Pollutant Loading Rates'!F$16))) -> 
N34: =IF($A34="","",(VLOOKUP($I34,'Pollutant Loading Rates'!$A$5:$F$12,3,0)*$F34/43560)+IF($I34="Forest",'Pollutant Loading Rates'!C$13*($L34-$F34)/43560,IF($I34="Agriculture",'Pollutant Loading Rates'!C$14*($L34-$F34)/43560,($L34-$F34)/43560*'Pollutant Loading Rates'!C$16))) ->  | O34: =IF($A34="","",(VLOOKUP($I34,'Pollutant Loading Rates'!$A$5:$F$12,4,0)*$F34/43560)+IF($I34="Forest",'Pollutant Loading Rates'!D$13*($L34-$F34)/43560,IF($I34="Agriculture",'Pollutant Loading Rates'!D$14*($L34-$F34)/43560,($L34-$F34)/43560*'Pollutant Loading Rates'!D$16))) ->  | P34: =IF($A34="","",(VLOOKUP($I34,'Pollutant Loading Rates'!$A$5:$F$12,5,0)*$F34/43560)+IF($I34="Forest",'Pollutant Loading Rates'!E$13*($L34-$F34)/43560,IF($I34="Agriculture",'Pollutant Loading Rates'!E$14*($L34-$F34)/43560,($L34-$F34)/43560*'Pollutant Loading Rates'!E$16))) ->  | Q34: =IF($A34="","",(VLOOKUP($I34,'Pollutant Loading Rates'!$A$5:$F$12,6,0)*$F34/43560)+IF($I34="Forest",'Pollutant Loading Rates'!F$13*($L34-$F34)/43560,IF($I34="Agriculture",'Pollutant Loading Rates'!F$14*($L34-$F34)/43560,($L34-$F34)/43560*'Pollutant Loading Rates'!F$16))) -> 
N35: =IF($A35="","",(VLOOKUP($I35,'Pollutant Loading Rates'!$A$5:$F$12,3,0)*$F35/43560)+IF($I35="Forest",'Pollutant Loading Rates'!C$13*($L35-$F35)/43560,IF($I35="Agriculture",'Pollutant Loading Rates'!C$14*($L35-$F35)/43560,($L35-$F35)/43560*'Pollutant Loading Rates'!C$16))) ->  | O35: =IF($A35="","",(VLOOKUP($I35,'Pollutant Loading Rates'!$A$5:$F$12,4,0)*$F35/43560)+IF($I35="Forest",'Pollutant Loading Rates'!D$13*($L35-$F35)/43560,IF($I35="Agriculture",'Pollutant Loading Rates'!D$14*($L35-$F35)/43560,($L35-$F35)/43560*'Pollutant Loading Rates'!D$16))) ->  | P35: =IF($A35="","",(VLOOKUP($I35,'Pollutant Loading Rates'!$A$5:$F$12,5,0)*$F35/43560)+IF($I35="Forest",'Pollutant Loading Rates'!E$13*($L35-$F35)/43560,IF($I35="Agriculture",'Pollutant Loading Rates'!E$14*($L35-$F35)/43560,($L35-$F35)/43560*'Pollutant Loading Rates'!E$16))) ->  | Q35: =IF($A35="","",(VLOOKUP($I35,'Pollutant Loading Rates'!$A$5:$F$12,6,0)*$F35/43560)+IF($I35="Forest",'Pollutant Loading Rates'!F$13*($L35-$F35)/43560,IF($I35="Agriculture",'Pollutant Loading Rates'!F$14*($L35-$F35)/43560,($L35-$F35)/43560*'Pollutant Loading Rates'!F$16))) -> 
N36: =IF($A36="","",(VLOOKUP($I36,'Pollutant Loading Rates'!$A$5:$F$12,3,0)*$F36/43560)+IF($I36="Forest",'Pollutant Loading Rates'!C$13*($L36-$F36)/43560,IF($I36="Agriculture",'Pollutant Loading Rates'!C$14*($L36-$F36)/43560,($L36-$F36)/43560*'Pollutant Loading Rates'!C$16))) ->  | O36: =IF($A36="","",(VLOOKUP($I36,'Pollutant Loading Rates'!$A$5:$F$12,4,0)*$F36/43560)+IF($I36="Forest",'Pollutant Loading Rates'!D$13*($L36-$F36)/43560,IF($I36="Agriculture",'Pollutant Loading Rates'!D$14*($L36-$F36)/43560,($L36-$F36)/43560*'Pollutant Loading Rates'!D$16))) ->  | P36: =IF($A36="","",(VLOOKUP($I36,'Pollutant Loading Rates'!$A$5:$F$12,5,0)*$F36/43560)+IF($I36="Forest",'Pollutant Loading Rates'!E$13*($L36-$F36)/43560,IF($I36="Agriculture",'Pollutant Loading Rates'!E$14*($L36-$F36)/43560,($L36-$F36)/43560*'Pollutant Loading Rates'!E$16))) ->  | Q36: =IF($A36="","",(VLOOKUP($I36,'Pollutant Loading Rates'!$A$5:$F$12,6,0)*$F36/43560)+IF($I36="Forest",'Pollutant Loading Rates'!F$13*($L36-$F36)/43560,IF($I36="Agriculture",'Pollutant Loading Rates'!F$14*($L36-$F36)/43560,($L36-$F36)/43560*'Pollutant Loading Rates'!F$16))) -> 
N37: =IF($A37="","",(VLOOKUP($I37,'Pollutant Loading Rates'!$A$5:$F$12,3,0)*$F37/43560)+IF($I37="Forest",'Pollutant Loading Rates'!C$13*($L37-$F37)/43560,IF($I37="Agriculture",'Pollutant Loading Rates'!C$14*($L37-$F37)/43560,($L37-$F37)/43560*'Pollutant Loading Rates'!C$16))) ->  | O37: =IF($A37="","",(VLOOKUP($I37,'Pollutant Loading Rates'!$A$5:$F$12,4,0)*$F37/43560)+IF($I37="Forest",'Pollutant Loading Rates'!D$13*($L37-$F37)/43560,IF($I37="Agriculture",'Pollutant Loading Rates'!D$14*($L37-$F37)/43560,($L37-$F37)/43560*'Pollutant Loading Rates'!D$16))) ->  | P37: =IF($A37="","",(VLOOKUP($I37,'Pollutant Loading Rates'!$A$5:$F$12,5,0)*$F37/43560)+IF($I37="Forest",'Pollutant Loading Rates'!E$13*($L37-$F37)/43560,IF($I37="Agriculture",'Pollutant Loading Rates'!E$14*($L37-$F37)/43560,($L37-$F37)/43560*'Pollutant Loading Rates'!E$16))) ->  | Q37: =IF($A37="","",(VLOOKUP($I37,'Pollutant Loading Rates'!$A$5:$F$12,6,0)*$F37/43560)+IF($I37="Forest",'Pollutant Loading Rates'!F$13*($L37-$F37)/43560,IF($I37="Agriculture",'Pollutant Loading Rates'!F$14*($L37-$F37)/43560,($L37-$F37)/43560*'Pollutant Loading Rates'!F$16))) -> 
N38: =IF($A38="","",(VLOOKUP($I38,'Pollutant Loading Rates'!$A$5:$F$12,3,0)*$F38/43560)+IF($I38="Forest",'Pollutant Loading Rates'!C$13*($L38-$F38)/43560,IF($I38="Agriculture",'Pollutant Loading Rates'!C$14*($L38-$F38)/43560,($L38-$F38)/43560*'Pollutant Loading Rates'!C$16))) ->  | O38: =IF($A38="","",(VLOOKUP($I38,'Pollutant Loading Rates'!$A$5:$F$12,4,0)*$F38/43560)+IF($I38="Forest",'Pollutant Loading Rates'!D$13*($L38-$F38)/43560,IF($I38="Agriculture",'Pollutant Loading Rates'!D$14*($L38-$F38)/43560,($L38-$F38)/43560*'Pollutant Loading Rates'!D$16))) ->  | P38: =IF($A38="","",(VLOOKUP($I38,'Pollutant Loading Rates'!$A$5:$F$12,5,0)*$F38/43560)+IF($I38="Forest",'Pollutant Loading Rates'!E$13*($L38-$F38)/43560,IF($I38="Agriculture",'Pollutant Loading Rates'!E$14*($L38-$F38)/43560,($L38-$F38)/43560*'Pollutant Loading Rates'!E$16))) ->  | Q38: =IF($A38="","",(VLOOKUP($I38,'Pollutant Loading Rates'!$A$5:$F$12,6,0)*$F38/43560)+IF($I38="Forest",'Pollutant Loading Rates'!F$13*($L38-$F38)/43560,IF($I38="Agriculture",'Pollutant Loading Rates'!F$14*($L38-$F38)/43560,($L38-$F38)/43560*'Pollutant Loading Rates'!F$16))) -> 
N39: =IF($A39="","",(VLOOKUP($I39,'Pollutant Loading Rates'!$A$5:$F$12,3,0)*$F39/43560)+IF($I39="Forest",'Pollutant Loading Rates'!C$13*($L39-$F39)/43560,IF($I39="Agriculture",'Pollutant Loading Rates'!C$14*($L39-$F39)/43560,($L39-$F39)/43560*'Pollutant Loading Rates'!C$16))) ->  | O39: =IF($A39="","",(VLOOKUP($I39,'Pollutant Loading Rates'!$A$5:$F$12,4,0)*$F39/43560)+IF($I39="Forest",'Pollutant Loading Rates'!D$13*($L39-$F39)/43560,IF($I39="Agriculture",'Pollutant Loading Rates'!D$14*($L39-$F39)/43560,($L39-$F39)/43560*'Pollutant Loading Rates'!D$16))) ->  | P39: =IF($A39="","",(VLOOKUP($I39,'Pollutant Loading Rates'!$A$5:$F$12,5,0)*$F39/43560)+IF($I39="Forest",'Pollutant Loading Rates'!E$13*($L39-$F39)/43560,IF($I39="Agriculture",'Pollutant Loading Rates'!E$14*($L39-$F39)/43560,($L39-$F39)/43560*'Pollutant Loading Rates'!E$16))) ->  | Q39: =IF($A39="","",(VLOOKUP($I39,'Pollutant Loading Rates'!$A$5:$F$12,6,0)*$F39/43560)+IF($I39="Forest",'Pollutant Loading Rates'!F$13*($L39-$F39)/43560,IF($I39="Agriculture",'Pollutant Loading Rates'!F$14*($L39-$F39)/43560,($L39-$F39)/43560*'Pollutant Loading Rates'!F$16))) -> 
N40: =IF($A40="","",(VLOOKUP($I40,'Pollutant Loading Rates'!$A$5:$F$12,3,0)*$F40/43560)+IF($I40="Forest",'Pollutant Loading Rates'!C$13*($L40-$F40)/43560,IF($I40="Agriculture",'Pollutant Loading Rates'!C$14*($L40-$F40)/43560,($L40-$F40)/43560*'Pollutant Loading Rates'!C$16))) ->  | O40: =IF($A40="","",(VLOOKUP($I40,'Pollutant Loading Rates'!$A$5:$F$12,4,0)*$F40/43560)+IF($I40="Forest",'Pollutant Loading Rates'!D$13*($L40-$F40)/43560,IF($I40="Agriculture",'Pollutant Loading Rates'!D$14*($L40-$F40)/43560,($L40-$F40)/43560*'Pollutant Loading Rates'!D$16))) ->  | P40: =IF($A40="","",(VLOOKUP($I40,'Pollutant Loading Rates'!$A$5:$F$12,5,0)*$F40/43560)+IF($I40="Forest",'Pollutant Loading Rates'!E$13*($L40-$F40)/43560,IF($I40="Agriculture",'Pollutant Loading Rates'!E$14*($L40-$F40)/43560,($L40-$F40)/43560*'Pollutant Loading Rates'!E$16))) ->  | Q40: =IF($A40="","",(VLOOKUP($I40,'Pollutant Loading Rates'!$A$5:$F$12,6,0)*$F40/43560)+IF($I40="Forest",'Pollutant Loading Rates'!F$13*($L40-$F40)/43560,IF($I40="Agriculture",'Pollutant Loading Rates'!F$14*($L40-$F40)/43560,($L40-$F40)/43560*'Pollutant Loading Rates'!F$16))) -> 
N41: =IF($A41="","",(VLOOKUP($I41,'Pollutant Loading Rates'!$A$5:$F$12,3,0)*$F41/43560)+IF($I41="Forest",'Pollutant Loading Rates'!C$13*($L41-$F41)/43560,IF($I41="Agriculture",'Pollutant Loading Rates'!C$14*($L41-$F41)/43560,($L41-$F41)/43560*'Pollutant Loading Rates'!C$16))) ->  | O41: =IF($A41="","",(VLOOKUP($I41,'Pollutant Loading Rates'!$A$5:$F$12,4,0)*$F41/43560)+IF($I41="Forest",'Pollutant Loading Rates'!D$13*($L41-$F41)/43560,IF($I41="Agriculture",'Pollutant Loading Rates'!D$14*($L41-$F41)/43560,($L41-$F41)/43560*'Pollutant Loading Rates'!D$16))) ->  | P41: =IF($A41="","",(VLOOKUP($I41,'Pollutant Loading Rates'!$A$5:$F$12,5,0)*$F41/43560)+IF($I41="Forest",'Pollutant Loading Rates'!E$13*($L41-$F41)/43560,IF($I41="Agriculture",'Pollutant Loading Rates'!E$14*($L41-$F41)/43560,($L41-$F41)/43560*'Pollutant Loading Rates'!E$16))) ->  | Q41: =IF($A41="","",(VLOOKUP($I41,'Pollutant Loading Rates'!$A$5:$F$12,6,0)*$F41/43560)+IF($I41="Forest",'Pollutant Loading Rates'!F$13*($L41-$F41)/43560,IF($I41="Agriculture",'Pollutant Loading Rates'!F$14*($L41-$F41)/43560,($L41-$F41)/43560*'Pollutant Loading Rates'!F$16))) -> 
N42: =IF($A42="","",(VLOOKUP($I42,'Pollutant Loading Rates'!$A$5:$F$12,3,0)*$F42/43560)+IF($I42="Forest",'Pollutant Loading Rates'!C$13*($L42-$F42)/43560,IF($I42="Agriculture",'Pollutant Loading Rates'!C$14*($L42-$F42)/43560,($L42-$F42)/43560*'Pollutant Loading Rates'!C$16))) ->  | O42: =IF($A42="","",(VLOOKUP($I42,'Pollutant Loading Rates'!$A$5:$F$12,4,0)*$F42/43560)+IF($I42="Forest",'Pollutant Loading Rates'!D$13*($L42-$F42)/43560,IF($I42="Agriculture",'Pollutant Loading Rates'!D$14*($L42-$F42)/43560,($L42-$F42)/43560*'Pollutant Loading Rates'!D$16))) ->  | P42: =IF($A42="","",(VLOOKUP($I42,'Pollutant Loading Rates'!$A$5:$F$12,5,0)*$F42/43560)+IF($I42="Forest",'Pollutant Loading Rates'!E$13*($L42-$F42)/43560,IF($I42="Agriculture",'Pollutant Loading Rates'!E$14*($L42-$F42)/43560,($L42-$F42)/43560*'Pollutant Loading Rates'!E$16))) ->  | Q42: =IF($A42="","",(VLOOKUP($I42,'Pollutant Loading Rates'!$A$5:$F$12,6,0)*$F42/43560)+IF($I42="Forest",'Pollutant Loading Rates'!F$13*($L42-$F42)/43560,IF($I42="Agriculture",'Pollutant Loading Rates'!F$14*($L42-$F42)/43560,($L42-$F42)/43560*'Pollutant Loading Rates'!F$16))) -> 
N43: =IF($A43="","",(VLOOKUP($I43,'Pollutant Loading Rates'!$A$5:$F$12,3,0)*$F43/43560)+IF($I43="Forest",'Pollutant Loading Rates'!C$13*($L43-$F43)/43560,IF($I43="Agriculture",'Pollutant Loading Rates'!C$14*($L43-$F43)/43560,($L43-$F43)/43560*'Pollutant Loading Rates'!C$16))) ->  | O43: =IF($A43="","",(VLOOKUP($I43,'Pollutant Loading Rates'!$A$5:$F$12,4,0)*$F43/43560)+IF($I43="Forest",'Pollutant Loading Rates'!D$13*($L43-$F43)/43560,IF($I43="Agriculture",'Pollutant Loading Rates'!D$14*($L43-$F43)/43560,($L43-$F43)/43560*'Pollutant Loading Rates'!D$16))) ->  | P43: =IF($A43="","",(VLOOKUP($I43,'Pollutant Loading Rates'!$A$5:$F$12,5,0)*$F43/43560)+IF($I43="Forest",'Pollutant Loading Rates'!E$13*($L43-$F43)/43560,IF($I43="Agriculture",'Pollutant Loading Rates'!E$14*($L43-$F43)/43560,($L43-$F43)/43560*'Pollutant Loading Rates'!E$16))) ->  | Q43: =IF($A43="","",(VLOOKUP($I43,'Pollutant Loading Rates'!$A$5:$F$12,6,0)*$F43/43560)+IF($I43="Forest",'Pollutant Loading Rates'!F$13*($L43-$F43)/43560,IF($I43="Agriculture",'Pollutant Loading Rates'!F$14*($L43-$F43)/43560,($L43-$F43)/43560*'Pollutant Loading Rates'!F$16))) -> 
N44: =IF($A44="","",(VLOOKUP($I44,'Pollutant Loading Rates'!$A$5:$F$12,3,0)*$F44/43560)+IF($I44="Forest",'Pollutant Loading Rates'!C$13*($L44-$F44)/43560,IF($I44="Agriculture",'Pollutant Loading Rates'!C$14*($L44-$F44)/43560,($L44-$F44)/43560*'Pollutant Loading Rates'!C$16))) ->  | O44: =IF($A44="","",(VLOOKUP($I44,'Pollutant Loading Rates'!$A$5:$F$12,4,0)*$F44/43560)+IF($I44="Forest",'Pollutant Loading Rates'!D$13*($L44-$F44)/43560,IF($I44="Agriculture",'Pollutant Loading Rates'!D$14*($L44-$F44)/43560,($L44-$F44)/43560*'Pollutant Loading Rates'!D$16))) ->  | P44: =IF($A44="","",(VLOOKUP($I44,'Pollutant Loading Rates'!$A$5:$F$12,5,0)*$F44/43560)+IF($I44="Forest",'Pollutant Loading Rates'!E$13*($L44-$F44)/43560,IF($I44="Agriculture",'Pollutant Loading Rates'!E$14*($L44-$F44)/43560,($L44-$F44)/43560*'Pollutant Loading Rates'!E$16))) ->  | Q44: =IF($A44="","",(VLOOKUP($I44,'Pollutant Loading Rates'!$A$5:$F$12,6,0)*$F44/43560)+IF($I44="Forest",'Pollutant Loading Rates'!F$13*($L44-$F44)/43560,IF($I44="Agriculture",'Pollutant Loading Rates'!F$14*($L44-$F44)/43560,($L44-$F44)/43560*'Pollutant Loading Rates'!F$16))) -> 
N45: =IF($A45="","",(VLOOKUP($I45,'Pollutant Loading Rates'!$A$5:$F$12,3,0)*$F45/43560)+IF($I45="Forest",'Pollutant Loading Rates'!C$13*($L45-$F45)/43560,IF($I45="Agriculture",'Pollutant Loading Rates'!C$14*($L45-$F45)/43560,($L45-$F45)/43560*'Pollutant Loading Rates'!C$16))) ->  | O45: =IF($A45="","",(VLOOKUP($I45,'Pollutant Loading Rates'!$A$5:$F$12,4,0)*$F45/43560)+IF($I45="Forest",'Pollutant Loading Rates'!D$13*($L45-$F45)/43560,IF($I45="Agriculture",'Pollutant Loading Rates'!D$14*($L45-$F45)/43560,($L45-$F45)/43560*'Pollutant Loading Rates'!D$16))) ->  | P45: =IF($A45="","",(VLOOKUP($I45,'Pollutant Loading Rates'!$A$5:$F$12,5,0)*$F45/43560)+IF($I45="Forest",'Pollutant Loading Rates'!E$13*($L45-$F45)/43560,IF($I45="Agriculture",'Pollutant Loading Rates'!E$14*($L45-$F45)/43560,($L45-$F45)/43560*'Pollutant Loading Rates'!E$16))) ->  | Q45: =IF($A45="","",(VLOOKUP($I45,'Pollutant Loading Rates'!$A$5:$F$12,6,0)*$F45/43560)+IF($I45="Forest",'Pollutant Loading Rates'!F$13*($L45-$F45)/43560,IF($I45="Agriculture",'Pollutant Loading Rates'!F$14*($L45-$F45)/43560,($L45-$F45)/43560*'Pollutant Loading Rates'!F$16))) -> 
N46: =IF($A46="","",(VLOOKUP($I46,'Pollutant Loading Rates'!$A$5:$F$12,3,0)*$F46/43560)+IF($I46="Forest",'Pollutant Loading Rates'!C$13*($L46-$F46)/43560,IF($I46="Agriculture",'Pollutant Loading Rates'!C$14*($L46-$F46)/43560,($L46-$F46)/43560*'Pollutant Loading Rates'!C$16))) ->  | O46: =IF($A46="","",(VLOOKUP($I46,'Pollutant Loading Rates'!$A$5:$F$12,4,0)*$F46/43560)+IF($I46="Forest",'Pollutant Loading Rates'!D$13*($L46-$F46)/43560,IF($I46="Agriculture",'Pollutant Loading Rates'!D$14*($L46-$F46)/43560,($L46-$F46)/43560*'Pollutant Loading Rates'!D$16))) ->  | P46: =IF($A46="","",(VLOOKUP($I46,'Pollutant Loading Rates'!$A$5:$F$12,5,0)*$F46/43560)+IF($I46="Forest",'Pollutant Loading Rates'!E$13*($L46-$F46)/43560,IF($I46="Agriculture",'Pollutant Loading Rates'!E$14*($L46-$F46)/43560,($L46-$F46)/43560*'Pollutant Loading Rates'!E$16))) ->  | Q46: =IF($A46="","",(VLOOKUP($I46,'Pollutant Loading Rates'!$A$5:$F$12,6,0)*$F46/43560)+IF($I46="Forest",'Pollutant Loading Rates'!F$13*($L46-$F46)/43560,IF($I46="Agriculture",'Pollutant Loading Rates'!F$14*($L46-$F46)/43560,($L46-$F46)/43560*'Pollutant Loading Rates'!F$16))) -> 
N47: =IF($A47="","",(VLOOKUP($I47,'Pollutant Loading Rates'!$A$5:$F$12,3,0)*$F47/43560)+IF($I47="Forest",'Pollutant Loading Rates'!C$13*($L47-$F47)/43560,IF($I47="Agriculture",'Pollutant Loading Rates'!C$14*($L47-$F47)/43560,($L47-$F47)/43560*'Pollutant Loading Rates'!C$16))) ->  | O47: =IF($A47="","",(VLOOKUP($I47,'Pollutant Loading Rates'!$A$5:$F$12,4,0)*$F47/43560)+IF($I47="Forest",'Pollutant Loading Rates'!D$13*($L47-$F47)/43560,IF($I47="Agriculture",'Pollutant Loading Rates'!D$14*($L47-$F47)/43560,($L47-$F47)/43560*'Pollutant Loading Rates'!D$16))) ->  | P47: =IF($A47="","",(VLOOKUP($I47,'Pollutant Loading Rates'!$A$5:$F$12,5,0)*$F47/43560)+IF($I47="Forest",'Pollutant Loading Rates'!E$13*($L47-$F47)/43560,IF($I47="Agriculture",'Pollutant Loading Rates'!E$14*($L47-$F47)/43560,($L47-$F47)/43560*'Pollutant Loading Rates'!E$16))) ->  | Q47: =IF($A47="","",(VLOOKUP($I47,'Pollutant Loading Rates'!$A$5:$F$12,6,0)*$F47/43560)+IF($I47="Forest",'Pollutant Loading Rates'!F$13*($L47-$F47)/43560,IF($I47="Agriculture",'Pollutant Loading Rates'!F$14*($L47-$F47)/43560,($L47-$F47)/43560*'Pollutant Loading Rates'!F$16))) -> 
N48: =IF($A48="","",(VLOOKUP($I48,'Pollutant Loading Rates'!$A$5:$F$12,3,0)*$F48/43560)+IF($I48="Forest",'Pollutant Loading Rates'!C$13*($L48-$F48)/43560,IF($I48="Agriculture",'Pollutant Loading Rates'!C$14*($L48-$F48)/43560,($L48-$F48)/43560*'Pollutant Loading Rates'!C$16))) ->  | O48: =IF($A48="","",(VLOOKUP($I48,'Pollutant Loading Rates'!$A$5:$F$12,4,0)*$F48/43560)+IF($I48="Forest",'Pollutant Loading Rates'!D$13*($L48-$F48)/43560,IF($I48="Agriculture",'Pollutant Loading Rates'!D$14*($L48-$F48)/43560,($L48-$F48)/43560*'Pollutant Loading Rates'!D$16))) ->  | P48: =IF($A48="","",(VLOOKUP($I48,'Pollutant Loading Rates'!$A$5:$F$12,5,0)*$F48/43560)+IF($I48="Forest",'Pollutant Loading Rates'!E$13*($L48-$F48)/43560,IF($I48="Agriculture",'Pollutant Loading Rates'!E$14*($L48-$F48)/43560,($L48-$F48)/43560*'Pollutant Loading Rates'!E$16))) ->  | Q48: =IF($A48="","",(VLOOKUP($I48,'Pollutant Loading Rates'!$A$5:$F$12,6,0)*$F48/43560)+IF($I48="Forest",'Pollutant Loading Rates'!F$13*($L48-$F48)/43560,IF($I48="Agriculture",'Pollutant Loading Rates'!F$14*($L48-$F48)/43560,($L48-$F48)/43560*'Pollutant Loading Rates'!F$16))) -> 
N49: =IF($A49="","",(VLOOKUP($I49,'Pollutant Loading Rates'!$A$5:$F$12,3,0)*$F49/43560)+IF($I49="Forest",'Pollutant Loading Rates'!C$13*($L49-$F49)/43560,IF($I49="Agriculture",'Pollutant Loading Rates'!C$14*($L49-$F49)/43560,($L49-$F49)/43560*'Pollutant Loading Rates'!C$16))) ->  | O49: =IF($A49="","",(VLOOKUP($I49,'Pollutant Loading Rates'!$A$5:$F$12,4,0)*$F49/43560)+IF($I49="Forest",'Pollutant Loading Rates'!D$13*($L49-$F49)/43560,IF($I49="Agriculture",'Pollutant Loading Rates'!D$14*($L49-$F49)/43560,($L49-$F49)/43560*'Pollutant Loading Rates'!D$16))) ->  | P49: =IF($A49="","",(VLOOKUP($I49,'Pollutant Loading Rates'!$A$5:$F$12,5,0)*$F49/43560)+IF($I49="Forest",'Pollutant Loading Rates'!E$13*($L49-$F49)/43560,IF($I49="Agriculture",'Pollutant Loading Rates'!E$14*($L49-$F49)/43560,($L49-$F49)/43560*'Pollutant Loading Rates'!E$16))) ->  | Q49: =IF($A49="","",(VLOOKUP($I49,'Pollutant Loading Rates'!$A$5:$F$12,6,0)*$F49/43560)+IF($I49="Forest",'Pollutant Loading Rates'!F$13*($L49-$F49)/43560,IF($I49="Agriculture",'Pollutant Loading Rates'!F$14*($L49-$F49)/43560,($L49-$F49)/43560*'Pollutant Loading Rates'!F$16))) -> 
N50: =IF($A50="","",(VLOOKUP($I50,'Pollutant Loading Rates'!$A$5:$F$12,3,0)*$F50/43560)+IF($I50="Forest",'Pollutant Loading Rates'!C$13*($L50-$F50)/43560,IF($I50="Agriculture",'Pollutant Loading Rates'!C$14*($L50-$F50)/43560,($L50-$F50)/43560*'Pollutant Loading Rates'!C$16))) ->  | O50: =IF($A50="","",(VLOOKUP($I50,'Pollutant Loading Rates'!$A$5:$F$12,4,0)*$F50/43560)+IF($I50="Forest",'Pollutant Loading Rates'!D$13*($L50-$F50)/43560,IF($I50="Agriculture",'Pollutant Loading Rates'!D$14*($L50-$F50)/43560,($L50-$F50)/43560*'Pollutant Loading Rates'!D$16))) ->  | P50: =IF($A50="","",(VLOOKUP($I50,'Pollutant Loading Rates'!$A$5:$F$12,5,0)*$F50/43560)+IF($I50="Forest",'Pollutant Loading Rates'!E$13*($L50-$F50)/43560,IF($I50="Agriculture",'Pollutant Loading Rates'!E$14*($L50-$F50)/43560,($L50-$F50)/43560*'Pollutant Loading Rates'!E$16))) ->  | Q50: =IF($A50="","",(VLOOKUP($I50,'Pollutant Loading Rates'!$A$5:$F$12,6,0)*$F50/43560)+IF($I50="Forest",'Pollutant Loading Rates'!F$13*($L50-$F50)/43560,IF($I50="Agriculture",'Pollutant Loading Rates'!F$14*($L50-$F50)/43560,($L50-$F50)/43560*'Pollutant Loading Rates'!F$16))) -> 
N51: =IF($A51="","",(VLOOKUP($I51,'Pollutant Loading Rates'!$A$5:$F$12,3,0)*$F51/43560)+IF($I51="Forest",'Pollutant Loading Rates'!C$13*($L51-$F51)/43560,IF($I51="Agriculture",'Pollutant Loading Rates'!C$14*($L51-$F51)/43560,($L51-$F51)/43560*'Pollutant Loading Rates'!C$16))) ->  | O51: =IF($A51="","",(VLOOKUP($I51,'Pollutant Loading Rates'!$A$5:$F$12,4,0)*$F51/43560)+IF($I51="Forest",'Pollutant Loading Rates'!D$13*($L51-$F51)/43560,IF($I51="Agriculture",'Pollutant Loading Rates'!D$14*($L51-$F51)/43560,($L51-$F51)/43560*'Pollutant Loading Rates'!D$16))) ->  | P51: =IF($A51="","",(VLOOKUP($I51,'Pollutant Loading Rates'!$A$5:$F$12,5,0)*$F51/43560)+IF($I51="Forest",'Pollutant Loading Rates'!E$13*($L51-$F51)/43560,IF($I51="Agriculture",'Pollutant Loading Rates'!E$14*($L51-$F51)/43560,($L51-$F51)/43560*'Pollutant Loading Rates'!E$16))) ->  | Q51: =IF($A51="","",(VLOOKUP($I51,'Pollutant Loading Rates'!$A$5:$F$12,6,0)*$F51/43560)+IF($I51="Forest",'Pollutant Loading Rates'!F$13*($L51-$F51)/43560,IF($I51="Agriculture",'Pollutant Loading Rates'!F$14*($L51-$F51)/43560,($L51-$F51)/43560*'Pollutant Loading Rates'!F$16))) -> 
N52: =IF($A52="","",(VLOOKUP($I52,'Pollutant Loading Rates'!$A$5:$F$12,3,0)*$F52/43560)+IF($I52="Forest",'Pollutant Loading Rates'!C$13*($L52-$F52)/43560,IF($I52="Agriculture",'Pollutant Loading Rates'!C$14*($L52-$F52)/43560,($L52-$F52)/43560*'Pollutant Loading Rates'!C$16))) ->  | O52: =IF($A52="","",(VLOOKUP($I52,'Pollutant Loading Rates'!$A$5:$F$12,4,0)*$F52/43560)+IF($I52="Forest",'Pollutant Loading Rates'!D$13*($L52-$F52)/43560,IF($I52="Agriculture",'Pollutant Loading Rates'!D$14*($L52-$F52)/43560,($L52-$F52)/43560*'Pollutant Loading Rates'!D$16))) ->  | P52: =IF($A52="","",(VLOOKUP($I52,'Pollutant Loading Rates'!$A$5:$F$12,5,0)*$F52/43560)+IF($I52="Forest",'Pollutant Loading Rates'!E$13*($L52-$F52)/43560,IF($I52="Agriculture",'Pollutant Loading Rates'!E$14*($L52-$F52)/43560,($L52-$F52)/43560*'Pollutant Loading Rates'!E$16))) ->  | Q52: =IF($A52="","",(VLOOKUP($I52,'Pollutant Loading Rates'!$A$5:$F$12,6,0)*$F52/43560)+IF($I52="Forest",'Pollutant Loading Rates'!F$13*($L52-$F52)/43560,IF($I52="Agriculture",'Pollutant Loading Rates'!F$14*($L52-$F52)/43560,($L52-$F52)/43560*'Pollutant Loading Rates'!F$16))) -> 

Sheet Existing_STU
A2: Segment Name: | B2: Lawton Valley Reservoir (RI0007035L-06), Group 1A
A3: Date: | B3: 2018-12-14
A5: STU ID | B5: WBID | C5: STU Category* | D5: STU Type* | E5: STU Soil Type* | F5: STU WQ Treatment Volume (ft3) | G5: STU Depth (ft) (Depth of STU. This field is optional to help calculate water quality treatment volume.) | H5: STU Status* | I5: Notes | J5: Total Area (sq ft)

Sheet Potential_STU
A2: Segment Name: | B2: Lawton Valley Reservoir (RI0007035L-06), Group 1A
A3: Date: | B3: 2018-12-31
A5: STU ID | B5: WBID | C5: STU Category* | D5: STU Type* | E5: STU Soil Type* | F5: STU WQ Treatment Volume (ft3) | G5: STU Depth (ft) (Depth of STU. This field is optional to help calculate water quality treatment volume.) | H5: STU Status* | I5: Notes | J5: Shape_Length (ft) | K5: Total Area (sq ft)
A6: SCP-LVR-001 | B6: RI0007035L-06 | C6: Structural | D6: Bioretention Swale | E6: Silt Loam (0.27 in/hr) | F6: 853 | H6: Potential | I6: Next to historic cemetery, can make STU discontinuous and avoid placement directly adjacent | J6: 453.821753 | K6: 1342.632161
A7: SCP-LVR-002 | B7: RI0007035L-06 | C7: Structural | D7: Bioretention Swale | E7: Silt Loam (0.27 in/hr) | F7: 609 | H7: Potential | J7: 339.106878 | K7: 1041.340021
A8: SCP-LVR-003 | B8: RI0007035L-06 | C8: Structural | D8: Bioretention Swale | E8: Silt Loam (0.27 in/hr) | F8: 522 | H8: Potential | J8: 398.541795 | K8: 2076.65047
A9: SCP-LVR-004 | B9: RI0007035L-06 | C9: Structural | D9: Bioretention Swale | E9: Silt Loam (0.27 in/hr) | F9: 209 | H9: Potential | J9: 362.551339 | K9: 1848.682934
A10: SCP-LVR-005 | B10: RI0007035L-06 | C10: Structural | D10: Bioretention Swale | E10: Silt Loam (0.27 in/hr) | F10: 609 | H10: Potential | J10: 421.757008 | K10: 1553.290096
A11: SCP-LVR-006 | B11: RI0007035L-06 | C11: Structural | D11: Bioretention Swale | E11: Silt Loam (0.27 in/hr) | F11: 261 | H11: Potential | J11: 338.591385 | K11: 1140.45787

Sheet Reduction Targets
A2: Segment Name: | B2: Lawton Valley Reservoir (RI0007035L-06), Group 1A
A3: Date: | B3: 2018-12-31
A5: Subwatershed ID: | B5: Total Subwatershed Area (ac) | C5: Total Subwatershed IC Area (ac) | D5: RIDOT Total Area (ac)1 | E5: RIDOT Total IC Area (ac)
A6: RI0007035L-06 | B6: 784.53 | C6: 82.09 | D6: =(SUMIF(RIDOT_Catchment!E5:E79,"Potential",RIDOT_Catchment!L5:L79)+SUMIF(RIDOT_Catchment!E5:E79,"Existing",RIDOT_Catchment!L5:L79)+SUMIF(RIDOT_Catchment!E5:E79,"Not Feasible",RIDOT_Catchment!L5:L79)+SUMIF(RIDOT_Catchment!E5:E79,"Limited ROW",RIDOT_Catchment!L5:L79)+SUMIF(RIDOT_Catchment!E5:E79,"TIP",RIDOT_Catchment!L5:L79))/43560 -> 6.092701136 | E6: =(SUMIF(RIDOT_Catchment!E5:E79,"Potential",RIDOT_Catchment!F5:F79)+SUMIF(RIDOT_Catchment!E5:E79,"Existing",RIDOT_Catchment!F5:F79)+SUMIF(RIDOT_Catchment!E5:E79,"Not Feasible",RIDOT_Catchment!F5:F79)+SUMIF(RIDOT_Catchment!E5:E79,"Limited ROW",RIDOT_Catchment!F5:F79)+SUMIF(RIDOT_Catchment!E5:E79,"TIP",RIDOT_Catchment!F5:F79))/43560 -> 4.118640955
A7: 1 RIDOT contributing total area to waterbody is equal to total RIDOT area minus non-discharge areas (does not include non-discharge areas) and areas discharging to a CSO.
A9: IC Standard
A10: Total Subwatershed IC Area (%) | B10: Subwatershed Target IC (10%) (ac) | C10: Subwatershed IC Reduction Target (%): | D10: RIDOT IC Reduction Target (ac)
A11: =IF(C6="", "",ROUND((C6/B6)*100,1)&"%") -> 10.5% | B11: =IF(B6="","",B6*0.1) -> 78.453 | C11: =IF(C6="","",ROUND((A11-0.1)*100/A11,1)&"%") -> 4.8% | D11: =IF(C11="","",ROUND(E6*C11,1)) -> 0.2
A13: TMDL Method
A14: Pollutant of Concern2 | B14: Required TMDL Pollutant Reduction Target (%)3 | C14: Current RIDOT Load (lb/yr) | D14: RIDOT Pollutant Reduction Target (lb/yr)
A15: Aluminum | C15: =IF(B15="","",$E$6*'Pollutant Loading Rates'!$F$9) ->  | D15: =IF(B15="","",ROUND(C15*B15/100,2)) -> 
A16: Cadmium | C16: =IF(B16="","",$E$6*'Pollutant Loading Rates'!$F$9) ->  | D16: =IF(B16="","",ROUND(C16*B16/100,2)) -> 
A17: Copper | C17: =IF(B17="","",$E$6*'Pollutant Loading Rates'!$F$9) ->  | D17: =IF(B17="","",ROUND(C17*B17/100,2)) -> 
A18: Lead | C18: =IF(B18="","",$E$6*'Pollutant Loading Rates'!$F$9) -> 
A19: Zinc | C19: =IF(B19="","",$E$6*'Pollutant Loading Rates'!$F$9) ->  | D19: =IF(B19="","",ROUND(C19*B19/100,2)) -> 
A20: Phosphorus | C20: =IF(B20="","",'Pollutant Loading Rates'!$C$9*E6) ->  | D20: =IF(B20="","",ROUND(C20*B20/100,2)) -> 
A21: Nitrogen | C21: =IF(B21="","",$E$6*'Pollutant Loading Rates'!$E$9) ->  | D21: =IF(B21="","",ROUND(C21*B21/100,2)) -> 
A22: 2 Zinc used as a surrogate for all metals per consent decree.
A23: 3 Pollutant load reduction (%) per TMDL.

Sheet STU Storage Volume
A2: Segment Name: | B2: Lawton Valley Reservoir (RI0007035L-06), Group 1A
A3: Date: | B3: 2018-12-31
A5: Fields from GIS | D5: Ponding (Surface) Volume | H5: Void (Subsurface) Volume | M5: Total Storage Volume (ft3)
A6: STU_ID | B6: STU Type | C6: Storage Volume (ft3) | D6: Length (ft) | E6: Width (ft) | F6: Depth (ft) | G6: Notes | H6: Length (ft) | I6: Width (ft) | J6: Depth (ft) | K6: Void Space | L6: Notes
A7: SCP-ABC-123 | B7: Bioretention Swale | C7: =ROUND(3249.6,0) -> 3250 | D7: 500 | E7: 5 | F7: 0.5 | G7: length and width of swale estimated from GIS | H7: 500 | I7: 5 | J7: 2 | K7: 0.4 | L7: soil filter media void space = 40% | M7: =IF(A7="","",ROUND((D7*E7*F7)+(H7*J7*K7*I7),0)) -> 3250
A8: SCP-ABC-456 | B8: Infiltration Basin | C8: =ROUND(3999.9,0) -> 4000 | D8: 50 | E8: 40 | F8: 2 | G8: Surface area equal to polygon area from Potential_STU layer. | H8: 0 | I8: 0 | J8: 0 | K8: 0 | L8: Void volume is not relevant for this STU. | M8: 4000
A9: SCP-LVR-001 | B9: =IF(A9="","",IFERROR(VLOOKUP(A9,Existing_STU!$A$6:$J$37,4,0),VLOOKUP(A9,Potential_STU!$A$6:$K$39,4,0))) -> Bioretention Swale | C9: =IF(A9="","",ROUND(IFERROR(VLOOKUP(A9,Existing_STU!$A$6:$J$37,6,0),VLOOKUP(A9,Potential_STU!$A$6:$K$39,6,0)),0)) -> 853 | D9: 210 | E9: 3.5 | F9: 0.5 | H9: 210 | I9: 3.5 | J9: 2 | K9: 0.33 | M9: =IF(A9="","",ROUND((D9*E9*F9)+(H9*J9*K9*I9),0)) -> 853
A10: SCP-LVR-002 | B10: =IF(A10="","",IFERROR(VLOOKUP(A10,Existing_STU!$A$6:$J$37,4,0),VLOOKUP(A10,Potential_STU!$A$6:$K$39,4,0))) -> Bioretention Swale | C10: =IF(A10="","",ROUND(IFERROR(VLOOKUP(A10,Existing_STU!$A$6:$J$37,6,0),VLOOKUP(A10,Potential_STU!$A$6:$K$39,6,0)),0)) -> 609 | D10: 150 | E10: 3.5 | F10: 0.5 | H10: 150 | I10: 3.5 | J10: 2 | K10: 0.33 | M10: =IF(A10="","",ROUND((D10*E10*F10)+(H10*J10*K10*I10),0)) -> 609
A11: SCP-LVR-003 | B11: =IF(A11="","",IFERROR(VLOOKUP(A11,Existing_STU!$A$6:$J$37,4,0),VLOOKUP(A11,Potential_STU!$A$6:$K$39,4,0))) -> Bioretention Swale | C11: =IF(A11="","",ROUND(IFERROR(VLOOKUP(A11,Existing_STU!$A$6:$J$37,6,0),VLOOKUP(A11,Potential_STU!$A$6:$K$39,6,0)),0)) -> 522 | D11: 150 | E11: 3 | F11: 0.5 | H11: 150 | I11: 3 | J11: 2 | K11: 0.33 | M11: =IF(A11="","",ROUND((D11*E11*F11)+(H11*J11*K11*I11),0)) -> 522
A12: SCP-LVR-004 | B12: =IF(A12="","",IFERROR(VLOOKUP(A12,Existing_STU!$A$6:$J$37,4,0),VLOOKUP(A12,Potential_STU!$A$6:$K$39,4,0))) -> Bioretention Swale | C12: =IF(A12="","",ROUND(IFERROR(VLOOKUP(A12,Existing_STU!$A$6:$J$37,6,0),VLOOKUP(A12,Potential_STU!$A$6:$K$39,6,0)),0)) -> 209 | D12: 60 | E12: 3 | F12: 0.5 | H12: 60 | I12: 3 | J12: 2 | K12: 0.33 | M12: =IF(A12="","",ROUND((D12*E12*F12)+(H12*J12*K12*I12),0)) -> 209
A13: SCP-LVR-005 | B13: =IF(A13="","",IFERROR(VLOOKUP(A13,Existing_STU!$A$6:$J$37,4,0),VLOOKUP(A13,Potential_STU!$A$6:$K$39,4,0))) -> Bioretention Swale | C13: =IF(A13="","",ROUND(IFERROR(VLOOKUP(A13,Existing_STU!$A$6:$J$37,6,0),VLOOKUP(A13,Potential_STU!$A$6:$K$39,6,0)),0)) -> 609 | D13: 150 | E13: 3.5 | F13: 0.5 | H13: 150 | I13: 3.5 | J13: 2 | K13: 0.33 | M13: 609
A14: SCP-LVR-006 | B14: =IF(A14="","",IFERROR(VLOOKUP(A14,Existing_STU!$A$6:$J$37,4,0),VLOOKUP(A14,Potential_STU!$A$6:$K$39,4,0))) -> Bioretention Swale | C14: =IF(A14="","",ROUND(IFERROR(VLOOKUP(A14,Existing_STU!$A$6:$J$37,6,0),VLOOKUP(A14,Potential_STU!$A$6:$K$39,6,0)),0)) -> 261 | D14: 75 | E14: 3 | F14: 0.5 | H14: 75 | I14: 3 | J14: 2 | K14: 0.33 | M14: 261
B15: =IF(A15="","",IFERROR(VLOOKUP(A15,Existing_STU!$A$6:$J$37,4,0),VLOOKUP(A15,Potential_STU!$A$6:$K$39,4,0))) ->  | C15: =IF(A15="","",ROUND(IFERROR(VLOOKUP(A15,Existing_STU!$A$6:$J$37,6,0),VLOOKUP(A15,Potential_STU!$A$6:$K$39,6,0)),0)) -> 
B16: =IF(A16="","",IFERROR(VLOOKUP(A16,Existing_STU!$A$6:$J$37,4,0),VLOOKUP(A16,Potential_STU!$A$6:$K$39,4,0))) ->  | C16: =IF(A16="","",ROUND(IFERROR(VLOOKUP(A16,Existing_STU!$A$6:$J$37,6,0),VLOOKUP(A16,Potential_STU!$A$6:$K$39,6,0)),0)) -> 
B17: =IF(A17="","",IFERROR(VLOOKUP(A17,Existing_STU!$A$6:$J$37,4,0),VLOOKUP(A17,Potential_STU!$A$6:$K$39,4,0))) ->  | C17: =IF(A17="","",ROUND(IFERROR(VLOOKUP(A17,Existing_STU!$A$6:$J$37,6,0),VLOOKUP(A17,Potential_STU!$A$6:$K$39,6,0)),0)) -> 
B18: =IF(A18="","",IFERROR(VLOOKUP(A18,Existing_STU!$A$6:$J$37,4,0),VLOOKUP(A18,Potential_STU!$A$6:$K$39,4,0))) ->  | C18: =IF(A18="","",ROUND(IFERROR(VLOOKUP(A18,Existing_STU!$A$6:$J$37,6,0),VLOOKUP(A18,Potential_STU!$A$6:$K$39,6,0)),0)) -> 
B19: =IF(A19="","",IFERROR(VLOOKUP(A19,Existing_STU!$A$6:$J$37,4,0),VLOOKUP(A19,Potential_STU!$A$6:$K$39,4,0))) ->  | C19: =IF(A19="","",ROUND(IFERROR(VLOOKUP(A19,Existing_STU!$A$6:$J$37,6,0),VLOOKUP(A19,Potential_STU!$A$6:$K$39,6,0)),0)) -> 
B20: =IF(A20="","",IFERROR(VLOOKUP(A20,Existing_STU!$A$6:$J$37,4,0),VLOOKUP(A20,Potential_STU!$A$6:$K$39,4,0))) ->  | C20: =IF(A20="","",ROUND(IFERROR(VLOOKUP(A20,Existing_STU!$A$6:$J$37,6,0),VLOOKUP(A20,Potential_STU!$A$6:$K$39,6,0)),0)) -> 
B21: =IF(A21="","",IFERROR(VLOOKUP(A21,Existing_STU!$A$6:$J$37,4,0),VLOOKUP(A21,Potential_STU!$A$6:$K$39,4,0))) ->  | C21: =IF(A21="","",ROUND(IFERROR(VLOOKUP(A21,Existing_STU!$A$6:$J$37,6,0),VLOOKUP(A21,Potential_STU!$A$6:$K$39,6,0)),0)) -> 
B22: =IF(A22="","",IFERROR(VLOOKUP(A22,Existing_STU!$A$6:$J$37,4,0),VLOOKUP(A22,Potential_STU!$A$6:$K$39,4,0))) ->  | C22: =IF(A22="","",ROUND(IFERROR(VLOOKUP(A22,Existing_STU!$A$6:$J$37,6,0),VLOOKUP(A22,Potential_STU!$A$6:$K$39,6,0)),0)) -> 
B23: =IF(A23="","",IFERROR(VLOOKUP(A23,Existing_STU!$A$6:$J$37,4,0),VLOOKUP(A23,Potential_STU!$A$6:$K$39,4,0))) ->  | C23: =IF(A23="","",ROUND(IFERROR(VLOOKUP(A23,Existing_STU!$A$6:$J$37,6,0),VLOOKUP(A23,Potential_STU!$A$6:$K$39,6,0)),0)) -> 
B24: =IF(A24="","",IFERROR(VLOOKUP(A24,Existing_STU!$A$6:$J$37,4,0),VLOOKUP(A24,Potential_STU!$A$6:$K$39,4,0))) ->  | C24: =IF(A24="","",ROUND(IFERROR(VLOOKUP(A24,Existing_STU!$A$6:$J$37,6,0),VLOOKUP(A24,Potential_STU!$A$6:$K$39,6,0)),0)) -> 
B25: =IF(A25="","",IFERROR(VLOOKUP(A25,Existing_STU!$A$6:$J$37,4,0),VLOOKUP(A25,Potential_STU!$A$6:$K$39,4,0))) ->  | C25: =IF(A25="","",ROUND(IFERROR(VLOOKUP(A25,Existing_STU!$A$6:$J$37,6,0),VLOOKUP(A25,Potential_STU!$A$6:$K$39,6,0)),0)) -> 
B26: =IF(A26="","",IFERROR(VLOOKUP(A26,Existing_STU!$A$6:$J$37,4,0),VLOOKUP(A26,Potential_STU!$A$6:$K$39,4,0))) ->  | C26: =IF(A26="","",ROUND(IFERROR(VLOOKUP(A26,Existing_STU!$A$6:$J$37,6,0),VLOOKUP(A26,Potential_STU!$A$6:$K$39,6,0)),0)) -> 
B27: =IF(A27="","",IFERROR(VLOOKUP(A27,Existing_STU!$A$6:$J$37,4,0),VLOOKUP(A27,Potential_STU!$A$6:$K$39,4,0))) ->  | C27: =IF(A27="","",ROUND(IFERROR(VLOOKUP(A27,Existing_STU!$A$6:$J$37,6,0),VLOOKUP(A27,Potential_STU!$A$6:$K$39,6,0)),0)) -> 
B28: =IF(A28="","",IFERROR(VLOOKUP(A28,Existing_STU!$A$6:$J$37,4,0),VLOOKUP(A28,Potential_STU!$A$6:$K$39,4,0))) ->  | C28: =IF(A28="","",ROUND(IFERROR(VLOOKUP(A28,Existing_STU!$A$6:$J$37,6,0),VLOOKUP(A28,Potential_STU!$A$6:$K$39,6,0)),0)) -> 
B29: =IF(A29="","",IFERROR(VLOOKUP(A29,Existing_STU!$A$6:$J$37,4,0),VLOOKUP(A29,Potential_STU!$A$6:$K$39,4,0))) ->  | C29: =IF(A29="","",ROUND(IFERROR(VLOOKUP(A29,Existing_STU!$A$6:$J$37,6,0),VLOOKUP(A29,Potential_STU!$A$6:$K$39,6,0)),0)) -> 
B30: =IF(A30="","",IFERROR(VLOOKUP(A30,Existing_STU!$A$6:$J$37,4,0),VLOOKUP(A30,Potential_STU!$A$6:$K$39,4,0))) ->  | C30: =IF(A30="","",ROUND(IFERROR(VLOOKUP(A30,Existing_STU!$A$6:$J$37,6,0),VLOOKUP(A30,Potential_STU!$A$6:$K$39,6,0)),0)) -> 
B31: =IF(A31="","",IFERROR(VLOOKUP(A31,Existing_STU!$A$6:$J$37,4,0),VLOOKUP(A31,Potential_STU!$A$6:$K$39,4,0))) ->  | C31: =IF(A31="","",ROUND(IFERROR(VLOOKUP(A31,Existing_STU!$A$6:$J$37,6,0),VLOOKUP(A31,Potential_STU!$A$6:$K$39,6,0)),0)) -> 
B32: =IF(A32="","",IFERROR(VLOOKUP(A32,Existing_STU!$A$6:$J$37,4,0),VLOOKUP(A32,Potential_STU!$A$6:$K$39,4,0))) ->  | C32: =IF(A32="","",ROUND(IFERROR(VLOOKUP(A32,Existing_STU!$A$6:$J$37,6,0),VLOOKUP(A32,Potential_STU!$A$6:$K$39,6,0)),0)) -> 
B33: =IF(A33="","",IFERROR(VLOOKUP(A33,Existing_STU!$A$6:$J$37,4,0),VLOOKUP(A33,Potential_STU!$A$6:$K$39,4,0))) ->  | C33: =IF(A33="","",ROUND(IFERROR(VLOOKUP(A33,Existing_STU!$A$6:$J$37,6,0),VLOOKUP(A33,Potential_STU!$A$6:$K$39,6,0)),0)) -> 
B34: =IF(A34="","",IFERROR(VLOOKUP(A34,Existing_STU!$A$6:$J$37,4,0),VLOOKUP(A34,Potential_STU!$A$6:$K$39,4,0))) ->  | C34: =IF(A34="","",ROUND(IFERROR(VLOOKUP(A34,Existing_STU!$A$6:$J$37,6,0),VLOOKUP(A34,Potential_STU!$A$6:$K$39,6,0)),0)) -> 
B35: =IF(A35="","",IFERROR(VLOOKUP(A35,Existing_STU!$A$6:$J$37,4,0),VLOOKUP(A35,Potential_STU!$A$6:$K$39,4,0))) ->  | C35: =IF(A35="","",ROUND(IFERROR(VLOOKUP(A35,Existing_STU!$A$6:$J$37,6,0),VLOOKUP(A35,Potential_STU!$A$6:$K$39,6,0)),0)) -> 
B36: =IF(A36="","",IFERROR(VLOOKUP(A36,Existing_STU!$A$6:$J$37,4,0),VLOOKUP(A36,Potential_STU!$A$6:$K$39,4,0))) ->  | C36: =IF(A36="","",ROUND(IFERROR(VLOOKUP(A36,Existing_STU!$A$6:$J$37,6,0),VLOOKUP(A36,Potential_STU!$A$6:$K$39,6,0)),0)) -> 
B37: =IF(A37="","",IFERROR(VLOOKUP(A37,Existing_STU!$A$6:$J$37,4,0),VLOOKUP(A37,Potential_STU!$A$6:$K$39,4,0))) ->  | C37: =IF(A37="","",ROUND(IFERROR(VLOOKUP(A37,Existing_STU!$A$6:$J$37,6,0),VLOOKUP(A37,Potential_STU!$A$6:$K$39,6,0)),0)) -> 
B38: =IF(A38="","",IFERROR(VLOOKUP(A38,Existing_STU!$A$6:$J$37,4,0),VLOOKUP(A38,Potential_STU!$A$6:$K$39,4,0))) ->  | C38: =IF(A38="","",ROUND(IFERROR(VLOOKUP(A38,Existing_STU!$A$6:$J$37,6,0),VLOOKUP(A38,Potential_STU!$A$6:$K$39,6,0)),0)) -> 
B39: =IF(A39="","",IFERROR(VLOOKUP(A39,Existing_STU!$A$6:$J$37,4,0),VLOOKUP(A39,Potential_STU!$A$6:$K$39,4,0))) ->  | C39: =IF(A39="","",ROUND(IFERROR(VLOOKUP(A39,Existing_STU!$A$6:$J$37,6,0),VLOOKUP(A39,Potential_STU!$A$6:$K$39,6,0)),0)) -> 
B40: =IF(A40="","",IFERROR(VLOOKUP(A40,Existing_STU!$A$6:$J$37,4,0),VLOOKUP(A40,Potential_STU!$A$6:$K$39,4,0))) ->  | C40: =IF(A40="","",ROUND(IFERROR(VLOOKUP(A40,Existing_STU!$A$6:$J$37,6,0),VLOOKUP(A40,Potential_STU!$A$6:$K$39,6,0)),0)) -> 
B41: =IF(A41="","",IFERROR(VLOOKUP(A41,Existing_STU!$A$6:$J$37,4,0),VLOOKUP(A41,Potential_STU!$A$6:$K$39,4,0))) ->  | C41: =IF(A41="","",ROUND(IFERROR(VLOOKUP(A41,Existing_STU!$A$6:$J$37,6,0),VLOOKUP(A41,Potential_STU!$A$6:$K$39,6,0)),0)) -> 
B42: =IF(A42="","",IFERROR(VLOOKUP(A42,Existing_STU!$A$6:$J$37,4,0),VLOOKUP(A42,Potential_STU!$A$6:$K$39,4,0))) ->  | C42: =IF(A42="","",ROUND(IFERROR(VLOOKUP(A42,Existing_STU!$A$6:$J$37,6,0),VLOOKUP(A42,Potential_STU!$A$6:$K$39,6,0)),0)) -> 
B43: =IF(A43="","",IFERROR(VLOOKUP(A43,Existing_STU!$A$6:$J$37,4,0),VLOOKUP(A43,Potential_STU!$A$6:$K$39,4,0))) ->  | C43: =IF(A43="","",ROUND(IFERROR(VLOOKUP(A43,Existing_STU!$A$6:$J$37,6,0),VLOOKUP(A43,Potential_STU!$A$6:$K$39,6,0)),0)) -> 
B44: =IF(A44="","",IFERROR(VLOOKUP(A44,Existing_STU!$A$6:$J$37,4,0),VLOOKUP(A44,Potential_STU!$A$6:$K$39,4,0))) ->  | C44: =IF(A44="","",ROUND(IFERROR(VLOOKUP(A44,Existing_STU!$A$6:$J$37,6,0),VLOOKUP(A44,Potential_STU!$A$6:$K$39,6,0)),0)) -> 
B45: =IF(A45="","",IFERROR(VLOOKUP(A45,Existing_STU!$A$6:$J$37,4,0),VLOOKUP(A45,Potential_STU!$A$6:$K$39,4,0))) ->  | C45: =IF(A45="","",ROUND(IFERROR(VLOOKUP(A45,Existing_STU!$A$6:$J$37,6,0),VLOOKUP(A45,Potential_STU!$A$6:$K$39,6,0)),0)) -> 
B46: =IF(A46="","",IFERROR(VLOOKUP(A46,Existing_STU!$A$6:$J$37,4,0),VLOOKUP(A46,Potential_STU!$A$6:$K$39,4,0))) ->  | C46: =IF(A46="","",ROUND(IFERROR(VLOOKUP(A46,Existing_STU!$A$6:$J$37,6,0),VLOOKUP(A46,Potential_STU!$A$6:$K$39,6,0)),0)) -> 
B47: =IF(A47="","",IFERROR(VLOOKUP(A47,Existing_STU!$A$6:$J$37,4,0),VLOOKUP(A47,Potential_STU!$A$6:$K$39,4,0))) ->  | C47: =IF(A47="","",ROUND(IFERROR(VLOOKUP(A47,Existing_STU!$A$6:$J$37,6,0),VLOOKUP(A47,Potential_STU!$A$6:$K$39,6,0)),0)) -> 
B48: =IF(A48="","",IFERROR(VLOOKUP(A48,Existing_STU!$A$6:$J$37,4,0),VLOOKUP(A48,Potential_STU!$A$6:$K$39,4,0))) ->  | C48: =IF(A48="","",ROUND(IFERROR(VLOOKUP(A48,Existing_STU!$A$6:$J$37,6,0),VLOOKUP(A48,Potential_STU!$A$6:$K$39,6,0)),0)) -> 
B49: =IF(A49="","",IFERROR(VLOOKUP(A49,Existing_STU!$A$6:$J$37,4,0),VLOOKUP(A49,Potential_STU!$A$6:$K$39,4,0))) ->  | C49: =IF(A49="","",ROUND(IFERROR(VLOOKUP(A49,Existing_STU!$A$6:$J$37,6,0),VLOOKUP(A49,Potential_STU!$A$6:$K$39,6,0)),0)) -> 

Sheet Structural Water Quality Calcs
A1: Segment Name: | B1: Lawton Valley Reservoir (RI0007035L-06), Group 1A
A2: Date: | B2: 2018-12-31
K4: Water Quality Results
K5: Phosphorous | N5: TSS | Q5: Nitrogen | T5: Zinc | W5: Impervious Cover | AD5: Runoff Reduction
A6: STU ID | B6: STU Type* | C6: Total Catchment Area (sq. ft.) | D6: Impervious Catchment Area (Sq. Ft.) | E6: STU Storage Volume definitions (ft³) | F6: STU Treatment Depth (in.) (Depth of Runoff Treated) | G6: STU Soil Type* | H6: Pervious Catchment Area (sq. ft.) | I6: Catchment % Impervious | J6: Results Lookup Row | K6: P Load (lb/yr) | L6: P Removal Credit (%) | M6: P Reduction (lb/yr) | N6: TSS Load (lb/yr) | O6: TSS Removal Credit (%) | P6: TSS Reduction (lb/yr) | Q6: Nitrogen Load (lb/yr) | R6: Nitrogen Removal Credit (%) | S6: Nitrogen Reduction (lb/yr) | T6: Zinc Load (lb/yr) | U6: Zinc Removal Credit (%) | V6: Zinc Reduction (lb/yr) | W6: Impervious Catchment Area (Acres) | X6: TSS Reduction Factor | Y6: Phosphorus Reduction Factor | Z6: Runoff Factor | AA6: Flow Factor | AB6: Pervious Cover Factor | AC6: Effective IC Reduction (acres) | AD6: Runoff Reduction % | AE6: Runoff Reduction (ac-ft)
A7: SCP-LVR-001 | B7: =IF(A7="","",IFERROR(VLOOKUP(A7,Existing_STU!$A$6:$J$37,4,0),VLOOKUP(A7,Potential_STU!$A$6:$K$39,4,0))) -> Bioretention Swale | C7: =IF(A7="","",SUMIF(RIDOT_Catchment!$D$5:$D$79,A7,RIDOT_Catchment!$L$5:$L$79)+SUMIF('Non-RIDOT_Catchment'!$D$5:$D$52,A7,'Non-RIDOT_Catchment'!$L$5:$L$52)) -> 13809.45382 | D7: =IF(A7="","",SUMIF(RIDOT_Catchment!$D$5:$D$79,A7,RIDOT_Catchment!$F$5:$F$79)+SUMIF('Non-RIDOT_Catchment'!$D$5:$D$52,A7,'Non-RIDOT_Catchment'!$F$5:$F$52)) -> 10096 | E7: =IF(A7="","",IFERROR(VLOOKUP(A7,Existing_STU!$A$6:$J$37,6,0),VLOOKUP(A7,Potential_STU!$A$6:$K$39,6,0))) -> 853 | F7: =IF(A7="","",IF(B7="Limited ROW",0.25,E7/D7*12)) -> 1.013866878 | G7: =IF(A7="","",IFERROR(VLOOKUP(A7,Existing_STU!$A$6:$J$37,5,0),VLOOKUP(A7,Potential_STU!$A$6:$K$39,5,0))) -> Silt Loam (0.27 in/hr) | H7: =IF(A7="","",C7-D7) -> 3713.453817 | I7: =IF(A7="","",D7/C7) -> 0.7310933607 | J7: =IF(ISBLANK(B7),"",IF(ISBLANK(G7),"",RowFunc(B7,G7))) -> 15 | K7: =IF(A7="","",SUMIF(RIDOT_Catchment!$D$5:$D$79,A7,RIDOT_Catchment!$N$5:$N$79)+SUMIF('Non-RIDOT_Catchment'!$D$5:$D$52,A7,'Non-RIDOT_Catchment'!$N$5:$N$52)) -> 0.32 | L7: =IFERROR(IF(I7>=0.5,INTERPRNG_h($F7,'STU Treatment Values'!$B$5:$K$27,0,1,$J7),INTERPRNG_h($F7,'STU Treatment Values'!$B$29:$K$51,0,1,$J7)),"") -> 0.5313866878 | M7: =IF(B7="Limited ROW",L7*K7*0.1,IFERROR(L7*K7,"")) -> 0.1700437401 | N7: =IF(A7="","",SUMIF(RIDOT_Catchment!$D$5:$D$79,A7,RIDOT_Catchment!$O$5:$O$79)+SUMIF('Non-RIDOT_Catchment'!$D$5:$D$52,A7,'Non-RIDOT_Catchment'!$O$5:$O$52)) -> 145 | O7: =IFERROR(IF(I7>=0.5,INTERPRNG_h($F7,'STU Treatment Values'!$N$5:$W$27,0,1,$J7),INTERPRNG_h($F7,'STU Treatment Values'!$N$29:$W$51,0,1,$J7)),"") -> 0.9902773376 | P7: =IF(B7="Limited ROW",O7*N7*0.1,IFERROR(N7*O7,"")) -> 143.5902139 | Q7: =IF(A7="","",SUMIF(RIDOT_Catchment!$D$5:$D$79,A7,RIDOT_Catchment!$P$5:$P$79)+SUMIF('Non-RIDOT_Catchment'!$D$5:$D$52,A7,'Non-RIDOT_Catchment'!$P$5:$P$52)) -> 2.02 | R7: =IFERROR(IF(I7>=0.5,INTERPRNG_h($F7,'STU Treatment Values'!$Z$5:$AI$27,0,1,$J7),INTERPRNG_h($F7,'STU Treatment Values'!$Z$29:$AI$51,0,1,$J7)),"") -> 0.3213866878 | S7: =IF(B7="Limited ROW",R7*Q7*0.1,IFERROR(Q7*R7,"")) -> 0.6492011094 | T7: =IF(A7="","",SUMIF(RIDOT_Catchment!$D$5:$D$79,A7,RIDOT_Catchment!$Q$5:$Q$79)+SUMIF('Non-RIDOT_Catchment'!$D$5:$D$52,A7,'Non-RIDOT_Catchment'!$Q$5:$Q$52)) -> 0.29 | U7: =IFERROR(IF(I7>=0.5,INTERPRNG_h($F7,'STU Treatment Values'!$AL$5:$AU$27,0,1,$J7),INTERPRNG_h($F7,'STU Treatment Values'!$AL$29:$AU$51,0,1,$J7)),"") -> 0.9702773376 | V7: =IF(B7="Limited ROW",U7*T7*0.1,IFERROR(U7*T7,"")) -> 0.2813804279 | W7: =IF(A7="","",D7/43560) -> 0.2317722681 | X7: =IFERROR(IF(O7/0.9>1,1,O7/0.9),"") -> 1 | Y7: =IFERROR(IF(L7/0.9>1,1,L7/0.9),"") -> 0.5904296531 | Z7: =IFERROR(INTERPRNG_h($F7,'STU Treatment Values'!$B$79:$K$101,0,1,$J7),"") -> 0.1427733756 | AA7: =IFERROR(INTERPRNG_h($F7,'STU Treatment Values'!$B$54:$K$76,0,1,$J7),"") -> 0.4679028371 | AB7: =IFERROR((X7+Y7+Z7+AA7)/4,"") -> 0.5502764664 | AC7: =IF(B7="Limited ROW",W7*AB7*0.1,IFERROR(AB7*W7,"")) -> 0.1275388247 | AD7: =IFERROR(INTERPRNG_h($F7,'STU Treatment Values'!$B$104:$K$126,0,1,$J7),"") -> 0.1289079168 | AE7: =IF(B7="Limited ROW",AD7*(D7*0.1/43560*3.559+H7*0.1/43560*0.239),IFERROR(AD7*(D7/43560*3.559+H7/43560*0.239),"")) -> 0.1089596814
A8: SCP-LVR-002 | B8: =IF(A8="","",IFERROR(VLOOKUP(A8,Existing_STU!$A$6:$J$37,4,0),VLOOKUP(A8,Potential_STU!$A$6:$K$39,4,0))) -> Bioretention Swale | C8: =IF(A8="","",SUMIF(RIDOT_Catchment!$D$5:$D$79,A8,RIDOT_Catchment!$L$5:$L$79)+SUMIF('Non-RIDOT_Catchment'!$D$5:$D$52,A8,'Non-RIDOT_Catchment'!$L$5:$L$52)) -> 11675.11979 | D8: =IF(A8="","",SUMIF(RIDOT_Catchment!$D$5:$D$79,A8,RIDOT_Catchment!$F$5:$F$79)+SUMIF('Non-RIDOT_Catchment'!$D$5:$D$52,A8,'Non-RIDOT_Catchment'!$F$5:$F$52)) -> 9268 | E8: =IF(A8="","",IFERROR(VLOOKUP(A8,Existing_STU!$A$6:$J$37,6,0),VLOOKUP(A8,Potential_STU!$A$6:$K$39,6,0))) -> 609 | F8: =IF(A8="","",IF(B8="Limited ROW",0.25,E8/D8*12)) -> 0.7885196375 | G8: =IF(A8="","",IFERROR(VLOOKUP(A8,Existing_STU!$A$6:$J$37,5,0),VLOOKUP(A8,Potential_STU!$A$6:$K$39,5,0))) -> Silt Loam (0.27 in/hr) | H8: =IF(A8="","",C8-D8) -> 2407.119786 | I8: =IF(A8="","",D8/C8) -> 0.7938248318 | J8: =IF(ISBLANK(B8),"",IF(ISBLANK(G8),"",RowFunc(B8,G8))) -> 15 | K8: =IF(A8="","",SUMIF(RIDOT_Catchment!$D$5:$D$79,A8,RIDOT_Catchment!$N$5:$N$79)+SUMIF('Non-RIDOT_Catchment'!$D$5:$D$52,A8,'Non-RIDOT_Catchment'!$N$5:$N$52)) -> 0.415531868 | L8: =IFERROR(IF(I8>=0.5,INTERPRNG_h($F8,'STU Treatment Values'!$B$5:$K$27,0,1,$J8),INTERPRNG_h($F8,'STU Treatment Values'!$B$29:$K$51,0,1,$J8)),"") -> 0.4777039275 | M8: =IF(B8="Limited ROW",L8*K8*0.1,IFERROR(L8*K8,"")) -> 0.1985012053 | N8: =IF(A8="","",SUMIF(RIDOT_Catchment!$D$5:$D$79,A8,RIDOT_Catchment!$O$5:$O$79)+SUMIF('Non-RIDOT_Catchment'!$D$5:$D$52,A8,'Non-RIDOT_Catchment'!$O$5:$O$52)) -> 109.1712907 | O8: =IFERROR(IF(I8>=0.5,INTERPRNG_h($F8,'STU Treatment Values'!$N$5:$W$27,0,1,$J8),INTERPRNG_h($F8,'STU Treatment Values'!$N$29:$W$51,0,1,$J8)),"") -> 0.9794259819 | P8: =IF(B8="Limited ROW",O8*N8*0.1,IFERROR(N8*O8,"")) -> 106.9251986 | Q8: =IF(A8="","",SUMIF(RIDOT_Catchment!$D$5:$D$79,A8,RIDOT_Catchment!$P$5:$P$79)+SUMIF('Non-RIDOT_Catchment'!$D$5:$D$52,A8,'Non-RIDOT_Catchment'!$P$5:$P$52)) -> 2.578263033 | R8: =IFERROR(IF(I8>=0.5,INTERPRNG_h($F8,'STU Treatment Values'!$Z$5:$AI$27,0,1,$J8),INTERPRNG_h($F8,'STU Treatment Values'!$Z$29:$AI$51,0,1,$J8)),"") -> 0.3082779456 | S8: =IF(B8="Limited ROW",R8*Q8*0.1,IFERROR(Q8*R8,"")) -> 0.794821631 | T8: =IF(A8="","",SUMIF(RIDOT_Catchment!$D$5:$D$79,A8,RIDOT_Catchment!$Q$5:$Q$79)+SUMIF('Non-RIDOT_Catchment'!$D$5:$D$52,A8,'Non-RIDOT_Catchment'!$Q$5:$Q$52)) -> 0.1922214361 | U8: =IFERROR(IF(I8>=0.5,INTERPRNG_h($F8,'STU Treatment Values'!$AL$5:$AU$27,0,1,$J8),INTERPRNG_h($F8,'STU Treatment Values'!$AL$29:$AU$51,0,1,$J8)),"") -> 0.96 | V8: =IF(B8="Limited ROW",U8*T8*0.1,IFERROR(U8*T8,"")) -> 0.1845325786 | W8: =IF(A8="","",D8/43560) -> 0.2127640037 | X8: =IFERROR(IF(O8/0.9>1,1,O8/0.9),"") -> 1 | Y8: =IFERROR(IF(L8/0.9>1,1,L8/0.9),"") -> 0.5307821417 | Z8: =IFERROR(INTERPRNG_h($F8,'STU Treatment Values'!$B$79:$K$101,0,1,$J8),"") -> 0.1088519637 | AA8: =IFERROR(INTERPRNG_h($F8,'STU Treatment Values'!$B$54:$K$76,0,1,$J8),"") -> 0.3871138569 | AB8: =IFERROR((X8+Y8+Z8+AA8)/4,"") -> 0.5066869906 | AC8: =IF(B8="Limited ROW",W8*AB8*0.1,IFERROR(AB8*W8,"")) -> 0.1078047527 | AD8: =IFERROR(INTERPRNG_h($F8,'STU Treatment Values'!$B$104:$K$126,0,1,$J8),"") -> 0.1020290891 | AE8: =IF(B8="Limited ROW",AD8*(D8*0.1/43560*3.559+H8*0.1/43560*0.239),IFERROR(AD8*(D8/43560*3.559+H8/43560*0.239),"")) -> 0.07860669932
A9: SCP-LVR-003 | B9: =IF(A9="","",IFERROR(VLOOKUP(A9,Existing_STU!$A$6:$J$37,4,0),VLOOKUP(A9,Potential_STU!$A$6:$K$39,4,0))) -> Bioretention Swale | C9: =IF(A9="","",SUMIF(RIDOT_Catchment!$D$5:$D$79,A9,RIDOT_Catchment!$L$5:$L$79)+SUMIF('Non-RIDOT_Catchment'!$D$5:$D$52,A9,'Non-RIDOT_Catchment'!$L$5:$L$52)) -> 9838.68244 | D9: =IF(A9="","",SUMIF(RIDOT_Catchment!$D$5:$D$79,A9,RIDOT_Catchment!$F$5:$F$79)+SUMIF('Non-RIDOT_Catchment'!$D$5:$D$52,A9,'Non-RIDOT_Catchment'!$F$5:$F$52)) -> 7452 | E9: =IF(A9="","",IFERROR(VLOOKUP(A9,Existing_STU!$A$6:$J$37,6,0),VLOOKUP(A9,Potential_STU!$A$6:$K$39,6,0))) -> 522 | F9: 0.8405797101 | G9: =IF(A9="","",IFERROR(VLOOKUP(A9,Existing_STU!$A$6:$J$37,5,0),VLOOKUP(A9,Potential_STU!$A$6:$K$39,5,0))) -> Silt Loam (0.27 in/hr) | H9: 2386.68244 | I9: 0.7574184903 | J9: =IF(ISBLANK(B9),"",IF(ISBLANK(G9),"",RowFunc(B9,G9))) -> 15 | K9: =IF(A9="","",SUMIF(RIDOT_Catchment!$D$5:$D$79,A9,RIDOT_Catchment!$N$5:$N$79)+SUMIF('Non-RIDOT_Catchment'!$D$5:$D$52,A9,'Non-RIDOT_Catchment'!$N$5:$N$52)) -> 0.2597179292 | L9: =IFERROR(IF(I9>=0.5,INTERPRNG_h($F9,'STU Treatment Values'!$B$5:$K$27,0,1,$J9),INTERPRNG_h($F9,'STU Treatment Values'!$B$29:$K$51,0,1,$J9)),"") -> 0.4901449275 | M9: 0.1272994256 | N9: =IF(A9="","",SUMIF(RIDOT_Catchment!$D$5:$D$79,A9,RIDOT_Catchment!$O$5:$O$79)+SUMIF('Non-RIDOT_Catchment'!$D$5:$D$52,A9,'Non-RIDOT_Catchment'!$O$5:$O$52)) -> 102.4902588 | O9: =IFERROR(IF(I9>=0.5,INTERPRNG_h($F9,'STU Treatment Values'!$N$5:$W$27,0,1,$J9),INTERPRNG_h($F9,'STU Treatment Values'!$N$29:$W$51,0,1,$J9)),"") -> 0.9820289855 | P9: 100.6484049 | Q9: =IF(A9="","",SUMIF(RIDOT_Catchment!$D$5:$D$79,A9,RIDOT_Catchment!$P$5:$P$79)+SUMIF('Non-RIDOT_Catchment'!$D$5:$D$52,A9,'Non-RIDOT_Catchment'!$P$5:$P$52)) -> 1.607116482 | R9: =IFERROR(IF(I9>=0.5,INTERPRNG_h($F9,'STU Treatment Values'!$Z$5:$AI$27,0,1,$J9),INTERPRNG_h($F9,'STU Treatment Values'!$Z$29:$AI$51,0,1,$J9)),"") -> 0.3120289855 | S9: 0.5014669255 | T9: =IF(A9="","",SUMIF(RIDOT_Catchment!$D$5:$D$79,A9,RIDOT_Catchment!$Q$5:$Q$79)+SUMIF('Non-RIDOT_Catchment'!$D$5:$D$52,A9,'Non-RIDOT_Catchment'!$Q$5:$Q$52)) -> 0.2049648868 | U9: =IFERROR(IF(I9>=0.5,INTERPRNG_h($F9,'STU Treatment Values'!$AL$5:$AU$27,0,1,$J9),INTERPRNG_h($F9,'STU Treatment Values'!$AL$29:$AU$51,0,1,$J9)),"") -> 0.9620289855 | V9: 0.1971821621 | W9: 0.1710743802 | X9: 1 | Y9: 0.544605475 | Z9: =IFERROR(INTERPRNG_h($F9,'STU Treatment Values'!$B$79:$K$101,0,1,$J9),"") -> 0.1160869565 | AA9: =IFERROR(INTERPRNG_h($F9,'STU Treatment Values'!$B$54:$K$76,0,1,$J9),"") -> 0.4042915228 | AB9: 0.5162459886 | AC9: =IF(B9="Limited ROW",W9*AB9*0.1,IFERROR(AB9*W9,"")) -> 0.08831646251 | AD9: =IFERROR(INTERPRNG_h($F9,'STU Treatment Values'!$B$104:$K$126,0,1,$J9),"") -> 0.1080376876 | AE9: 0.06719389868
A10: SCP-LVR-004 | B10: =IF(A10="","",IFERROR(VLOOKUP(A10,Existing_STU!$A$6:$J$37,4,0),VLOOKUP(A10,Potential_STU!$A$6:$K$39,4,0))) -> Bioretention Swale | C10: =IF(A10="","",SUMIF(RIDOT_Catchment!$D$5:$D$79,A10,RIDOT_Catchment!$L$5:$L$79)+SUMIF('Non-RIDOT_Catchment'!$D$5:$D$52,A10,'Non-RIDOT_Catchment'!$L$5:$L$52)) -> 5057.695117 | D10: =IF(A10="","",SUMIF(RIDOT_Catchment!$D$5:$D$79,A10,RIDOT_Catchment!$F$5:$F$79)+SUMIF('Non-RIDOT_Catchment'!$D$5:$D$52,A10,'Non-RIDOT_Catchment'!$F$5:$F$52)) -> 2428 | E10: =IF(A10="","",IFERROR(VLOOKUP(A10,Existing_STU!$A$6:$J$37,6,0),VLOOKUP(A10,Potential_STU!$A$6:$K$39,6,0))) -> 209 | F10: 1.032948929 | G10: =IF(A10="","",IFERROR(VLOOKUP(A10,Existing_STU!$A$6:$J$37,5,0),VLOOKUP(A10,Potential_STU!$A$6:$K$39,5,0))) -> Silt Loam (0.27 in/hr) | H10: 2629.695117 | I10: 0.4800605699 | J10: =IF(ISBLANK(B10),"",IF(ISBLANK(G10),"",RowFunc(B10,G10))) -> 15 | K10: =IF(A10="","",SUMIF(RIDOT_Catchment!$D$5:$D$79,A10,RIDOT_Catchment!$N$5:$N$79)+SUMIF('Non-RIDOT_Catchment'!$D$5:$D$52,A10,'Non-RIDOT_Catchment'!$N$5:$N$52)) -> 0.08 | L10: =IFERROR(IF(I10>=0.5,INTERPRNG_h($F10,'STU Treatment Values'!$B$5:$K$27,0,1,$J10),INTERPRNG_h($F10,'STU Treatment Values'!$B$29:$K$51,0,1,$J10)),"") -> 0.5165262285 | M10: 0.04132209828 | N10: =IF(A10="","",SUMIF(RIDOT_Catchment!$D$5:$D$79,A10,RIDOT_Catchment!$O$5:$O$79)+SUMIF('Non-RIDOT_Catchment'!$D$5:$D$52,A10,'Non-RIDOT_Catchment'!$O$5:$O$52)) -> 36 | O10: =IFERROR(IF(I10>=0.5,INTERPRNG_h($F10,'STU Treatment Values'!$N$5:$W$27,0,1,$J10),INTERPRNG_h($F10,'STU Treatment Values'!$N$29:$W$51,0,1,$J10)),"") -> 0.9873052457 | P10: 35.54298885 | Q10: =IF(A10="","",SUMIF(RIDOT_Catchment!$D$5:$D$79,A10,RIDOT_Catchment!$P$5:$P$79)+SUMIF('Non-RIDOT_Catchment'!$D$5:$D$52,A10,'Non-RIDOT_Catchment'!$P$5:$P$52)) -> 0.52 | R10: =IFERROR(IF(I10>=0.5,INTERPRNG_h($F10,'STU Treatment Values'!$Z$5:$AI$27,0,1,$J10),INTERPRNG_h($F10,'STU Treatment Values'!$Z$29:$AI$51,0,1,$J10)),"") -> 0.3191156378 | S10: 0.1659401316 | T10: =IF(A10="","",SUMIF(RIDOT_Catchment!$D$5:$D$79,A10,RIDOT_Catchment!$Q$5:$Q$79)+SUMIF('Non-RIDOT_Catchment'!$D$5:$D$52,A10,'Non-RIDOT_Catchment'!$Q$5:$Q$52)) -> 0.07 | U10: =IFERROR(IF(I10>=0.5,INTERPRNG_h($F10,'STU Treatment Values'!$AL$5:$AU$27,0,1,$J10),INTERPRNG_h($F10,'STU Treatment Values'!$AL$29:$AU$51,0,1,$J10)),"") -> 0.9673052457 | V10: 0.0677113672 | W10: 0.05573921028 | X10: 1 | Y10: 0.5739180317 | Z10: =IFERROR(INTERPRNG_h($F10,'STU Treatment Values'!$B$79:$K$101,0,1,$J10),"") -> 0.1465897858 | AA10: =IFERROR(INTERPRNG_h($F10,'STU Treatment Values'!$B$54:$K$76,0,1,$J10),"") -> 0.4780355584 | AB10: 0.549635844 | AC10: 0.03063626789 | AD10: =IFERROR(INTERPRNG_h($F10,'STU Treatment Values'!$B$104:$K$126,0,1,$J10),"") -> 0.1323051354 | AE10: 0.02815508296
A11: SCP-LVR-005 | B11: =IF(A11="","",IFERROR(VLOOKUP(A11,Existing_STU!$A$6:$J$37,4,0),VLOOKUP(A11,Potential_STU!$A$6:$K$39,4,0))) -> Bioretention Swale | C11: =IF(A11="","",SUMIF(RIDOT_Catchment!$D$5:$D$79,A11,RIDOT_Catchment!$L$5:$L$79)+SUMIF('Non-RIDOT_Catchment'!$D$5:$D$52,A11,'Non-RIDOT_Catchment'!$L$5:$L$52)) -> 19241.3824 | D11: =IF(A11="","",SUMIF(RIDOT_Catchment!$D$5:$D$79,A11,RIDOT_Catchment!$F$5:$F$79)+SUMIF('Non-RIDOT_Catchment'!$D$5:$D$52,A11,'Non-RIDOT_Catchment'!$F$5:$F$52)) -> 11992 | E11: =IF(A11="","",IFERROR(VLOOKUP(A11,Existing_STU!$A$6:$J$37,6,0),VLOOKUP(A11,Potential_STU!$A$6:$K$39,6,0))) -> 609 | F11: 0.6094062708 | G11: =IF(A11="","",IFERROR(VLOOKUP(A11,Existing_STU!$A$6:$J$37,5,0),VLOOKUP(A11,Potential_STU!$A$6:$K$39,5,0))) -> Silt Loam (0.27 in/hr) | H11: 7249.382404 | I11: 0.6232400432 | J11: =IF(ISBLANK(B11),"",IF(ISBLANK(G11),"",RowFunc(B11,G11))) -> 15 | K11: =IF(A11="","",SUMIF(RIDOT_Catchment!$D$5:$D$79,A11,RIDOT_Catchment!$N$5:$N$79)+SUMIF('Non-RIDOT_Catchment'!$D$5:$D$52,A11,'Non-RIDOT_Catchment'!$N$5:$N$52)) -> 0.39 | L11: =IFERROR(IF(I11>=0.5,INTERPRNG_h($F11,'STU Treatment Values'!$B$5:$K$27,0,1,$J11),INTERPRNG_h($F11,'STU Treatment Values'!$B$29:$K$51,0,1,$J11)),"") -> 0.4418812542 | M11: 0.1723336891 | N11: =IF(A11="","",SUMIF(RIDOT_Catchment!$D$5:$D$79,A11,RIDOT_Catchment!$O$5:$O$79)+SUMIF('Non-RIDOT_Catchment'!$D$5:$D$52,A11,'Non-RIDOT_Catchment'!$O$5:$O$52)) -> 174 | O11: =IFERROR(IF(I11>=0.5,INTERPRNG_h($F11,'STU Treatment Values'!$N$5:$W$27,0,1,$J11),INTERPRNG_h($F11,'STU Treatment Values'!$N$29:$W$51,0,1,$J11)),"") -> 0.9704703135 | P11: 168.8618346 | Q11: =IF(A11="","",SUMIF(RIDOT_Catchment!$D$5:$D$79,A11,RIDOT_Catchment!$P$5:$P$79)+SUMIF('Non-RIDOT_Catchment'!$D$5:$D$52,A11,'Non-RIDOT_Catchment'!$P$5:$P$52)) -> 2.46 | R11: =IFERROR(IF(I11>=0.5,INTERPRNG_h($F11,'STU Treatment Values'!$Z$5:$AI$27,0,1,$J11),INTERPRNG_h($F11,'STU Treatment Values'!$Z$29:$AI$51,0,1,$J11)),"") -> 0.2814109406 | S11: 0.6922709139 | T11: =IF(A11="","",SUMIF(RIDOT_Catchment!$D$5:$D$79,A11,RIDOT_Catchment!$Q$5:$Q$79)+SUMIF('Non-RIDOT_Catchment'!$D$5:$D$52,A11,'Non-RIDOT_Catchment'!$Q$5:$Q$52)) -> 0.34 | U11: =IFERROR(IF(I11>=0.5,INTERPRNG_h($F11,'STU Treatment Values'!$AL$5:$AU$27,0,1,$J11),INTERPRNG_h($F11,'STU Treatment Values'!$AL$29:$AU$51,0,1,$J11)),"") -> 0.96 | V11: 0.3264 | W11: 0.2752984389 | X11: 1 | Y11: 0.4909791713 | Z11: =IFERROR(INTERPRNG_h($F11,'STU Treatment Values'!$B$79:$K$101,0,1,$J11),"") -> 0.09094062708 | AA11: =IFERROR(INTERPRNG_h($F11,'STU Treatment Values'!$B$54:$K$76,0,1,$J11),"") -> 0.3424926227 | AB11: 0.4811031053 | AC11: 0.1324469338 | AD11: =IFERROR(INTERPRNG_h($F11,'STU Treatment Values'!$B$104:$K$126,0,1,$J11),"") -> 0.08136327851 | AE11: 0.08295492504
A12: SCP-LVR-006 | B12: =IF(A12="","",IFERROR(VLOOKUP(A12,Existing_STU!$A$6:$J$37,4,0),VLOOKUP(A12,Potential_STU!$A$6:$K$39,4,0))) -> Bioretention Swale | C12: =IF(A12="","",SUMIF(RIDOT_Catchment!$D$5:$D$79,A12,RIDOT_Catchment!$L$5:$L$79)+SUMIF('Non-RIDOT_Catchment'!$D$5:$D$52,A12,'Non-RIDOT_Catchment'!$L$5:$L$52)) -> 6946.199157 | D12: =IF(A12="","",SUMIF(RIDOT_Catchment!$D$5:$D$79,A12,RIDOT_Catchment!$F$5:$F$79)+SUMIF('Non-RIDOT_Catchment'!$D$5:$D$52,A12,'Non-RIDOT_Catchment'!$F$5:$F$52)) -> 2964 | E12: =IF(A12="","",IFERROR(VLOOKUP(A12,Existing_STU!$A$6:$J$37,6,0),VLOOKUP(A12,Potential_STU!$A$6:$K$39,6,0))) -> 261 | F12: 1.056680162 | G12: =IF(A12="","",IFERROR(VLOOKUP(A12,Existing_STU!$A$6:$J$37,5,0),VLOOKUP(A12,Potential_STU!$A$6:$K$39,5,0))) -> Silt Loam (0.27 in/hr) | H12: 3982.199157 | I12: 0.42670818 | J12: =IF(ISBLANK(B12),"",IF(ISBLANK(G12),"",RowFunc(B12,G12))) -> 15 | K12: =IF(A12="","",SUMIF(RIDOT_Catchment!$D$5:$D$79,A12,RIDOT_Catchment!$N$5:$N$79)+SUMIF('Non-RIDOT_Catchment'!$D$5:$D$52,A12,'Non-RIDOT_Catchment'!$N$5:$N$52)) -> 0.1 | L12: =IFERROR(IF(I12>=0.5,INTERPRNG_h($F12,'STU Treatment Values'!$B$5:$K$27,0,1,$J12),INTERPRNG_h($F12,'STU Treatment Values'!$B$29:$K$51,0,1,$J12)),"") -> 0.5189557283 | M12: 0.05189557283 | N12: =IF(A12="","",SUMIF(RIDOT_Catchment!$D$5:$D$79,A12,RIDOT_Catchment!$O$5:$O$79)+SUMIF('Non-RIDOT_Catchment'!$D$5:$D$52,A12,'Non-RIDOT_Catchment'!$O$5:$O$52)) -> 44 | O12: =IFERROR(IF(I12>=0.5,INTERPRNG_h($F12,'STU Treatment Values'!$N$5:$W$27,0,1,$J12),INTERPRNG_h($F12,'STU Treatment Values'!$N$29:$W$51,0,1,$J12)),"") -> 0.9877911457 | P12: 43.46281041 | Q12: =IF(A12="","",SUMIF(RIDOT_Catchment!$D$5:$D$79,A12,RIDOT_Catchment!$P$5:$P$79)+SUMIF('Non-RIDOT_Catchment'!$D$5:$D$52,A12,'Non-RIDOT_Catchment'!$P$5:$P$52)) -> 0.65 | R12: =IFERROR(IF(I12>=0.5,INTERPRNG_h($F12,'STU Treatment Values'!$Z$5:$AI$27,0,1,$J12),INTERPRNG_h($F12,'STU Treatment Values'!$Z$29:$AI$51,0,1,$J12)),"") -> 0.3209054598 | S12: 0.2085885489 | T12: =IF(A12="","",SUMIF(RIDOT_Catchment!$D$5:$D$79,A12,RIDOT_Catchment!$Q$5:$Q$79)+SUMIF('Non-RIDOT_Catchment'!$D$5:$D$52,A12,'Non-RIDOT_Catchment'!$Q$5:$Q$52)) -> 0.09 | U12: =IFERROR(IF(I12>=0.5,INTERPRNG_h($F12,'STU Treatment Values'!$AL$5:$AU$27,0,1,$J12),INTERPRNG_h($F12,'STU Treatment Values'!$AL$29:$AU$51,0,1,$J12)),"") -> 0.9677911457 | V12: 0.08710120311 | W12: 0.06804407713 | X12: 1 | Y12: 0.5766174759 | Z12: =IFERROR(INTERPRNG_h($F12,'STU Treatment Values'!$B$79:$K$101,0,1,$J12),"") -> 0.1513360324 | AA12: =IFERROR(INTERPRNG_h($F12,'STU Treatment Values'!$B$54:$K$76,0,1,$J12),"") -> 0.4906370322 | AB12: 0.5546476351 | AC12: 0.03774048647 | AD12: =IFERROR(INTERPRNG_h($F12,'STU Treatment Values'!$B$104:$K$126,0,1,$J12),"") -> 0.1365300577 | AE12: 0.03604638501
B13: =IF(A13="","",IFERROR(VLOOKUP(A13,Existing_STU!$A$6:$J$37,4,0),VLOOKUP(A13,Potential_STU!$A$6:$K$39,4,0))) ->  | C13: =IF(A13="","",SUMIF(RIDOT_Catchment!$D$5:$D$79,A13,RIDOT_Catchment!$L$5:$L$79)+SUMIF('Non-RIDOT_Catchment'!$D$5:$D$52,A13,'Non-RIDOT_Catchment'!$L$5:$L$52)) ->  | D13: =IF(A13="","",SUMIF(RIDOT_Catchment!$D$5:$D$79,A13,RIDOT_Catchment!$F$5:$F$79)+SUMIF('Non-RIDOT_Catchment'!$D$5:$D$52,A13,'Non-RIDOT_Catchment'!$F$5:$F$52)) ->  | E13: =IF(A13="","",IFERROR(VLOOKUP(A13,Existing_STU!$A$6:$J$37,6,0),VLOOKUP(A13,Potential_STU!$A$6:$K$39,6,0))) ->  | G13: =IF(A13="","",IFERROR(VLOOKUP(A13,Existing_STU!$A$6:$J$37,5,0),VLOOKUP(A13,Potential_STU!$A$6:$K$39,5,0))) ->  | J13: =IF(ISBLANK(B13),"",IF(ISBLANK(G13),"",RowFunc(B13,G13))) -> 0 | K13: =IF(A13="","",SUMIF(RIDOT_Catchment!$D$5:$D$79,A13,RIDOT_Catchment!$N$5:$N$79)+SUMIF('Non-RIDOT_Catchment'!$D$5:$D$52,A13,'Non-RIDOT_Catchment'!$N$5:$N$52)) ->  | L13: =IFERROR(IF(I13>=0.5,INTERPRNG_h($F13,'STU Treatment Values'!$B$5:$K$27,0,1,$J13),INTERPRNG_h($F13,'STU Treatment Values'!$B$29:$K$51,0,1,$J13)),"") ->  | N13: =IF(A13="","",SUMIF(RIDOT_Catchment!$D$5:$D$79,A13,RIDOT_Catchment!$O$5:$O$79)+SUMIF('Non-RIDOT_Catchment'!$D$5:$D$52,A13,'Non-RIDOT_Catchment'!$O$5:$O$52)) ->  | O13: =IFERROR(IF(I13>=0.5,INTERPRNG_h($F13,'STU Treatment Values'!$N$5:$W$27,0,1,$J13),INTERPRNG_h($F13,'STU Treatment Values'!$N$29:$W$51,0,1,$J13)),"") ->  | Q13: =IF(A13="","",SUMIF(RIDOT_Catchment!$D$5:$D$79,A13,RIDOT_Catchment!$P$5:$P$79)+SUMIF('Non-RIDOT_Catchment'!$D$5:$D$52,A13,'Non-RIDOT_Catchment'!$P$5:$P$52)) ->  | R13: =IFERROR(IF(I13>=0.5,INTERPRNG_h($F13,'STU Treatment Values'!$Z$5:$AI$27,0,1,$J13),INTERPRNG_h($F13,'STU Treatment Values'!$Z$29:$AI$51,0,1,$J13)),"") ->  | T13: =IF(A13="","",SUMIF(RIDOT_Catchment!$D$5:$D$79,A13,RIDOT_Catchment!$Q$5:$Q$79)+SUMIF('Non-RIDOT_Catchment'!$D$5:$D$52,A13,'Non-RIDOT_Catchment'!$Q$5:$Q$52)) ->  | U13: =IFERROR(IF(I13>=0.5,INTERPRNG_h($F13,'STU Treatment Values'!$AL$5:$AU$27,0,1,$J13),INTERPRNG_h($F13,'STU Treatment Values'!$AL$29:$AU$51,0,1,$J13)),"") ->  | Z13: =IFERROR(INTERPRNG_h($F13,'STU Treatment Values'!$B$79:$K$101,0,1,$J13),"") ->  | AA13: =IFERROR(INTERPRNG_h($F13,'STU Treatment Values'!$B$54:$K$76,0,1,$J13),"") ->  | AD13: =IFERROR(INTERPRNG_h($F13,'STU Treatment Values'!$B$104:$K$126,0,1,$J13),"") -> 
B14: =IF(A14="","",IFERROR(VLOOKUP(A14,Existing_STU!$A$6:$J$37,4,0),VLOOKUP(A14,Potential_STU!$A$6:$K$39,4,0))) ->  | C14: =IF(A14="","",SUMIF(RIDOT_Catchment!$D$5:$D$79,A14,RIDOT_Catchment!$L$5:$L$79)+SUMIF('Non-RIDOT_Catchment'!$D$5:$D$52,A14,'Non-RIDOT_Catchment'!$L$5:$L$52)) ->  | D14: =IF(A14="","",SUMIF(RIDOT_Catchment!$D$5:$D$79,A14,RIDOT_Catchment!$F$5:$F$79)+SUMIF('Non-RIDOT_Catchment'!$D$5:$D$52,A14,'Non-RIDOT_Catchment'!$F$5:$F$52)) ->  | E14: =IF(A14="","",IFERROR(VLOOKUP(A14,Existing_STU!$A$6:$J$37,6,0),VLOOKUP(A14,Potential_STU!$A$6:$K$39,6,0))) ->  | G14: =IF(A14="","",IFERROR(VLOOKUP(A14,Existing_STU!$A$6:$J$37,5,0),VLOOKUP(A14,Potential_STU!$A$6:$K$39,5,0))) ->  | J14: =IF(ISBLANK(B14),"",IF(ISBLANK(G14),"",RowFunc(B14,G14))) -> 0 | K14: =IF(A14="","",SUMIF(RIDOT_Catchment!$D$5:$D$79,A14,RIDOT_Catchment!$N$5:$N$79)+SUMIF('Non-RIDOT_Catchment'!$D$5:$D$52,A14,'Non-RIDOT_Catchment'!$N$5:$N$52)) ->  | L14: =IFERROR(IF(I14>=0.5,INTERPRNG_h($F14,'STU Treatment Values'!$B$5:$K$27,0,1,$J14),INTERPRNG_h($F14,'STU Treatment Values'!$B$29:$K$51,0,1,$J14)),"") ->  | N14: =IF(A14="","",SUMIF(RIDOT_Catchment!$D$5:$D$79,A14,RIDOT_Catchment!$O$5:$O$79)+SUMIF('Non-RIDOT_Catchment'!$D$5:$D$52,A14,'Non-RIDOT_Catchment'!$O$5:$O$52)) ->  | O14: =IFERROR(IF(I14>=0.5,INTERPRNG_h($F14,'STU Treatment Values'!$N$5:$W$27,0,1,$J14),INTERPRNG_h($F14,'STU Treatment Values'!$N$29:$W$51,0,1,$J14)),"") ->  | Q14: =IF(A14="","",SUMIF(RIDOT_Catchment!$D$5:$D$79,A14,RIDOT_Catchment!$P$5:$P$79)+SUMIF('Non-RIDOT_Catchment'!$D$5:$D$52,A14,'Non-RIDOT_Catchment'!$P$5:$P$52)) ->  | R14: =IFERROR(IF(I14>=0.5,INTERPRNG_h($F14,'STU Treatment Values'!$Z$5:$AI$27,0,1,$J14),INTERPRNG_h($F14,'STU Treatment Values'!$Z$29:$AI$51,0,1,$J14)),"") ->  | T14: =IF(A14="","",SUMIF(RIDOT_Catchment!$D$5:$D$79,A14,RIDOT_Catchment!$Q$5:$Q$79)+SUMIF('Non-RIDOT_Catchment'!$D$5:$D$52,A14,'Non-RIDOT_Catchment'!$Q$5:$Q$52)) ->  | U14: =IFERROR(IF(I14>=0.5,INTERPRNG_h($F14,'STU Treatment Values'!$AL$5:$AU$27,0,1,$J14),INTERPRNG_h($F14,'STU Treatment Values'!$AL$29:$AU$51,0,1,$J14)),"") ->  | Z14: =IFERROR(INTERPRNG_h($F14,'STU Treatment Values'!$B$79:$K$101,0,1,$J14),"") ->  | AA14: =IFERROR(INTERPRNG_h($F14,'STU Treatment Values'!$B$54:$K$76,0,1,$J14),"") ->  | AD14: =IFERROR(INTERPRNG_h($F14,'STU Treatment Values'!$B$104:$K$126,0,1,$J14),"") -> 
B15: =IF(A15="","",IFERROR(VLOOKUP(A15,Existing_STU!$A$6:$J$37,4,0),VLOOKUP(A15,Potential_STU!$A$6:$K$39,4,0))) ->  | C15: =IF(A15="","",SUMIF(RIDOT_Catchment!$D$5:$D$79,A15,RIDOT_Catchment!$L$5:$L$79)+SUMIF('Non-RIDOT_Catchment'!$D$5:$D$52,A15,'Non-RIDOT_Catchment'!$L$5:$L$52)) ->  | D15: =IF(A15="","",SUMIF(RIDOT_Catchment!$D$5:$D$79,A15,RIDOT_Catchment!$F$5:$F$79)+SUMIF('Non-RIDOT_Catchment'!$D$5:$D$52,A15,'Non-RIDOT_Catchment'!$F$5:$F$52)) ->  | E15: =IF(A15="","",IFERROR(VLOOKUP(A15,Existing_STU!$A$6:$J$37,6,0),VLOOKUP(A15,Potential_STU!$A$6:$K$39,6,0))) ->  | G15: =IF(A15="","",IFERROR(VLOOKUP(A15,Existing_STU!$A$6:$J$37,5,0),VLOOKUP(A15,Potential_STU!$A$6:$K$39,5,0))) ->  | J15: =IF(ISBLANK(B15),"",IF(ISBLANK(G15),"",RowFunc(B15,G15))) -> 0 | K15: =IF(A15="","",SUMIF(RIDOT_Catchment!$D$5:$D$79,A15,RIDOT_Catchment!$N$5:$N$79)+SUMIF('Non-RIDOT_Catchment'!$D$5:$D$52,A15,'Non-RIDOT_Catchment'!$N$5:$N$52)) ->  | L15: =IFERROR(IF(I15>=0.5,INTERPRNG_h($F15,'STU Treatment Values'!$B$5:$K$27,0,1,$J15),INTERPRNG_h($F15,'STU Treatment Values'!$B$29:$K$51,0,1,$J15)),"") ->  | N15: =IF(A15="","",SUMIF(RIDOT_Catchment!$D$5:$D$79,A15,RIDOT_Catchment!$O$5:$O$79)+SUMIF('Non-RIDOT_Catchment'!$D$5:$D$52,A15,'Non-RIDOT_Catchment'!$O$5:$O$52)) ->  | O15: =IFERROR(IF(I15>=0.5,INTERPRNG_h($F15,'STU Treatment Values'!$N$5:$W$27,0,1,$J15),INTERPRNG_h($F15,'STU Treatment Values'!$N$29:$W$51,0,1,$J15)),"") ->  | Q15: =IF(A15="","",SUMIF(RIDOT_Catchment!$D$5:$D$79,A15,RIDOT_Catchment!$P$5:$P$79)+SUMIF('Non-RIDOT_Catchment'!$D$5:$D$52,A15,'Non-RIDOT_Catchment'!$P$5:$P$52)) ->  | R15: =IFERROR(IF(I15>=0.5,INTERPRNG_h($F15,'STU Treatment Values'!$Z$5:$AI$27,0,1,$J15),INTERPRNG_h($F15,'STU Treatment Values'!$Z$29:$AI$51,0,1,$J15)),"") ->  | T15: =IF(A15="","",SUMIF(RIDOT_Catchment!$D$5:$D$79,A15,RIDOT_Catchment!$Q$5:$Q$79)+SUMIF('Non-RIDOT_Catchment'!$D$5:$D$52,A15,'Non-RIDOT_Catchment'!$Q$5:$Q$52)) ->  | U15: =IFERROR(IF(I15>=0.5,INTERPRNG_h($F15,'STU Treatment Values'!$AL$5:$AU$27,0,1,$J15),INTERPRNG_h($F15,'STU Treatment Values'!$AL$29:$AU$51,0,1,$J15)),"") ->  | Z15: =IFERROR(INTERPRNG_h($F15,'STU Treatment Values'!$B$79:$K$101,0,1,$J15),"") ->  | AA15: =IFERROR(INTERPRNG_h($F15,'STU Treatment Values'!$B$54:$K$76,0,1,$J15),"") ->  | AD15: =IFERROR(INTERPRNG_h($F15,'STU Treatment Values'!$B$104:$K$126,0,1,$J15),"") -> 
B16: =IF(A16="","",IFERROR(VLOOKUP(A16,Existing_STU!$A$6:$J$37,4,0),VLOOKUP(A16,Potential_STU!$A$6:$K$39,4,0))) ->  | C16: =IF(A16="","",SUMIF(RIDOT_Catchment!$D$5:$D$79,A16,RIDOT_Catchment!$L$5:$L$79)+SUMIF('Non-RIDOT_Catchment'!$D$5:$D$52,A16,'Non-RIDOT_Catchment'!$L$5:$L$52)) ->  | D16: =IF(A16="","",SUMIF(RIDOT_Catchment!$D$5:$D$79,A16,RIDOT_Catchment!$F$5:$F$79)+SUMIF('Non-RIDOT_Catchment'!$D$5:$D$52,A16,'Non-RIDOT_Catchment'!$F$5:$F$52)) ->  | E16: =IF(A16="","",IFERROR(VLOOKUP(A16,Existing_STU!$A$6:$J$37,6,0),VLOOKUP(A16,Potential_STU!$A$6:$K$39,6,0))) ->  | G16: =IF(A16="","",IFERROR(VLOOKUP(A16,Existing_STU!$A$6:$J$37,5,0),VLOOKUP(A16,Potential_STU!$A$6:$K$39,5,0))) ->  | J16: =IF(ISBLANK(B16),"",IF(ISBLANK(G16),"",RowFunc(B16,G16))) -> 0 | K16: =IF(A16="","",SUMIF(RIDOT_Catchment!$D$5:$D$79,A16,RIDOT_Catchment!$N$5:$N$79)+SUMIF('Non-RIDOT_Catchment'!$D$5:$D$52,A16,'Non-RIDOT_Catchment'!$N$5:$N$52)) ->  | L16: =IFERROR(IF(I16>=0.5,INTERPRNG_h($F16,'STU Treatment Values'!$B$5:$K$27,0,1,$J16),INTERPRNG_h($F16,'STU Treatment Values'!$B$29:$K$51,0,1,$J16)),"") ->  | N16: =IF(A16="","",SUMIF(RIDOT_Catchment!$D$5:$D$79,A16,RIDOT_Catchment!$O$5:$O$79)+SUMIF('Non-RIDOT_Catchment'!$D$5:$D$52,A16,'Non-RIDOT_Catchment'!$O$5:$O$52)) ->  | O16: =IFERROR(IF(I16>=0.5,INTERPRNG_h($F16,'STU Treatment Values'!$N$5:$W$27,0,1,$J16),INTERPRNG_h($F16,'STU Treatment Values'!$N$29:$W$51,0,1,$J16)),"") ->  | Q16: =IF(A16="","",SUMIF(RIDOT_Catchment!$D$5:$D$79,A16,RIDOT_Catchment!$P$5:$P$79)+SUMIF('Non-RIDOT_Catchment'!$D$5:$D$52,A16,'Non-RIDOT_Catchment'!$P$5:$P$52)) ->  | R16: =IFERROR(IF(I16>=0.5,INTERPRNG_h($F16,'STU Treatment Values'!$Z$5:$AI$27,0,1,$J16),INTERPRNG_h($F16,'STU Treatment Values'!$Z$29:$AI$51,0,1,$J16)),"") ->  | T16: =IF(A16="","",SUMIF(RIDOT_Catchment!$D$5:$D$79,A16,RIDOT_Catchment!$Q$5:$Q$79)+SUMIF('Non-RIDOT_Catchment'!$D$5:$D$52,A16,'Non-RIDOT_Catchment'!$Q$5:$Q$52)) ->  | U16: =IFERROR(IF(I16>=0.5,INTERPRNG_h($F16,'STU Treatment Values'!$AL$5:$AU$27,0,1,$J16),INTERPRNG_h($F16,'STU Treatment Values'!$AL$29:$AU$51,0,1,$J16)),"") ->  | Z16: =IFERROR(INTERPRNG_h($F16,'STU Treatment Values'!$B$79:$K$101,0,1,$J16),"") ->  | AA16: =IFERROR(INTERPRNG_h($F16,'STU Treatment Values'!$B$54:$K$76,0,1,$J16),"") ->  | AD16: =IFERROR(INTERPRNG_h($F16,'STU Treatment Values'!$B$104:$K$126,0,1,$J16),"") -> 
B17: =IF(A17="","",IFERROR(VLOOKUP(A17,Existing_STU!$A$6:$J$37,4,0),VLOOKUP(A17,Potential_STU!$A$6:$K$39,4,0))) ->  | C17: =IF(A17="","",SUMIF(RIDOT_Catchment!$D$5:$D$79,A17,RIDOT_Catchment!$L$5:$L$79)+SUMIF('Non-RIDOT_Catchment'!$D$5:$D$52,A17,'Non-RIDOT_Catchment'!$L$5:$L$52)) ->  | D17: =IF(A17="","",SUMIF(RIDOT_Catchment!$D$5:$D$79,A17,RIDOT_Catchment!$F$5:$F$79)+SUMIF('Non-RIDOT_Catchment'!$D$5:$D$52,A17,'Non-RIDOT_Catchment'!$F$5:$F$52)) ->  | E17: =IF(A17="","",IFERROR(VLOOKUP(A17,Existing_STU!$A$6:$J$37,6,0),VLOOKUP(A17,Potential_STU!$A$6:$K$39,6,0))) ->  | G17: =IF(A17="","",IFERROR(VLOOKUP(A17,Existing_STU!$A$6:$J$37,5,0),VLOOKUP(A17,Potential_STU!$A$6:$K$39,5,0))) ->  | J17: =IF(ISBLANK(B17),"",IF(ISBLANK(G17),"",RowFunc(B17,G17))) -> 0 | K17: =IF(A17="","",SUMIF(RIDOT_Catchment!$D$5:$D$79,A17,RIDOT_Catchment!$N$5:$N$79)+SUMIF('Non-RIDOT_Catchment'!$D$5:$D$52,A17,'Non-RIDOT_Catchment'!$N$5:$N$52)) ->  | L17: =IFERROR(IF(I17>=0.5,INTERPRNG_h($F17,'STU Treatment Values'!$B$5:$K$27,0,1,$J17),INTERPRNG_h($F17,'STU Treatment Values'!$B$29:$K$51,0,1,$J17)),"") ->  | N17: =IF(A17="","",SUMIF(RIDOT_Catchment!$D$5:$D$79,A17,RIDOT_Catchment!$O$5:$O$79)+SUMIF('Non-RIDOT_Catchment'!$D$5:$D$52,A17,'Non-RIDOT_Catchment'!$O$5:$O$52)) ->  | O17: =IFERROR(IF(I17>=0.5,INTERPRNG_h($F17,'STU Treatment Values'!$N$5:$W$27,0,1,$J17),INTERPRNG_h($F17,'STU Treatment Values'!$N$29:$W$51,0,1,$J17)),"") ->  | Q17: =IF(A17="","",SUMIF(RIDOT_Catchment!$D$5:$D$79,A17,RIDOT_Catchment!$P$5:$P$79)+SUMIF('Non-RIDOT_Catchment'!$D$5:$D$52,A17,'Non-RIDOT_Catchment'!$P$5:$P$52)) ->  | R17: =IFERROR(IF(I17>=0.5,INTERPRNG_h($F17,'STU Treatment Values'!$Z$5:$AI$27,0,1,$J17),INTERPRNG_h($F17,'STU Treatment Values'!$Z$29:$AI$51,0,1,$J17)),"") ->  | T17: =IF(A17="","",SUMIF(RIDOT_Catchment!$D$5:$D$79,A17,RIDOT_Catchment!$Q$5:$Q$79)+SUMIF('Non-RIDOT_Catchment'!$D$5:$D$52,A17,'Non-RIDOT_Catchment'!$Q$5:$Q$52)) ->  | U17: =IFERROR(IF(I17>=0.5,INTERPRNG_h($F17,'STU Treatment Values'!$AL$5:$AU$27,0,1,$J17),INTERPRNG_h($F17,'STU Treatment Values'!$AL$29:$AU$51,0,1,$J17)),"") ->  | Z17: =IFERROR(INTERPRNG_h($F17,'STU Treatment Values'!$B$79:$K$101,0,1,$J17),"") ->  | AA17: =IFERROR(INTERPRNG_h($F17,'STU Treatment Values'!$B$54:$K$76,0,1,$J17),"") ->  | AD17: =IFERROR(INTERPRNG_h($F17,'STU Treatment Values'!$B$104:$K$126,0,1,$J17),"") -> 
B18: =IF(A18="","",IFERROR(VLOOKUP(A18,Existing_STU!$A$6:$J$37,4,0),VLOOKUP(A18,Potential_STU!$A$6:$K$39,4,0))) ->  | C18: =IF(A18="","",SUMIF(RIDOT_Catchment!$D$5:$D$79,A18,RIDOT_Catchment!$L$5:$L$79)+SUMIF('Non-RIDOT_Catchment'!$D$5:$D$52,A18,'Non-RIDOT_Catchment'!$L$5:$L$52)) ->  | D18: =IF(A18="","",SUMIF(RIDOT_Catchment!$D$5:$D$79,A18,RIDOT_Catchment!$F$5:$F$79)+SUMIF('Non-RIDOT_Catchment'!$D$5:$D$52,A18,'Non-RIDOT_Catchment'!$F$5:$F$52)) ->  | E18: =IF(A18="","",IFERROR(VLOOKUP(A18,Existing_STU!$A$6:$J$37,6,0),VLOOKUP(A18,Potential_STU!$A$6:$K$39,6,0))) ->  | G18: =IF(A18="","",IFERROR(VLOOKUP(A18,Existing_STU!$A$6:$J$37,5,0),VLOOKUP(A18,Potential_STU!$A$6:$K$39,5,0))) ->  | J18: =IF(ISBLANK(B18),"",IF(ISBLANK(G18),"",RowFunc(B18,G18))) -> 0 | K18: =IF(A18="","",SUMIF(RIDOT_Catchment!$D$5:$D$79,A18,RIDOT_Catchment!$N$5:$N$79)+SUMIF('Non-RIDOT_Catchment'!$D$5:$D$52,A18,'Non-RIDOT_Catchment'!$N$5:$N$52)) ->  | L18: =IFERROR(IF(I18>=0.5,INTERPRNG_h($F18,'STU Treatment Values'!$B$5:$K$27,0,1,$J18),INTERPRNG_h($F18,'STU Treatment Values'!$B$29:$K$51,0,1,$J18)),"") ->  | N18: =IF(A18="","",SUMIF(RIDOT_Catchment!$D$5:$D$79,A18,RIDOT_Catchment!$O$5:$O$79)+SUMIF('Non-RIDOT_Catchment'!$D$5:$D$52,A18,'Non-RIDOT_Catchment'!$O$5:$O$52)) ->  | O18: =IFERROR(IF(I18>=0.5,INTERPRNG_h($F18,'STU Treatment Values'!$N$5:$W$27,0,1,$J18),INTERPRNG_h($F18,'STU Treatment Values'!$N$29:$W$51,0,1,$J18)),"") ->  | Q18: =IF(A18="","",SUMIF(RIDOT_Catchment!$D$5:$D$79,A18,RIDOT_Catchment!$P$5:$P$79)+SUMIF('Non-RIDOT_Catchment'!$D$5:$D$52,A18,'Non-RIDOT_Catchment'!$P$5:$P$52)) ->  | R18: =IFERROR(IF(I18>=0.5,INTERPRNG_h($F18,'STU Treatment Values'!$Z$5:$AI$27,0,1,$J18),INTERPRNG_h($F18,'STU Treatment Values'!$Z$29:$AI$51,0,1,$J18)),"") ->  | T18: =IF(A18="","",SUMIF(RIDOT_Catchment!$D$5:$D$79,A18,RIDOT_Catchment!$Q$5:$Q$79)+SUMIF('Non-RIDOT_Catchment'!$D$5:$D$52,A18,'Non-RIDOT_Catchment'!$Q$5:$Q$52)) ->  | U18: =IFERROR(IF(I18>=0.5,INTERPRNG_h($F18,'STU Treatment Values'!$AL$5:$AU$27,0,1,$J18),INTERPRNG_h($F18,'STU Treatment Values'!$AL$29:$AU$51,0,1,$J18)),"") ->  | Z18: =IFERROR(INTERPRNG_h($F18,'STU Treatment Values'!$B$79:$K$101,0,1,$J18),"") ->  | AA18: =IFERROR(INTERPRNG_h($F18,'STU Treatment Values'!$B$54:$K$76,0,1,$J18),"") ->  | AD18: =IFERROR(INTERPRNG_h($F18,'STU Treatment Values'!$B$104:$K$126,0,1,$J18),"") -> 
B19: =IF(A19="","",IFERROR(VLOOKUP(A19,Existing_STU!$A$6:$J$37,4,0),VLOOKUP(A19,Potential_STU!$A$6:$K$39,4,0))) ->  | C19: =IF(A19="","",SUMIF(RIDOT_Catchment!$D$5:$D$79,A19,RIDOT_Catchment!$L$5:$L$79)+SUMIF('Non-RIDOT_Catchment'!$D$5:$D$52,A19,'Non-RIDOT_Catchment'!$L$5:$L$52)) ->  | D19: =IF(A19="","",SUMIF(RIDOT_Catchment!$D$5:$D$79,A19,RIDOT_Catchment!$F$5:$F$79)+SUMIF('Non-RIDOT_Catchment'!$D$5:$D$52,A19,'Non-RIDOT_Catchment'!$F$5:$F$52)) ->  | E19: =IF(A19="","",IFERROR(VLOOKUP(A19,Existing_STU!$A$6:$J$37,6,0),VLOOKUP(A19,Potential_STU!$A$6:$K$39,6,0))) ->  | G19: =IF(A19="","",IFERROR(VLOOKUP(A19,Existing_STU!$A$6:$J$37,5,0),VLOOKUP(A19,Potential_STU!$A$6:$K$39,5,0))) ->  | J19: =IF(ISBLANK(B19),"",IF(ISBLANK(G19),"",RowFunc(B19,G19))) -> 0 | K19: =IF(A19="","",SUMIF(RIDOT_Catchment!$D$5:$D$79,A19,RIDOT_Catchment!$N$5:$N$79)+SUMIF('Non-RIDOT_Catchment'!$D$5:$D$52,A19,'Non-RIDOT_Catchment'!$N$5:$N$52)) ->  | L19: =IFERROR(IF(I19>=0.5,INTERPRNG_h($F19,'STU Treatment Values'!$B$5:$K$27,0,1,$J19),INTERPRNG_h($F19,'STU Treatment Values'!$B$29:$K$51,0,1,$J19)),"") ->  | N19: =IF(A19="","",SUMIF(RIDOT_Catchment!$D$5:$D$79,A19,RIDOT_Catchment!$O$5:$O$79)+SUMIF('Non-RIDOT_Catchment'!$D$5:$D$52,A19,'Non-RIDOT_Catchment'!$O$5:$O$52)) ->  | O19: =IFERROR(IF(I19>=0.5,INTERPRNG_h($F19,'STU Treatment Values'!$N$5:$W$27,0,1,$J19),INTERPRNG_h($F19,'STU Treatment Values'!$N$29:$W$51,0,1,$J19)),"") ->  | Q19: =IF(A19="","",SUMIF(RIDOT_Catchment!$D$5:$D$79,A19,RIDOT_Catchment!$P$5:$P$79)+SUMIF('Non-RIDOT_Catchment'!$D$5:$D$52,A19,'Non-RIDOT_Catchment'!$P$5:$P$52)) ->  | R19: =IFERROR(IF(I19>=0.5,INTERPRNG_h($F19,'STU Treatment Values'!$Z$5:$AI$27,0,1,$J19),INTERPRNG_h($F19,'STU Treatment Values'!$Z$29:$AI$51,0,1,$J19)),"") ->  | T19: =IF(A19="","",SUMIF(RIDOT_Catchment!$D$5:$D$79,A19,RIDOT_Catchment!$Q$5:$Q$79)+SUMIF('Non-RIDOT_Catchment'!$D$5:$D$52,A19,'Non-RIDOT_Catchment'!$Q$5:$Q$52)) ->  | U19: =IFERROR(IF(I19>=0.5,INTERPRNG_h($F19,'STU Treatment Values'!$AL$5:$AU$27,0,1,$J19),INTERPRNG_h($F19,'STU Treatment Values'!$AL$29:$AU$51,0,1,$J19)),"") ->  | Z19: =IFERROR(INTERPRNG_h($F19,'STU Treatment Values'!$B$79:$K$101,0,1,$J19),"") ->  | AA19: =IFERROR(INTERPRNG_h($F19,'STU Treatment Values'!$B$54:$K$76,0,1,$J19),"") ->  | AD19: =IFERROR(INTERPRNG_h($F19,'STU Treatment Values'!$B$104:$K$126,0,1,$J19),"") -> 
B20: =IF(A20="","",IFERROR(VLOOKUP(A20,Existing_STU!$A$6:$J$37,4,0),VLOOKUP(A20,Potential_STU!$A$6:$K$39,4,0))) ->  | C20: =IF(A20="","",SUMIF(RIDOT_Catchment!$D$5:$D$79,A20,RIDOT_Catchment!$L$5:$L$79)+SUMIF('Non-RIDOT_Catchment'!$D$5:$D$52,A20,'Non-RIDOT_Catchment'!$L$5:$L$52)) ->  | D20: =IF(A20="","",SUMIF(RIDOT_Catchment!$D$5:$D$79,A20,RIDOT_Catchment!$F$5:$F$79)+SUMIF('Non-RIDOT_Catchment'!$D$5:$D$52,A20,'Non-RIDOT_Catchment'!$F$5:$F$52)) ->  | E20: =IF(A20="","",IFERROR(VLOOKUP(A20,Existing_STU!$A$6:$J$37,6,0),VLOOKUP(A20,Potential_STU!$A$6:$K$39,6,0))) ->  | G20: =IF(A20="","",IFERROR(VLOOKUP(A20,Existing_STU!$A$6:$J$37,5,0),VLOOKUP(A20,Potential_STU!$A$6:$K$39,5,0))) ->  | J20: =IF(ISBLANK(B20),"",IF(ISBLANK(G20),"",RowFunc(B20,G20))) -> 0 | K20: =IF(A20="","",SUMIF(RIDOT_Catchment!$D$5:$D$79,A20,RIDOT_Catchment!$N$5:$N$79)+SUMIF('Non-RIDOT_Catchment'!$D$5:$D$52,A20,'Non-RIDOT_Catchment'!$N$5:$N$52)) ->  | L20: =IFERROR(IF(I20>=0.5,INTERPRNG_h($F20,'STU Treatment Values'!$B$5:$K$27,0,1,$J20),INTERPRNG_h($F20,'STU Treatment Values'!$B$29:$K$51,0,1,$J20)),"") ->  | N20: =IF(A20="","",SUMIF(RIDOT_Catchment!$D$5:$D$79,A20,RIDOT_Catchment!$O$5:$O$79)+SUMIF('Non-RIDOT_Catchment'!$D$5:$D$52,A20,'Non-RIDOT_Catchment'!$O$5:$O$52)) ->  | O20: =IFERROR(IF(I20>=0.5,INTERPRNG_h($F20,'STU Treatment Values'!$N$5:$W$27,0,1,$J20),INTERPRNG_h($F20,'STU Treatment Values'!$N$29:$W$51,0,1,$J20)),"") ->  | Q20: =IF(A20="","",SUMIF(RIDOT_Catchment!$D$5:$D$79,A20,RIDOT_Catchment!$P$5:$P$79)+SUMIF('Non-RIDOT_Catchment'!$D$5:$D$52,A20,'Non-RIDOT_Catchment'!$P$5:$P$52)) ->  | R20: =IFERROR(IF(I20>=0.5,INTERPRNG_h($F20,'STU Treatment Values'!$Z$5:$AI$27,0,1,$J20),INTERPRNG_h($F20,'STU Treatment Values'!$Z$29:$AI$51,0,1,$J20)),"") ->  | T20: =IF(A20="","",SUMIF(RIDOT_Catchment!$D$5:$D$79,A20,RIDOT_Catchment!$Q$5:$Q$79)+SUMIF('Non-RIDOT_Catchment'!$D$5:$D$52,A20,'Non-RIDOT_Catchment'!$Q$5:$Q$52)) ->  | U20: =IFERROR(IF(I20>=0.5,INTERPRNG_h($F20,'STU Treatment Values'!$AL$5:$AU$27,0,1,$J20),INTERPRNG_h($F20,'STU Treatment Values'!$AL$29:$AU$51,0,1,$J20)),"") ->  | Z20: =IFERROR(INTERPRNG_h($F20,'STU Treatment Values'!$B$79:$K$101,0,1,$J20),"") ->  | AA20: =IFERROR(INTERPRNG_h($F20,'STU Treatment Values'!$B$54:$K$76,0,1,$J20),"") ->  | AD20: =IFERROR(INTERPRNG_h($F20,'STU Treatment Values'!$B$104:$K$126,0,1,$J20),"") -> 
B21: =IF(A21="","",IFERROR(VLOOKUP(A21,Existing_STU!$A$6:$J$37,4,0),VLOOKUP(A21,Potential_STU!$A$6:$K$39,4,0))) ->  | C21: =IF(A21="","",SUMIF(RIDOT_Catchment!$D$5:$D$79,A21,RIDOT_Catchment!$L$5:$L$79)+SUMIF('Non-RIDOT_Catchment'!$D$5:$D$52,A21,'Non-RIDOT_Catchment'!$L$5:$L$52)) ->  | D21: =IF(A21="","",SUMIF(RIDOT_Catchment!$D$5:$D$79,A21,RIDOT_Catchment!$F$5:$F$79)+SUMIF('Non-RIDOT_Catchment'!$D$5:$D$52,A21,'Non-RIDOT_Catchment'!$F$5:$F$52)) ->  | E21: =IF(A21="","",IFERROR(VLOOKUP(A21,Existing_STU!$A$6:$J$37,6,0),VLOOKUP(A21,Potential_STU!$A$6:$K$39,6,0))) ->  | G21: =IF(A21="","",IFERROR(VLOOKUP(A21,Existing_STU!$A$6:$J$37,5,0),VLOOKUP(A21,Potential_STU!$A$6:$K$39,5,0))) ->  | J21: =IF(ISBLANK(B21),"",IF(ISBLANK(G21),"",RowFunc(B21,G21))) -> 0 | K21: =IF(A21="","",SUMIF(RIDOT_Catchment!$D$5:$D$79,A21,RIDOT_Catchment!$N$5:$N$79)+SUMIF('Non-RIDOT_Catchment'!$D$5:$D$52,A21,'Non-RIDOT_Catchment'!$N$5:$N$52)) ->  | L21: =IFERROR(IF(I21>=0.5,INTERPRNG_h($F21,'STU Treatment Values'!$B$5:$K$27,0,1,$J21),INTERPRNG_h($F21,'STU Treatment Values'!$B$29:$K$51,0,1,$J21)),"") ->  | N21: =IF(A21="","",SUMIF(RIDOT_Catchment!$D$5:$D$79,A21,RIDOT_Catchment!$O$5:$O$79)+SUMIF('Non-RIDOT_Catchment'!$D$5:$D$52,A21,'Non-RIDOT_Catchment'!$O$5:$O$52)) ->  | O21: =IFERROR(IF(I21>=0.5,INTERPRNG_h($F21,'STU Treatment Values'!$N$5:$W$27,0,1,$J21),INTERPRNG_h($F21,'STU Treatment Values'!$N$29:$W$51,0,1,$J21)),"") ->  | Q21: =IF(A21="","",SUMIF(RIDOT_Catchment!$D$5:$D$79,A21,RIDOT_Catchment!$P$5:$P$79)+SUMIF('Non-RIDOT_Catchment'!$D$5:$D$52,A21,'Non-RIDOT_Catchment'!$P$5:$P$52)) ->  | R21: =IFERROR(IF(I21>=0.5,INTERPRNG_h($F21,'STU Treatment Values'!$Z$5:$AI$27,0,1,$J21),INTERPRNG_h($F21,'STU Treatment Values'!$Z$29:$AI$51,0,1,$J21)),"") ->  | T21: =IF(A21="","",SUMIF(RIDOT_Catchment!$D$5:$D$79,A21,RIDOT_Catchment!$Q$5:$Q$79)+SUMIF('Non-RIDOT_Catchment'!$D$5:$D$52,A21,'Non-RIDOT_Catchment'!$Q$5:$Q$52)) ->  | U21: =IFERROR(IF(I21>=0.5,INTERPRNG_h($F21,'STU Treatment Values'!$AL$5:$AU$27,0,1,$J21),INTERPRNG_h($F21,'STU Treatment Values'!$AL$29:$AU$51,0,1,$J21)),"") ->  | Z21: =IFERROR(INTERPRNG_h($F21,'STU Treatment Values'!$B$79:$K$101,0,1,$J21),"") ->  | AA21: =IFERROR(INTERPRNG_h($F21,'STU Treatment Values'!$B$54:$K$76,0,1,$J21),"") ->  | AD21: =IFERROR(INTERPRNG_h($F21,'STU Treatment Values'!$B$104:$K$126,0,1,$J21),"") -> 
B22: =IF(A22="","",IFERROR(VLOOKUP(A22,Existing_STU!$A$6:$J$37,4,0),VLOOKUP(A22,Potential_STU!$A$6:$K$39,4,0))) ->  | C22: =IF(A22="","",SUMIF(RIDOT_Catchment!$D$5:$D$79,A22,RIDOT_Catchment!$L$5:$L$79)+SUMIF('Non-RIDOT_Catchment'!$D$5:$D$52,A22,'Non-RIDOT_Catchment'!$L$5:$L$52)) ->  | D22: =IF(A22="","",SUMIF(RIDOT_Catchment!$D$5:$D$79,A22,RIDOT_Catchment!$F$5:$F$79)+SUMIF('Non-RIDOT_Catchment'!$D$5:$D$52,A22,'Non-RIDOT_Catchment'!$F$5:$F$52)) ->  | E22: =IF(A22="","",IFERROR(VLOOKUP(A22,Existing_STU!$A$6:$J$37,6,0),VLOOKUP(A22,Potential_STU!$A$6:$K$39,6,0))) ->  | G22: =IF(A22="","",IFERROR(VLOOKUP(A22,Existing_STU!$A$6:$J$37,5,0),VLOOKUP(A22,Potential_STU!$A$6:$K$39,5,0))) ->  | J22: =IF(ISBLANK(B22),"",IF(ISBLANK(G22),"",RowFunc(B22,G22))) -> 0 | K22: =IF(A22="","",SUMIF(RIDOT_Catchment!$D$5:$D$79,A22,RIDOT_Catchment!$N$5:$N$79)+SUMIF('Non-RIDOT_Catchment'!$D$5:$D$52,A22,'Non-RIDOT_Catchment'!$N$5:$N$52)) ->  | L22: =IFERROR(IF(I22>=0.5,INTERPRNG_h($F22,'STU Treatment Values'!$B$5:$K$27,0,1,$J22),INTERPRNG_h($F22,'STU Treatment Values'!$B$29:$K$51,0,1,$J22)),"") ->  | N22: =IF(A22="","",SUMIF(RIDOT_Catchment!$D$5:$D$79,A22,RIDOT_Catchment!$O$5:$O$79)+SUMIF('Non-RIDOT_Catchment'!$D$5:$D$52,A22,'Non-RIDOT_Catchment'!$O$5:$O$52)) ->  | O22: =IFERROR(IF(I22>=0.5,INTERPRNG_h($F22,'STU Treatment Values'!$N$5:$W$27,0,1,$J22),INTERPRNG_h($F22,'STU Treatment Values'!$N$29:$W$51,0,1,$J22)),"") ->  | Q22: =IF(A22="","",SUMIF(RIDOT_Catchment!$D$5:$D$79,A22,RIDOT_Catchment!$P$5:$P$79)+SUMIF('Non-RIDOT_Catchment'!$D$5:$D$52,A22,'Non-RIDOT_Catchment'!$P$5:$P$52)) ->  | R22: =IFERROR(IF(I22>=0.5,INTERPRNG_h($F22,'STU Treatment Values'!$Z$5:$AI$27,0,1,$J22),INTERPRNG_h($F22,'STU Treatment Values'!$Z$29:$AI$51,0,1,$J22)),"") ->  | T22: =IF(A22="","",SUMIF(RIDOT_Catchment!$D$5:$D$79,A22,RIDOT_Catchment!$Q$5:$Q$79)+SUMIF('Non-RIDOT_Catchment'!$D$5:$D$52,A22,'Non-RIDOT_Catchment'!$Q$5:$Q$52)) ->  | U22: =IFERROR(IF(I22>=0.5,INTERPRNG_h($F22,'STU Treatment Values'!$AL$5:$AU$27,0,1,$J22),INTERPRNG_h($F22,'STU Treatment Values'!$AL$29:$AU$51,0,1,$J22)),"") ->  | Z22: =IFERROR(INTERPRNG_h($F22,'STU Treatment Values'!$B$79:$K$101,0,1,$J22),"") ->  | AA22: =IFERROR(INTERPRNG_h($F22,'STU Treatment Values'!$B$54:$K$76,0,1,$J22),"") ->  | AD22: =IFERROR(INTERPRNG_h($F22,'STU Treatment Values'!$B$104:$K$126,0,1,$J22),"") -> 
B23: =IF(A23="","",IFERROR(VLOOKUP(A23,Existing_STU!$A$6:$J$37,4,0),VLOOKUP(A23,Potential_STU!$A$6:$K$39,4,0))) ->  | C23: =IF(A23="","",SUMIF(RIDOT_Catchment!$D$5:$D$79,A23,RIDOT_Catchment!$L$5:$L$79)+SUMIF('Non-RIDOT_Catchment'!$D$5:$D$52,A23,'Non-RIDOT_Catchment'!$L$5:$L$52)) ->  | D23: =IF(A23="","",SUMIF(RIDOT_Catchment!$D$5:$D$79,A23,RIDOT_Catchment!$F$5:$F$79)+SUMIF('Non-RIDOT_Catchment'!$D$5:$D$52,A23,'Non-RIDOT_Catchment'!$F$5:$F$52)) ->  | E23: =IF(A23="","",IFERROR(VLOOKUP(A23,Existing_STU!$A$6:$J$37,6,0),VLOOKUP(A23,Potential_STU!$A$6:$K$39,6,0))) ->  | G23: =IF(A23="","",IFERROR(VLOOKUP(A23,Existing_STU!$A$6:$J$37,5,0),VLOOKUP(A23,Potential_STU!$A$6:$K$39,5,0))) ->  | J23: =IF(ISBLANK(B23),"",IF(ISBLANK(G23),"",RowFunc(B23,G23))) -> 0 | K23: =IF(A23="","",SUMIF(RIDOT_Catchment!$D$5:$D$79,A23,RIDOT_Catchment!$N$5:$N$79)+SUMIF('Non-RIDOT_Catchment'!$D$5:$D$52,A23,'Non-RIDOT_Catchment'!$N$5:$N$52)) ->  | L23: =IFERROR(IF(I23>=0.5,INTERPRNG_h($F23,'STU Treatment Values'!$B$5:$K$27,0,1,$J23),INTERPRNG_h($F23,'STU Treatment Values'!$B$29:$K$51,0,1,$J23)),"") ->  | N23: =IF(A23="","",SUMIF(RIDOT_Catchment!$D$5:$D$79,A23,RIDOT_Catchment!$O$5:$O$79)+SUMIF('Non-RIDOT_Catchment'!$D$5:$D$52,A23,'Non-RIDOT_Catchment'!$O$5:$O$52)) ->  | O23: =IFERROR(IF(I23>=0.5,INTERPRNG_h($F23,'STU Treatment Values'!$N$5:$W$27,0,1,$J23),INTERPRNG_h($F23,'STU Treatment Values'!$N$29:$W$51,0,1,$J23)),"") ->  | Q23: =IF(A23="","",SUMIF(RIDOT_Catchment!$D$5:$D$79,A23,RIDOT_Catchment!$P$5:$P$79)+SUMIF('Non-RIDOT_Catchment'!$D$5:$D$52,A23,'Non-RIDOT_Catchment'!$P$5:$P$52)) ->  | R23: =IFERROR(IF(I23>=0.5,INTERPRNG_h($F23,'STU Treatment Values'!$Z$5:$AI$27,0,1,$J23),INTERPRNG_h($F23,'STU Treatment Values'!$Z$29:$AI$51,0,1,$J23)),"") ->  | T23: =IF(A23="","",SUMIF(RIDOT_Catchment!$D$5:$D$79,A23,RIDOT_Catchment!$Q$5:$Q$79)+SUMIF('Non-RIDOT_Catchment'!$D$5:$D$52,A23,'Non-RIDOT_Catchment'!$Q$5:$Q$52)) ->  | U23: =IFERROR(IF(I23>=0.5,INTERPRNG_h($F23,'STU Treatment Values'!$AL$5:$AU$27,0,1,$J23),INTERPRNG_h($F23,'STU Treatment Values'!$AL$29:$AU$51,0,1,$J23)),"") ->  | Z23: =IFERROR(INTERPRNG_h($F23,'STU Treatment Values'!$B$79:$K$101,0,1,$J23),"") ->  | AA23: =IFERROR(INTERPRNG_h($F23,'STU Treatment Values'!$B$54:$K$76,0,1,$J23),"") ->  | AD23: =IFERROR(INTERPRNG_h($F23,'STU Treatment Values'!$B$104:$K$126,0,1,$J23),"") -> 
B24: =IF(A24="","",IFERROR(VLOOKUP(A24,Existing_STU!$A$6:$J$37,4,0),VLOOKUP(A24,Potential_STU!$A$6:$K$39,4,0))) ->  | C24: =IF(A24="","",SUMIF(RIDOT_Catchment!$D$5:$D$79,A24,RIDOT_Catchment!$L$5:$L$79)+SUMIF('Non-RIDOT_Catchment'!$D$5:$D$52,A24,'Non-RIDOT_Catchment'!$L$5:$L$52)) ->  | D24: =IF(A24="","",SUMIF(RIDOT_Catchment!$D$5:$D$79,A24,RIDOT_Catchment!$F$5:$F$79)+SUMIF('Non-RIDOT_Catchment'!$D$5:$D$52,A24,'Non-RIDOT_Catchment'!$F$5:$F$52)) ->  | E24: =IF(A24="","",IFERROR(VLOOKUP(A24,Existing_STU!$A$6:$J$37,6,0),VLOOKUP(A24,Potential_STU!$A$6:$K$39,6,0))) ->  | G24: =IF(A24="","",IFERROR(VLOOKUP(A24,Existing_STU!$A$6:$J$37,5,0),VLOOKUP(A24,Potential_STU!$A$6:$K$39,5,0))) ->  | J24: =IF(ISBLANK(B24),"",IF(ISBLANK(G24),"",RowFunc(B24,G24))) -> 0 | K24: =IF(A24="","",SUMIF(RIDOT_Catchment!$D$5:$D$79,A24,RIDOT_Catchment!$N$5:$N$79)+SUMIF('Non-RIDOT_Catchment'!$D$5:$D$52,A24,'Non-RIDOT_Catchment'!$N$5:$N$52)) ->  | L24: =IFERROR(IF(I24>=0.5,INTERPRNG_h($F24,'STU Treatment Values'!$B$5:$K$27,0,1,$J24),INTERPRNG_h($F24,'STU Treatment Values'!$B$29:$K$51,0,1,$J24)),"") ->  | N24: =IF(A24="","",SUMIF(RIDOT_Catchment!$D$5:$D$79,A24,RIDOT_Catchment!$O$5:$O$79)+SUMIF('Non-RIDOT_Catchment'!$D$5:$D$52,A24,'Non-RIDOT_Catchment'!$O$5:$O$52)) ->  | O24: =IFERROR(IF(I24>=0.5,INTERPRNG_h($F24,'STU Treatment Values'!$N$5:$W$27,0,1,$J24),INTERPRNG_h($F24,'STU Treatment Values'!$N$29:$W$51,0,1,$J24)),"") ->  | Q24: =IF(A24="","",SUMIF(RIDOT_Catchment!$D$5:$D$79,A24,RIDOT_Catchment!$P$5:$P$79)+SUMIF('Non-RIDOT_Catchment'!$D$5:$D$52,A24,'Non-RIDOT_Catchment'!$P$5:$P$52)) ->  | R24: =IFERROR(IF(I24>=0.5,INTERPRNG_h($F24,'STU Treatment Values'!$Z$5:$AI$27,0,1,$J24),INTERPRNG_h($F24,'STU Treatment Values'!$Z$29:$AI$51,0,1,$J24)),"") ->  | T24: =IF(A24="","",SUMIF(RIDOT_Catchment!$D$5:$D$79,A24,RIDOT_Catchment!$Q$5:$Q$79)+SUMIF('Non-RIDOT_Catchment'!$D$5:$D$52,A24,'Non-RIDOT_Catchment'!$Q$5:$Q$52)) ->  | U24: =IFERROR(IF(I24>=0.5,INTERPRNG_h($F24,'STU Treatment Values'!$AL$5:$AU$27,0,1,$J24),INTERPRNG_h($F24,'STU Treatment Values'!$AL$29:$AU$51,0,1,$J24)),"") ->  | Z24: =IFERROR(INTERPRNG_h($F24,'STU Treatment Values'!$B$79:$K$101,0,1,$J24),"") ->  | AA24: =IFERROR(INTERPRNG_h($F24,'STU Treatment Values'!$B$54:$K$76,0,1,$J24),"") ->  | AD24: =IFERROR(INTERPRNG_h($F24,'STU Treatment Values'!$B$104:$K$126,0,1,$J24),"") -> 
B25: =IF(A25="","",IFERROR(VLOOKUP(A25,Existing_STU!$A$6:$J$37,4,0),VLOOKUP(A25,Potential_STU!$A$6:$K$39,4,0))) ->  | C25: =IF(A25="","",SUMIF(RIDOT_Catchment!$D$5:$D$79,A25,RIDOT_Catchment!$L$5:$L$79)+SUMIF('Non-RIDOT_Catchment'!$D$5:$D$52,A25,'Non-RIDOT_Catchment'!$L$5:$L$52)) ->  | D25: =IF(A25="","",SUMIF(RIDOT_Catchment!$D$5:$D$79,A25,RIDOT_Catchment!$F$5:$F$79)+SUMIF('Non-RIDOT_Catchment'!$D$5:$D$52,A25,'Non-RIDOT_Catchment'!$F$5:$F$52)) ->  | E25: =IF(A25="","",IFERROR(VLOOKUP(A25,Existing_STU!$A$6:$J$37,6,0),VLOOKUP(A25,Potential_STU!$A$6:$K$39,6,0))) ->  | G25: =IF(A25="","",IFERROR(VLOOKUP(A25,Existing_STU!$A$6:$J$37,5,0),VLOOKUP(A25,Potential_STU!$A$6:$K$39,5,0))) ->  | J25: =IF(ISBLANK(B25),"",IF(ISBLANK(G25),"",RowFunc(B25,G25))) -> 0 | K25: =IF(A25="","",SUMIF(RIDOT_Catchment!$D$5:$D$79,A25,RIDOT_Catchment!$N$5:$N$79)+SUMIF('Non-RIDOT_Catchment'!$D$5:$D$52,A25,'Non-RIDOT_Catchment'!$N$5:$N$52)) ->  | L25: =IFERROR(IF(I25>=0.5,INTERPRNG_h($F25,'STU Treatment Values'!$B$5:$K$27,0,1,$J25),INTERPRNG_h($F25,'STU Treatment Values'!$B$29:$K$51,0,1,$J25)),"") ->  | N25: =IF(A25="","",SUMIF(RIDOT_Catchment!$D$5:$D$79,A25,RIDOT_Catchment!$O$5:$O$79)+SUMIF('Non-RIDOT_Catchment'!$D$5:$D$52,A25,'Non-RIDOT_Catchment'!$O$5:$O$52)) ->  | O25: =IFERROR(IF(I25>=0.5,INTERPRNG_h($F25,'STU Treatment Values'!$N$5:$W$27,0,1,$J25),INTERPRNG_h($F25,'STU Treatment Values'!$N$29:$W$51,0,1,$J25)),"") ->  | Q25: =IF(A25="","",SUMIF(RIDOT_Catchment!$D$5:$D$79,A25,RIDOT_Catchment!$P$5:$P$79)+SUMIF('Non-RIDOT_Catchment'!$D$5:$D$52,A25,'Non-RIDOT_Catchment'!$P$5:$P$52)) ->  | R25: =IFERROR(IF(I25>=0.5,INTERPRNG_h($F25,'STU Treatment Values'!$Z$5:$AI$27,0,1,$J25),INTERPRNG_h($F25,'STU Treatment Values'!$Z$29:$AI$51,0,1,$J25)),"") ->  | T25: =IF(A25="","",SUMIF(RIDOT_Catchment!$D$5:$D$79,A25,RIDOT_Catchment!$Q$5:$Q$79)+SUMIF('Non-RIDOT_Catchment'!$D$5:$D$52,A25,'Non-RIDOT_Catchment'!$Q$5:$Q$52)) ->  | U25: =IFERROR(IF(I25>=0.5,INTERPRNG_h($F25,'STU Treatment Values'!$AL$5:$AU$27,0,1,$J25),INTERPRNG_h($F25,'STU Treatment Values'!$AL$29:$AU$51,0,1,$J25)),"") ->  | Z25: =IFERROR(INTERPRNG_h($F25,'STU Treatment Values'!$B$79:$K$101,0,1,$J25),"") ->  | AA25: =IFERROR(INTERPRNG_h($F25,'STU Treatment Values'!$B$54:$K$76,0,1,$J25),"") ->  | AD25: =IFERROR(INTERPRNG_h($F25,'STU Treatment Values'!$B$104:$K$126,0,1,$J25),"") -> 
B26: =IF(A26="","",IFERROR(VLOOKUP(A26,Existing_STU!$A$6:$J$37,4,0),VLOOKUP(A26,Potential_STU!$A$6:$K$39,4,0))) ->  | C26: =IF(A26="","",SUMIF(RIDOT_Catchment!$D$5:$D$79,A26,RIDOT_Catchment!$L$5:$L$79)+SUMIF('Non-RIDOT_Catchment'!$D$5:$D$52,A26,'Non-RIDOT_Catchment'!$L$5:$L$52)) ->  | D26: =IF(A26="","",SUMIF(RIDOT_Catchment!$D$5:$D$79,A26,RIDOT_Catchment!$F$5:$F$79)+SUMIF('Non-RIDOT_Catchment'!$D$5:$D$52,A26,'Non-RIDOT_Catchment'!$F$5:$F$52)) ->  | E26: =IF(A26="","",IFERROR(VLOOKUP(A26,Existing_STU!$A$6:$J$37,6,0),VLOOKUP(A26,Potential_STU!$A$6:$K$39,6,0))) ->  | G26: =IF(A26="","",IFERROR(VLOOKUP(A26,Existing_STU!$A$6:$J$37,5,0),VLOOKUP(A26,Potential_STU!$A$6:$K$39,5,0))) ->  | J26: =IF(ISBLANK(B26),"",IF(ISBLANK(G26),"",RowFunc(B26,G26))) -> 0 | K26: =IF(A26="","",SUMIF(RIDOT_Catchment!$D$5:$D$79,A26,RIDOT_Catchment!$N$5:$N$79)+SUMIF('Non-RIDOT_Catchment'!$D$5:$D$52,A26,'Non-RIDOT_Catchment'!$N$5:$N$52)) ->  | L26: =IFERROR(IF(I26>=0.5,INTERPRNG_h($F26,'STU Treatment Values'!$B$5:$K$27,0,1,$J26),INTERPRNG_h($F26,'STU Treatment Values'!$B$29:$K$51,0,1,$J26)),"") ->  | N26: =IF(A26="","",SUMIF(RIDOT_Catchment!$D$5:$D$79,A26,RIDOT_Catchment!$O$5:$O$79)+SUMIF('Non-RIDOT_Catchment'!$D$5:$D$52,A26,'Non-RIDOT_Catchment'!$O$5:$O$52)) ->  | O26: =IFERROR(IF(I26>=0.5,INTERPRNG_h($F26,'STU Treatment Values'!$N$5:$W$27,0,1,$J26),INTERPRNG_h($F26,'STU Treatment Values'!$N$29:$W$51,0,1,$J26)),"") ->  | Q26: =IF(A26="","",SUMIF(RIDOT_Catchment!$D$5:$D$79,A26,RIDOT_Catchment!$P$5:$P$79)+SUMIF('Non-RIDOT_Catchment'!$D$5:$D$52,A26,'Non-RIDOT_Catchment'!$P$5:$P$52)) ->  | R26: =IFERROR(IF(I26>=0.5,INTERPRNG_h($F26,'STU Treatment Values'!$Z$5:$AI$27,0,1,$J26),INTERPRNG_h($F26,'STU Treatment Values'!$Z$29:$AI$51,0,1,$J26)),"") ->  | T26: =IF(A26="","",SUMIF(RIDOT_Catchment!$D$5:$D$79,A26,RIDOT_Catchment!$Q$5:$Q$79)+SUMIF('Non-RIDOT_Catchment'!$D$5:$D$52,A26,'Non-RIDOT_Catchment'!$Q$5:$Q$52)) ->  | U26: =IFERROR(IF(I26>=0.5,INTERPRNG_h($F26,'STU Treatment Values'!$AL$5:$AU$27,0,1,$J26),INTERPRNG_h($F26,'STU Treatment Values'!$AL$29:$AU$51,0,1,$J26)),"") ->  | Z26: =IFERROR(INTERPRNG_h($F26,'STU Treatment Values'!$B$79:$K$101,0,1,$J26),"") ->  | AA26: =IFERROR(INTERPRNG_h($F26,'STU Treatment Values'!$B$54:$K$76,0,1,$J26),"") ->  | AD26: =IFERROR(INTERPRNG_h($F26,'STU Treatment Values'!$B$104:$K$126,0,1,$J26),"") -> 
B27: =IF(A27="","",IFERROR(VLOOKUP(A27,Existing_STU!$A$6:$J$37,4,0),VLOOKUP(A27,Potential_STU!$A$6:$K$39,4,0))) ->  | C27: =IF(A27="","",SUMIF(RIDOT_Catchment!$D$5:$D$79,A27,RIDOT_Catchment!$L$5:$L$79)+SUMIF('Non-RIDOT_Catchment'!$D$5:$D$52,A27,'Non-RIDOT_Catchment'!$L$5:$L$52)) ->  | D27: =IF(A27="","",SUMIF(RIDOT_Catchment!$D$5:$D$79,A27,RIDOT_Catchment!$F$5:$F$79)+SUMIF('Non-RIDOT_Catchment'!$D$5:$D$52,A27,'Non-RIDOT_Catchment'!$F$5:$F$52)) ->  | E27: =IF(A27="","",IFERROR(VLOOKUP(A27,Existing_STU!$A$6:$J$37,6,0),VLOOKUP(A27,Potential_STU!$A$6:$K$39,6,0))) ->  | G27: =IF(A27="","",IFERROR(VLOOKUP(A27,Existing_STU!$A$6:$J$37,5,0),VLOOKUP(A27,Potential_STU!$A$6:$K$39,5,0))) ->  | J27: =IF(ISBLANK(B27),"",IF(ISBLANK(G27),"",RowFunc(B27,G27))) -> 0 | K27: =IF(A27="","",SUMIF(RIDOT_Catchment!$D$5:$D$79,A27,RIDOT_Catchment!$N$5:$N$79)+SUMIF('Non-RIDOT_Catchment'!$D$5:$D$52,A27,'Non-RIDOT_Catchment'!$N$5:$N$52)) ->  | L27: =IFERROR(IF(I27>=0.5,INTERPRNG_h($F27,'STU Treatment Values'!$B$5:$K$27,0,1,$J27),INTERPRNG_h($F27,'STU Treatment Values'!$B$29:$K$51,0,1,$J27)),"") ->  | N27: =IF(A27="","",SUMIF(RIDOT_Catchment!$D$5:$D$79,A27,RIDOT_Catchment!$O$5:$O$79)+SUMIF('Non-RIDOT_Catchment'!$D$5:$D$52,A27,'Non-RIDOT_Catchment'!$O$5:$O$52)) ->  | O27: =IFERROR(IF(I27>=0.5,INTERPRNG_h($F27,'STU Treatment Values'!$N$5:$W$27,0,1,$J27),INTERPRNG_h($F27,'STU Treatment Values'!$N$29:$W$51,0,1,$J27)),"") ->  | Q27: =IF(A27="","",SUMIF(RIDOT_Catchment!$D$5:$D$79,A27,RIDOT_Catchment!$P$5:$P$79)+SUMIF('Non-RIDOT_Catchment'!$D$5:$D$52,A27,'Non-RIDOT_Catchment'!$P$5:$P$52)) ->  | R27: =IFERROR(IF(I27>=0.5,INTERPRNG_h($F27,'STU Treatment Values'!$Z$5:$AI$27,0,1,$J27),INTERPRNG_h($F27,'STU Treatment Values'!$Z$29:$AI$51,0,1,$J27)),"") ->  | T27: =IF(A27="","",SUMIF(RIDOT_Catchment!$D$5:$D$79,A27,RIDOT_Catchment!$Q$5:$Q$79)+SUMIF('Non-RIDOT_Catchment'!$D$5:$D$52,A27,'Non-RIDOT_Catchment'!$Q$5:$Q$52)) ->  | U27: =IFERROR(IF(I27>=0.5,INTERPRNG_h($F27,'STU Treatment Values'!$AL$5:$AU$27,0,1,$J27),INTERPRNG_h($F27,'STU Treatment Values'!$AL$29:$AU$51,0,1,$J27)),"") ->  | Z27: =IFERROR(INTERPRNG_h($F27,'STU Treatment Values'!$B$79:$K$101,0,1,$J27),"") ->  | AA27: =IFERROR(INTERPRNG_h($F27,'STU Treatment Values'!$B$54:$K$76,0,1,$J27),"") ->  | AD27: =IFERROR(INTERPRNG_h($F27,'STU Treatment Values'!$B$104:$K$126,0,1,$J27),"") -> 
B28: =IF(A28="","",IFERROR(VLOOKUP(A28,Existing_STU!$A$6:$J$37,4,0),VLOOKUP(A28,Potential_STU!$A$6:$K$39,4,0))) ->  | C28: =IF(A28="","",SUMIF(RIDOT_Catchment!$D$5:$D$79,A28,RIDOT_Catchment!$L$5:$L$79)+SUMIF('Non-RIDOT_Catchment'!$D$5:$D$52,A28,'Non-RIDOT_Catchment'!$L$5:$L$52)) ->  | D28: =IF(A28="","",SUMIF(RIDOT_Catchment!$D$5:$D$79,A28,RIDOT_Catchment!$F$5:$F$79)+SUMIF('Non-RIDOT_Catchment'!$D$5:$D$52,A28,'Non-RIDOT_Catchment'!$F$5:$F$52)) ->  | E28: =IF(A28="","",IFERROR(VLOOKUP(A28,Existing_STU!$A$6:$J$37,6,0),VLOOKUP(A28,Potential_STU!$A$6:$K$39,6,0))) ->  | G28: =IF(A28="","",IFERROR(VLOOKUP(A28,Existing_STU!$A$6:$J$37,5,0),VLOOKUP(A28,Potential_STU!$A$6:$K$39,5,0))) ->  | J28: =IF(ISBLANK(B28),"",IF(ISBLANK(G28),"",RowFunc(B28,G28))) -> 0 | K28: =IF(A28="","",SUMIF(RIDOT_Catchment!$D$5:$D$79,A28,RIDOT_Catchment!$N$5:$N$79)+SUMIF('Non-RIDOT_Catchment'!$D$5:$D$52,A28,'Non-RIDOT_Catchment'!$N$5:$N$52)) ->  | L28: =IFERROR(IF(I28>=0.5,INTERPRNG_h($F28,'STU Treatment Values'!$B$5:$K$27,0,1,$J28),INTERPRNG_h($F28,'STU Treatment Values'!$B$29:$K$51,0,1,$J28)),"") ->  | N28: =IF(A28="","",SUMIF(RIDOT_Catchment!$D$5:$D$79,A28,RIDOT_Catchment!$O$5:$O$79)+SUMIF('Non-RIDOT_Catchment'!$D$5:$D$52,A28,'Non-RIDOT_Catchment'!$O$5:$O$52)) ->  | O28: =IFERROR(IF(I28>=0.5,INTERPRNG_h($F28,'STU Treatment Values'!$N$5:$W$27,0,1,$J28),INTERPRNG_h($F28,'STU Treatment Values'!$N$29:$W$51,0,1,$J28)),"") ->  | Q28: =IF(A28="","",SUMIF(RIDOT_Catchment!$D$5:$D$79,A28,RIDOT_Catchment!$P$5:$P$79)+SUMIF('Non-RIDOT_Catchment'!$D$5:$D$52,A28,'Non-RIDOT_Catchment'!$P$5:$P$52)) ->  | R28: =IFERROR(IF(I28>=0.5,INTERPRNG_h($F28,'STU Treatment Values'!$Z$5:$AI$27,0,1,$J28),INTERPRNG_h($F28,'STU Treatment Values'!$Z$29:$AI$51,0,1,$J28)),"") ->  | T28: =IF(A28="","",SUMIF(RIDOT_Catchment!$D$5:$D$79,A28,RIDOT_Catchment!$Q$5:$Q$79)+SUMIF('Non-RIDOT_Catchment'!$D$5:$D$52,A28,'Non-RIDOT_Catchment'!$Q$5:$Q$52)) ->  | U28: =IFERROR(IF(I28>=0.5,INTERPRNG_h($F28,'STU Treatment Values'!$AL$5:$AU$27,0,1,$J28),INTERPRNG_h($F28,'STU Treatment Values'!$AL$29:$AU$51,0,1,$J28)),"") ->  | Z28: =IFERROR(INTERPRNG_h($F28,'STU Treatment Values'!$B$79:$K$101,0,1,$J28),"") ->  | AA28: =IFERROR(INTERPRNG_h($F28,'STU Treatment Values'!$B$54:$K$76,0,1,$J28),"") ->  | AD28: =IFERROR(INTERPRNG_h($F28,'STU Treatment Values'!$B$104:$K$126,0,1,$J28),"") -> 
B29: =IF(A29="","",IFERROR(VLOOKUP(A29,Existing_STU!$A$6:$J$37,4,0),VLOOKUP(A29,Potential_STU!$A$6:$K$39,4,0))) ->  | C29: =IF(A29="","",SUMIF(RIDOT_Catchment!$D$5:$D$79,A29,RIDOT_Catchment!$L$5:$L$79)+SUMIF('Non-RIDOT_Catchment'!$D$5:$D$52,A29,'Non-RIDOT_Catchment'!$L$5:$L$52)) ->  | D29: =IF(A29="","",SUMIF(RIDOT_Catchment!$D$5:$D$79,A29,RIDOT_Catchment!$F$5:$F$79)+SUMIF('Non-RIDOT_Catchment'!$D$5:$D$52,A29,'Non-RIDOT_Catchment'!$F$5:$F$52)) ->  | E29: =IF(A29="","",IFERROR(VLOOKUP(A29,Existing_STU!$A$6:$J$37,6,0),VLOOKUP(A29,Potential_STU!$A$6:$K$39,6,0))) ->  | G29: =IF(A29="","",IFERROR(VLOOKUP(A29,Existing_STU!$A$6:$J$37,5,0),VLOOKUP(A29,Potential_STU!$A$6:$K$39,5,0))) ->  | J29: =IF(ISBLANK(B29),"",IF(ISBLANK(G29),"",RowFunc(B29,G29))) -> 0 | K29: =IF(A29="","",SUMIF(RIDOT_Catchment!$D$5:$D$79,A29,RIDOT_Catchment!$N$5:$N$79)+SUMIF('Non-RIDOT_Catchment'!$D$5:$D$52,A29,'Non-RIDOT_Catchment'!$N$5:$N$52)) ->  | L29: =IFERROR(IF(I29>=0.5,INTERPRNG_h($F29,'STU Treatment Values'!$B$5:$K$27,0,1,$J29),INTERPRNG_h($F29,'STU Treatment Values'!$B$29:$K$51,0,1,$J29)),"") ->  | N29: =IF(A29="","",SUMIF(RIDOT_Catchment!$D$5:$D$79,A29,RIDOT_Catchment!$O$5:$O$79)+SUMIF('Non-RIDOT_Catchment'!$D$5:$D$52,A29,'Non-RIDOT_Catchment'!$O$5:$O$52)) ->  | O29: =IFERROR(IF(I29>=0.5,INTERPRNG_h($F29,'STU Treatment Values'!$N$5:$W$27,0,1,$J29),INTERPRNG_h($F29,'STU Treatment Values'!$N$29:$W$51,0,1,$J29)),"") ->  | Q29: =IF(A29="","",SUMIF(RIDOT_Catchment!$D$5:$D$79,A29,RIDOT_Catchment!$P$5:$P$79)+SUMIF('Non-RIDOT_Catchment'!$D$5:$D$52,A29,'Non-RIDOT_Catchment'!$P$5:$P$52)) ->  | R29: =IFERROR(IF(I29>=0.5,INTERPRNG_h($F29,'STU Treatment Values'!$Z$5:$AI$27,0,1,$J29),INTERPRNG_h($F29,'STU Treatment Values'!$Z$29:$AI$51,0,1,$J29)),"") ->  | T29: =IF(A29="","",SUMIF(RIDOT_Catchment!$D$5:$D$79,A29,RIDOT_Catchment!$Q$5:$Q$79)+SUMIF('Non-RIDOT_Catchment'!$D$5:$D$52,A29,'Non-RIDOT_Catchment'!$Q$5:$Q$52)) ->  | U29: =IFERROR(IF(I29>=0.5,INTERPRNG_h($F29,'STU Treatment Values'!$AL$5:$AU$27,0,1,$J29),INTERPRNG_h($F29,'STU Treatment Values'!$AL$29:$AU$51,0,1,$J29)),"") ->  | Z29: =IFERROR(INTERPRNG_h($F29,'STU Treatment Values'!$B$79:$K$101,0,1,$J29),"") ->  | AA29: =IFERROR(INTERPRNG_h($F29,'STU Treatment Values'!$B$54:$K$76,0,1,$J29),"") ->  | AD29: =IFERROR(INTERPRNG_h($F29,'STU Treatment Values'!$B$104:$K$126,0,1,$J29),"") -> 
B30: =IF(A30="","",IFERROR(VLOOKUP(A30,Existing_STU!$A$6:$J$37,4,0),VLOOKUP(A30,Potential_STU!$A$6:$K$39,4,0))) ->  | C30: =IF(A30="","",SUMIF(RIDOT_Catchment!$D$5:$D$79,A30,RIDOT_Catchment!$L$5:$L$79)+SUMIF('Non-RIDOT_Catchment'!$D$5:$D$52,A30,'Non-RIDOT_Catchment'!$L$5:$L$52)) ->  | D30: =IF(A30="","",SUMIF(RIDOT_Catchment!$D$5:$D$79,A30,RIDOT_Catchment!$F$5:$F$79)+SUMIF('Non-RIDOT_Catchment'!$D$5:$D$52,A30,'Non-RIDOT_Catchment'!$F$5:$F$52)) ->  | E30: =IF(A30="","",IFERROR(VLOOKUP(A30,Existing_STU!$A$6:$J$37,6,0),VLOOKUP(A30,Potential_STU!$A$6:$K$39,6,0))) ->  | G30: =IF(A30="","",IFERROR(VLOOKUP(A30,Existing_STU!$A$6:$J$37,5,0),VLOOKUP(A30,Potential_STU!$A$6:$K$39,5,0))) ->  | J30: =IF(ISBLANK(B30),"",IF(ISBLANK(G30),"",RowFunc(B30,G30))) -> 0 | K30: =IF(A30="","",SUMIF(RIDOT_Catchment!$D$5:$D$79,A30,RIDOT_Catchment!$N$5:$N$79)+SUMIF('Non-RIDOT_Catchment'!$D$5:$D$52,A30,'Non-RIDOT_Catchment'!$N$5:$N$52)) ->  | L30: =IFERROR(IF(I30>=0.5,INTERPRNG_h($F30,'STU Treatment Values'!$B$5:$K$27,0,1,$J30),INTERPRNG_h($F30,'STU Treatment Values'!$B$29:$K$51,0,1,$J30)),"") ->  | N30: =IF(A30="","",SUMIF(RIDOT_Catchment!$D$5:$D$79,A30,RIDOT_Catchment!$O$5:$O$79)+SUMIF('Non-RIDOT_Catchment'!$D$5:$D$52,A30,'Non-RIDOT_Catchment'!$O$5:$O$52)) ->  | O30: =IFERROR(IF(I30>=0.5,INTERPRNG_h($F30,'STU Treatment Values'!$N$5:$W$27,0,1,$J30),INTERPRNG_h($F30,'STU Treatment Values'!$N$29:$W$51,0,1,$J30)),"") ->  | Q30: =IF(A30="","",SUMIF(RIDOT_Catchment!$D$5:$D$79,A30,RIDOT_Catchment!$P$5:$P$79)+SUMIF('Non-RIDOT_Catchment'!$D$5:$D$52,A30,'Non-RIDOT_Catchment'!$P$5:$P$52)) ->  | R30: =IFERROR(IF(I30>=0.5,INTERPRNG_h($F30,'STU Treatment Values'!$Z$5:$AI$27,0,1,$J30),INTERPRNG_h($F30,'STU Treatment Values'!$Z$29:$AI$51,0,1,$J30)),"") ->  | T30: =IF(A30="","",SUMIF(RIDOT_Catchment!$D$5:$D$79,A30,RIDOT_Catchment!$Q$5:$Q$79)+SUMIF('Non-RIDOT_Catchment'!$D$5:$D$52,A30,'Non-RIDOT_Catchment'!$Q$5:$Q$52)) ->  | U30: =IFERROR(IF(I30>=0.5,INTERPRNG_h($F30,'STU Treatment Values'!$AL$5:$AU$27,0,1,$J30),INTERPRNG_h($F30,'STU Treatment Values'!$AL$29:$AU$51,0,1,$J30)),"") ->  | Z30: =IFERROR(INTERPRNG_h($F30,'STU Treatment Values'!$B$79:$K$101,0,1,$J30),"") ->  | AA30: =IFERROR(INTERPRNG_h($F30,'STU Treatment Values'!$B$54:$K$76,0,1,$J30),"") ->  | AD30: =IFERROR(INTERPRNG_h($F30,'STU Treatment Values'!$B$104:$K$126,0,1,$J30),"") -> 
B31: =IF(A31="","",IFERROR(VLOOKUP(A31,Existing_STU!$A$6:$J$37,4,0),VLOOKUP(A31,Potential_STU!$A$6:$K$39,4,0))) ->  | C31: =IF(A31="","",SUMIF(RIDOT_Catchment!$D$5:$D$79,A31,RIDOT_Catchment!$L$5:$L$79)+SUMIF('Non-RIDOT_Catchment'!$D$5:$D$52,A31,'Non-RIDOT_Catchment'!$L$5:$L$52)) ->  | D31: =IF(A31="","",SUMIF(RIDOT_Catchment!$D$5:$D$79,A31,RIDOT_Catchment!$F$5:$F$79)+SUMIF('Non-RIDOT_Catchment'!$D$5:$D$52,A31,'Non-RIDOT_Catchment'!$F$5:$F$52)) ->  | E31: =IF(A31="","",IFERROR(VLOOKUP(A31,Existing_STU!$A$6:$J$37,6,0),VLOOKUP(A31,Potential_STU!$A$6:$K$39,6,0))) ->  | G31: =IF(A31="","",IFERROR(VLOOKUP(A31,Existing_STU!$A$6:$J$37,5,0),VLOOKUP(A31,Potential_STU!$A$6:$K$39,5,0))) ->  | J31: =IF(ISBLANK(B31),"",IF(ISBLANK(G31),"",RowFunc(B31,G31))) -> 0 | K31: =IF(A31="","",SUMIF(RIDOT_Catchment!$D$5:$D$79,A31,RIDOT_Catchment!$N$5:$N$79)+SUMIF('Non-RIDOT_Catchment'!$D$5:$D$52,A31,'Non-RIDOT_Catchment'!$N$5:$N$52)) ->  | L31: =IFERROR(IF(I31>=0.5,INTERPRNG_h($F31,'STU Treatment Values'!$B$5:$K$27,0,1,$J31),INTERPRNG_h($F31,'STU Treatment Values'!$B$29:$K$51,0,1,$J31)),"") ->  | N31: =IF(A31="","",SUMIF(RIDOT_Catchment!$D$5:$D$79,A31,RIDOT_Catchment!$O$5:$O$79)+SUMIF('Non-RIDOT_Catchment'!$D$5:$D$52,A31,'Non-RIDOT_Catchment'!$O$5:$O$52)) ->  | O31: =IFERROR(IF(I31>=0.5,INTERPRNG_h($F31,'STU Treatment Values'!$N$5:$W$27,0,1,$J31),INTERPRNG_h($F31,'STU Treatment Values'!$N$29:$W$51,0,1,$J31)),"") ->  | Q31: =IF(A31="","",SUMIF(RIDOT_Catchment!$D$5:$D$79,A31,RIDOT_Catchment!$P$5:$P$79)+SUMIF('Non-RIDOT_Catchment'!$D$5:$D$52,A31,'Non-RIDOT_Catchment'!$P$5:$P$52)) ->  | R31: =IFERROR(IF(I31>=0.5,INTERPRNG_h($F31,'STU Treatment Values'!$Z$5:$AI$27,0,1,$J31),INTERPRNG_h($F31,'STU Treatment Values'!$Z$29:$AI$51,0,1,$J31)),"") ->  | T31: =IF(A31="","",SUMIF(RIDOT_Catchment!$D$5:$D$79,A31,RIDOT_Catchment!$Q$5:$Q$79)+SUMIF('Non-RIDOT_Catchment'!$D$5:$D$52,A31,'Non-RIDOT_Catchment'!$Q$5:$Q$52)) ->  | U31: =IFERROR(IF(I31>=0.5,INTERPRNG_h($F31,'STU Treatment Values'!$AL$5:$AU$27,0,1,$J31),INTERPRNG_h($F31,'STU Treatment Values'!$AL$29:$AU$51,0,1,$J31)),"") ->  | Z31: =IFERROR(INTERPRNG_h($F31,'STU Treatment Values'!$B$79:$K$101,0,1,$J31),"") ->  | AA31: =IFERROR(INTERPRNG_h($F31,'STU Treatment Values'!$B$54:$K$76,0,1,$J31),"") ->  | AD31: =IFERROR(INTERPRNG_h($F31,'STU Treatment Values'!$B$104:$K$126,0,1,$J31),"") -> 
B32: =IF(A32="","",IFERROR(VLOOKUP(A32,Existing_STU!$A$6:$J$37,4,0),VLOOKUP(A32,Potential_STU!$A$6:$K$39,4,0))) ->  | C32: =IF(A32="","",SUMIF(RIDOT_Catchment!$D$5:$D$79,A32,RIDOT_Catchment!$L$5:$L$79)+SUMIF('Non-RIDOT_Catchment'!$D$5:$D$52,A32,'Non-RIDOT_Catchment'!$L$5:$L$52)) ->  | D32: =IF(A32="","",SUMIF(RIDOT_Catchment!$D$5:$D$79,A32,RIDOT_Catchment!$F$5:$F$79)+SUMIF('Non-RIDOT_Catchment'!$D$5:$D$52,A32,'Non-RIDOT_Catchment'!$F$5:$F$52)) ->  | E32: =IF(A32="","",IFERROR(VLOOKUP(A32,Existing_STU!$A$6:$J$37,6,0),VLOOKUP(A32,Potential_STU!$A$6:$K$39,6,0))) ->  | G32: =IF(A32="","",IFERROR(VLOOKUP(A32,Existing_STU!$A$6:$J$37,5,0),VLOOKUP(A32,Potential_STU!$A$6:$K$39,5,0))) ->  | J32: =IF(ISBLANK(B32),"",IF(ISBLANK(G32),"",RowFunc(B32,G32))) -> 0 | K32: =IF(A32="","",SUMIF(RIDOT_Catchment!$D$5:$D$79,A32,RIDOT_Catchment!$N$5:$N$79)+SUMIF('Non-RIDOT_Catchment'!$D$5:$D$52,A32,'Non-RIDOT_Catchment'!$N$5:$N$52)) ->  | L32: =IFERROR(IF(I32>=0.5,INTERPRNG_h($F32,'STU Treatment Values'!$B$5:$K$27,0,1,$J32),INTERPRNG_h($F32,'STU Treatment Values'!$B$29:$K$51,0,1,$J32)),"") ->  | N32: =IF(A32="","",SUMIF(RIDOT_Catchment!$D$5:$D$79,A32,RIDOT_Catchment!$O$5:$O$79)+SUMIF('Non-RIDOT_Catchment'!$D$5:$D$52,A32,'Non-RIDOT_Catchment'!$O$5:$O$52)) ->  | O32: =IFERROR(IF(I32>=0.5,INTERPRNG_h($F32,'STU Treatment Values'!$N$5:$W$27,0,1,$J32),INTERPRNG_h($F32,'STU Treatment Values'!$N$29:$W$51,0,1,$J32)),"") ->  | Q32: =IF(A32="","",SUMIF(RIDOT_Catchment!$D$5:$D$79,A32,RIDOT_Catchment!$P$5:$P$79)+SUMIF('Non-RIDOT_Catchment'!$D$5:$D$52,A32,'Non-RIDOT_Catchment'!$P$5:$P$52)) ->  | R32: =IFERROR(IF(I32>=0.5,INTERPRNG_h($F32,'STU Treatment Values'!$Z$5:$AI$27,0,1,$J32),INTERPRNG_h($F32,'STU Treatment Values'!$Z$29:$AI$51,0,1,$J32)),"") ->  | T32: =IF(A32="","",SUMIF(RIDOT_Catchment!$D$5:$D$79,A32,RIDOT_Catchment!$Q$5:$Q$79)+SUMIF('Non-RIDOT_Catchment'!$D$5:$D$52,A32,'Non-RIDOT_Catchment'!$Q$5:$Q$52)) ->  | U32: =IFERROR(IF(I32>=0.5,INTERPRNG_h($F32,'STU Treatment Values'!$AL$5:$AU$27,0,1,$J32),INTERPRNG_h($F32,'STU Treatment Values'!$AL$29:$AU$51,0,1,$J32)),"") ->  | Z32: =IFERROR(INTERPRNG_h($F32,'STU Treatment Values'!$B$79:$K$101,0,1,$J32),"") ->  | AA32: =IFERROR(INTERPRNG_h($F32,'STU Treatment Values'!$B$54:$K$76,0,1,$J32),"") ->  | AD32: =IFERROR(INTERPRNG_h($F32,'STU Treatment Values'!$B$104:$K$126,0,1,$J32),"") -> 
B33: =IF(A33="","",IFERROR(VLOOKUP(A33,Existing_STU!$A$6:$J$37,4,0),VLOOKUP(A33,Potential_STU!$A$6:$K$39,4,0))) ->  | C33: =IF(A33="","",SUMIF(RIDOT_Catchment!$D$5:$D$79,A33,RIDOT_Catchment!$L$5:$L$79)+SUMIF('Non-RIDOT_Catchment'!$D$5:$D$52,A33,'Non-RIDOT_Catchment'!$L$5:$L$52)) ->  | D33: =IF(A33="","",SUMIF(RIDOT_Catchment!$D$5:$D$79,A33,RIDOT_Catchment!$F$5:$F$79)+SUMIF('Non-RIDOT_Catchment'!$D$5:$D$52,A33,'Non-RIDOT_Catchment'!$F$5:$F$52)) ->  | E33: =IF(A33="","",IFERROR(VLOOKUP(A33,Existing_STU!$A$6:$J$37,6,0),VLOOKUP(A33,Potential_STU!$A$6:$K$39,6,0))) ->  | G33: =IF(A33="","",IFERROR(VLOOKUP(A33,Existing_STU!$A$6:$J$37,5,0),VLOOKUP(A33,Potential_STU!$A$6:$K$39,5,0))) ->  | J33: =IF(ISBLANK(B33),"",IF(ISBLANK(G33),"",RowFunc(B33,G33))) -> 0 | K33: =IF(A33="","",SUMIF(RIDOT_Catchment!$D$5:$D$79,A33,RIDOT_Catchment!$N$5:$N$79)+SUMIF('Non-RIDOT_Catchment'!$D$5:$D$52,A33,'Non-RIDOT_Catchment'!$N$5:$N$52)) ->  | L33: =IFERROR(IF(I33>=0.5,INTERPRNG_h($F33,'STU Treatment Values'!$B$5:$K$27,0,1,$J33),INTERPRNG_h($F33,'STU Treatment Values'!$B$29:$K$51,0,1,$J33)),"") ->  | N33: =IF(A33="","",SUMIF(RIDOT_Catchment!$D$5:$D$79,A33,RIDOT_Catchment!$O$5:$O$79)+SUMIF('Non-RIDOT_Catchment'!$D$5:$D$52,A33,'Non-RIDOT_Catchment'!$O$5:$O$52)) ->  | O33: =IFERROR(IF(I33>=0.5,INTERPRNG_h($F33,'STU Treatment Values'!$N$5:$W$27,0,1,$J33),INTERPRNG_h($F33,'STU Treatment Values'!$N$29:$W$51,0,1,$J33)),"") ->  | Q33: =IF(A33="","",SUMIF(RIDOT_Catchment!$D$5:$D$79,A33,RIDOT_Catchment!$P$5:$P$79)+SUMIF('Non-RIDOT_Catchment'!$D$5:$D$52,A33,'Non-RIDOT_Catchment'!$P$5:$P$52)) ->  | R33: =IFERROR(IF(I33>=0.5,INTERPRNG_h($F33,'STU Treatment Values'!$Z$5:$AI$27,0,1,$J33),INTERPRNG_h($F33,'STU Treatment Values'!$Z$29:$AI$51,0,1,$J33)),"") ->  | T33: =IF(A33="","",SUMIF(RIDOT_Catchment!$D$5:$D$79,A33,RIDOT_Catchment!$Q$5:$Q$79)+SUMIF('Non-RIDOT_Catchment'!$D$5:$D$52,A33,'Non-RIDOT_Catchment'!$Q$5:$Q$52)) ->  | U33: =IFERROR(IF(I33>=0.5,INTERPRNG_h($F33,'STU Treatment Values'!$AL$5:$AU$27,0,1,$J33),INTERPRNG_h($F33,'STU Treatment Values'!$AL$29:$AU$51,0,1,$J33)),"") ->  | Z33: =IFERROR(INTERPRNG_h($F33,'STU Treatment Values'!$B$79:$K$101,0,1,$J33),"") ->  | AA33: =IFERROR(INTERPRNG_h($F33,'STU Treatment Values'!$B$54:$K$76,0,1,$J33),"") ->  | AD33: =IFERROR(INTERPRNG_h($F33,'STU Treatment Values'!$B$104:$K$126,0,1,$J33),"") -> 
B34: =IF(A34="","",IFERROR(VLOOKUP(A34,Existing_STU!$A$6:$J$37,4,0),VLOOKUP(A34,Potential_STU!$A$6:$K$39,4,0))) ->  | C34: =IF(A34="","",SUMIF(RIDOT_Catchment!$D$5:$D$79,A34,RIDOT_Catchment!$L$5:$L$79)+SUMIF('Non-RIDOT_Catchment'!$D$5:$D$52,A34,'Non-RIDOT_Catchment'!$L$5:$L$52)) ->  | D34: =IF(A34="","",SUMIF(RIDOT_Catchment!$D$5:$D$79,A34,RIDOT_Catchment!$F$5:$F$79)+SUMIF('Non-RIDOT_Catchment'!$D$5:$D$52,A34,'Non-RIDOT_Catchment'!$F$5:$F$52)) ->  | E34: =IF(A34="","",IFERROR(VLOOKUP(A34,Existing_STU!$A$6:$J$37,6,0),VLOOKUP(A34,Potential_STU!$A$6:$K$39,6,0))) ->  | G34: =IF(A34="","",IFERROR(VLOOKUP(A34,Existing_STU!$A$6:$J$37,5,0),VLOOKUP(A34,Potential_STU!$A$6:$K$39,5,0))) ->  | J34: =IF(ISBLANK(B34),"",IF(ISBLANK(G34),"",RowFunc(B34,G34))) -> 0 | K34: =IF(A34="","",SUMIF(RIDOT_Catchment!$D$5:$D$79,A34,RIDOT_Catchment!$N$5:$N$79)+SUMIF('Non-RIDOT_Catchment'!$D$5:$D$52,A34,'Non-RIDOT_Catchment'!$N$5:$N$52)) ->  | L34: =IFERROR(IF(I34>=0.5,INTERPRNG_h($F34,'STU Treatment Values'!$B$5:$K$27,0,1,$J34),INTERPRNG_h($F34,'STU Treatment Values'!$B$29:$K$51,0,1,$J34)),"") ->  | N34: =IF(A34="","",SUMIF(RIDOT_Catchment!$D$5:$D$79,A34,RIDOT_Catchment!$O$5:$O$79)+SUMIF('Non-RIDOT_Catchment'!$D$5:$D$52,A34,'Non-RIDOT_Catchment'!$O$5:$O$52)) ->  | O34: =IFERROR(IF(I34>=0.5,INTERPRNG_h($F34,'STU Treatment Values'!$N$5:$W$27,0,1,$J34),INTERPRNG_h($F34,'STU Treatment Values'!$N$29:$W$51,0,1,$J34)),"") ->  | Q34: =IF(A34="","",SUMIF(RIDOT_Catchment!$D$5:$D$79,A34,RIDOT_Catchment!$P$5:$P$79)+SUMIF('Non-RIDOT_Catchment'!$D$5:$D$52,A34,'Non-RIDOT_Catchment'!$P$5:$P$52)) ->  | R34: =IFERROR(IF(I34>=0.5,INTERPRNG_h($F34,'STU Treatment Values'!$Z$5:$AI$27,0,1,$J34),INTERPRNG_h($F34,'STU Treatment Values'!$Z$29:$AI$51,0,1,$J34)),"") ->  | T34: =IF(A34="","",SUMIF(RIDOT_Catchment!$D$5:$D$79,A34,RIDOT_Catchment!$Q$5:$Q$79)+SUMIF('Non-RIDOT_Catchment'!$D$5:$D$52,A34,'Non-RIDOT_Catchment'!$Q$5:$Q$52)) ->  | U34: =IFERROR(IF(I34>=0.5,INTERPRNG_h($F34,'STU Treatment Values'!$AL$5:$AU$27,0,1,$J34),INTERPRNG_h($F34,'STU Treatment Values'!$AL$29:$AU$51,0,1,$J34)),"") ->  | Z34: =IFERROR(INTERPRNG_h($F34,'STU Treatment Values'!$B$79:$K$101,0,1,$J34),"") ->  | AA34: =IFERROR(INTERPRNG_h($F34,'STU Treatment Values'!$B$54:$K$76,0,1,$J34),"") ->  | AD34: =IFERROR(INTERPRNG_h($F34,'STU Treatment Values'!$B$104:$K$126,0,1,$J34),"") -> 
B35: =IF(A35="","",IFERROR(VLOOKUP(A35,Existing_STU!$A$6:$J$37,4,0),VLOOKUP(A35,Potential_STU!$A$6:$K$39,4,0))) ->  | C35: =IF(A35="","",SUMIF(RIDOT_Catchment!$D$5:$D$79,A35,RIDOT_Catchment!$L$5:$L$79)+SUMIF('Non-RIDOT_Catchment'!$D$5:$D$52,A35,'Non-RIDOT_Catchment'!$L$5:$L$52)) ->  | D35: =IF(A35="","",SUMIF(RIDOT_Catchment!$D$5:$D$79,A35,RIDOT_Catchment!$F$5:$F$79)+SUMIF('Non-RIDOT_Catchment'!$D$5:$D$52,A35,'Non-RIDOT_Catchment'!$F$5:$F$52)) ->  | E35: =IF(A35="","",IFERROR(VLOOKUP(A35,Existing_STU!$A$6:$J$37,6,0),VLOOKUP(A35,Potential_STU!$A$6:$K$39,6,0))) ->  | G35: =IF(A35="","",IFERROR(VLOOKUP(A35,Existing_STU!$A$6:$J$37,5,0),VLOOKUP(A35,Potential_STU!$A$6:$K$39,5,0))) ->  | J35: =IF(ISBLANK(B35),"",IF(ISBLANK(G35),"",RowFunc(B35,G35))) -> 0 | K35: =IF(A35="","",SUMIF(RIDOT_Catchment!$D$5:$D$79,A35,RIDOT_Catchment!$N$5:$N$79)+SUMIF('Non-RIDOT_Catchment'!$D$5:$D$52,A35,'Non-RIDOT_Catchment'!$N$5:$N$52)) ->  | L35: =IFERROR(IF(I35>=0.5,INTERPRNG_h($F35,'STU Treatment Values'!$B$5:$K$27,0,1,$J35),INTERPRNG_h($F35,'STU Treatment Values'!$B$29:$K$51,0,1,$J35)),"") ->  | N35: =IF(A35="","",SUMIF(RIDOT_Catchment!$D$5:$D$79,A35,RIDOT_Catchment!$O$5:$O$79)+SUMIF('Non-RIDOT_Catchment'!$D$5:$D$52,A35,'Non-RIDOT_Catchment'!$O$5:$O$52)) ->  | O35: =IFERROR(IF(I35>=0.5,INTERPRNG_h($F35,'STU Treatment Values'!$N$5:$W$27,0,1,$J35),INTERPRNG_h($F35,'STU Treatment Values'!$N$29:$W$51,0,1,$J35)),"") ->  | Q35: =IF(A35="","",SUMIF(RIDOT_Catchment!$D$5:$D$79,A35,RIDOT_Catchment!$P$5:$P$79)+SUMIF('Non-RIDOT_Catchment'!$D$5:$D$52,A35,'Non-RIDOT_Catchment'!$P$5:$P$52)) ->  | R35: =IFERROR(IF(I35>=0.5,INTERPRNG_h($F35,'STU Treatment Values'!$Z$5:$AI$27,0,1,$J35),INTERPRNG_h($F35,'STU Treatment Values'!$Z$29:$AI$51,0,1,$J35)),"") ->  | T35: =IF(A35="","",SUMIF(RIDOT_Catchment!$D$5:$D$79,A35,RIDOT_Catchment!$Q$5:$Q$79)+SUMIF('Non-RIDOT_Catchment'!$D$5:$D$52,A35,'Non-RIDOT_Catchment'!$Q$5:$Q$52)) ->  | U35: =IFERROR(IF(I35>=0.5,INTERPRNG_h($F35,'STU Treatment Values'!$AL$5:$AU$27,0,1,$J35),INTERPRNG_h($F35,'STU Treatment Values'!$AL$29:$AU$51,0,1,$J35)),"") ->  | Z35: =IFERROR(INTERPRNG_h($F35,'STU Treatment Values'!$B$79:$K$101,0,1,$J35),"") ->  | AA35: =IFERROR(INTERPRNG_h($F35,'STU Treatment Values'!$B$54:$K$76,0,1,$J35),"") ->  | AD35: =IFERROR(INTERPRNG_h($F35,'STU Treatment Values'!$B$104:$K$126,0,1,$J35),"") -> 
B36: =IF(A36="","",IFERROR(VLOOKUP(A36,Existing_STU!$A$6:$J$37,4,0),VLOOKUP(A36,Potential_STU!$A$6:$K$39,4,0))) ->  | C36: =IF(A36="","",SUMIF(RIDOT_Catchment!$D$5:$D$79,A36,RIDOT_Catchment!$L$5:$L$79)+SUMIF('Non-RIDOT_Catchment'!$D$5:$D$52,A36,'Non-RIDOT_Catchment'!$L$5:$L$52)) ->  | D36: =IF(A36="","",SUMIF(RIDOT_Catchment!$D$5:$D$79,A36,RIDOT_Catchment!$F$5:$F$79)+SUMIF('Non-RIDOT_Catchment'!$D$5:$D$52,A36,'Non-RIDOT_Catchment'!$F$5:$F$52)) ->  | E36: =IF(A36="","",IFERROR(VLOOKUP(A36,Existing_STU!$A$6:$J$37,6,0),VLOOKUP(A36,Potential_STU!$A$6:$K$39,6,0))) ->  | G36: =IF(A36="","",IFERROR(VLOOKUP(A36,Existing_STU!$A$6:$J$37,5,0),VLOOKUP(A36,Potential_STU!$A$6:$K$39,5,0))) ->  | J36: =IF(ISBLANK(B36),"",IF(ISBLANK(G36),"",RowFunc(B36,G36))) -> 0 | K36: =IF(A36="","",SUMIF(RIDOT_Catchment!$D$5:$D$79,A36,RIDOT_Catchment!$N$5:$N$79)+SUMIF('Non-RIDOT_Catchment'!$D$5:$D$52,A36,'Non-RIDOT_Catchment'!$N$5:$N$52)) ->  | L36: =IFERROR(IF(I36>=0.5,INTERPRNG_h($F36,'STU Treatment Values'!$B$5:$K$27,0,1,$J36),INTERPRNG_h($F36,'STU Treatment Values'!$B$29:$K$51,0,1,$J36)),"") ->  | N36: =IF(A36="","",SUMIF(RIDOT_Catchment!$D$5:$D$79,A36,RIDOT_Catchment!$O$5:$O$79)+SUMIF('Non-RIDOT_Catchment'!$D$5:$D$52,A36,'Non-RIDOT_Catchment'!$O$5:$O$52)) ->  | O36: =IFERROR(IF(I36>=0.5,INTERPRNG_h($F36,'STU Treatment Values'!$N$5:$W$27,0,1,$J36),INTERPRNG_h($F36,'STU Treatment Values'!$N$29:$W$51,0,1,$J36)),"") ->  | Q36: =IF(A36="","",SUMIF(RIDOT_Catchment!$D$5:$D$79,A36,RIDOT_Catchment!$P$5:$P$79)+SUMIF('Non-RIDOT_Catchment'!$D$5:$D$52,A36,'Non-RIDOT_Catchment'!$P$5:$P$52)) ->  | R36: =IFERROR(IF(I36>=0.5,INTERPRNG_h($F36,'STU Treatment Values'!$Z$5:$AI$27,0,1,$J36),INTERPRNG_h($F36,'STU Treatment Values'!$Z$29:$AI$51,0,1,$J36)),"") ->  | T36: =IF(A36="","",SUMIF(RIDOT_Catchment!$D$5:$D$79,A36,RIDOT_Catchment!$Q$5:$Q$79)+SUMIF('Non-RIDOT_Catchment'!$D$5:$D$52,A36,'Non-RIDOT_Catchment'!$Q$5:$Q$52)) ->  | U36: =IFERROR(IF(I36>=0.5,INTERPRNG_h($F36,'STU Treatment Values'!$AL$5:$AU$27,0,1,$J36),INTERPRNG_h($F36,'STU Treatment Values'!$AL$29:$AU$51,0,1,$J36)),"") ->  | Z36: =IFERROR(INTERPRNG_h($F36,'STU Treatment Values'!$B$79:$K$101,0,1,$J36),"") ->  | AA36: =IFERROR(INTERPRNG_h($F36,'STU Treatment Values'!$B$54:$K$76,0,1,$J36),"") ->  | AD36: =IFERROR(INTERPRNG_h($F36,'STU Treatment Values'!$B$104:$K$126,0,1,$J36),"") -> 
B37: =IF(A37="","",IFERROR(VLOOKUP(A37,Existing_STU!$A$6:$J$37,4,0),VLOOKUP(A37,Potential_STU!$A$6:$K$39,4,0))) ->  | C37: =IF(A37="","",SUMIF(RIDOT_Catchment!$D$5:$D$79,A37,RIDOT_Catchment!$L$5:$L$79)+SUMIF('Non-RIDOT_Catchment'!$D$5:$D$52,A37,'Non-RIDOT_Catchment'!$L$5:$L$52)) ->  | D37: =IF(A37="","",SUMIF(RIDOT_Catchment!$D$5:$D$79,A37,RIDOT_Catchment!$F$5:$F$79)+SUMIF('Non-RIDOT_Catchment'!$D$5:$D$52,A37,'Non-RIDOT_Catchment'!$F$5:$F$52)) ->  | E37: =IF(A37="","",IFERROR(VLOOKUP(A37,Existing_STU!$A$6:$J$37,6,0),VLOOKUP(A37,Potential_STU!$A$6:$K$39,6,0))) ->  | G37: =IF(A37="","",IFERROR(VLOOKUP(A37,Existing_STU!$A$6:$J$37,5,0),VLOOKUP(A37,Potential_STU!$A$6:$K$39,5,0))) ->  | J37: =IF(ISBLANK(B37),"",IF(ISBLANK(G37),"",RowFunc(B37,G37))) -> 0 | K37: =IF(A37="","",SUMIF(RIDOT_Catchment!$D$5:$D$79,A37,RIDOT_Catchment!$N$5:$N$79)+SUMIF('Non-RIDOT_Catchment'!$D$5:$D$52,A37,'Non-RIDOT_Catchment'!$N$5:$N$52)) ->  | L37: =IFERROR(IF(I37>=0.5,INTERPRNG_h($F37,'STU Treatment Values'!$B$5:$K$27,0,1,$J37),INTERPRNG_h($F37,'STU Treatment Values'!$B$29:$K$51,0,1,$J37)),"") ->  | N37: =IF(A37="","",SUMIF(RIDOT_Catchment!$D$5:$D$79,A37,RIDOT_Catchment!$O$5:$O$79)+SUMIF('Non-RIDOT_Catchment'!$D$5:$D$52,A37,'Non-RIDOT_Catchment'!$O$5:$O$52)) ->  | O37: =IFERROR(IF(I37>=0.5,INTERPRNG_h($F37,'STU Treatment Values'!$N$5:$W$27,0,1,$J37),INTERPRNG_h($F37,'STU Treatment Values'!$N$29:$W$51,0,1,$J37)),"") ->  | Q37: =IF(A37="","",SUMIF(RIDOT_Catchment!$D$5:$D$79,A37,RIDOT_Catchment!$P$5:$P$79)+SUMIF('Non-RIDOT_Catchment'!$D$5:$D$52,A37,'Non-RIDOT_Catchment'!$P$5:$P$52)) ->  | R37: =IFERROR(IF(I37>=0.5,INTERPRNG_h($F37,'STU Treatment Values'!$Z$5:$AI$27,0,1,$J37),INTERPRNG_h($F37,'STU Treatment Values'!$Z$29:$AI$51,0,1,$J37)),"") ->  | T37: =IF(A37="","",SUMIF(RIDOT_Catchment!$D$5:$D$79,A37,RIDOT_Catchment!$Q$5:$Q$79)+SUMIF('Non-RIDOT_Catchment'!$D$5:$D$52,A37,'Non-RIDOT_Catchment'!$Q$5:$Q$52)) ->  | U37: =IFERROR(IF(I37>=0.5,INTERPRNG_h($F37,'STU Treatment Values'!$AL$5:$AU$27,0,1,$J37),INTERPRNG_h($F37,'STU Treatment Values'!$AL$29:$AU$51,0,1,$J37)),"") ->  | Z37: =IFERROR(INTERPRNG_h($F37,'STU Treatment Values'!$B$79:$K$101,0,1,$J37),"") ->  | AA37: =IFERROR(INTERPRNG_h($F37,'STU Treatment Values'!$B$54:$K$76,0,1,$J37),"") ->  | AD37: =IFERROR(INTERPRNG_h($F37,'STU Treatment Values'!$B$104:$K$126,0,1,$J37),"") -> 
B38: =IF(A38="","",IFERROR(VLOOKUP(A38,Existing_STU!$A$6:$J$37,4,0),VLOOKUP(A38,Potential_STU!$A$6:$K$39,4,0))) ->  | C38: =IF(A38="","",SUMIF(RIDOT_Catchment!$D$5:$D$79,A38,RIDOT_Catchment!$L$5:$L$79)+SUMIF('Non-RIDOT_Catchment'!$D$5:$D$52,A38,'Non-RIDOT_Catchment'!$L$5:$L$52)) ->  | D38: =IF(A38="","",SUMIF(RIDOT_Catchment!$D$5:$D$79,A38,RIDOT_Catchment!$F$5:$F$79)+SUMIF('Non-RIDOT_Catchment'!$D$5:$D$52,A38,'Non-RIDOT_Catchment'!$F$5:$F$52)) ->  | E38: =IF(A38="","",IFERROR(VLOOKUP(A38,Existing_STU!$A$6:$J$37,6,0),VLOOKUP(A38,Potential_STU!$A$6:$K$39,6,0))) ->  | G38: =IF(A38="","",IFERROR(VLOOKUP(A38,Existing_STU!$A$6:$J$37,5,0),VLOOKUP(A38,Potential_STU!$A$6:$K$39,5,0))) ->  | J38: =IF(ISBLANK(B38),"",IF(ISBLANK(G38),"",RowFunc(B38,G38))) -> 0 | K38: =IF(A38="","",SUMIF(RIDOT_Catchment!$D$5:$D$79,A38,RIDOT_Catchment!$N$5:$N$79)+SUMIF('Non-RIDOT_Catchment'!$D$5:$D$52,A38,'Non-RIDOT_Catchment'!$N$5:$N$52)) ->  | L38: =IFERROR(IF(I38>=0.5,INTERPRNG_h($F38,'STU Treatment Values'!$B$5:$K$27,0,1,$J38),INTERPRNG_h($F38,'STU Treatment Values'!$B$29:$K$51,0,1,$J38)),"") ->  | N38: =IF(A38="","",SUMIF(RIDOT_Catchment!$D$5:$D$79,A38,RIDOT_Catchment!$O$5:$O$79)+SUMIF('Non-RIDOT_Catchment'!$D$5:$D$52,A38,'Non-RIDOT_Catchment'!$O$5:$O$52)) ->  | O38: =IFERROR(IF(I38>=0.5,INTERPRNG_h($F38,'STU Treatment Values'!$N$5:$W$27,0,1,$J38),INTERPRNG_h($F38,'STU Treatment Values'!$N$29:$W$51,0,1,$J38)),"") ->  | Q38: =IF(A38="","",SUMIF(RIDOT_Catchment!$D$5:$D$79,A38,RIDOT_Catchment!$P$5:$P$79)+SUMIF('Non-RIDOT_Catchment'!$D$5:$D$52,A38,'Non-RIDOT_Catchment'!$P$5:$P$52)) ->  | R38: =IFERROR(IF(I38>=0.5,INTERPRNG_h($F38,'STU Treatment Values'!$Z$5:$AI$27,0,1,$J38),INTERPRNG_h($F38,'STU Treatment Values'!$Z$29:$AI$51,0,1,$J38)),"") ->  | T38: =IF(A38="","",SUMIF(RIDOT_Catchment!$D$5:$D$79,A38,RIDOT_Catchment!$Q$5:$Q$79)+SUMIF('Non-RIDOT_Catchment'!$D$5:$D$52,A38,'Non-RIDOT_Catchment'!$Q$5:$Q$52)) ->  | U38: =IFERROR(IF(I38>=0.5,INTERPRNG_h($F38,'STU Treatment Values'!$AL$5:$AU$27,0,1,$J38),INTERPRNG_h($F38,'STU Treatment Values'!$AL$29:$AU$51,0,1,$J38)),"") ->  | Z38: =IFERROR(INTERPRNG_h($F38,'STU Treatment Values'!$B$79:$K$101,0,1,$J38),"") ->  | AA38: =IFERROR(INTERPRNG_h($F38,'STU Treatment Values'!$B$54:$K$76,0,1,$J38),"") ->  | AD38: =IFERROR(INTERPRNG_h($F38,'STU Treatment Values'!$B$104:$K$126,0,1,$J38),"") -> 
B39: =IF(A39="","",IFERROR(VLOOKUP(A39,Existing_STU!$A$6:$J$37,4,0),VLOOKUP(A39,Potential_STU!$A$6:$K$39,4,0))) ->  | C39: =IF(A39="","",SUMIF(RIDOT_Catchment!$D$5:$D$79,A39,RIDOT_Catchment!$L$5:$L$79)+SUMIF('Non-RIDOT_Catchment'!$D$5:$D$52,A39,'Non-RIDOT_Catchment'!$L$5:$L$52)) ->  | D39: =IF(A39="","",SUMIF(RIDOT_Catchment!$D$5:$D$79,A39,RIDOT_Catchment!$F$5:$F$79)+SUMIF('Non-RIDOT_Catchment'!$D$5:$D$52,A39,'Non-RIDOT_Catchment'!$F$5:$F$52)) ->  | E39: =IF(A39="","",IFERROR(VLOOKUP(A39,Existing_STU!$A$6:$J$37,6,0),VLOOKUP(A39,Potential_STU!$A$6:$K$39,6,0))) ->  | G39: =IF(A39="","",IFERROR(VLOOKUP(A39,Existing_STU!$A$6:$J$37,5,0),VLOOKUP(A39,Potential_STU!$A$6:$K$39,5,0))) ->  | J39: =IF(ISBLANK(B39),"",IF(ISBLANK(G39),"",RowFunc(B39,G39))) -> 0 | K39: =IF(A39="","",SUMIF(RIDOT_Catchment!$D$5:$D$79,A39,RIDOT_Catchment!$N$5:$N$79)+SUMIF('Non-RIDOT_Catchment'!$D$5:$D$52,A39,'Non-RIDOT_Catchment'!$N$5:$N$52)) ->  | L39: =IFERROR(IF(I39>=0.5,INTERPRNG_h($F39,'STU Treatment Values'!$B$5:$K$27,0,1,$J39),INTERPRNG_h($F39,'STU Treatment Values'!$B$29:$K$51,0,1,$J39)),"") ->  | N39: =IF(A39="","",SUMIF(RIDOT_Catchment!$D$5:$D$79,A39,RIDOT_Catchment!$O$5:$O$79)+SUMIF('Non-RIDOT_Catchment'!$D$5:$D$52,A39,'Non-RIDOT_Catchment'!$O$5:$O$52)) ->  | O39: =IFERROR(IF(I39>=0.5,INTERPRNG_h($F39,'STU Treatment Values'!$N$5:$W$27,0,1,$J39),INTERPRNG_h($F39,'STU Treatment Values'!$N$29:$W$51,0,1,$J39)),"") ->  | Q39: =IF(A39="","",SUMIF(RIDOT_Catchment!$D$5:$D$79,A39,RIDOT_Catchment!$P$5:$P$79)+SUMIF('Non-RIDOT_Catchment'!$D$5:$D$52,A39,'Non-RIDOT_Catchment'!$P$5:$P$52)) ->  | R39: =IFERROR(IF(I39>=0.5,INTERPRNG_h($F39,'STU Treatment Values'!$Z$5:$AI$27,0,1,$J39),INTERPRNG_h($F39,'STU Treatment Values'!$Z$29:$AI$51,0,1,$J39)),"") ->  | T39: =IF(A39="","",SUMIF(RIDOT_Catchment!$D$5:$D$79,A39,RIDOT_Catchment!$Q$5:$Q$79)+SUMIF('Non-RIDOT_Catchment'!$D$5:$D$52,A39,'Non-RIDOT_Catchment'!$Q$5:$Q$52)) ->  | U39: =IFERROR(IF(I39>=0.5,INTERPRNG_h($F39,'STU Treatment Values'!$AL$5:$AU$27,0,1,$J39),INTERPRNG_h($F39,'STU Treatment Values'!$AL$29:$AU$51,0,1,$J39)),"") ->  | Z39: =IFERROR(INTERPRNG_h($F39,'STU Treatment Values'!$B$79:$K$101,0,1,$J39),"") ->  | AA39: =IFERROR(INTERPRNG_h($F39,'STU Treatment Values'!$B$54:$K$76,0,1,$J39),"") ->  | AD39: =IFERROR(INTERPRNG_h($F39,'STU Treatment Values'!$B$104:$K$126,0,1,$J39),"") -> 
B40: =IF(A40="","",IFERROR(VLOOKUP(A40,Existing_STU!$A$6:$J$37,4,0),VLOOKUP(A40,Potential_STU!$A$6:$K$39,4,0))) ->  | C40: =IF(A40="","",SUMIF(RIDOT_Catchment!$D$5:$D$79,A40,RIDOT_Catchment!$L$5:$L$79)+SUMIF('Non-RIDOT_Catchment'!$D$5:$D$52,A40,'Non-RIDOT_Catchment'!$L$5:$L$52)) ->  | D40: =IF(A40="","",SUMIF(RIDOT_Catchment!$D$5:$D$79,A40,RIDOT_Catchment!$F$5:$F$79)+SUMIF('Non-RIDOT_Catchment'!$D$5:$D$52,A40,'Non-RIDOT_Catchment'!$F$5:$F$52)) ->  | E40: =IF(A40="","",IFERROR(VLOOKUP(A40,Existing_STU!$A$6:$J$37,6,0),VLOOKUP(A40,Potential_STU!$A$6:$K$39,6,0))) ->  | G40: =IF(A40="","",IFERROR(VLOOKUP(A40,Existing_STU!$A$6:$J$37,5,0),VLOOKUP(A40,Potential_STU!$A$6:$K$39,5,0))) ->  | J40: =IF(ISBLANK(B40),"",IF(ISBLANK(G40),"",RowFunc(B40,G40))) -> 0 | K40: =IF(A40="","",SUMIF(RIDOT_Catchment!$D$5:$D$79,A40,RIDOT_Catchment!$N$5:$N$79)+SUMIF('Non-RIDOT_Catchment'!$D$5:$D$52,A40,'Non-RIDOT_Catchment'!$N$5:$N$52)) ->  | L40: =IFERROR(IF(I40>=0.5,INTERPRNG_h($F40,'STU Treatment Values'!$B$5:$K$27,0,1,$J40),INTERPRNG_h($F40,'STU Treatment Values'!$B$29:$K$51,0,1,$J40)),"") ->  | N40: =IF(A40="","",SUMIF(RIDOT_Catchment!$D$5:$D$79,A40,RIDOT_Catchment!$O$5:$O$79)+SUMIF('Non-RIDOT_Catchment'!$D$5:$D$52,A40,'Non-RIDOT_Catchment'!$O$5:$O$52)) ->  | O40: =IFERROR(IF(I40>=0.5,INTERPRNG_h($F40,'STU Treatment Values'!$N$5:$W$27,0,1,$J40),INTERPRNG_h($F40,'STU Treatment Values'!$N$29:$W$51,0,1,$J40)),"") ->  | Q40: =IF(A40="","",SUMIF(RIDOT_Catchment!$D$5:$D$79,A40,RIDOT_Catchment!$P$5:$P$79)+SUMIF('Non-RIDOT_Catchment'!$D$5:$D$52,A40,'Non-RIDOT_Catchment'!$P$5:$P$52)) ->  | R40: =IFERROR(IF(I40>=0.5,INTERPRNG_h($F40,'STU Treatment Values'!$Z$5:$AI$27,0,1,$J40),INTERPRNG_h($F40,'STU Treatment Values'!$Z$29:$AI$51,0,1,$J40)),"") ->  | T40: =IF(A40="","",SUMIF(RIDOT_Catchment!$D$5:$D$79,A40,RIDOT_Catchment!$Q$5:$Q$79)+SUMIF('Non-RIDOT_Catchment'!$D$5:$D$52,A40,'Non-RIDOT_Catchment'!$Q$5:$Q$52)) ->  | U40: =IFERROR(IF(I40>=0.5,INTERPRNG_h($F40,'STU Treatment Values'!$AL$5:$AU$27,0,1,$J40),INTERPRNG_h($F40,'STU Treatment Values'!$AL$29:$AU$51,0,1,$J40)),"") ->  | Z40: =IFERROR(INTERPRNG_h($F40,'STU Treatment Values'!$B$79:$K$101,0,1,$J40),"") ->  | AA40: =IFERROR(INTERPRNG_h($F40,'STU Treatment Values'!$B$54:$K$76,0,1,$J40),"") ->  | AD40: =IFERROR(INTERPRNG_h($F40,'STU Treatment Values'!$B$104:$K$126,0,1,$J40),"") -> 
B41: =IF(A41="","",IFERROR(VLOOKUP(A41,Existing_STU!$A$6:$J$37,4,0),VLOOKUP(A41,Potential_STU!$A$6:$K$39,4,0))) ->  | C41: =IF(A41="","",SUMIF(RIDOT_Catchment!$D$5:$D$79,A41,RIDOT_Catchment!$L$5:$L$79)+SUMIF('Non-RIDOT_Catchment'!$D$5:$D$52,A41,'Non-RIDOT_Catchment'!$L$5:$L$52)) ->  | D41: =IF(A41="","",SUMIF(RIDOT_Catchment!$D$5:$D$79,A41,RIDOT_Catchment!$F$5:$F$79)+SUMIF('Non-RIDOT_Catchment'!$D$5:$D$52,A41,'Non-RIDOT_Catchment'!$F$5:$F$52)) ->  | E41: =IF(A41="","",IFERROR(VLOOKUP(A41,Existing_STU!$A$6:$J$37,6,0),VLOOKUP(A41,Potential_STU!$A$6:$K$39,6,0))) ->  | G41: =IF(A41="","",IFERROR(VLOOKUP(A41,Existing_STU!$A$6:$J$37,5,0),VLOOKUP(A41,Potential_STU!$A$6:$K$39,5,0))) ->  | I41: =IF(A41="","",D41/C41) ->  | J41: =IF(ISBLANK(B41),"",IF(ISBLANK(G41),"",RowFunc(B41,G41))) -> 0 | K41: =IF(A41="","",SUMIF(RIDOT_Catchment!$D$5:$D$79,A41,RIDOT_Catchment!$N$5:$N$79)+SUMIF('Non-RIDOT_Catchment'!$D$5:$D$52,A41,'Non-RIDOT_Catchment'!$N$5:$N$52)) ->  | L41: =IFERROR(IF(I41>=0.5,INTERPRNG_h($F41,'STU Treatment Values'!$B$5:$K$27,0,1,$J41),INTERPRNG_h($F41,'STU Treatment Values'!$B$29:$K$51,0,1,$J41)),"") ->  | M41: =IF(B41="Limited ROW",L41*K41*0.1,IFERROR(L41*K41,"")) ->  | N41: =IF(A41="","",SUMIF(RIDOT_Catchment!$D$5:$D$79,A41,RIDOT_Catchment!$O$5:$O$79)+SUMIF('Non-RIDOT_Catchment'!$D$5:$D$52,A41,'Non-RIDOT_Catchment'!$O$5:$O$52)) ->  | O41: =IFERROR(IF(I41>=0.5,INTERPRNG_h($F41,'STU Treatment Values'!$N$5:$W$27,0,1,$J41),INTERPRNG_h($F41,'STU Treatment Values'!$N$29:$W$51,0,1,$J41)),"") ->  | P41: =IF(B41="Limited ROW",O41*N41*0.1,IFERROR(N41*O41,"")) ->  | Q41: =IF(A41="","",SUMIF(RIDOT_Catchment!$D$5:$D$79,A41,RIDOT_Catchment!$P$5:$P$79)+SUMIF('Non-RIDOT_Catchment'!$D$5:$D$52,A41,'Non-RIDOT_Catchment'!$P$5:$P$52)) ->  | R41: =IFERROR(IF(I41>=0.5,INTERPRNG_h($F41,'STU Treatment Values'!$Z$5:$AI$27,0,1,$J41),INTERPRNG_h($F41,'STU Treatment Values'!$Z$29:$AI$51,0,1,$J41)),"") ->  | S41: =IF(B41="Limited ROW",R41*Q41*0.1,IFERROR(Q41*R41,"")) ->  | T41: =IF(A41="","",SUMIF(RIDOT_Catchment!$D$5:$D$79,A41,RIDOT_Catchment!$Q$5:$Q$79)+SUMIF('Non-RIDOT_Catchment'!$D$5:$D$52,A41,'Non-RIDOT_Catchment'!$Q$5:$Q$52)) ->  | U41: =IFERROR(IF(I41>=0.5,INTERPRNG_h($F41,'STU Treatment Values'!$AL$5:$AU$27,0,1,$J41),INTERPRNG_h($F41,'STU Treatment Values'!$AL$29:$AU$51,0,1,$J41)),"") ->  | V41: =IF(B41="Limited ROW",U41*T41*0.1,IFERROR(U41*T41,"")) ->  | W41: =IF(A41="","",D41/43560) ->  | X41: =IFERROR(IF(O41/0.9>1,1,O41/0.9),"") ->  | Y41: =IFERROR(IF(L41/0.9>1,1,L41/0.9),"") ->  | Z41: =IFERROR(INTERPRNG_h($F41,'STU Treatment Values'!$B$79:$K$101,0,1,$J41),"") ->  | AA41: =IFERROR(INTERPRNG_h($F41,'STU Treatment Values'!$B$54:$K$76,0,1,$J41),"") ->  | AB41: =IFERROR((X41+Y41+Z41+AA41)/4,"") ->  | AC41: =IF(B41="Limited ROW",W41*AB41*0.1,IFERROR(AB41*W41,"")) ->  | AD41: =IFERROR(INTERPRNG_h($F41,'STU Treatment Values'!$B$104:$K$126,0,1,$J41),"") ->  | AE41: =IF(B41="Limited ROW",AD41*(D41*0.1/43560*3.559+H41*0.1/43560*0.239),IFERROR(AD41*(D41/43560*3.559+H41/43560*0.239),"")) -> 

Sheet Porous Pavement (underdrained) (hidden)
A1: This sheet performs water quality calculations for porous pavement (with underdrain) treatment credits.
A2: Note to user: These treatment credits only apply to STU Type "porous pavement w/ underdrain". For porous pavement without an underdrain, use the Structural Water Quality Calcs sheet with an STU type of "porous pavement".
A5: Porous Pavement (w/ underdrain)
J6: Water Quality Results
J7: Phosphorous | M7: TSS | P7: Nitrogen | S7: Zinc | V7: Impervious Cover | AC7: Runoff Reduction
A8: STU ID | B8: STU Type* | C8: Catchment Area (sq. ft.) | D8: Impervious Area (Sq. Ft.) | E8: STU Volume definitions (ft³) | F8: Filter Depth* (in.) | G8: STU Soil Type* | H8: Pervious Area (sq. ft.) | I8: Catchment % Impervious | J8: P Load (lb/yr) | K8: P Removal Credit (%) | L8: P Reduction (lb/yr) | M8: TSS Load (lb/yr) | N8: TSS Removal Credit (%) | O8: TSS Reduction (lb/yr) | P8: Nitrogen Load (lb/yr) | Q8: Nitrogen Removal Credit (%) | R8: Nitrogen Reduction (lb/yr) | S8: Zinc Load (lb/yr) | T8: Zinc Removal Credit (%) | U8: Zinc Reduction (lb/yr) | V8: Impervious WS (Acres) | W8: TSS Reduction Factor | X8: Phosphorus Reduction Factor | Y8: Runoff Reduction Factor | Z8: Flow Factor | AA8: Effective IC Reduction (%) | AB8: Effective IC Reduction (acres) | AC8: Runoff Reduction % | AD8: Runoff Reduction (ac-ft)
B9: =IF(A9="","",IFERROR(VLOOKUP(A9,Existing_STU!$A$6:$J$37,4,0),VLOOKUP(A9,Potential_STU!$A$6:$K$39,4,0))) ->  | C9: =IF(A9="","",SUMIF(RIDOT_Catchment!$D$5:$D$39,A9,RIDOT_Catchment!$L$5:$L$39)+SUMIF('Non-RIDOT_Catchment'!$D$5:$D$39,A9,'Non-RIDOT_Catchment'!$L$5:$L$39)) ->  | D9: =IF(A9="","",SUMIF(RIDOT_Catchment!$D$5:$D$39,A9,RIDOT_Catchment!$F$5:$F$39)+SUMIF('Non-RIDOT_Catchment'!$D$5:$D$39,A9,'Non-RIDOT_Catchment'!$F$5:$F$39)) ->  | E9: =IF(A9="","",IFERROR(VLOOKUP(A9,Existing_STU!$A$6:$J$37,6,0),VLOOKUP(A9,Potential_STU!$A$6:$K$39,6,0))) ->  | G9: =IF(A9="","",IFERROR(VLOOKUP(A9,Existing_STU!$A$6:$J$37,5,0),VLOOKUP(A9,Potential_STU!$A$6:$K$39,5,0))) ->  | H9: =IF(A9="","",C9-D9) ->  | I9: =IF(A9="","",D9/C9) ->  | J9: =IF(A9="","",SUMIF(RIDOT_Catchment!$D$5:$D$39,A9,RIDOT_Catchment!$N$5:$N$39)+SUMIF('Non-RIDOT_Catchment'!$D$5:$D$39,A9,'Non-RIDOT_Catchment'!$N$5:$N$39)) ->  | K9: =IF(A9="","",HLOOKUP(F9,'Porous Pavement (underdrained)'!$A$15:$E$19,2,0)) ->  | L9: =IFERROR(K9*J9,"") ->  | M9: =IF(A9="","",SUMIF(RIDOT_Catchment!$D$5:$D$39,A9,RIDOT_Catchment!$O$5:$O$39)+SUMIF('Non-RIDOT_Catchment'!$D$5:$D$39,A9,'Non-RIDOT_Catchment'!$O$5:$O$39)) ->  | N9: =IF(A9="","",HLOOKUP(F9,'Porous Pavement (underdrained)'!$A$15:$E$19,3,0)) ->  | O9: =IFERROR(M9*N9,"") ->  | P9: =IF(A9="","",SUMIF(RIDOT_Catchment!$D$5:$D$39,A9,RIDOT_Catchment!$P$5:$P$39)+SUMIF('Non-RIDOT_Catchment'!$D$5:$D$39,A9,'Non-RIDOT_Catchment'!$P$5:$P$39)) ->  | Q9: =IF(A9="","",HLOOKUP(F9,'Porous Pavement (underdrained)'!$A$15:$E$19,4,0)) ->  | R9: =IFERROR(P9*Q9,"") ->  | S9: =IF(A9="","",SUMIF(RIDOT_Catchment!$D$5:$D$39,A9,RIDOT_Catchment!$Q$5:$Q$39)+SUMIF('Non-RIDOT_Catchment'!$D$5:$D$39,A9,'Non-RIDOT_Catchment'!$Q$5:$Q$39)) ->  | T9: =IF(A9="","",HLOOKUP(F9,'Porous Pavement (underdrained)'!$A$15:$E$19,5,0)) ->  | U9: =IFERROR(T9*S9,"") ->  | V9: =IF(A9="","",D9/43560) ->  | W9: =IFERROR(IF(N9/0.9>1,1,N9/0.9),"") ->  | X9: =IFERROR(IF(K9/0.9>1,1,K9/0.9),"") ->  | Y9: =IF(A9="","",HLOOKUP(F9,'Porous Pavement (underdrained)'!$A$22:$E$27,5,0)) ->  | Z9: =IF(A9="","",HLOOKUP(F9,'Porous Pavement (underdrained)'!$A$22:$E$27,4,0)) ->  | AA9: =IFERROR((W9+X9+Y9+Z9)/4,"") ->  | AB9: =IFERROR(AA9*V9,"") ->  | AC9: =IF(A9="","",Y9/1.1) ->  | AD9: =IFERROR(AC9*(D9/43560*3.559+H9/43560*0.239),"") -> 
B10: =IF(A10="","",IFERROR(VLOOKUP(A10,Existing_STU!$A$6:$J$37,4,0),VLOOKUP(A10,Potential_STU!$A$6:$K$39,4,0))) ->  | C10: =IF(A10="","",SUMIF(RIDOT_Catchment!$D$5:$D$39,A10,RIDOT_Catchment!$L$5:$L$39)+SUMIF('Non-RIDOT_Catchment'!$D$5:$D$39,A10,'Non-RIDOT_Catchment'!$L$5:$L$39)) ->  | D10: =IF(A10="","",SUMIF(RIDOT_Catchment!$D$5:$D$39,A10,RIDOT_Catchment!$F$5:$F$39)+SUMIF('Non-RIDOT_Catchment'!$D$5:$D$39,A10,'Non-RIDOT_Catchment'!$F$5:$F$39)) ->  | E10: =IF(A10="","",IFERROR(VLOOKUP(A10,Existing_STU!$A$6:$J$37,6,0),VLOOKUP(A10,Potential_STU!$A$6:$K$39,6,0))) ->  | G10: =IF(A10="","",IFERROR(VLOOKUP(A10,Existing_STU!$A$6:$J$37,5,0),VLOOKUP(A10,Potential_STU!$A$6:$K$39,5,0))) ->  | H10: =IF(A10="","",C10-D10) ->  | I10: =IF(A10="","",D10/C10) ->  | J10: =IF(A10="","",SUMIF(RIDOT_Catchment!$D$5:$D$39,A10,RIDOT_Catchment!$N$5:$N$39)+SUMIF('Non-RIDOT_Catchment'!$D$5:$D$39,A10,'Non-RIDOT_Catchment'!$N$5:$N$39)) ->  | K10: =IF(A10="","",HLOOKUP(F10,'Porous Pavement (underdrained)'!$A$15:$E$19,2,0)) ->  | L10: =IFERROR(K10*J10,"") ->  | M10: =IF(A10="","",SUMIF(RIDOT_Catchment!$D$5:$D$39,A10,RIDOT_Catchment!$O$5:$O$39)+SUMIF('Non-RIDOT_Catchment'!$D$5:$D$39,A10,'Non-RIDOT_Catchment'!$O$5:$O$39)) ->  | N10: =IF(A10="","",HLOOKUP(F10,'Porous Pavement (underdrained)'!$A$15:$E$19,3,0)) ->  | O10: =IFERROR(M10*N10,"") ->  | P10: =IF(A10="","",SUMIF(RIDOT_Catchment!$D$5:$D$39,A10,RIDOT_Catchment!$P$5:$P$39)+SUMIF('Non-RIDOT_Catchment'!$D$5:$D$39,A10,'Non-RIDOT_Catchment'!$P$5:$P$39)) ->  | Q10: =IF(A10="","",HLOOKUP(F10,'Porous Pavement (underdrained)'!$A$15:$E$19,4,0)) ->  | R10: =IFERROR(P10*Q10,"") ->  | S10: =IF(A10="","",SUMIF(RIDOT_Catchment!$D$5:$D$39,A10,RIDOT_Catchment!$Q$5:$Q$39)+SUMIF('Non-RIDOT_Catchment'!$D$5:$D$39,A10,'Non-RIDOT_Catchment'!$Q$5:$Q$39)) ->  | T10: =IF(A10="","",HLOOKUP(F10,'Porous Pavement (underdrained)'!$A$15:$E$19,5,0)) ->  | U10: =IFERROR(T10*S10,"") ->  | V10: =IF(A10="","",D10/43560) ->  | W10: =IFERROR(IF(N10/0.9>1,1,N10/0.9),"") ->  | X10: =IFERROR(IF(K10/0.9>1,1,K10/0.9),"") ->  | Y10: =IF(A10="","",HLOOKUP(F10,'Porous Pavement (underdrained)'!$A$22:$E$27,5,0)) ->  | Z10: =IF(A10="","",HLOOKUP(F10,'Porous Pavement (underdrained)'!$A$22:$E$27,4,0)) ->  | AA10: =IFERROR((W10+X10+Y10+Z10)/4,"") ->  | AB10: =IFERROR(AA10*V10,"") ->  | AC10: =IF(A10="","",Y10/1.1) ->  | AD10: =IFERROR(AC10*(D10/43560*3.559+H10/43560*0.239),"") -> 
B11: =IF(A11="","",IFERROR(VLOOKUP(A11,Existing_STU!$A$6:$J$37,4,0),VLOOKUP(A11,Potential_STU!$A$6:$K$39,4,0))) ->  | C11: =IF(A11="","",SUMIF(RIDOT_Catchment!$D$5:$D$39,A11,RIDOT_Catchment!$L$5:$L$39)+SUMIF('Non-RIDOT_Catchment'!$D$5:$D$39,A11,'Non-RIDOT_Catchment'!$L$5:$L$39)) ->  | D11: =IF(A11="","",SUMIF(RIDOT_Catchment!$D$5:$D$39,A11,RIDOT_Catchment!$F$5:$F$39)+SUMIF('Non-RIDOT_Catchment'!$D$5:$D$39,A11,'Non-RIDOT_Catchment'!$F$5:$F$39)) ->  | E11: =IF(A11="","",IFERROR(VLOOKUP(A11,Existing_STU!$A$6:$J$37,6,0),VLOOKUP(A11,Potential_STU!$A$6:$K$39,6,0))) ->  | G11: =IF(A11="","",IFERROR(VLOOKUP(A11,Existing_STU!$A$6:$J$37,5,0),VLOOKUP(A11,Potential_STU!$A$6:$K$39,5,0))) ->  | H11: =IF(A11="","",C11-D11) ->  | I11: =IF(A11="","",D11/C11) ->  | J11: =IF(A11="","",SUMIF(RIDOT_Catchment!$D$5:$D$39,A11,RIDOT_Catchment!$N$5:$N$39)+SUMIF('Non-RIDOT_Catchment'!$D$5:$D$39,A11,'Non-RIDOT_Catchment'!$N$5:$N$39)) ->  | K11: =IF(A11="","",HLOOKUP(F11,'Porous Pavement (underdrained)'!$A$15:$E$19,2,0)) ->  | L11: =IFERROR(K11*J11,"") ->  | M11: =IF(A11="","",SUMIF(RIDOT_Catchment!$D$5:$D$39,A11,RIDOT_Catchment!$O$5:$O$39)+SUMIF('Non-RIDOT_Catchment'!$D$5:$D$39,A11,'Non-RIDOT_Catchment'!$O$5:$O$39)) ->  | N11: =IF(A11="","",HLOOKUP(F11,'Porous Pavement (underdrained)'!$A$15:$E$19,3,0)) ->  | O11: =IFERROR(M11*N11,"") ->  | P11: =IF(A11="","",SUMIF(RIDOT_Catchment!$D$5:$D$39,A11,RIDOT_Catchment!$P$5:$P$39)+SUMIF('Non-RIDOT_Catchment'!$D$5:$D$39,A11,'Non-RIDOT_Catchment'!$P$5:$P$39)) ->  | Q11: =IF(A11="","",HLOOKUP(F11,'Porous Pavement (underdrained)'!$A$15:$E$19,4,0)) ->  | R11: =IFERROR(P11*Q11,"") ->  | S11: =IF(A11="","",SUMIF(RIDOT_Catchment!$D$5:$D$39,A11,RIDOT_Catchment!$Q$5:$Q$39)+SUMIF('Non-RIDOT_Catchment'!$D$5:$D$39,A11,'Non-RIDOT_Catchment'!$Q$5:$Q$39)) ->  | T11: =IF(A11="","",HLOOKUP(F11,'Porous Pavement (underdrained)'!$A$15:$E$19,5,0)) ->  | U11: =IFERROR(T11*S11,"") ->  | V11: =IF(A11="","",D11/43560) ->  | W11: =IFERROR(IF(N11/0.9>1,1,N11/0.9),"") ->  | X11: =IFERROR(IF(K11/0.9>1,1,K11/0.9),"") ->  | Y11: =IF(A11="","",HLOOKUP(F11,'Porous Pavement (underdrained)'!$A$22:$E$27,5,0)) ->  | Z11: =IF(A11="","",HLOOKUP(F11,'Porous Pavement (underdrained)'!$A$22:$E$27,4,0)) ->  | AA11: =IFERROR((W11+X11+Y11+Z11)/4,"") ->  | AB11: =IFERROR(AA11*V11,"") ->  | AC11: =IF(A11="","",Y11/1.1) ->  | AD11: =IFERROR(AC11*(D11/43560*3.559+H11/43560*0.239),"") -> 
A14: Porous Pavement | B14: Filter Course Depth (inches) (>50% IC)
B15: 12 | C15: 18 | D15: 24 | E15: 32
A16: TP Removal | B16: 0.62 | C16: 0.7 | D16: 0.75 | E16: 0.78
A17: TSS Removal | B17: 0.92 | C17: 0.94 | D17: 0.96 | E17: 0.97
A18: TN Removal | B18: 0.76 | C18: 0.77 | D18: 0.77 | E18: 0.79
A19: Zinc Removal | B19: 0.85 | C19: 0.97 | D19: 0.97 | E19: 0.98
A21: Porous Pavement | B21: Filter Course Depth (inches) (>50% IC)
B22: 12 | C22: 18 | D22: 24 | E22: 32
A23: Phosphorus Factor | B23: =B16/0.9 -> 0.6888888889 | C23: =C16/0.9 -> 0.7777777778 | D23: =D16/0.9 -> 0.8333333333 | E23: =E16/0.9 -> 0.8666666667
A24: TSS Factor | B24: =IF(B17/0.9>1,1,B17/0.9) -> 1 | C24: =IF(C17/0.9>1,1,C17/0.9) -> 1 | D24: =IF(D17/0.9>1,1,D17/0.9) -> 1 | E24: =IF(E17/0.9>1,1,E17/0.9) -> 1
A25: Flow Factor | B25: 1 | C25: 1 | D25: 1 | E25: 1
A26: Runoff Factor | B26: 1 | C26: 1 | D26: 1 | E26: 1
A27: Pervious Cover Factor | B27: =SUM(B23:B26)/4 -> 0.9222222222 | C27: =SUM(C23:C26)/4 -> 0.9444444444 | D27: =SUM(D23:D26)/4 -> 0.9583333333 | E27: =SUM(E23:E26)/4 -> 0.9666666667

Sheet Floodplain Reconnection (hidden)
A1: This sheet outlines the methodology to calculate treatment credit for floodplain reconnection.
A2: Note: | B2: This methodology is under development. Refer to RIDOT Water Quality Methodology Report for more information. Consult with RIDOT and VHB to determine treatment credit for floodplain reconnection projects.
H6: Water Quality Results
A7: STU ID | B7: Activity Type | C7: Watershed Area (ac) | D7: % Impervious | E7: Land Use* | F7: Treatment Depth (in) | G7: % Annual Rainfall Treated1 | H7: TP Stream Watershed Load (lb/yr) | I7: TP Reduction (%) | J7: TP Reduction (lb/yr) | K7: TN Stream Watershed Load (lb/yr) | L7: TN Reduction (%) | M7: TN Reduction (lb/yr) | N7: TSS Stream Watershed Load (lb/yr) | O7: TSS Reduction (%) | P7: TSS Reduction (lb/yr) | Q7: ZN Stream Watershed Load (lb/yr) | R7: ZN Reduction (%) | S7: ZN Reduction (lb/yr) | T7: Equivalent IC Removal Credit (ac)
B8: =IF(A8="","","Floodplain Reconnection") ->  | J8: =IF(A8="","",G8*I8*H8) ->  | M8: =IF(A8="","",G8*L8*K8) ->  | P8: =IF(A8="","",G8*O8*N8) ->  | S8: =IF(A8="","",G8*R8*Q8) -> 
B9: =IF(A9="","","Floodplain Reconnection") ->  | J9: =IF(A9="","",G9*I9*H9) ->  | M9: =IF(A9="","",G9*L9*K9) ->  | P9: =IF(A9="","",G9*O9*N9) ->  | S9: =IF(A9="","",G9*R9*Q9) -> 
A10: 1 Requires development of site-specific curves. Modeling (such as HEC-RAS) required to determine the rainfall event that will overflow into the floodplain.

Sheet Urban Tree Canopy (hidden)
A1: This sheet outlines the methodology to calculate treatment credit for urban tree canopies.
A2: Note: This methodology is under development. Refer to the RIDOT Water Quality Methodology Report for more information.
A3: Consult with RIDOT and VHB to determine treatment credit for urban tree canopies.
F4: Water Quality Results
A5: STU ID | B5: Activity Type | C5: Tree Type | D5: Soil Type/Land Cover | E5: Qualifying Conditions Met?1 | F5: TN Reduction (lb/yr) | G5: TP Reduction (lb/yr) | H5: TSS Reduction (lb/yr) | I5: Equivalent IC Removal Credit (ac)
B6: =IF(A6="","","Urban Tree Canopy") -> 
A13: 1Qualifying Conditions include the development of a maintenance plan and leaf litter pickup program, and the consultation of a qualified professional on the selection of appropriate species, site preparation, and siting to provide sufficient soil volume.
A15: Soil Type/Land Cover | B15: Load Reduction (lb/year)
B16: TN | C16: TP | D16: TSS
A17: Broadleaf Deciduous - Large
A18: HSG-A, pervious | B18: 0.001996265055 | C18: 0.0003441836301 | D18: 0.1927428329
A19: HSG-B, pervious | B19: 0.006743336621 | C19: 0.001162644245 | D19: 0.6510807772
A20: HSG-C, pervious | B20: 0.01163165439 | C20: 0.002005457653 | D20: 1.123056286
A21: HSG-D, pervious | B21: 0.01531821631 | C21: 0.002641071777 | D21: 1.479000195
A22: Unknown soil type, pervious | B22: 0.01163165439 | C22: 0.002005457653 | D22: 1.123056286
A23: Impervious cover | B23: 0.009411103749 | C23: 0.001622604095 | D23: 0.908658293
A24: Broadleaf Deciduous - Medium
A25: HSG-A, pervious | B25: 0.003887973179 | C25: 0.0006703402033 | D25: 0.3753905138
A26: HSG-B, pervious | B26: 0.01328218915 | C26: 0.002290032611 | D26: 1.282418262
A27: HSG-C, pervious | B27: 0.02288407766 | C27: 0.003945530631 | D27: 2.209497154
A28: HSG-D, pervious | B28: 0.03008660067 | C28: 0.005187344944 | D28: 2.904913169
A29: Unknown soil type, pervious | B29: 0.02288407766 | C29: 0.003945530631 | D29: 2.209497154
A30: Impervious cover | B30: 0.01869927929 | C30: 0.003224013671 | D30: 1.805447656
A31: Broadleaf Deciduous - Small
A32: HSG-A, pervious | B32: 0.0008112005351 | C32: 0.0001398621612 | D32: 0.07832281029
A33: HSG-B, pervious | B33: 0.002562995812 | C33: 0.0004418958297 | D33: 0.2474616646
A34: HSG-C, pervious | B34: 0.004266998902 | C34: 0.0007356894659 | D34: 0.4119861009
A35: HSG-D, pervious | B35: 0.005522230316 | C35: 0.0009521086752 | D35: 0.5331808581
A36: Unknown soil type, pervious | B36: 0.004266998902 | C36: 0.0007356894659 | D36: 0.4119861009
A37: Impervious cover | B37: 0.003253109707 | C37: 0.000560880984 | D37: 0.314093351
A38: Coniferous Evergreen - Large
A39: HSG-A, pervious | B39: 0.0034 | C39: 0.0006 | D39: 0.32
A40: HSG-B, pervious | B40: 0.0112 | C40: 0.0019 | D40: 1.08
A41: HSG-C, pervious | B41: 0.0187 | C41: 0.0032 | D41: 1.81
A42: HSG-D, pervious | B42: 0.0243 | C42: 0.0042 | D42: 2.34
A43: Unknown soil type, pervious | B43: 0.0187 | C43: 0.0032 | D43: 1.81
A44: Impervious cover | B44: 0.0178 | C44: 0.0031 | D44: 1.72
A45: Coniferous Evergreen - Small
A46: HSG-A, pervious | B46: 0.001162331081 | C46: 0.0002004019106 | D46: 0.1122250699
A47: HSG-B, pervious | B47: 0.00433937356 | C47: 0.0007481678552 | D47: 0.4189739989
A48: HSG-C, pervious | B48: 0.007668167322 | C48: 0.001322097814 | D48: 0.7403747759
A49: HSG-D, pervious | B49: 0.01018663443 | C49: 0.001756316281 | D49: 0.9835371172
A50: Unknown soil type, pervious | B50: 0.007668167322 | C50: 0.001322097814 | D50: 0.7403747759
A51: Impervious cover | B51: 0.009983104881 | C51: 0.00172122498 | D51: 0.9638859885
A52: Unknown Tree Type
A53: HSG-A, pervious | B53: 0.003887973179 | C53: 0.0006703402033 | D53: 0.3753905138
A54: HSG-B, pervious | B54: 0.01328218915 | C54: 0.002290032611 | D54: 1.282418262
A55: HSG-C, pervious | B55: 0.02288407766 | C55: 0.003945530631 | D55: 2.209497154
A56: HSG-D, pervious | B56: 0.03008660067 | C56: 0.005187344944 | D56: 2.904913169
A57: Unknown soil type, pervious | B57: 0.02288407766 | C57: 0.003945530631 | D57: 2.209497154
A58: Impervious cover | B58: 0.01869927929 | C58: 0.003224013671 | D58: 1.805447656

Sheet Agriculture Buffers (hidden)
A1: This sheet outlines the methodology to calculate treatment credit for agriculture buffers.
A2: Note: This methodology is under development. Refer to the RIDOT Water Quality Methodology Report for more information.
A3: Consult with RIDOT and VHB to determine treatment credit for agriculture buffers.
H5: Water Quality Results
A6: STU ID | B6: Activity Type | C6: Buffer Type | D6: Annual Runoff Volume (volume/yr) | E6: TP Concentration (lb/volume) | F6: TN Concentration (lb/volume) | G6: TSS Concentration (lb/volume) | H6: TP Reduction (%) | I6: TP Reduction (lb/yr) | J6: TN Reduction (%) | K6: TN Reduction (lb/yr) | L6: TSS Reduction (%) | M6: TSS Reduction (lb/yr) | N6: Equivalent IC Removal Credit (ac)
B7: =IF(A7="","","Agricultural Buffer") -> 
B8: =IF(A8="","","Agricultural Buffer") -> 
B9: =IF(A9="","","Agricultural Buffer") -> 
A14: Geographic Setting | B14: Forest (One Side) | E14: Grass (One or Both Sides) (%)
B15: (%)
B16: TN | C16: TP | D16: TSS | E16: TN | F16: TP | G16: TSS
A17: Inner Coastal Plain | B17: 65 | C17: 42 | D17: 56 | E17: 46 | F17: 42 | G17: 56
A18: Outer Coastal Plain (well-drained) | B18: 31 | C18: 45 | D18: 60 | E18: 21 | F18: 45 | G18: 60
A19: Outer Coastal Plain (poorly-drained) | B19: 56 | C19: 39 | D19: 52 | E19: 39 | F19: 39 | G19: 52
A20: Tidal Influenced | B20: 19 | C20: 45 | D20: 60 | E20: 13 | F20: 45 | G20: 60
A21: Piedmont (schist/gneiss) | B21: 46 | C21: 36 | D21: 48 | E21: 32 | F21: 36 | G21: 48
A22: Piedmont (sandstone) | B22: 56 | C22: 42 | D22: 56 | E22: 39 | F22: 42 | G22: 56
A23: Valley and Ridge (karst) | B23: 34 | C23: 30 | D23: 40 | E23: 24 | F23: 30 | G23: 40
A24: Valley and Ridge (sandstone/shale) | B24: 46 | C24: 39 | D24: 52 | E24: 32 | F24: 39 | G24: 52
A25: Appalachian Plateau | B25: 54 | C25: 42 | D25: 56 | E25: 38 | F25: 42 | G25: 56

Sheet Pervious Land Enhancement (hidden)
A1: This sheet outlines the methodology to calculate treatment credit for pervious land enhancement.
A2: Note: This methodology is under development. Refer to the RIDOT Water Quality Methodology Report for more information.
A3: Consult with RIDOT and VHB to determine treatment credit for pervious land enhancement.
E5: Existing Conditions | J5: Enhanced Conditions | O5: Water Quality Results
A6: STU ID | B6: Activity Type | C6: Area (ac) | D6: Land Use* | E6: TP Load (lb/yr) | F6: TN Load (lb/yr) | G6: TSS Load (lb/yr) | H6: Runoff Factor | I6: Flow Factor | J6: TP Load (lb/yr) | K6: TN Load (lb/yr) | L6: TSS Load (lb/yr) | M6: Runoff Factor | N6: Flow Factor | O6: TP Reduction (%) | P6: TP Reduction (lb/yr) | Q6: TN Reduction (%) | R6: TN Reduction (lb/yr) | S6: TSS Reduction (%) | T6: TSS Reduction (lb/yr) | U6: Equivalent IC Removal Credit (ac)
B7: =IF(A7="","","Pervious Land Enhancement") -> 
B8: =IF(A8="","","Pervious Land Enhancement") -> 
B9: =IF(A9="","","Pervious Land Enhancement") -> 

Sheet Proprietary Technologies (hidden)
A1: This sheet outlines the methodology to calculate treatment credit for proprietary technologies.
A2: Note: This methodology is under development. Refer to the RIDOT Water Quality Methodology Report for more information.
A3: Consult with RIDOT and VHB to determine treatment credit for proprietary technologies.
D5: Water Quality Results
A6: STU ID | B6: STU Type | C6: Impervious Area (sq ft) | D6: TP Load (lb/yr) | E6: TP Reduction (%) | F6: TP Reduction (lb/yr) | G6: TN Load (lb/yr) | H6: TN Reduction (%) | I6: TN Reduction (lb/yr) | J6: TSS Load (lb/yr) | K6: TSS Reduction (%) | L6: TSS Reduction (lb/yr) | M6: Flow Factor | N6: Runoff Factor | O6: Effective IC Reduction (% | P6: Equivalent IC Removal Credit (ac)
D7: =IF(A7="","",SUMIF(RIDOT_Catchment!$D$5:$D$39,A7,RIDOT_Catchment!$N$5:$N$39)+SUMIF('Non-RIDOT_Catchment'!$D$5:$D$39,A7,'Non-RIDOT_Catchment'!$N$5:$N$39)) ->  | E7: =IF(B7="","",VLOOKUP(B7,$A$13:$F$17,3,0)) ->  | F7: =IFERROR(E7*D7,"") ->  | G7: =IF(A7="","",SUMIF(RIDOT_Catchment!$D$5:$D$39,A7,RIDOT_Catchment!$P$5:$P$39)+SUMIF('Non-RIDOT_Catchment'!$D$5:$D$39,A7,'Non-RIDOT_Catchment'!$P$5:$P$39)) ->  | H7: =IF(B7="","",VLOOKUP(B7,$A$13:$F$17,4,0)) ->  | I7: =IFERROR(H7*G7,"") ->  | J7: =IF(A7="","",SUMIF(RIDOT_Catchment!$D$5:$D$39,A7,RIDOT_Catchment!$O$5:$O$39)+SUMIF('Non-RIDOT_Catchment'!$D$5:$D$39,A7,'Non-RIDOT_Catchment'!$O$5:$O$39)) ->  | K7: =IF(B7="","",VLOOKUP(B7,$A$13:$F$17,2,0)) ->  | L7: =IFERROR(K7*J7,"") ->  | M7: =IF(B7="","",VLOOKUP(B7,$A$13:$F$17,6,0)) ->  | N7: =IF(B7="","",VLOOKUP(B7,$A$13:$F$17,5,0)) ->  | O7: =IFERROR((K7/0.9+E7/0.9+M7+N7)/4,"") ->  | P7: =IFERROR(O7*C7,"") -> 
D8: =IF(A8="","",SUMIF(RIDOT_Catchment!$D$5:$D$39,A8,RIDOT_Catchment!$N$5:$N$39)+SUMIF('Non-RIDOT_Catchment'!$D$5:$D$39,A8,'Non-RIDOT_Catchment'!$N$5:$N$39)) ->  | E8: =IF(B8="","",VLOOKUP(B8,$A$13:$F$17,3,0)) ->  | F8: =IFERROR(E8*D8,"") ->  | G8: =IF(A8="","",SUMIF(RIDOT_Catchment!$D$5:$D$39,A8,RIDOT_Catchment!$P$5:$P$39)+SUMIF('Non-RIDOT_Catchment'!$D$5:$D$39,A8,'Non-RIDOT_Catchment'!$P$5:$P$39)) ->  | H8: =IF(B8="","",VLOOKUP(B8,$A$13:$F$17,4,0)) ->  | I8: =IFERROR(H8*G8,"") ->  | J8: =IF(A8="","",SUMIF(RIDOT_Catchment!$D$5:$D$39,A8,RIDOT_Catchment!$O$5:$O$39)+SUMIF('Non-RIDOT_Catchment'!$D$5:$D$39,A8,'Non-RIDOT_Catchment'!$O$5:$O$39)) ->  | K8: =IF(B8="","",VLOOKUP(B8,$A$13:$F$17,2,0)) ->  | L8: =IFERROR(E8*D8,"") ->  | M8: =IF(B8="","",VLOOKUP(B8,$A$13:$F$17,6,0)) ->  | N8: =IF(B8="","",VLOOKUP(B8,$A$13:$F$17,5,0)) ->  | O8: =IFERROR((K8/0.9+E8/0.9+M8+N8)/4,"") ->  | P8: =IFERROR(O8*C8,"") -> 
D9: =IF(A9="","",SUMIF(RIDOT_Catchment!$D$5:$D$39,A9,RIDOT_Catchment!$N$5:$N$39)+SUMIF('Non-RIDOT_Catchment'!$D$5:$D$39,A9,'Non-RIDOT_Catchment'!$N$5:$N$39)) ->  | E9: =IF(B9="","",VLOOKUP(B9,$A$13:$F$17,3,0)) ->  | F9: =IFERROR(E9*D9,"") ->  | G9: =IF(A9="","",SUMIF(RIDOT_Catchment!$D$5:$D$39,A9,RIDOT_Catchment!$P$5:$P$39)+SUMIF('Non-RIDOT_Catchment'!$D$5:$D$39,A9,'Non-RIDOT_Catchment'!$P$5:$P$39)) ->  | H9: =IF(B9="","",VLOOKUP(B9,$A$13:$F$17,4,0)) ->  | I9: =IFERROR(H9*G9,"") ->  | J9: =IF(A9="","",SUMIF(RIDOT_Catchment!$D$5:$D$39,A9,RIDOT_Catchment!$O$5:$O$39)+SUMIF('Non-RIDOT_Catchment'!$D$5:$D$39,A9,'Non-RIDOT_Catchment'!$O$5:$O$39)) ->  | K9: =IF(B9="","",VLOOKUP(B9,$A$13:$F$17,2,0)) ->  | L9: =IFERROR(E9*D9,"") ->  | M9: =IF(B9="","",VLOOKUP(B9,$A$13:$F$17,6,0)) ->  | N9: =IF(B9="","",VLOOKUP(B9,$A$13:$F$17,5,0)) ->  | O9: =IFERROR((K9/0.9+E9/0.9+M9+N9)/4,"") ->  | P9: =IFERROR(O9*C9,"") -> 
D10: =IF(A10="","",SUMIF(RIDOT_Catchment!$D$5:$D$39,A10,RIDOT_Catchment!$N$5:$N$39)+SUMIF('Non-RIDOT_Catchment'!$D$5:$D$39,A10,'Non-RIDOT_Catchment'!$N$5:$N$39)) ->  | E10: =IF(B10="","",VLOOKUP(B10,$A$13:$F$17,3,0)) ->  | F10: =IFERROR(E10*D10,"") ->  | G10: =IF(A10="","",SUMIF(RIDOT_Catchment!$D$5:$D$39,A10,RIDOT_Catchment!$P$5:$P$39)+SUMIF('Non-RIDOT_Catchment'!$D$5:$D$39,A10,'Non-RIDOT_Catchment'!$P$5:$P$39)) ->  | H10: =IF(B10="","",VLOOKUP(B10,$A$13:$F$17,4,0)) ->  | I10: =IFERROR(H10*G10,"") ->  | J10: =IF(A10="","",SUMIF(RIDOT_Catchment!$D$5:$D$39,A10,RIDOT_Catchment!$O$5:$O$39)+SUMIF('Non-RIDOT_Catchment'!$D$5:$D$39,A10,'Non-RIDOT_Catchment'!$O$5:$O$39)) ->  | K10: =IF(B10="","",VLOOKUP(B10,$A$13:$F$17,2,0)) ->  | L10: =IFERROR(E10*D10,"") ->  | M10: =IF(B10="","",VLOOKUP(B10,$A$13:$F$17,6,0)) ->  | N10: =IF(B10="","",VLOOKUP(B10,$A$13:$F$17,5,0)) ->  | O10: =IFERROR((K10/0.9+E10/0.9+M10+N10)/4,"") ->  | P10: =IFERROR(O10*C10,"") -> 
D11: =IF(A11="","",SUMIF(RIDOT_Catchment!$D$5:$D$39,A11,RIDOT_Catchment!$N$5:$N$39)+SUMIF('Non-RIDOT_Catchment'!$D$5:$D$39,A11,'Non-RIDOT_Catchment'!$N$5:$N$39)) ->  | E11: =IF(B11="","",VLOOKUP(B11,$A$13:$F$17,3,0)) ->  | F11: =IFERROR(E11*D11,"") ->  | G11: =IF(A11="","",SUMIF(RIDOT_Catchment!$D$5:$D$39,A11,RIDOT_Catchment!$P$5:$P$39)+SUMIF('Non-RIDOT_Catchment'!$D$5:$D$39,A11,'Non-RIDOT_Catchment'!$P$5:$P$39)) ->  | H11: =IF(B11="","",VLOOKUP(B11,$A$13:$F$17,4,0)) ->  | I11: =IFERROR(H11*G11,"") ->  | J11: =IF(A11="","",SUMIF(RIDOT_Catchment!$D$5:$D$39,A11,RIDOT_Catchment!$O$5:$O$39)+SUMIF('Non-RIDOT_Catchment'!$D$5:$D$39,A11,'Non-RIDOT_Catchment'!$O$5:$O$39)) ->  | K11: =IF(B11="","",VLOOKUP(B11,$A$13:$F$17,2,0)) ->  | L11: =IFERROR(E11*D11,"") ->  | M11: =IF(B11="","",VLOOKUP(B11,$A$13:$F$17,6,0)) ->  | N11: =IF(B11="","",VLOOKUP(B11,$A$13:$F$17,5,0)) ->  | O11: =IFERROR((K11/0.9+E11/0.9+M11+N11)/4,"") ->  | P11: =IFERROR(O11*C11,"") -> 
A13: Type | B13: TSS Reduction (%) | C13: TP Reduction (%) | D13: TN Reduction (%) | E13: Runoff Factor | F13: Flow Factor
A14: Hydrodynamic Devices | B14: 25 | C14: 10 | D14: 0 | E14: 0 | F14: 0
A15: Jellyfish Filter | B15: 85 | C15: 50 | D15: 50 | E15: 0 | F15: 0
A16: MWS-Linear | B16: 85 | C16: 64 | D16: 45 | E16: 0 | F16: 0
A17: Stormceptor | B17: 75 | C17: 0 | D17: 0 | E17: 0 | F17: 0

Sheet Street Sweeping and CB Cleaning (hidden)
A1: This sheet calculates treatment credit for enhanced street sweeping and catch basin cleaning.
A2: Notes to user: | B2: Per consent decree, "enhanced" non-structural STUs shall mean a non-structural STU that exceeds the scope of the required six minimum control measures. This methodology is under development. Consult with RIDOT and VHB.
G3: Water Quality Results
A4: STU ID | B4: Activity Type* | C4: Contributing Area (ac) | D4: Impervious Cover (ac) | E4: Volume of Solids Collected Per Event (ft3) | F4: Annual Sweeping or Cleaning Frequency* | G4: Annual Volume of Solids (ft3) | H4: Phosphorus Reduction (lb/year) | I4: Nitrogen Reduction (lb/year) | J4: TSS Reduction (lb/yr) | K4: Zinc Reduction (lb/yr) | L4: Equivalent IC Removal Credit (ac)
G5: =IF(A5="","",E5*F5) ->  | H5: =IF(A5="","",G5*85*$A$14) ->  | I5: =IF(A5="","",G5*85*$B$14) ->  | J5: =IF(A5="","",G5*85) ->  | K5: =IF(A5="","",G5*85*$C$14) ->  | L5: =IF(A5="","",H5/'Pollutant Loading Rates'!$C$9) -> 
G6: =IF(A6="","",E6*F6) ->  | H6: =IF(A6="","",G6*85*$A$14) ->  | I6: =IF(A6="","",G6*85*$B$14) ->  | J6: =IF(A6="","",G6*85) ->  | K6: =IF(A6="","",G6*85*$C$14) ->  | L6: =IF(A6="","",H6/'Pollutant Loading Rates'!$C$9) -> 
G7: =IF(A7="","",E7*F7) ->  | H7: =IF(A7="","",G7*85*$A$14) ->  | I7: =IF(A7="","",G7*85*$B$14) ->  | J7: =IF(A7="","",G7*85) ->  | K7: =IF(A7="","",G7*85*$C$14) ->  | L7: =IF(A7="","",H7/'Pollutant Loading Rates'!$C$9) -> 
G8: =IF(A8="","",E8*F8) ->  | H8: =IF(A8="","",G8*85*$A$14) ->  | I8: =IF(A8="","",G8*85*$B$14) ->  | J8: =IF(A8="","",G8*85) ->  | K8: =IF(A8="","",G8*85*$C$14) ->  | L8: =IF(A8="","",H8/'Pollutant Loading Rates'!$C$9) -> 
G9: =IF(A9="","",E9*F9) ->  | H9: =IF(A9="","",G9*85*$A$14) ->  | I9: =IF(A9="","",G9*85*$B$14) ->  | J9: =IF(A9="","",G9*85) ->  | K9: =IF(A9="","",G9*85*$C$14) ->  | L9: =IF(A9="","",H9/'Pollutant Loading Rates'!$C$9) -> 
A12: Pollutant to TSS Ratio1
A13: lbs P/ lbs TSS | B13: lbs N/ lbs TSS | C13: lbs Zn/ lbs TSS
A14: 0.0007 | B14: 0.007 | C14: 0.0012
A15: 1 calculated from Table 16 of the USGS Report Quality of Stormwater Runoff Discharged from Massachusetts Highways, 2005-2007.

Sheet Leaf Litter Removal (hidden)
A1: This sheet calculates treatment credit for leaf litter removal.
A2: Notes to user: | B2: There is currently no method for crediting pollutants other than phosphorus. This methodology is under development. Consult with RIDOT and VHB.
E4: Water Quality Results
A5: STU ID | B5: Activity Type | C5: Contributing Area (ac) | D5: Impervious Cover (ac) | E5: TP Reduction (lb/yr) | F5: Equivalent IC Removal Credit (ac)
B6: =IF(A6="","","Leaf Litter Removal") ->  | E6: =IF(A6="","",D6*'Pollutant Loading Rates'!$C$9*B12/100) ->  | F6: =IF(A6="","",E6/'Pollutant Loading Rates'!$C$9) -> 
B7: =IF(A7="","","Leaf Litter Removal") ->  | E7: =IF(A7="","",D7*'Pollutant Loading Rates'!$C$9*B13/100) ->  | F7: =IF(A7="","",E7/'Pollutant Loading Rates'!$C$9) -> 
B8: =IF(A8="","","Leaf Litter Removal") ->  | E8: =IF(A8="","",D8*'Pollutant Loading Rates'!$C$9*B14/100) ->  | F8: =IF(A8="","",E8/'Pollutant Loading Rates'!$C$9) -> 
A9: 1Massachusetts MS4 General Permit. Appendix F Attachment 2. https://www3.epa.gov/region1/npdes/stormwater/ma/2016fpd/appendix-f-2016-ma-sms4-gp.pdf
B11: TP Reduction Factor (%)
A12: Leaf Litter Removal | B12: 5

Sheet Animal Waste Reduction (hidden)
A1: This sheet outlines the methodology to calculate treatment credit for animal waste reduction for direct removal (e.g., bird or pet wastes) or indirect removal (e.g. manure piles).
A2: Notes to user: | B2: This methodology is under development. Consult with RIDOT and VHB to calculate treatment credit for animal waste projects. There is currently no method for crediting pollutants besides phosphorus. For animal waste removal, IC removal credit is equivalent to annual bacteria removal divided by the existing bacteria loading rate.
I4: Water Quality Results
A5: STU ID | B5: Activity Type | C5: Type of Removal* | D5: Type of Animal* | E5: Number of Animals | F5: Contributing Area (ac) | G5: % Impervious | H5: Land Use* | I5: P Removal Credit (lb/yr) | J5: Bacteria Loading (# col/ac/yr) | K5: Bacteria Removal Credit (# col/yr) | L5: Equivalent IC Removal Credit (ac)
I6: =IF(A6="","",IF(C6="Direct (Dog or Bird)",E6*VLOOKUP(D6,$A$12:$C$16,2,0)*VLOOKUP(D6,$A$12:$C$16,3,0),"Indirect TBD")) ->  | J6: =IF(A6="","",0.00103*48*0.9*(0.05+0.009*G6)*VLOOKUP(H6,'Pollutant Loading Rates'!$A$4:$G$15,7,0)) ->  | K6: =IF(A6="","","TBD") ->  | L6: =IF(A6="","","TBD") -> 
I7: =IF(A7="","",IF(C7="Direct (Dog or Bird)",E7*VLOOKUP(D7,$A$12:$C$16,2,0)*VLOOKUP(D7,$A$12:$C$16,3,0),"Indirect TBD")) ->  | J7: =IF(A7="","",0.00103*48*0.9*(0.05+0.009*G7)*VLOOKUP(H7,'Pollutant Loading Rates'!$A$4:$G$15,7,0)) ->  | K7: =IF(A7="","","TBD") ->  | L7: =IF(A7="","","TBD") -> 
I8: =IF(A8="","",IF(C8="Direct (Dog or Bird)",E8*VLOOKUP(D8,$A$12:$C$16,2,0)*VLOOKUP(D8,$A$12:$C$16,3,0),"Indirect TBD")) ->  | J8: =IF(A8="","",0.00103*48*0.9*(0.05+0.009*G8)*VLOOKUP(H8,'Pollutant Loading Rates'!$A$4:$G$15,7,0)) ->  | K8: =IF(A8="","","TBD") ->  | L8: =IF(A8="","","TBD") -> 
I9: =IF(A9="","",IF(C9="Direct (Dog or Bird)",E9*VLOOKUP(D9,$A$12:$C$16,2,0)*VLOOKUP(D9,$A$12:$C$16,3,0),"Indirect TBD")) ->  | J9: =IF(A9="","",0.00103*48*0.9*(0.05+0.009*G9)*VLOOKUP(H9,'Pollutant Loading Rates'!$A$4:$G$15,7,0)) ->  | K9: =IF(A9="","","TBD") ->  | L9: =IF(A9="","","TBD") -> 
A12: Animal | B12: lb/animal/yr | C12: lbs P/lb waste | D12: # col bacteria/lb waste
A13: Dog | B13: 273.8 | C13: 0.0025 | D13: TBD
A14: Geese/large bird | B14: 65.7 | C14: 0.0187 | D14: TBD
A15: Duck/medium bird | B15: 17 | C15: 0.0187 | D15: TBD
A16: Pigeon/small bird | B16: 6.7 | C16: 0.0187 | D16: TBD

Sheet Dredging (hidden)
A1: This sheet outlines the methodology to calculate treatment credit for dredging projects.
A2: Notes to user: | B2: This methodology is under development. Consult with RIDOT and VHB to calculate treatment credit for dredging projects.
E4: Water Quality Results
A5: STU ID | B5: Activity Type | C5: Land Use* | D5: Dry TSS Removed (lb/yr) | E5: P Removal Credit (lb/yr) | F5: N Removal Credit (lb/yr) | G5: TSS Removal Credit (lb/yr) | H5: Zinc Removal Credit (lb/yr) | I5: Effective IC Removal Credit (ac)
B6: =IF(A6="","","Dredging") ->  | E6: =IF(A6="","",D6*$A$19) ->  | F6: =IF(A6="","",D6*$B$19) ->  | G6: =IF(A6="","",D6) ->  | H6: =IF(A6="","",D6*$C$19) ->  | I6: =IF(A6="","",E6/VLOOKUP(C6,'Pollutant Loading Rates'!$A$4:$G$12,3,0)) -> 
B7: =IF(A7="","","Dredging") ->  | E7: =IF(A7="","",D7*$A$19) ->  | F7: =IF(A7="","",D7*$B$19) ->  | G7: =IF(A7="","",D7) ->  | I7: =IF(A7="","",E7/VLOOKUP(C7,'Pollutant Loading Rates'!$A$4:$G$12,3,0)) -> 
I8: =IF(A8="","",E8/VLOOKUP(C8,'Pollutant Loading Rates'!$A$4:$G$12,3,0)) -> 
I9: =IF(A9="","",E9/VLOOKUP(C9,'Pollutant Loading Rates'!$A$4:$G$12,3,0)) -> 
I10: =IF(A10="","",E10/VLOOKUP(C10,'Pollutant Loading Rates'!$A$4:$G$12,3,0)) -> 
I11: =IF(A11="","",E11/VLOOKUP(C11,'Pollutant Loading Rates'!$A$4:$G$12,3,0)) -> 
I12: =IF(A12="","",E12/VLOOKUP(C12,'Pollutant Loading Rates'!$A$4:$G$12,3,0)) -> 
I13: =IF(A13="","",E13/VLOOKUP(C13,'Pollutant Loading Rates'!$A$4:$G$12,3,0)) -> 
I14: =IF(A14="","",E14/VLOOKUP(C14,'Pollutant Loading Rates'!$A$4:$G$12,3,0)) -> 
I15: =IF(A15="","",E15/VLOOKUP(C15,'Pollutant Loading Rates'!$A$4:$G$12,3,0)) -> 
A17: Pollutant to TSS Ratio1
A18: lbs P/ lbs TSS | B18: lbs N/ lbs TSS | C18: lbs Zn/ lbs TSS
A19: 0.0007 | B19: 0.007 | C19: 0.0012
A20: 1 calculated from Table 16 of the USGS Report Quality of Stormwater Runoff Discharged from Massachusetts Highways, 2005-2007.

Sheet Illicit Discharge Elimination (hidden)
A1: This sheet outlines the methodology to calculate treatment credit for illicit discharge elimination.
A2: Notes to user: | B2: This methodology is under development. Consult with RIDOT and VHB for treatment credit for illicit discharge elimination projects.
G4: Water Quality Results
A5: STU ID | B5: Activity Type | C5: Annual Runoff Volume (volume/yr) | D5: TP Concentration (lb/volume) | E5: TN Concentration (lb/volume) | F5: Zn Concentration (lb/volume) | G5: TP Reduction (lb/yr) | H5: TN Reduction (lb/yr) | I5: Zn Reduction (lb/yr) | J5: Equivalent IC Removal Credit (ac)
B6: =IF(A6="","","Illicit Discharge Elimination") ->  | G6: =IF(A6="","",$D6*C6) ->  | H6: =IF(A6="","",E6*C6) ->  | I6: =IF(A6="","",F6*C6) -> 
B7: =IF(A7="","","Illicit Discharge Elimination") ->  | G7: =IF(A7="","",D7*C7) ->  | H7: =IF(A7="","",E7*C7) ->  | I7: =IF(A7="","",F7*C7) -> 
B8: =IF(A8="","","Illicit Discharge Elimination") ->  | G8: =IF(A8="","",D8*C8) ->  | H8: =IF(A8="","",E8*C8) ->  | I8: =IF(A8="","",F8*C8) -> 

Sheet Streambank Restoration (hidden)
A1: This sheet outlines the methodology to calculate treatment credit for streambank restoration.
A2: Notes to user: | B2: This methodology is under development. Consult with RIDOT and VHB to calculate treatment credit for streambank restoration projects.
G4: Water Quality Results
A5: STU ID | B5: Activity Type | C5: Land Use* | D5: Soil Bulk Density (lbs/ft3)1 | E5: Eroding Bank Area (ft2) | F5: Bank Erosion Rate (ft/yr)2 | G5: P Removal Credit (lb/yr) | H5: N Removal Credit (lb/yr) | I5: TSS Removal Credit (lb/yr) | J5: Zinc Removal Credit (lb/yr) | K5: Effective IC Removal Credit (ac)
B6: =IF(A6="","","Erosion and Gully Repair") ->  | G6: =IF(A6="","",D6*E6*F6*$A$33) ->  | H6: =IF(A6="","",D6*E6*F6*$B$33) ->  | I6: =IF(A6="","",D6*E6*F6) ->  | J6: =IF(A6="","",D6*E6*F6*$C$33) ->  | K6: =IF(A6="","",G6/VLOOKUP(C6,'Pollutant Loading Rates'!$A$4:$G$12,3,0)) -> 
B7: =IF(A7="","","Erosion and Gully Repair") ->  | G7: =IF(A7="","",D7*E7*F7*$A$33) ->  | H7: =IF(A7="","",D7*E7*F7*$B$33) ->  | I7: =IF(A7="","",D7*E7*F7) ->  | J7: =IF(A7="","",D7*E7*F7*$C$33) ->  | K7: =IF(A7="","",G7/VLOOKUP(C7,'Pollutant Loading Rates'!$A$4:$G$12,3,0)) -> 
A8: 1 See reference soil bulk densities in table below.
A9: 2 See reference bank erosion rates in table below.
A11: Reference Soil Bulk Densities3
A12: Soil Type | B12: gm/cc | C12: lb/ft3
A13: Sand | B13: 1.65 | C13: =B13*62.428 -> 103.0062
A14: Loamy Sand | B14: 1.6 | C14: 99.8848
A15: Sandy Loam | B15: 1.55 | C15: 96.7634
A16: Loam | B16: 1.5 | C16: 93.642
A17: Silt Loam | B17: 1.5 | C17: 93.642
A18: Silty Clay Loam | B18: 1.5 | C18: 93.642
A19: Clay Loam | B19: 1.45 | C19: 90.5206
A20: Clay | B20: 1.3 | C20: 81.1564
A21: 3https://www.nrcs.usda.gov/wps/portal/nrcs/detail/soils/survey/office/ssr10/tr/?cid=nrcs144p2_074844
A23: Reference Bank Erosion Rates
A24: Stream/Ditch Banks | F24: Roadbanks
A25: LRR (ft/yr) | B25: LRR (ft/yr) Midpoint | C25: Category | D25: Description | F25: LRR (ft/yr) | G25: LRR (ft/yr) Midpoint | H25: Category | I25: Description
A26: 0.01 - 0.05 | B26: 0.03 | C26: Slight | D26: Some bare bank but active erosion not readily apparent. Some rills but no vegetative overhang. No exposed tree roots. | F26: 0.01 - 0.05 | G26: 0.03 | H26: Slight | I26: Some bare roadbank but active erosion not readily apparent. Some rills but no vegetative overhang. Ditch bottom is grass or noneroding.
A27: 0.06 - 0.2 | B27: 0.13 | C27: Moderate | D27: Bank is predominantly bare with some rills and vegetative overhang. | F27: 0.06 - 0.15 | G27: 0.105 | H27: Moderate | I27: Roadbank is bare with obvious rills and some vegetative overhang. Minor erosion or sedimentation in ditch bottom.
A28: 0.3 - 0.5 | B28: 0.4 | C28: Severe | D28: Bank is bare with rills and severe vegetative overhang. Many exposed tree roots and some fallen trees and slumps or slips. Some changes in cultural features such as fence corners missing and realignment of roads or trails. Channel cross section becomes more U-shaped as opposed to V-shaped. | F28: 0.16 - 0.3 | G28: 0.23 | H28: Severe | I28: Roadbank is bare with rills approaching one foot in depth. Some gullies and overhanging vegetation. Active erosion or sedimentation in ditch bottom. Some fenceposts, tree roots, or culverts eroding out.
A29: 0.5+ | B29: 0.5 | C29: Very Severe | D29: Bank is bare with gullies and severe vegetative overhang. Many fallen trees, drains and culverts eroding out and changes in cultural features as above. Massive slips or washouts common. Channel cross-section is U-shaped and streamcourse or gully may be meandering. | F29: 0.3+ | G29: 0.3 | H29: Very Severe | I29: Roadbank is bare with gullies, washouts, and slips. Severe vegetative overhang; fenceposts, powerlines, trees and culverts eroded out. Active erosion or sedimentation in ditch bottoms.
A31: Pollutant to TSS Ratio4
A32: lbs P/ lbs TSS | B32: lbs N/ lbs TSS | C32: lbs Zn/ lbs TSS
A33: 0.0007 | B33: 0.007 | C33: 0.0012
A34: 4calculated from Table 16 of the USGS Report Quality of Stormwater Runoff Discharged from Massachusetts Highways, 2005-2007.

Sheet STU_Cost
A1: This sheet can be used to estimate construction costs for structural STUs.
A2: Note to user: Calculated cost estimates are base costs and can be adjusted for individual STUs based on judgement or site specific conditions as needed. Currently this tab only pulls data from the Structural Water Quality Calcs tab. As non-typical and non-structural STUs are further developed this tab will be updated. For Retrofit Priority, use an asterisk after the number to indicate if an STU addresses an outfall identified as priority for retrofit in a TMDL.
A4: STU ID | B4: STU Type* | C4: Effective IC Reduction (ac) | D4: Estimated Cost1 | E4: Cost per IC Reduction Acre ($/ac) | F4: Cost Per lb P Removed ($/lb P) | G4: Retrofit Priority | J4: Annual Inspection & Maintenance Cost
A5: Construction & Design
A6: SCP-LVR-001 | B6: =IF(A6="","",VLOOKUP(A6,'Structural Water Quality Calcs'!$A$7:$AC$41,2,0)) -> Bioretention Swale | C6: =IF(A6="","",ROUND(VLOOKUP(A6,'Structural Water Quality Calcs'!$A$7:$AC$41,29,0),2)) -> 0.13 | D6: 39400 | E6: =IF(A6="","",IF(B6="Leaching Basin",508200,ROUND(D6/C6,-2))) -> 303100 | F6: =IF(A6="","",D6/VLOOKUP(A6,'Structural Water Quality Calcs'!$A$7:$AE$41,13,0)) -> 231705.0894 | G6: 2 | J6: =IF(A6="","",IF(B6="Limited ROW",1,VLOOKUP(B6,'STU Cost Estimates'!$A$6:$C$20,3,0))) -> 1890
A7: SCP-LVR-002 | B7: =IF(A7="","",VLOOKUP(A7,'Structural Water Quality Calcs'!$A$7:$AC$41,2,0)) -> Bioretention Swale | C7: =IF(A7="","",ROUND(VLOOKUP(A7,'Structural Water Quality Calcs'!$A$7:$AC$41,29,0),2)) -> 0.11 | D7: 31100 | E7: =IF(A7="","",IF(B7="Leaching Basin",508200,ROUND(D7/C7,-2))) -> 282700 | F7: =IF(A7="","",D7/VLOOKUP(A7,'Structural Water Quality Calcs'!$A$7:$AE$41,13,0)) -> 156674.1116 | G7: 1 | J7: =IF(A7="","",IF(B7="Limited ROW",1,VLOOKUP(B7,'STU Cost Estimates'!$A$6:$C$20,3,0))) -> 1890
A8: SCP-LVR-003 | B8: =IF(A8="","",VLOOKUP(A8,'Structural Water Quality Calcs'!$A$7:$AC$41,2,0)) -> Bioretention Swale | C8: =IF(A8="","",ROUND(VLOOKUP(A8,'Structural Water Quality Calcs'!$A$7:$AC$41,29,0),2)) -> 0.09 | D8: 30100 | E8: =IF(A8="","",IF(B8="Leaching Basin",508200,ROUND(D8/C8,-2))) -> 334400 | F8: =IF(A8="","",D8/VLOOKUP(A8,'Structural Water Quality Calcs'!$A$7:$AE$41,13,0)) -> 236450.3992 | G8: 2 | J8: =IF(A8="","",IF(B8="Limited ROW",1,VLOOKUP(B8,'STU Cost Estimates'!$A$6:$C$20,3,0))) -> 1890
A9: SCP-LVR-004 | B9: =IF(A9="","",VLOOKUP(A9,'Structural Water Quality Calcs'!$A$7:$AC$41,2,0)) -> Bioretention Swale | C9: =IF(A9="","",ROUND(VLOOKUP(A9,'Structural Water Quality Calcs'!$A$7:$AC$41,29,0),2)) -> 0.03 | D9: 18200 | E9: 606700 | F9: =IF(A9="","",D9/VLOOKUP(A9,'Structural Water Quality Calcs'!$A$7:$AE$41,13,0)) -> 440442.2998 | G9: 2 | J9: =IF(A9="","",IF(B9="Limited ROW",1,VLOOKUP(B9,'STU Cost Estimates'!$A$6:$C$20,3,0))) -> 1890
A10: SCP-LVR-005 | B10: =IF(A10="","",VLOOKUP(A10,'Structural Water Quality Calcs'!$A$7:$AC$41,2,0)) -> Bioretention Swale | C10: =IF(A10="","",ROUND(VLOOKUP(A10,'Structural Water Quality Calcs'!$A$7:$AC$41,29,0),2)) -> 0.13 | D10: 31100 | E10: 239200 | F10: =IF(A10="","",D10/VLOOKUP(A10,'Structural Water Quality Calcs'!$A$7:$AE$41,13,0)) -> 180463.8441 | G10: 1 | J10: =IF(A10="","",IF(B10="Limited ROW",1,VLOOKUP(B10,'STU Cost Estimates'!$A$6:$C$20,3,0))) -> 1890
A11: SCP-LVR-006 | B11: =IF(A11="","",VLOOKUP(A11,'Structural Water Quality Calcs'!$A$7:$AC$41,2,0)) -> Bioretention Swale | C11: =IF(A11="","",ROUND(VLOOKUP(A11,'Structural Water Quality Calcs'!$A$7:$AC$41,29,0),2)) -> 0.04 | D11: 20100 | E11: 502500 | F11: =IF(A11="","",D11/VLOOKUP(A11,'Structural Water Quality Calcs'!$A$7:$AE$41,13,0)) -> 387316.2758 | G11: 3 | J11: =IF(A11="","",IF(B11="Limited ROW",1,VLOOKUP(B11,'STU Cost Estimates'!$A$6:$C$20,3,0))) -> 1890
B12: =IF(A12="","",VLOOKUP(A12,'Structural Water Quality Calcs'!$A$7:$AC$41,2,0)) ->  | C12: =IF(A12="","",ROUND(VLOOKUP(A12,'Structural Water Quality Calcs'!$A$7:$AC$41,29,0),2)) ->  | D12: =IF(A12="","",IF(B12="Leaching basin",E12/C12,IF(B12="Limited ROW",1,ROUND(VLOOKUP(A12,'Structural Water Quality Calcs'!$A$7:$AC$41,5,0)*VLOOKUP(B12,'STU Cost Estimates'!$A$6:$C$20,2,0),-2)))) ->  | F12: =IF(A12="","",D12/VLOOKUP(A12,'Structural Water Quality Calcs'!$A$7:$AE$41,13,0)) ->  | J12: =IF(A12="","",IF(B12="Limited ROW",1,VLOOKUP(B12,'STU Cost Estimates'!$A$6:$C$20,3,0))) -> 
B13: =IF(A13="","",VLOOKUP(A13,'Structural Water Quality Calcs'!$A$7:$AC$41,2,0)) ->  | C13: =IF(A13="","",ROUND(VLOOKUP(A13,'Structural Water Quality Calcs'!$A$7:$AC$41,29,0),2)) ->  | D13: =IF(A13="","",IF(B13="Leaching basin",E13/C13,IF(B13="Limited ROW",1,ROUND(VLOOKUP(A13,'Structural Water Quality Calcs'!$A$7:$AC$41,5,0)*VLOOKUP(B13,'STU Cost Estimates'!$A$6:$C$20,2,0),-2)))) ->  | F13: =IF(A13="","",D13/VLOOKUP(A13,'Structural Water Quality Calcs'!$A$7:$AE$41,13,0)) ->  | J13: =IF(A13="","",IF(B13="Limited ROW",1,VLOOKUP(B13,'STU Cost Estimates'!$A$6:$C$20,3,0))) -> 
B14: =IF(A14="","",VLOOKUP(A14,'Structural Water Quality Calcs'!$A$7:$AC$41,2,0)) ->  | C14: =IF(A14="","",ROUND(VLOOKUP(A14,'Structural Water Quality Calcs'!$A$7:$AC$41,29,0),2)) ->  | D14: =IF(A14="","",IF(B14="Leaching basin",E14/C14,IF(B14="Limited ROW",1,ROUND(VLOOKUP(A14,'Structural Water Quality Calcs'!$A$7:$AC$41,5,0)*VLOOKUP(B14,'STU Cost Estimates'!$A$6:$C$20,2,0),-2)))) ->  | F14: =IF(A14="","",D14/VLOOKUP(A14,'Structural Water Quality Calcs'!$A$7:$AE$41,13,0)) ->  | J14: =IF(A14="","",IF(B14="Limited ROW",1,VLOOKUP(B14,'STU Cost Estimates'!$A$6:$C$20,3,0))) -> 
B15: =IF(A15="","",VLOOKUP(A15,'Structural Water Quality Calcs'!$A$7:$AC$41,2,0)) ->  | C15: =IF(A15="","",ROUND(VLOOKUP(A15,'Structural Water Quality Calcs'!$A$7:$AC$41,29,0),2)) ->  | D15: =IF(A15="","",IF(B15="Leaching basin",E15/C15,IF(B15="Limited ROW",1,ROUND(VLOOKUP(A15,'Structural Water Quality Calcs'!$A$7:$AC$41,5,0)*VLOOKUP(B15,'STU Cost Estimates'!$A$6:$C$20,2,0),-2)))) ->  | F15: =IF(A15="","",D15/VLOOKUP(A15,'Structural Water Quality Calcs'!$A$7:$AE$41,13,0)) ->  | J15: =IF(A15="","",IF(B15="Limited ROW",1,VLOOKUP(B15,'STU Cost Estimates'!$A$6:$C$20,3,0))) -> 
B16: =IF(A16="","",VLOOKUP(A16,'Structural Water Quality Calcs'!$A$7:$AC$41,2,0)) ->  | C16: =IF(A16="","",ROUND(VLOOKUP(A16,'Structural Water Quality Calcs'!$A$7:$AC$41,29,0),2)) ->  | D16: =IF(A16="","",IF(B16="Leaching basin",E16/C16,IF(B16="Limited ROW",1,ROUND(VLOOKUP(A16,'Structural Water Quality Calcs'!$A$7:$AC$41,5,0)*VLOOKUP(B16,'STU Cost Estimates'!$A$6:$C$20,2,0),-2)))) ->  | F16: =IF(A16="","",D16/VLOOKUP(A16,'Structural Water Quality Calcs'!$A$7:$AE$41,13,0)) ->  | J16: =IF(A16="","",IF(B16="Limited ROW",1,VLOOKUP(B16,'STU Cost Estimates'!$A$6:$C$20,3,0))) -> 
B17: =IF(A17="","",VLOOKUP(A17,'Structural Water Quality Calcs'!$A$7:$AC$41,2,0)) ->  | C17: =IF(A17="","",ROUND(VLOOKUP(A17,'Structural Water Quality Calcs'!$A$7:$AC$41,29,0),2)) ->  | D17: =IF(A17="","",IF(B17="Leaching basin",E17/C17,IF(B17="Limited ROW",1,ROUND(VLOOKUP(A17,'Structural Water Quality Calcs'!$A$7:$AC$41,5,0)*VLOOKUP(B17,'STU Cost Estimates'!$A$6:$C$20,2,0),-2)))) ->  | F17: =IF(A17="","",D17/VLOOKUP(A17,'Structural Water Quality Calcs'!$A$7:$AE$41,13,0)) ->  | J17: =IF(A17="","",IF(B17="Limited ROW",1,VLOOKUP(B17,'STU Cost Estimates'!$A$6:$C$20,3,0))) -> 
B18: =IF(A18="","",VLOOKUP(A18,'Structural Water Quality Calcs'!$A$7:$AC$41,2,0)) ->  | C18: =IF(A18="","",ROUND(VLOOKUP(A18,'Structural Water Quality Calcs'!$A$7:$AC$41,29,0),2)) ->  | D18: =IF(A18="","",IF(B18="Leaching basin",E18/C18,IF(B18="Limited ROW",1,ROUND(VLOOKUP(A18,'Structural Water Quality Calcs'!$A$7:$AC$41,5,0)*VLOOKUP(B18,'STU Cost Estimates'!$A$6:$C$20,2,0),-2)))) ->  | F18: =IF(A18="","",D18/VLOOKUP(A18,'Structural Water Quality Calcs'!$A$7:$AE$41,13,0)) ->  | J18: =IF(A18="","",IF(B18="Limited ROW",1,VLOOKUP(B18,'STU Cost Estimates'!$A$6:$C$20,3,0))) -> 
B19: =IF(A19="","",VLOOKUP(A19,'Structural Water Quality Calcs'!$A$7:$AC$41,2,0)) ->  | C19: =IF(A19="","",ROUND(VLOOKUP(A19,'Structural Water Quality Calcs'!$A$7:$AC$41,29,0),2)) ->  | D19: =IF(A19="","",IF(B19="Leaching basin",E19/C19,IF(B19="Limited ROW",1,ROUND(VLOOKUP(A19,'Structural Water Quality Calcs'!$A$7:$AC$41,5,0)*VLOOKUP(B19,'STU Cost Estimates'!$A$6:$C$20,2,0),-2)))) ->  | F19: =IF(A19="","",D19/VLOOKUP(A19,'Structural Water Quality Calcs'!$A$7:$AE$41,13,0)) ->  | J19: =IF(A19="","",IF(B19="Limited ROW",1,VLOOKUP(B19,'STU Cost Estimates'!$A$6:$C$20,3,0))) -> 
B20: =IF(A20="","",VLOOKUP(A20,'Structural Water Quality Calcs'!$A$7:$AC$41,2,0)) ->  | C20: =IF(A20="","",ROUND(VLOOKUP(A20,'Structural Water Quality Calcs'!$A$7:$AC$41,29,0),2)) ->  | D20: =IF(A20="","",IF(B20="Leaching basin",E20/C20,IF(B20="Limited ROW",1,ROUND(VLOOKUP(A20,'Structural Water Quality Calcs'!$A$7:$AC$41,5,0)*VLOOKUP(B20,'STU Cost Estimates'!$A$6:$C$20,2,0),-2)))) ->  | F20: =IF(A20="","",D20/VLOOKUP(A20,'Structural Water Quality Calcs'!$A$7:$AE$41,13,0)) ->  | J20: =IF(A20="","",IF(B20="Limited ROW",1,VLOOKUP(B20,'STU Cost Estimates'!$A$6:$C$20,3,0))) -> 
B21: =IF(A21="","",VLOOKUP(A21,'Structural Water Quality Calcs'!$A$7:$AC$41,2,0)) ->  | C21: =IF(A21="","",ROUND(VLOOKUP(A21,'Structural Water Quality Calcs'!$A$7:$AC$41,29,0),2)) ->  | D21: =IF(A21="","",IF(B21="Leaching basin",E21/C21,IF(B21="Limited ROW",1,ROUND(VLOOKUP(A21,'Structural Water Quality Calcs'!$A$7:$AC$41,5,0)*VLOOKUP(B21,'STU Cost Estimates'!$A$6:$C$20,2,0),-2)))) ->  | F21: =IF(A21="","",D21/VLOOKUP(A21,'Structural Water Quality Calcs'!$A$7:$AE$41,13,0)) ->  | J21: =IF(A21="","",IF(B21="Limited ROW",1,VLOOKUP(B21,'STU Cost Estimates'!$A$6:$C$20,3,0))) -> 
B22: =IF(A22="","",VLOOKUP(A22,'Structural Water Quality Calcs'!$A$7:$AC$41,2,0)) ->  | C22: =IF(A22="","",ROUND(VLOOKUP(A22,'Structural Water Quality Calcs'!$A$7:$AC$41,29,0),2)) ->  | D22: =IF(A22="","",IF(B22="Leaching basin",E22/C22,IF(B22="Limited ROW",1,ROUND(VLOOKUP(A22,'Structural Water Quality Calcs'!$A$7:$AC$41,5,0)*VLOOKUP(B22,'STU Cost Estimates'!$A$6:$C$20,2,0),-2)))) ->  | F22: =IF(A22="","",D22/VLOOKUP(A22,'Structural Water Quality Calcs'!$A$7:$AE$41,13,0)) ->  | J22: =IF(A22="","",IF(B22="Limited ROW",1,VLOOKUP(B22,'STU Cost Estimates'!$A$6:$C$20,3,0))) -> 
B23: =IF(A23="","",VLOOKUP(A23,'Structural Water Quality Calcs'!$A$7:$AC$41,2,0)) ->  | C23: =IF(A23="","",ROUND(VLOOKUP(A23,'Structural Water Quality Calcs'!$A$7:$AC$41,29,0),2)) ->  | D23: =IF(A23="","",IF(B23="Leaching basin",E23/C23,IF(B23="Limited ROW",1,ROUND(VLOOKUP(A23,'Structural Water Quality Calcs'!$A$7:$AC$41,5,0)*VLOOKUP(B23,'STU Cost Estimates'!$A$6:$C$20,2,0),-2)))) ->  | F23: =IF(A23="","",D23/VLOOKUP(A23,'Structural Water Quality Calcs'!$A$7:$AE$41,13,0)) ->  | J23: =IF(A23="","",IF(B23="Limited ROW",1,VLOOKUP(B23,'STU Cost Estimates'!$A$6:$C$20,3,0))) -> 
B24: =IF(A24="","",VLOOKUP(A24,'Structural Water Quality Calcs'!$A$7:$AC$41,2,0)) ->  | C24: =IF(A24="","",ROUND(VLOOKUP(A24,'Structural Water Quality Calcs'!$A$7:$AC$41,29,0),2)) ->  | D24: =IF(A24="","",IF(B24="Leaching basin",E24/C24,IF(B24="Limited ROW",1,ROUND(VLOOKUP(A24,'Structural Water Quality Calcs'!$A$7:$AC$41,5,0)*VLOOKUP(B24,'STU Cost Estimates'!$A$6:$C$20,2,0),-2)))) ->  | F24: =IF(A24="","",D24/VLOOKUP(A24,'Structural Water Quality Calcs'!$A$7:$AE$41,13,0)) ->  | J24: =IF(A24="","",IF(B24="Limited ROW",1,VLOOKUP(B24,'STU Cost Estimates'!$A$6:$C$20,3,0))) -> 
B25: =IF(A25="","",VLOOKUP(A25,'Structural Water Quality Calcs'!$A$7:$AC$41,2,0)) ->  | C25: =IF(A25="","",ROUND(VLOOKUP(A25,'Structural Water Quality Calcs'!$A$7:$AC$41,29,0),2)) ->  | D25: =IF(A25="","",IF(B25="Leaching basin",E25/C25,IF(B25="Limited ROW",1,ROUND(VLOOKUP(A25,'Structural Water Quality Calcs'!$A$7:$AC$41,5,0)*VLOOKUP(B25,'STU Cost Estimates'!$A$6:$C$20,2,0),-2)))) ->  | F25: =IF(A25="","",D25/VLOOKUP(A25,'Structural Water Quality Calcs'!$A$7:$AE$41,13,0)) ->  | J25: =IF(A25="","",IF(B25="Limited ROW",1,VLOOKUP(B25,'STU Cost Estimates'!$A$6:$C$20,3,0))) -> 
B26: =IF(A26="","",VLOOKUP(A26,'Structural Water Quality Calcs'!$A$7:$AC$41,2,0)) ->  | C26: =IF(A26="","",ROUND(VLOOKUP(A26,'Structural Water Quality Calcs'!$A$7:$AC$41,29,0),2)) ->  | D26: =IF(A26="","",IF(B26="Leaching basin",E26/C26,IF(B26="Limited ROW",1,ROUND(VLOOKUP(A26,'Structural Water Quality Calcs'!$A$7:$AC$41,5,0)*VLOOKUP(B26,'STU Cost Estimates'!$A$6:$C$20,2,0),-2)))) ->  | F26: =IF(A26="","",D26/VLOOKUP(A26,'Structural Water Quality Calcs'!$A$7:$AE$41,13,0)) ->  | J26: =IF(A26="","",IF(B26="Limited ROW",1,VLOOKUP(B26,'STU Cost Estimates'!$A$6:$C$20,3,0))) -> 
B27: =IF(A27="","",VLOOKUP(A27,'Structural Water Quality Calcs'!$A$7:$AC$41,2,0)) ->  | C27: =IF(A27="","",ROUND(VLOOKUP(A27,'Structural Water Quality Calcs'!$A$7:$AC$41,29,0),2)) ->  | D27: =IF(A27="","",IF(B27="Leaching basin",E27/C27,IF(B27="Limited ROW",1,ROUND(VLOOKUP(A27,'Structural Water Quality Calcs'!$A$7:$AC$41,5,0)*VLOOKUP(B27,'STU Cost Estimates'!$A$6:$C$20,2,0),-2)))) ->  | F27: =IF(A27="","",D27/VLOOKUP(A27,'Structural Water Quality Calcs'!$A$7:$AE$41,13,0)) ->  | J27: =IF(A27="","",IF(B27="Limited ROW",1,VLOOKUP(B27,'STU Cost Estimates'!$A$6:$C$20,3,0))) -> 
B28: =IF(A28="","",VLOOKUP(A28,'Structural Water Quality Calcs'!$A$7:$AC$41,2,0)) ->  | C28: =IF(A28="","",ROUND(VLOOKUP(A28,'Structural Water Quality Calcs'!$A$7:$AC$41,29,0),2)) ->  | D28: =IF(A28="","",IF(B28="Leaching basin",E28/C28,IF(B28="Limited ROW",1,ROUND(VLOOKUP(A28,'Structural Water Quality Calcs'!$A$7:$AC$41,5,0)*VLOOKUP(B28,'STU Cost Estimates'!$A$6:$C$20,2,0),-2)))) ->  | F28: =IF(A28="","",D28/VLOOKUP(A28,'Structural Water Quality Calcs'!$A$7:$AE$41,13,0)) ->  | J28: =IF(A28="","",IF(B28="Limited ROW",1,VLOOKUP(B28,'STU Cost Estimates'!$A$6:$C$20,3,0))) -> 
B29: =IF(A29="","",VLOOKUP(A29,'Structural Water Quality Calcs'!$A$7:$AC$41,2,0)) ->  | C29: =IF(A29="","",ROUND(VLOOKUP(A29,'Structural Water Quality Calcs'!$A$7:$AC$41,29,0),2)) ->  | D29: =IF(A29="","",IF(B29="Leaching basin",E29/C29,IF(B29="Limited ROW",1,ROUND(VLOOKUP(A29,'Structural Water Quality Calcs'!$A$7:$AC$41,5,0)*VLOOKUP(B29,'STU Cost Estimates'!$A$6:$C$20,2,0),-2)))) ->  | F29: =IF(A29="","",D29/VLOOKUP(A29,'Structural Water Quality Calcs'!$A$7:$AE$41,13,0)) ->  | J29: =IF(A29="","",IF(B29="Limited ROW",1,VLOOKUP(B29,'STU Cost Estimates'!$A$6:$C$20,3,0))) -> 
B30: =IF(A30="","",VLOOKUP(A30,'Structural Water Quality Calcs'!$A$7:$AC$41,2,0)) ->  | C30: =IF(A30="","",ROUND(VLOOKUP(A30,'Structural Water Quality Calcs'!$A$7:$AC$41,29,0),2)) ->  | D30: =IF(A30="","",IF(B30="Leaching basin",E30/C30,IF(B30="Limited ROW",1,ROUND(VLOOKUP(A30,'Structural Water Quality Calcs'!$A$7:$AC$41,5,0)*VLOOKUP(B30,'STU Cost Estimates'!$A$6:$C$20,2,0),-2)))) ->  | F30: =IF(A30="","",D30/VLOOKUP(A30,'Structural Water Quality Calcs'!$A$7:$AE$41,13,0)) ->  | J30: =IF(A30="","",IF(B30="Limited ROW",1,VLOOKUP(B30,'STU Cost Estimates'!$A$6:$C$20,3,0))) -> 
B31: =IF(A31="","",VLOOKUP(A31,'Structural Water Quality Calcs'!$A$7:$AC$41,2,0)) ->  | C31: =IF(A31="","",ROUND(VLOOKUP(A31,'Structural Water Quality Calcs'!$A$7:$AC$41,29,0),2)) ->  | D31: =IF(A31="","",IF(B31="Leaching basin",E31/C31,IF(B31="Limited ROW",1,ROUND(VLOOKUP(A31,'Structural Water Quality Calcs'!$A$7:$AC$41,5,0)*VLOOKUP(B31,'STU Cost Estimates'!$A$6:$C$20,2,0),-2)))) ->  | F31: =IF(A31="","",D31/VLOOKUP(A31,'Structural Water Quality Calcs'!$A$7:$AE$41,13,0)) ->  | J31: =IF(A31="","",IF(B31="Limited ROW",1,VLOOKUP(B31,'STU Cost Estimates'!$A$6:$C$20,3,0))) -> 
B32: =IF(A32="","",VLOOKUP(A32,'Structural Water Quality Calcs'!$A$7:$AC$41,2,0)) ->  | C32: =IF(A32="","",ROUND(VLOOKUP(A32,'Structural Water Quality Calcs'!$A$7:$AC$41,29,0),2)) ->  | D32: =IF(A32="","",IF(B32="Leaching basin",E32/C32,IF(B32="Limited ROW",1,ROUND(VLOOKUP(A32,'Structural Water Quality Calcs'!$A$7:$AC$41,5,0)*VLOOKUP(B32,'STU Cost Estimates'!$A$6:$C$20,2,0),-2)))) ->  | F32: =IF(A32="","",D32/VLOOKUP(A32,'Structural Water Quality Calcs'!$A$7:$AE$41,13,0)) ->  | J32: =IF(A32="","",IF(B32="Limited ROW",1,VLOOKUP(B32,'STU Cost Estimates'!$A$6:$C$20,3,0))) -> 
B33: =IF(A33="","",VLOOKUP(A33,'Structural Water Quality Calcs'!$A$7:$AC$41,2,0)) ->  | C33: =IF(A33="","",ROUND(VLOOKUP(A33,'Structural Water Quality Calcs'!$A$7:$AC$41,29,0),2)) ->  | D33: =IF(A33="","",IF(B33="Leaching basin",E33/C33,IF(B33="Limited ROW",1,ROUND(VLOOKUP(A33,'Structural Water Quality Calcs'!$A$7:$AC$41,5,0)*VLOOKUP(B33,'STU Cost Estimates'!$A$6:$C$20,2,0),-2)))) ->  | F33: =IF(A33="","",D33/VLOOKUP(A33,'Structural Water Quality Calcs'!$A$7:$AE$41,13,0)) ->  | J33: =IF(A33="","",IF(B33="Limited ROW",1,VLOOKUP(B33,'STU Cost Estimates'!$A$6:$C$20,3,0))) -> 
B34: =IF(A34="","",VLOOKUP(A34,'Structural Water Quality Calcs'!$A$7:$AC$41,2,0)) ->  | C34: =IF(A34="","",ROUND(VLOOKUP(A34,'Structural Water Quality Calcs'!$A$7:$AC$41,29,0),2)) ->  | D34: =IF(A34="","",IF(B34="Leaching basin",E34/C34,IF(B34="Limited ROW",1,ROUND(VLOOKUP(A34,'Structural Water Quality Calcs'!$A$7:$AC$41,5,0)*VLOOKUP(B34,'STU Cost Estimates'!$A$6:$C$20,2,0),-2)))) ->  | F34: =IF(A34="","",D34/VLOOKUP(A34,'Structural Water Quality Calcs'!$A$7:$AE$41,13,0)) ->  | J34: =IF(A34="","",IF(B34="Limited ROW",1,VLOOKUP(B34,'STU Cost Estimates'!$A$6:$C$20,3,0))) -> 
B35: =IF(A35="","",VLOOKUP(A35,'Structural Water Quality Calcs'!$A$7:$AC$41,2,0)) ->  | C35: =IF(A35="","",ROUND(VLOOKUP(A35,'Structural Water Quality Calcs'!$A$7:$AC$41,29,0),2)) ->  | D35: =IF(A35="","",IF(B35="Leaching basin",E35/C35,IF(B35="Limited ROW",1,ROUND(VLOOKUP(A35,'Structural Water Quality Calcs'!$A$7:$AC$41,5,0)*VLOOKUP(B35,'STU Cost Estimates'!$A$6:$C$20,2,0),-2)))) ->  | F35: =IF(A35="","",D35/VLOOKUP(A35,'Structural Water Quality Calcs'!$A$7:$AE$41,13,0)) ->  | J35: =IF(A35="","",IF(B35="Limited ROW",1,VLOOKUP(B35,'STU Cost Estimates'!$A$6:$C$20,3,0))) -> 
B36: =IF(A36="","",VLOOKUP(A36,'Structural Water Quality Calcs'!$A$7:$AC$41,2,0)) ->  | C36: =IF(A36="","",ROUND(VLOOKUP(A36,'Structural Water Quality Calcs'!$A$7:$AC$41,29,0),2)) ->  | D36: =IF(A36="","",IF(B36="Leaching basin",E36/C36,IF(B36="Limited ROW",1,ROUND(VLOOKUP(A36,'Structural Water Quality Calcs'!$A$7:$AC$41,5,0)*VLOOKUP(B36,'STU Cost Estimates'!$A$6:$C$20,2,0),-2)))) ->  | F36: =IF(A36="","",D36/VLOOKUP(A36,'Structural Water Quality Calcs'!$A$7:$AE$41,13,0)) ->  | J36: =IF(A36="","",IF(B36="Limited ROW",1,VLOOKUP(B36,'STU Cost Estimates'!$A$6:$C$20,3,0))) -> 
B37: =IF(A37="","",VLOOKUP(A37,'Structural Water Quality Calcs'!$A$7:$AC$41,2,0)) ->  | C37: =IF(A37="","",ROUND(VLOOKUP(A37,'Structural Water Quality Calcs'!$A$7:$AC$41,29,0),2)) ->  | D37: =IF(A37="","",IF(B37="Leaching basin",E37/C37,IF(B37="Limited ROW",1,ROUND(VLOOKUP(A37,'Structural Water Quality Calcs'!$A$7:$AC$41,5,0)*VLOOKUP(B37,'STU Cost Estimates'!$A$6:$C$20,2,0),-2)))) ->  | F37: =IF(A37="","",D37/VLOOKUP(A37,'Structural Water Quality Calcs'!$A$7:$AE$41,13,0)) ->  | J37: =IF(A37="","",IF(B37="Limited ROW",1,VLOOKUP(B37,'STU Cost Estimates'!$A$6:$C$20,3,0))) -> 
B38: =IF(A38="","",VLOOKUP(A38,'Structural Water Quality Calcs'!$A$7:$AC$41,2,0)) ->  | C38: =IF(A38="","",ROUND(VLOOKUP(A38,'Structural Water Quality Calcs'!$A$7:$AC$41,29,0),2)) ->  | D38: =IF(A38="","",IF(B38="Leaching basin",E38/C38,IF(B38="Limited ROW",1,ROUND(VLOOKUP(A38,'Structural Water Quality Calcs'!$A$7:$AC$41,5,0)*VLOOKUP(B38,'STU Cost Estimates'!$A$6:$C$20,2,0),-2)))) ->  | F38: =IF(A38="","",D38/VLOOKUP(A38,'Structural Water Quality Calcs'!$A$7:$AE$41,13,0)) ->  | J38: =IF(A38="","",IF(B38="Limited ROW",1,VLOOKUP(B38,'STU Cost Estimates'!$A$6:$C$20,3,0))) -> 
B39: =IF(A39="","",VLOOKUP(A39,'Structural Water Quality Calcs'!$A$7:$AC$41,2,0)) ->  | C39: =IF(A39="","",ROUND(VLOOKUP(A39,'Structural Water Quality Calcs'!$A$7:$AC$41,29,0),2)) ->  | D39: =IF(A39="","",IF(B39="Leaching basin",E39/C39,IF(B39="Limited ROW",1,ROUND(VLOOKUP(A39,'Structural Water Quality Calcs'!$A$7:$AC$41,5,0)*VLOOKUP(B39,'STU Cost Estimates'!$A$6:$C$20,2,0),-2)))) ->  | F39: =IF(A39="","",D39/VLOOKUP(A39,'Structural Water Quality Calcs'!$A$7:$AE$41,13,0)) ->  | J39: =IF(A39="","",IF(B39="Limited ROW",1,VLOOKUP(B39,'STU Cost Estimates'!$A$6:$C$20,3,0))) -> 
B40: =IF(A40="","",VLOOKUP(A40,'Structural Water Quality Calcs'!$A$7:$AC$41,2,0)) ->  | C40: =IF(A40="","",ROUND(VLOOKUP(A40,'Structural Water Quality Calcs'!$A$7:$AC$41,29,0),2)) ->  | D40: =IF(A40="","",IF(B40="Leaching basin",E40/C40,IF(B40="Limited ROW",1,ROUND(VLOOKUP(A40,'Structural Water Quality Calcs'!$A$7:$AC$41,5,0)*VLOOKUP(B40,'STU Cost Estimates'!$A$6:$C$20,2,0),-2)))) ->  | F40: =IF(A40="","",D40/VLOOKUP(A40,'Structural Water Quality Calcs'!$A$7:$AE$41,13,0)) ->  | J40: =IF(A40="","",IF(B40="Limited ROW",1,VLOOKUP(B40,'STU Cost Estimates'!$A$6:$C$20,3,0))) -> 
B41: =IF(A41="","",VLOOKUP(A41,'Structural Water Quality Calcs'!$A$7:$AC$41,2,0)) ->  | C41: =IF(A41="","",ROUND(VLOOKUP(A41,'Structural Water Quality Calcs'!$A$7:$AC$41,29,0),2)) ->  | D41: =IF(A41="","",IF(B41="Leaching basin",E41/C41,IF(B41="Limited ROW",1,ROUND(VLOOKUP(A41,'Structural Water Quality Calcs'!$A$7:$AC$41,5,0)*VLOOKUP(B41,'STU Cost Estimates'!$A$6:$C$20,2,0),-2)))) ->  | F41: =IF(A41="","",D41/VLOOKUP(A41,'Structural Water Quality Calcs'!$A$7:$AE$41,13,0)) ->  | J41: =IF(A41="","",IF(B41="Limited ROW",1,VLOOKUP(B41,'STU Cost Estimates'!$A$6:$C$20,3,0))) -> 
B42: =IF(A42="","",VLOOKUP(A42,'Structural Water Quality Calcs'!$A$7:$AC$41,2,0)) ->  | C42: =IF(A42="","",ROUND(VLOOKUP(A42,'Structural Water Quality Calcs'!$A$7:$AC$41,29,0),2)) ->  | D42: =IF(A42="","",IF(B42="Leaching basin",E42/C42,IF(B42="Limited ROW",1,ROUND(VLOOKUP(A42,'Structural Water Quality Calcs'!$A$7:$AC$41,5,0)*VLOOKUP(B42,'STU Cost Estimates'!$A$6:$C$20,2,0),-2)))) ->  | F42: =IF(A42="","",D42/VLOOKUP(A42,'Structural Water Quality Calcs'!$A$7:$AE$41,13,0)) ->  | J42: =IF(A42="","",IF(B42="Limited ROW",1,VLOOKUP(B42,'STU Cost Estimates'!$A$6:$C$20,3,0))) -> 
A43: Construction & Design Total | D43: =SUM(D6:D42) -> 170000
A44: Inspection & Maintenance | D44: =SUM(J5:J42) -> 11340 | E44: per year
A45: 1 Includes 35% add on for design engineering and contingencies.

Sheet STU_WaterQuality
A2: Segment Name: | B2: Lawton Valley Reservoir (RI0007035L-06), Group 1A
A3: Date: | B3: 12/31/2018
A5: STU ID | B5: Catchment Area (sqft) | C5: RIDOT Catchment Area (sqft) | D5: Impervious Area of STU catchment (sqft) | E5: RIDOT Impervious Area of STU catchment (sqft) | F5: Treatment Depth (inches) (Depth of Runoff Treated) | G5: TP Load (lb/year) | H5: RIDOT TP Load (lb/year) | I5: TP Removal (%) | J5: TP Removal (lb/year) | K5: RIDOT TP Removal (lb/year) | L5: TN Load (lb/year) | M5: RIDOT TN Load (lb/year) | N5: TN Removal (%) | O5: TN Removal (lb/year) | P5: RIDOT TN Removal (lb/year) | Q5: TSS Load (lb/year) | R5: RIDOT TSS Load (lb/year) | S5: TSS Removal (%) | T5: TSS Removal (lb/year) | U5: RIDOT TSS Removal (lb/year) | V5: Zinc Load (lb/year) | W5: RIDOT ZN Load (lb/year) | X5: Zinc Removal (%) | Y5: Zinc Removal (lb/year) | Z5: RIDOT ZN Removal (lb/year) | AA5: Effective IC Reduction (acres) | AB5: RIDOT Effective IC Reduction (acres) | AC5: IC Removal (%) (Pervious Cover Factor *100) | AD5: Runoff Reduction (ac-ft) | AE5: Runoff Factor | AF5: Flow Factor | AG5: Total Phosphorus Factor | AH5: Total Suspended Solids Factor | AI5: Cost | AJ5: Cost Per Acre IC Removed | AK5: Retrofit Priority
A6: SCP-LVR-001 | B6: =IF(A6="","",VLOOKUP(A6,'Structural Water Quality Calcs'!$A$6:$AE$41,3,0)) -> 13809.45382 | C6: =IF(A6="","",SUMIF(RIDOT_Catchment!$D$5:$D$79,A6,RIDOT_Catchment!$L$5:$L$79)) -> 13809.45382 | D6: =IF(A6="","",VLOOKUP(A6,'Structural Water Quality Calcs'!$A$6:$AE$41,4,0)) -> 10096 | E6: =IF(A6="","",SUMIF(RIDOT_Catchment!$D$5:$D$79,A6,RIDOT_Catchment!$F$5:$F$79)) -> 10096 | F6: =IF(A6="","",VLOOKUP(A6,'Structural Water Quality Calcs'!$A$6:$AE$41,6,0)) -> 1.013866878 | G6: =IF(A6="","",VLOOKUP(A6, 'Structural Water Quality Calcs'!$A$6:$AE$41,11,0)) -> 0.32 | H6: =IF(A6="","",SUMIF(RIDOT_Catchment!$D$5:$D$79,A6,RIDOT_Catchment!$N$5:$N$79)) -> 0.32 | I6: =IF(A6="","",VLOOKUP(A6,'Structural Water Quality Calcs'!$A$6:$AE$41,12,0)*100) -> 53.13866878 | J6: =IF(A6="","",VLOOKUP(A6,'Structural Water Quality Calcs'!$A$6:$AE$41,13,0)) -> 0.1700437401 | K6: =IF(A6="","",IF(VLOOKUP(A6,'Structural Water Quality Calcs'!$A$7:$B$41,2,0)="Limited ROW",H6*I6*0.1/100,H6*I6/100)) -> 0.1700437401 | L6: =IF(A6="","",VLOOKUP(A6,'Structural Water Quality Calcs'!$A$6:$AE$41,17,0)) -> 2.02 | M6: =IF(A6="","",SUMIF(RIDOT_Catchment!$D$5:$D$79,A6,RIDOT_Catchment!$P$5:$P$79)) -> 2.02 | N6: =IF(A6="","",VLOOKUP(A6,'Structural Water Quality Calcs'!$A$6:$AE$41,18,0)*100) -> 32.13866878 | O6: =IF(A6="","",VLOOKUP(A6,'Structural Water Quality Calcs'!$A$6:$AE$41,19,0)) -> 0.6492011094 | P6: =IF(A6="","",IF(VLOOKUP(A6,'Structural Water Quality Calcs'!$A$7:$B$41,2,0)="Limited ROW",M6*N6*0.1/100,M6*N6/100)) -> 0.6492011094 | Q6: =IF(A6="","",VLOOKUP(A6,'Structural Water Quality Calcs'!$A$6:$AE$41,14,0)) -> 145 | R6: =IF(A6="","",SUMIF(RIDOT_Catchment!$D$5:$D$79,A6,RIDOT_Catchment!$O$5:$O$79)) -> 145 | S6: =IF(A6="","",VLOOKUP(A6,'Structural Water Quality Calcs'!$A$6:$AE$41,15,0)*100) -> 99.02773376 | T6: =IF(A6="","",VLOOKUP(A6,'Structural Water Quality Calcs'!$A$6:$AE$41,16,0)) -> 143.5902139 | U6: =IF(A6="","",IF(VLOOKUP(A6,'Structural Water Quality Calcs'!$A$7:$B$41,2,0)="Limited ROW",R6*S6*0.1/100,R6*S6/100)) -> 143.5902139 | V6: =IF(A6="","",VLOOKUP(A6,'Structural Water Quality Calcs'!$A$6:$AE$41,20,0)) -> 0.29 | W6: =IF(A6="","",SUMIF(RIDOT_Catchment!$D$5:$D$79,A6,RIDOT_Catchment!$Q$5:$Q$79)) -> 0.29 | X6: =IF(A6="","",VLOOKUP(A6,'Structural Water Quality Calcs'!$A$6:$AE$41,21,0)*100) -> 97.02773376 | Y6: =IF(A6="","",VLOOKUP(A6,'Structural Water Quality Calcs'!$A$6:$AE$41,22,0)) -> 0.2813804279 | Z6: =IF(A6="","",IF(VLOOKUP(A6,'Structural Water Quality Calcs'!$A$7:$B$41,2,0)="Limited ROW",W6*X6*0.1/100,W6*X6/100)) -> 0.2813804279 | AA6: =IF(A6="","",VLOOKUP(A6,'Structural Water Quality Calcs'!$A$6:$AE$41,29,0)) -> 0.1275388247 | AB6: =IF(A6="","",IF(VLOOKUP(A6,'Structural Water Quality Calcs'!$A$7:$B$41,2,0)="Limited ROW",VLOOKUP(A6,'Structural Water Quality Calcs'!$A$6:$AE$41,28,0)*E6*0.1/43560,VLOOKUP(A6,'Structural Water Quality Calcs'!$A$6:$AE$341,28,0)*E6/43560)) -> 0.1275388247 | AC6: =IF(A6="","",VLOOKUP(A6,'Structural Water Quality Calcs'!$A$6:$AE$41,28,0)*100) -> 55.02764664 | AD6: =IF(A6="","",VLOOKUP(A6,'Structural Water Quality Calcs'!$A$6:$AE$41,31,0)) -> 0.1089596814 | AE6: =IF(A6="","",VLOOKUP(A6,'Structural Water Quality Calcs'!$A$6:$AE$41,26,0)) -> 0.1427733756 | AF6: =IF(A6="","",VLOOKUP(A6,'Structural Water Quality Calcs'!$A$6:$AE$41,27,0)) -> 0.4679028371 | AG6: =IF(A6="","",(VLOOKUP(A6,'Structural Water Quality Calcs'!$A$6:$AE$41,25,0))) -> 0.5904296531 | AH6: =IF(A6="","",VLOOKUP(A6,'Structural Water Quality Calcs'!$A$6:$AE$41,24,0)) -> 1 | AI6: =IF(A6="","",IF(AN6="Existing","",VLOOKUP(A6,STU_Cost!$A$5:$G$42,4,0))) -> 39400 | AJ6: =IF(A6="","",IF(AN6="Existing","",VLOOKUP(A6,STU_Cost!$A$5:$G$42,5,0))) -> 303100 | AK6: =IF(A6="","",IF(AN6="Existing","",VLOOKUP(A6,STU_Cost!$A$5:$G$42,7,0))) -> 2 | AN6: =IF(A6="","",IFERROR(VLOOKUP(A6,Existing_STU!$A$6:$J$37,8,0),VLOOKUP(A6,Potential_STU!$A$6:$K$39,8,0))) -> Potential
A7: SCP-LVR-002 | B7: =IF(A7="","",VLOOKUP(A7,'Structural Water Quality Calcs'!$A$6:$AE$41,3,0)) -> 11675.11979 | C7: =IF(A7="","",SUMIF(RIDOT_Catchment!$D$5:$D$79,A7,RIDOT_Catchment!$L$5:$L$79)) -> 3957.144243 | D7: =IF(A7="","",VLOOKUP(A7,'Structural Water Quality Calcs'!$A$6:$AE$41,4,0)) -> 9268 | E7: =IF(A7="","",SUMIF(RIDOT_Catchment!$D$5:$D$79,A7,RIDOT_Catchment!$F$5:$F$79)) -> 3620 | F7: =IF(A7="","",VLOOKUP(A7,'Structural Water Quality Calcs'!$A$6:$AE$41,6,0)) -> 0.7885196375 | G7: =IF(A7="","",VLOOKUP(A7, 'Structural Water Quality Calcs'!$A$6:$AE$41,11,0)) -> 0.415531868 | H7: =IF(A7="","",SUMIF(RIDOT_Catchment!$D$5:$D$79,A7,RIDOT_Catchment!$N$5:$N$79)) -> 0.11 | I7: =IF(A7="","",VLOOKUP(A7,'Structural Water Quality Calcs'!$A$6:$AE$41,12,0)*100) -> 47.77039275 | J7: =IF(A7="","",VLOOKUP(A7,'Structural Water Quality Calcs'!$A$6:$AE$41,13,0)) -> 0.1985012053 | K7: =IF(A7="","",IF(VLOOKUP(A7,'Structural Water Quality Calcs'!$A$7:$B$41,2,0)="Limited ROW",H7*I7*0.1/100,H7*I7/100)) -> 0.05254743202 | L7: =IF(A7="","",VLOOKUP(A7,'Structural Water Quality Calcs'!$A$6:$AE$41,17,0)) -> 2.578263033 | M7: =IF(A7="","",SUMIF(RIDOT_Catchment!$D$5:$D$79,A7,RIDOT_Catchment!$P$5:$P$79)) -> 0.7 | N7: =IF(A7="","",VLOOKUP(A7,'Structural Water Quality Calcs'!$A$6:$AE$41,18,0)*100) -> 30.82779456 | O7: =IF(A7="","",VLOOKUP(A7,'Structural Water Quality Calcs'!$A$6:$AE$41,19,0)) -> 0.794821631 | P7: =IF(A7="","",IF(VLOOKUP(A7,'Structural Water Quality Calcs'!$A$7:$B$41,2,0)="Limited ROW",M7*N7*0.1/100,M7*N7/100)) -> 0.2157945619 | Q7: =IF(A7="","",VLOOKUP(A7,'Structural Water Quality Calcs'!$A$6:$AE$41,14,0)) -> 109.1712907 | R7: =IF(A7="","",SUMIF(RIDOT_Catchment!$D$5:$D$79,A7,RIDOT_Catchment!$O$5:$O$79)) -> 51 | S7: =IF(A7="","",VLOOKUP(A7,'Structural Water Quality Calcs'!$A$6:$AE$41,15,0)*100) -> 97.94259819 | T7: =IF(A7="","",VLOOKUP(A7,'Structural Water Quality Calcs'!$A$6:$AE$41,16,0)) -> 106.9251986 | U7: =IF(A7="","",IF(VLOOKUP(A7,'Structural Water Quality Calcs'!$A$7:$B$41,2,0)="Limited ROW",R7*S7*0.1/100,R7*S7/100)) -> 49.95072508 | V7: =IF(A7="","",VLOOKUP(A7,'Structural Water Quality Calcs'!$A$6:$AE$41,20,0)) -> 0.1922214361 | W7: =IF(A7="","",SUMIF(RIDOT_Catchment!$D$5:$D$79,A7,RIDOT_Catchment!$Q$5:$Q$79)) -> 0.1 | X7: =IF(A7="","",VLOOKUP(A7,'Structural Water Quality Calcs'!$A$6:$AE$41,21,0)*100) -> 96 | Y7: =IF(A7="","",VLOOKUP(A7,'Structural Water Quality Calcs'!$A$6:$AE$41,22,0)) -> 0.1845325786 | Z7: =IF(A7="","",IF(VLOOKUP(A7,'Structural Water Quality Calcs'!$A$7:$B$41,2,0)="Limited ROW",W7*X7*0.1/100,W7*X7/100)) -> 0.096 | AA7: =IF(A7="","",VLOOKUP(A7,'Structural Water Quality Calcs'!$A$6:$AE$41,29,0)) -> 0.1078047527 | AB7: =IF(A7="","",IF(VLOOKUP(A7,'Structural Water Quality Calcs'!$A$7:$B$41,2,0)="Limited ROW",VLOOKUP(A7,'Structural Water Quality Calcs'!$A$6:$AE$41,28,0)*E7*0.1/43560,VLOOKUP(A7,'Structural Water Quality Calcs'!$A$6:$AE$341,28,0)*E7/43560)) -> 0.04210759655 | AC7: =IF(A7="","",VLOOKUP(A7,'Structural Water Quality Calcs'!$A$6:$AE$41,28,0)*100) -> 50.66869906 | AD7: =IF(A7="","",VLOOKUP(A7,'Structural Water Quality Calcs'!$A$6:$AE$41,31,0)) -> 0.07860669932 | AE7: =IF(A7="","",VLOOKUP(A7,'Structural Water Quality Calcs'!$A$6:$AE$41,26,0)) -> 0.1088519637 | AF7: =IF(A7="","",VLOOKUP(A7,'Structural Water Quality Calcs'!$A$6:$AE$41,27,0)) -> 0.3871138569 | AG7: =IF(A7="","",(VLOOKUP(A7,'Structural Water Quality Calcs'!$A$6:$AE$41,25,0))) -> 0.5307821417 | AH7: =IF(A7="","",VLOOKUP(A7,'Structural Water Quality Calcs'!$A$6:$AE$41,24,0)) -> 1 | AI7: =IF(A7="","",IF(AN7="Existing","",VLOOKUP(A7,STU_Cost!$A$5:$G$42,4,0))) -> 31100 | AJ7: =IF(A7="","",IF(AN7="Existing","",VLOOKUP(A7,STU_Cost!$A$5:$G$42,5,0))) -> 282700 | AK7: =IF(A7="","",IF(AN7="Existing","",VLOOKUP(A7,STU_Cost!$A$5:$G$42,7,0))) -> 1 | AN7: =IF(A7="","",IFERROR(VLOOKUP(A7,Existing_STU!$A$6:$J$37,8,0),VLOOKUP(A7,Potential_STU!$A$6:$K$39,8,0))) -> Potential
A8: SCP-LVR-003 | B8: =IF(A8="","",VLOOKUP(A8,'Structural Water Quality Calcs'!$A$6:$AE$41,3,0)) -> 9838.68244 | C8: =IF(A8="","",SUMIF(RIDOT_Catchment!$D$5:$D$79,A8,RIDOT_Catchment!$L$5:$L$79)) -> 8448.333301 | D8: =IF(A8="","",VLOOKUP(A8,'Structural Water Quality Calcs'!$A$6:$AE$41,4,0)) -> 7452 | E8: =IF(A8="","",SUMIF(RIDOT_Catchment!$D$5:$D$79,A8,RIDOT_Catchment!$F$5:$F$79)) -> 6540 | F8: =IF(A8="","",VLOOKUP(A8,'Structural Water Quality Calcs'!$A$6:$AE$41,6,0)) -> 0.8405797101 | G8: =IF(A8="","",VLOOKUP(A8, 'Structural Water Quality Calcs'!$A$6:$AE$41,11,0)) -> 0.2597179292 | H8: =IF(A8="","",SUMIF(RIDOT_Catchment!$D$5:$D$79,A8,RIDOT_Catchment!$N$5:$N$79)) -> 0.21 | I8: =IF(A8="","",VLOOKUP(A8,'Structural Water Quality Calcs'!$A$6:$AE$41,12,0)*100) -> 49.01449275 | J8: =IF(A8="","",VLOOKUP(A8,'Structural Water Quality Calcs'!$A$6:$AE$41,13,0)) -> 0.1272994256 | K8: =IF(A8="","",IF(VLOOKUP(A8,'Structural Water Quality Calcs'!$A$7:$B$41,2,0)="Limited ROW",H8*I8*0.1/100,H8*I8/100)) -> 0.1029304348 | L8: =IF(A8="","",VLOOKUP(A8,'Structural Water Quality Calcs'!$A$6:$AE$41,17,0)) -> 1.607116482 | M8: =IF(A8="","",SUMIF(RIDOT_Catchment!$D$5:$D$79,A8,RIDOT_Catchment!$P$5:$P$79)) -> 1.3 | N8: =IF(A8="","",VLOOKUP(A8,'Structural Water Quality Calcs'!$A$6:$AE$41,18,0)*100) -> 31.20289855 | O8: =IF(A8="","",VLOOKUP(A8,'Structural Water Quality Calcs'!$A$6:$AE$41,19,0)) -> 0.5014669255 | P8: =IF(A8="","",IF(VLOOKUP(A8,'Structural Water Quality Calcs'!$A$7:$B$41,2,0)="Limited ROW",M8*N8*0.1/100,M8*N8/100)) -> 0.4056376812 | Q8: =IF(A8="","",VLOOKUP(A8,'Structural Water Quality Calcs'!$A$6:$AE$41,14,0)) -> 102.4902588 | R8: =IF(A8="","",SUMIF(RIDOT_Catchment!$D$5:$D$79,A8,RIDOT_Catchment!$O$5:$O$79)) -> 93 | S8: =IF(A8="","",VLOOKUP(A8,'Structural Water Quality Calcs'!$A$6:$AE$41,15,0)*100) -> 98.20289855 | T8: =IF(A8="","",VLOOKUP(A8,'Structural Water Quality Calcs'!$A$6:$AE$41,16,0)) -> 100.6484049 | U8: =IF(A8="","",IF(VLOOKUP(A8,'Structural Water Quality Calcs'!$A$7:$B$41,2,0)="Limited ROW",R8*S8*0.1/100,R8*S8/100)) -> 91.32869565 | V8: =IF(A8="","",VLOOKUP(A8,'Structural Water Quality Calcs'!$A$6:$AE$41,20,0)) -> 0.2049648868 | W8: =IF(A8="","",SUMIF(RIDOT_Catchment!$D$5:$D$79,A8,RIDOT_Catchment!$Q$5:$Q$79)) -> 0.19 | X8: =IF(A8="","",VLOOKUP(A8,'Structural Water Quality Calcs'!$A$6:$AE$41,21,0)*100) -> 96.20289855 | Y8: =IF(A8="","",VLOOKUP(A8,'Structural Water Quality Calcs'!$A$6:$AE$41,22,0)) -> 0.1971821621 | Z8: =IF(A8="","",IF(VLOOKUP(A8,'Structural Water Quality Calcs'!$A$7:$B$41,2,0)="Limited ROW",W8*X8*0.1/100,W8*X8/100)) -> 0.1827855072 | AA8: =IF(A8="","",VLOOKUP(A8,'Structural Water Quality Calcs'!$A$6:$AE$41,29,0)) -> 0.08831646251 | AB8: =IF(A8="","",IF(VLOOKUP(A8,'Structural Water Quality Calcs'!$A$7:$B$41,2,0)="Limited ROW",VLOOKUP(A8,'Structural Water Quality Calcs'!$A$6:$AE$41,28,0)*E8*0.1/43560,VLOOKUP(A8,'Structural Water Quality Calcs'!$A$6:$AE$341,28,0)*E8/43560)) -> 0.07750800655 | AC8: =IF(A8="","",VLOOKUP(A8,'Structural Water Quality Calcs'!$A$6:$AE$41,28,0)*100) -> 51.62459886 | AD8: =IF(A8="","",VLOOKUP(A8,'Structural Water Quality Calcs'!$A$6:$AE$41,31,0)) -> 0.06719389868 | AE8: =IF(A8="","",VLOOKUP(A8,'Structural Water Quality Calcs'!$A$6:$AE$41,26,0)) -> 0.1160869565 | AF8: =IF(A8="","",VLOOKUP(A8,'Structural Water Quality Calcs'!$A$6:$AE$41,27,0)) -> 0.4042915228 | AG8: =IF(A8="","",(VLOOKUP(A8,'Structural Water Quality Calcs'!$A$6:$AE$41,25,0))) -> 0.544605475 | AH8: =IF(A8="","",VLOOKUP(A8,'Structural Water Quality Calcs'!$A$6:$AE$41,24,0)) -> 1 | AI8: =IF(A8="","",IF(AN8="Existing","",VLOOKUP(A8,STU_Cost!$A$5:$G$42,4,0))) -> 30100 | AJ8: =IF(A8="","",IF(AN8="Existing","",VLOOKUP(A8,STU_Cost!$A$5:$G$42,5,0))) -> 334400 | AK8: =IF(A8="","",IF(AN8="Existing","",VLOOKUP(A8,STU_Cost!$A$5:$G$42,7,0))) -> 2 | AN8: =IF(A8="","",IFERROR(VLOOKUP(A8,Existing_STU!$A$6:$J$37,8,0),VLOOKUP(A8,Potential_STU!$A$6:$K$39,8,0))) -> Potential
A9: SCP-LVR-004 | B9: =IF(A9="","",VLOOKUP(A9,'Structural Water Quality Calcs'!$A$6:$AE$41,3,0)) -> 5057.695117 | C9: =IF(A9="","",SUMIF(RIDOT_Catchment!$D$5:$D$79,A9,RIDOT_Catchment!$L$5:$L$79)) -> 5057.695117 | D9: =IF(A9="","",VLOOKUP(A9,'Structural Water Quality Calcs'!$A$6:$AE$41,4,0)) -> 2428 | E9: =IF(A9="","",SUMIF(RIDOT_Catchment!$D$5:$D$79,A9,RIDOT_Catchment!$F$5:$F$79)) -> 2428 | F9: =IF(A9="","",VLOOKUP(A9,'Structural Water Quality Calcs'!$A$6:$AE$41,6,0)) -> 1.032948929 | G9: =IF(A9="","",VLOOKUP(A9, 'Structural Water Quality Calcs'!$A$6:$AE$41,11,0)) -> 0.08 | H9: =IF(A9="","",SUMIF(RIDOT_Catchment!$D$5:$D$79,A9,RIDOT_Catchment!$N$5:$N$79)) -> 0.08 | I9: =IF(A9="","",VLOOKUP(A9,'Structural Water Quality Calcs'!$A$6:$AE$41,12,0)*100) -> 51.65262285 | J9: =IF(A9="","",VLOOKUP(A9,'Structural Water Quality Calcs'!$A$6:$AE$41,13,0)) -> 0.04132209828 | K9: =IF(A9="","",IF(VLOOKUP(A9,'Structural Water Quality Calcs'!$A$7:$B$41,2,0)="Limited ROW",H9*I9*0.1/100,H9*I9/100)) -> 0.04132209828 | L9: =IF(A9="","",VLOOKUP(A9,'Structural Water Quality Calcs'!$A$6:$AE$41,17,0)) -> 0.52 | M9: =IF(A9="","",SUMIF(RIDOT_Catchment!$D$5:$D$79,A9,RIDOT_Catchment!$P$5:$P$79)) -> 0.52 | N9: =IF(A9="","",VLOOKUP(A9,'Structural Water Quality Calcs'!$A$6:$AE$41,18,0)*100) -> 31.91156378 | O9: =IF(A9="","",VLOOKUP(A9,'Structural Water Quality Calcs'!$A$6:$AE$41,19,0)) -> 0.1659401316 | P9: =IF(A9="","",IF(VLOOKUP(A9,'Structural Water Quality Calcs'!$A$7:$B$41,2,0)="Limited ROW",M9*N9*0.1/100,M9*N9/100)) -> 0.1659401316 | Q9: =IF(A9="","",VLOOKUP(A9,'Structural Water Quality Calcs'!$A$6:$AE$41,14,0)) -> 36 | R9: =IF(A9="","",SUMIF(RIDOT_Catchment!$D$5:$D$79,A9,RIDOT_Catchment!$O$5:$O$79)) -> 36 | S9: =IF(A9="","",VLOOKUP(A9,'Structural Water Quality Calcs'!$A$6:$AE$41,15,0)*100) -> 98.73052457 | T9: =IF(A9="","",VLOOKUP(A9,'Structural Water Quality Calcs'!$A$6:$AE$41,16,0)) -> 35.54298885 | U9: =IF(A9="","",IF(VLOOKUP(A9,'Structural Water Quality Calcs'!$A$7:$B$41,2,0)="Limited ROW",R9*S9*0.1/100,R9*S9/100)) -> 35.54298885 | V9: =IF(A9="","",VLOOKUP(A9,'Structural Water Quality Calcs'!$A$6:$AE$41,20,0)) -> 0.07 | W9: =IF(A9="","",SUMIF(RIDOT_Catchment!$D$5:$D$79,A9,RIDOT_Catchment!$Q$5:$Q$79)) -> 0.07 | X9: =IF(A9="","",VLOOKUP(A9,'Structural Water Quality Calcs'!$A$6:$AE$41,21,0)*100) -> 96.73052457 | Y9: =IF(A9="","",VLOOKUP(A9,'Structural Water Quality Calcs'!$A$6:$AE$41,22,0)) -> 0.0677113672 | Z9: =IF(A9="","",IF(VLOOKUP(A9,'Structural Water Quality Calcs'!$A$7:$B$41,2,0)="Limited ROW",W9*X9*0.1/100,W9*X9/100)) -> 0.0677113672 | AA9: =IF(A9="","",VLOOKUP(A9,'Structural Water Quality Calcs'!$A$6:$AE$41,29,0)) -> 0.03063626789 | AB9: =IF(A9="","",IF(VLOOKUP(A9,'Structural Water Quality Calcs'!$A$7:$B$41,2,0)="Limited ROW",VLOOKUP(A9,'Structural Water Quality Calcs'!$A$6:$AE$41,28,0)*E9*0.1/43560,VLOOKUP(A9,'Structural Water Quality Calcs'!$A$6:$AE$341,28,0)*E9/43560)) -> 0.03063626789 | AC9: =IF(A9="","",VLOOKUP(A9,'Structural Water Quality Calcs'!$A$6:$AE$41,28,0)*100) -> 54.9635844 | AD9: =IF(A9="","",VLOOKUP(A9,'Structural Water Quality Calcs'!$A$6:$AE$41,31,0)) -> 0.02815508296 | AE9: =IF(A9="","",VLOOKUP(A9,'Structural Water Quality Calcs'!$A$6:$AE$41,26,0)) -> 0.1465897858 | AF9: =IF(A9="","",VLOOKUP(A9,'Structural Water Quality Calcs'!$A$6:$AE$41,27,0)) -> 0.4780355584 | AG9: =IF(A9="","",(VLOOKUP(A9,'Structural Water Quality Calcs'!$A$6:$AE$41,25,0))) -> 0.5739180317 | AH9: =IF(A9="","",VLOOKUP(A9,'Structural Water Quality Calcs'!$A$6:$AE$41,24,0)) -> 1 | AI9: =IF(A9="","",IF(AN9="Existing","",VLOOKUP(A9,STU_Cost!$A$5:$G$42,4,0))) -> 18200 | AJ9: =IF(A9="","",IF(AN9="Existing","",VLOOKUP(A9,STU_Cost!$A$5:$G$42,5,0))) -> 606700 | AK9: =IF(A9="","",IF(AN9="Existing","",VLOOKUP(A9,STU_Cost!$A$5:$G$42,7,0))) -> 2 | AN9: =IF(A9="","",IFERROR(VLOOKUP(A9,Existing_STU!$A$6:$J$37,8,0),VLOOKUP(A9,Potential_STU!$A$6:$K$39,8,0))) -> Potential
A10: SCP-LVR-005 | B10: =IF(A10="","",VLOOKUP(A10,'Structural Water Quality Calcs'!$A$6:$AE$41,3,0)) -> 19241.3824 | C10: =IF(A10="","",SUMIF(RIDOT_Catchment!$D$5:$D$79,A10,RIDOT_Catchment!$L$5:$L$79)) -> 19241.3824 | D10: =IF(A10="","",VLOOKUP(A10,'Structural Water Quality Calcs'!$A$6:$AE$41,4,0)) -> 11992 | E10: =IF(A10="","",SUMIF(RIDOT_Catchment!$D$5:$D$79,A10,RIDOT_Catchment!$F$5:$F$79)) -> 11992 | F10: =IF(A10="","",VLOOKUP(A10,'Structural Water Quality Calcs'!$A$6:$AE$41,6,0)) -> 0.6094062708 | G10: =IF(A10="","",VLOOKUP(A10, 'Structural Water Quality Calcs'!$A$6:$AE$41,11,0)) -> 0.39 | H10: =IF(A10="","",SUMIF(RIDOT_Catchment!$D$5:$D$79,A10,RIDOT_Catchment!$N$5:$N$79)) -> 0.39 | I10: =IF(A10="","",VLOOKUP(A10,'Structural Water Quality Calcs'!$A$6:$AE$41,12,0)*100) -> 44.18812542 | J10: =IF(A10="","",VLOOKUP(A10,'Structural Water Quality Calcs'!$A$6:$AE$41,13,0)) -> 0.1723336891 | K10: =IF(A10="","",IF(VLOOKUP(A10,'Structural Water Quality Calcs'!$A$7:$B$41,2,0)="Limited ROW",H10*I10*0.1/100,H10*I10/100)) -> 0.1723336891 | L10: =IF(A10="","",VLOOKUP(A10,'Structural Water Quality Calcs'!$A$6:$AE$41,17,0)) -> 2.46 | M10: =IF(A10="","",SUMIF(RIDOT_Catchment!$D$5:$D$79,A10,RIDOT_Catchment!$P$5:$P$79)) -> 2.46 | N10: =IF(A10="","",VLOOKUP(A10,'Structural Water Quality Calcs'!$A$6:$AE$41,18,0)*100) -> 28.14109406 | O10: =IF(A10="","",VLOOKUP(A10,'Structural Water Quality Calcs'!$A$6:$AE$41,19,0)) -> 0.6922709139 | P10: =IF(A10="","",IF(VLOOKUP(A10,'Structural Water Quality Calcs'!$A$7:$B$41,2,0)="Limited ROW",M10*N10*0.1/100,M10*N10/100)) -> 0.6922709139 | Q10: =IF(A10="","",VLOOKUP(A10,'Structural Water Quality Calcs'!$A$6:$AE$41,14,0)) -> 174 | R10: =IF(A10="","",SUMIF(RIDOT_Catchment!$D$5:$D$79,A10,RIDOT_Catchment!$O$5:$O$79)) -> 174 | S10: =IF(A10="","",VLOOKUP(A10,'Structural Water Quality Calcs'!$A$6:$AE$41,15,0)*100) -> 97.04703135 | T10: =IF(A10="","",VLOOKUP(A10,'Structural Water Quality Calcs'!$A$6:$AE$41,16,0)) -> 168.8618346 | U10: =IF(A10="","",IF(VLOOKUP(A10,'Structural Water Quality Calcs'!$A$7:$B$41,2,0)="Limited ROW",R10*S10*0.1/100,R10*S10/100)) -> 168.8618346 | V10: =IF(A10="","",VLOOKUP(A10,'Structural Water Quality Calcs'!$A$6:$AE$41,20,0)) -> 0.34 | W10: =IF(A10="","",SUMIF(RIDOT_Catchment!$D$5:$D$79,A10,RIDOT_Catchment!$Q$5:$Q$79)) -> 0.34 | X10: =IF(A10="","",VLOOKUP(A10,'Structural Water Quality Calcs'!$A$6:$AE$41,21,0)*100) -> 96 | Y10: =IF(A10="","",VLOOKUP(A10,'Structural Water Quality Calcs'!$A$6:$AE$41,22,0)) -> 0.3264 | Z10: =IF(A10="","",IF(VLOOKUP(A10,'Structural Water Quality Calcs'!$A$7:$B$41,2,0)="Limited ROW",W10*X10*0.1/100,W10*X10/100)) -> 0.3264 | AA10: =IF(A10="","",VLOOKUP(A10,'Structural Water Quality Calcs'!$A$6:$AE$41,29,0)) -> 0.1324469338 | AB10: =IF(A10="","",IF(VLOOKUP(A10,'Structural Water Quality Calcs'!$A$7:$B$41,2,0)="Limited ROW",VLOOKUP(A10,'Structural Water Quality Calcs'!$A$6:$AE$41,28,0)*E10*0.1/43560,VLOOKUP(A10,'Structural Water Quality Calcs'!$A$6:$AE$341,28,0)*E10/43560)) -> 0.1324469338 | AC10: =IF(A10="","",VLOOKUP(A10,'Structural Water Quality Calcs'!$A$6:$AE$41,28,0)*100) -> 48.11031053 | AD10: =IF(A10="","",VLOOKUP(A10,'Structural Water Quality Calcs'!$A$6:$AE$41,31,0)) -> 0.08295492504 | AE10: =IF(A10="","",VLOOKUP(A10,'Structural Water Quality Calcs'!$A$6:$AE$41,26,0)) -> 0.09094062708 | AF10: =IF(A10="","",VLOOKUP(A10,'Structural Water Quality Calcs'!$A$6:$AE$41,27,0)) -> 0.3424926227 | AG10: =IF(A10="","",(VLOOKUP(A10,'Structural Water Quality Calcs'!$A$6:$AE$41,25,0))) -> 0.4909791713 | AH10: =IF(A10="","",VLOOKUP(A10,'Structural Water Quality Calcs'!$A$6:$AE$41,24,0)) -> 1 | AI10: =IF(A10="","",IF(AN10="Existing","",VLOOKUP(A10,STU_Cost!$A$5:$G$42,4,0))) -> 31100 | AJ10: =IF(A10="","",IF(AN10="Existing","",VLOOKUP(A10,STU_Cost!$A$5:$G$42,5,0))) -> 239200 | AK10: =IF(A10="","",IF(AN10="Existing","",VLOOKUP(A10,STU_Cost!$A$5:$G$42,7,0))) -> 1 | AN10: =IF(A10="","",IFERROR(VLOOKUP(A10,Existing_STU!$A$6:$J$37,8,0),VLOOKUP(A10,Potential_STU!$A$6:$K$39,8,0))) -> Potential
A11: SCP-LVR-006 | B11: =IF(A11="","",VLOOKUP(A11,'Structural Water Quality Calcs'!$A$6:$AE$41,3,0)) -> 6946.199157 | C11: =IF(A11="","",SUMIF(RIDOT_Catchment!$D$5:$D$79,A11,RIDOT_Catchment!$L$5:$L$79)) -> 6946.199157 | D11: =IF(A11="","",VLOOKUP(A11,'Structural Water Quality Calcs'!$A$6:$AE$41,4,0)) -> 2964 | E11: =IF(A11="","",SUMIF(RIDOT_Catchment!$D$5:$D$79,A11,RIDOT_Catchment!$F$5:$F$79)) -> 2964 | F11: =IF(A11="","",VLOOKUP(A11,'Structural Water Quality Calcs'!$A$6:$AE$41,6,0)) -> 1.056680162 | G11: =IF(A11="","",VLOOKUP(A11, 'Structural Water Quality Calcs'!$A$6:$AE$41,11,0)) -> 0.1 | H11: =IF(A11="","",SUMIF(RIDOT_Catchment!$D$5:$D$79,A11,RIDOT_Catchment!$N$5:$N$79)) -> 0.1 | I11: =IF(A11="","",VLOOKUP(A11,'Structural Water Quality Calcs'!$A$6:$AE$41,12,0)*100) -> 51.89557283 | J11: =IF(A11="","",VLOOKUP(A11,'Structural Water Quality Calcs'!$A$6:$AE$41,13,0)) -> 0.05189557283 | K11: =IF(A11="","",IF(VLOOKUP(A11,'Structural Water Quality Calcs'!$A$7:$B$41,2,0)="Limited ROW",H11*I11*0.1/100,H11*I11/100)) -> 0.05189557283 | L11: =IF(A11="","",VLOOKUP(A11,'Structural Water Quality Calcs'!$A$6:$AE$41,17,0)) -> 0.65 | M11: =IF(A11="","",SUMIF(RIDOT_Catchment!$D$5:$D$79,A11,RIDOT_Catchment!$P$5:$P$79)) -> 0.65 | N11: =IF(A11="","",VLOOKUP(A11,'Structural Water Quality Calcs'!$A$6:$AE$41,18,0)*100) -> 32.09054598 | O11: =IF(A11="","",VLOOKUP(A11,'Structural Water Quality Calcs'!$A$6:$AE$41,19,0)) -> 0.2085885489 | P11: =IF(A11="","",IF(VLOOKUP(A11,'Structural Water Quality Calcs'!$A$7:$B$41,2,0)="Limited ROW",M11*N11*0.1/100,M11*N11/100)) -> 0.2085885489 | Q11: =IF(A11="","",VLOOKUP(A11,'Structural Water Quality Calcs'!$A$6:$AE$41,14,0)) -> 44 | R11: =IF(A11="","",SUMIF(RIDOT_Catchment!$D$5:$D$79,A11,RIDOT_Catchment!$O$5:$O$79)) -> 44 | S11: =IF(A11="","",VLOOKUP(A11,'Structural Water Quality Calcs'!$A$6:$AE$41,15,0)*100) -> 98.77911457 | T11: =IF(A11="","",VLOOKUP(A11,'Structural Water Quality Calcs'!$A$6:$AE$41,16,0)) -> 43.46281041 | U11: =IF(A11="","",IF(VLOOKUP(A11,'Structural Water Quality Calcs'!$A$7:$B$41,2,0)="Limited ROW",R11*S11*0.1/100,R11*S11/100)) -> 43.46281041 | V11: =IF(A11="","",VLOOKUP(A11,'Structural Water Quality Calcs'!$A$6:$AE$41,20,0)) -> 0.09 | W11: =IF(A11="","",SUMIF(RIDOT_Catchment!$D$5:$D$79,A11,RIDOT_Catchment!$Q$5:$Q$79)) -> 0.09 | X11: =IF(A11="","",VLOOKUP(A11,'Structural Water Quality Calcs'!$A$6:$AE$41,21,0)*100) -> 96.77911457 | Y11: =IF(A11="","",VLOOKUP(A11,'Structural Water Quality Calcs'!$A$6:$AE$41,22,0)) -> 0.08710120311 | Z11: =IF(A11="","",IF(VLOOKUP(A11,'Structural Water Quality Calcs'!$A$7:$B$41,2,0)="Limited ROW",W11*X11*0.1/100,W11*X11/100)) -> 0.08710120311 | AA11: =IF(A11="","",VLOOKUP(A11,'Structural Water Quality Calcs'!$A$6:$AE$41,29,0)) -> 0.03774048647 | AB11: =IF(A11="","",IF(VLOOKUP(A11,'Structural Water Quality Calcs'!$A$7:$B$41,2,0)="Limited ROW",VLOOKUP(A11,'Structural Water Quality Calcs'!$A$6:$AE$41,28,0)*E11*0.1/43560,VLOOKUP(A11,'Structural Water Quality Calcs'!$A$6:$AE$341,28,0)*E11/43560)) -> 0.03774048647 | AC11: =IF(A11="","",VLOOKUP(A11,'Structural Water Quality Calcs'!$A$6:$AE$41,28,0)*100) -> 55.46476351 | AD11: =IF(A11="","",VLOOKUP(A11,'Structural Water Quality Calcs'!$A$6:$AE$41,31,0)) -> 0.03604638501 | AE11: =IF(A11="","",VLOOKUP(A11,'Structural Water Quality Calcs'!$A$6:$AE$41,26,0)) -> 0.1513360324 | AF11: =IF(A11="","",VLOOKUP(A11,'Structural Water Quality Calcs'!$A$6:$AE$41,27,0)) -> 0.4906370322 | AG11: =IF(A11="","",(VLOOKUP(A11,'Structural Water Quality Calcs'!$A$6:$AE$41,25,0))) -> 0.5766174759 | AH11: =IF(A11="","",VLOOKUP(A11,'Structural Water Quality Calcs'!$A$6:$AE$41,24,0)) -> 1 | AI11: =IF(A11="","",IF(AN11="Existing","",VLOOKUP(A11,STU_Cost!$A$5:$G$42,4,0))) -> 20100 | AJ11: =IF(A11="","",IF(AN11="Existing","",VLOOKUP(A11,STU_Cost!$A$5:$G$42,5,0))) -> 502500 | AK11: =IF(A11="","",IF(AN11="Existing","",VLOOKUP(A11,STU_Cost!$A$5:$G$42,7,0))) -> 3 | AN11: =IF(A11="","",IFERROR(VLOOKUP(A11,Existing_STU!$A$6:$J$37,8,0),VLOOKUP(A11,Potential_STU!$A$6:$K$39,8,0))) -> Potential
B12: =IF(A12="","",VLOOKUP(A12,'Structural Water Quality Calcs'!$A$6:$AE$41,3,0)) ->  | C12: =IF(A12="","",SUMIF(RIDOT_Catchment!$D$5:$D$79,A12,RIDOT_Catchment!$L$5:$L$79)) ->  | D12: =IF(A12="","",VLOOKUP(A12,'Structural Water Quality Calcs'!$A$6:$AE$41,4,0)) ->  | E12: =IF(A12="","",SUMIF(RIDOT_Catchment!$D$5:$D$79,A12,RIDOT_Catchment!$F$5:$F$79)) ->  | F12: =IF(A12="","",VLOOKUP(A12,'Structural Water Quality Calcs'!$A$6:$AE$41,6,0)) ->  | G12: =IF(A12="","",VLOOKUP(A12, 'Structural Water Quality Calcs'!$A$6:$AE$41,11,0)) ->  | H12: =IF(A12="","",SUMIF(RIDOT_Catchment!$D$5:$D$79,A12,RIDOT_Catchment!$N$5:$N$79)) ->  | I12: =IF(A12="","",VLOOKUP(A12,'Structural Water Quality Calcs'!$A$6:$AE$41,12,0)*100) ->  | J12: =IF(A12="","",VLOOKUP(A12,'Structural Water Quality Calcs'!$A$6:$AE$41,13,0)) ->  | K12: =IF(A12="","",IF(VLOOKUP(A12,'Structural Water Quality Calcs'!$A$7:$B$41,2,0)="Limited ROW",H12*I12*0.1/100,H12*I12/100)) ->  | L12: =IF(A12="","",VLOOKUP(A12,'Structural Water Quality Calcs'!$A$6:$AE$41,17,0)) ->  | M12: =IF(A12="","",SUMIF(RIDOT_Catchment!$D$5:$D$79,A12,RIDOT_Catchment!$P$5:$P$79)) ->  | N12: =IF(A12="","",VLOOKUP(A12,'Structural Water Quality Calcs'!$A$6:$AE$41,18,0)*100) ->  | O12: =IF(A12="","",VLOOKUP(A12,'Structural Water Quality Calcs'!$A$6:$AE$41,19,0)) ->  | P12: =IF(A12="","",IF(VLOOKUP(A12,'Structural Water Quality Calcs'!$A$7:$B$41,2,0)="Limited ROW",M12*N12*0.1/100,M12*N12/100)) ->  | Q12: =IF(A12="","",VLOOKUP(A12,'Structural Water Quality Calcs'!$A$6:$AE$41,14,0)) ->  | R12: =IF(A12="","",SUMIF(RIDOT_Catchment!$D$5:$D$79,A12,RIDOT_Catchment!$O$5:$O$79)) ->  | S12: =IF(A12="","",VLOOKUP(A12,'Structural Water Quality Calcs'!$A$6:$AE$41,15,0)*100) ->  | T12: =IF(A12="","",VLOOKUP(A12,'Structural Water Quality Calcs'!$A$6:$AE$41,16,0)) ->  | U12: =IF(A12="","",IF(VLOOKUP(A12,'Structural Water Quality Calcs'!$A$7:$B$41,2,0)="Limited ROW",R12*S12*0.1/100,R12*S12/100)) ->  | V12: =IF(A12="","",VLOOKUP(A12,'Structural Water Quality Calcs'!$A$6:$AE$41,20,0)) ->  | W12: =IF(A12="","",SUMIF(RIDOT_Catchment!$D$5:$D$79,A12,RIDOT_Catchment!$Q$5:$Q$79)) ->  | X12: =IF(A12="","",VLOOKUP(A12,'Structural Water Quality Calcs'!$A$6:$AE$41,21,0)*100) ->  | Y12: =IF(A12="","",VLOOKUP(A12,'Structural Water Quality Calcs'!$A$6:$AE$41,22,0)) ->  | Z12: =IF(A12="","",IF(VLOOKUP(A12,'Structural Water Quality Calcs'!$A$7:$B$41,2,0)="Limited ROW",W12*X12*0.1/100,W12*X12/100)) ->  | AA12: =IF(A12="","",VLOOKUP(A12,'Structural Water Quality Calcs'!$A$6:$AE$41,29,0)) ->  | AB12: =IF(A12="","",IF(VLOOKUP(A12,'Structural Water Quality Calcs'!$A$7:$B$41,2,0)="Limited ROW",VLOOKUP(A12,'Structural Water Quality Calcs'!$A$6:$AE$41,28,0)*E12*0.1/43560,VLOOKUP(A12,'Structural Water Quality Calcs'!$A$6:$AE$341,28,0)*E12/43560)) ->  | AC12: =IF(A12="","",VLOOKUP(A12,'Structural Water Quality Calcs'!$A$6:$AE$41,28,0)*100) ->  | AD12: =IF(A12="","",VLOOKUP(A12,'Structural Water Quality Calcs'!$A$6:$AE$41,31,0)) ->  | AE12: =IF(A12="","",VLOOKUP(A12,'Structural Water Quality Calcs'!$A$6:$AE$41,26,0)) ->  | AF12: =IF(A12="","",VLOOKUP(A12,'Structural Water Quality Calcs'!$A$6:$AE$41,27,0)) ->  | AG12: =IF(A12="","",(VLOOKUP(A12,'Structural Water Quality Calcs'!$A$6:$AE$41,25,0))) ->  | AH12: =IF(A12="","",VLOOKUP(A12,'Structural Water Quality Calcs'!$A$6:$AE$41,24,0)) ->  | AI12: =IF(A12="","",IF(AN12="Existing","",VLOOKUP(A12,STU_Cost!$A$5:$G$42,4,0))) ->  | AJ12: =IF(A12="","",IF(AN12="Existing","",VLOOKUP(A12,STU_Cost!$A$5:$G$42,5,0))) ->  | AK12: =IF(A12="","",IF(AN12="Existing","",VLOOKUP(A12,STU_Cost!$A$5:$G$42,7,0))) ->  | AN12: =IF(A12="","",IFERROR(VLOOKUP(A12,Existing_STU!$A$6:$J$37,8,0),VLOOKUP(A12,Potential_STU!$A$6:$K$39,8,0))) -> 
